Workbook

Sheet Récapitulatif
A1: Mois de référence pour chgt saison | B1: 8 | I1: 5 QUILLES
A2: Saison 1 | B2: 2014-2015
A3: Saison 2 | B3: 2015-2016 | I3: Statistiques N1 Ligue Nord-Pas de Calais
A4: Nb Match mini sur 2 saisons | B4: 10
A5: %age mini matchs gagnés | B5: 0.33 | I5: =Récapitulatif!$B$2 & " / " & Récapitulatif!$B$3 -> 2014-2015 / 2015-2016
A6: %age mini sets gagnés | B6: 0.33
B9: =Récapitulatif!$B$2 -> 2014-2015 | I9: =Récapitulatif!$B$3 -> 2015-2016 | P9: Total 2 saisons | W9: Total toutes saisons confondues
B10: Matchs | E10: Sets | H10: Moy. | I10: Matchs | L10: Sets | O10: Moy. | P10: Matchs | S10: Sets | V10: Moy. | W10: Matchs | Z10: Sets | AC10: Moy.
A11: Joueur | B11: G | C11: P | D11: %age G | E11: G | F11: P | G11: %age G | H11: Gén. | I11: G | J11: P | K11: %age G | L11: G | M11: P | N11: %age G | O11: Gén. | P11: G | Q11: P | R11: %age G | S11: G | T11: P | U11: %age G | V11: Gén. | W11: G | X11: P | Y11: %age G | Z11: G | AA11: P | AB11: %age G | AC11: Gén.
A12: ALDEGUER Lionel | B12: 4 | C12: 9 | D12: 0.3076923077 | E12: 6 | F12: 16 | G12: 0.2727272727 | H12: 0.8527298851 | I12: 4 | J12: 12 | K12: 0.25 | L12: 11 | M12: 26 | N12: 0.2972972973 | O12: 0.7854097584 | P12: 8 | Q12: 21 | R12: 0.275862069 | S12: 17 | T12: 42 | U12: 0.2881355932 | V12: 0.8121610049 | W12: 10 | X12: 24 | Y12: 0.2941176471 | Z12: 19 | AA12: 47 | AB12: 0.2878787879 | AC12: 0.8152173913
A13: BASTENIER Jean | B13: 0 | C13: 0 | E13: 0 | F13: 0 | I13: 0 | J13: 0 | L13: 0 | M13: 0 | P13: 0 | Q13: 0 | S13: 0 | T13: 0 | W13: 57 | X13: 50 | Y13: 0.5327102804 | Z13: 162 | AA13: 161 | AB13: 0.5015479876 | AC13: 0.9944038156
A14: BLONDEEL Firmin | B14: 5 | C14: 1 | D14: 0.8333333333 | E14: 15 | F14: 7 | G14: 0.6818181818 | H14: 1.167523124 | I14: 0 | J14: 6 | K14: 0 | L14: 1 | M14: 12 | N14: 0.07692307692 | O14: 0.754248366 | P14: 5 | Q14: 7 | R14: 0.4166666667 | S14: 16 | T14: 19 | U14: 0.4571428571 | V14: 0.9856156502 | W14: 5 | X14: 7 | Y14: 0.4166666667 | Z14: 16 | AA14: 19 | AB14: 0.4571428571 | AC14: 0.9856156502
A15: BURY Alain | B15: 0 | C15: 0 | E15: 0 | F15: 0 | I15: 0 | J15: 0 | L15: 0 | M15: 0 | P15: 0 | Q15: 0 | S15: 0 | T15: 0 | W15: 0 | X15: 3 | Y15: 0 | Z15: 1 | AA15: 6 | AB15: 0.1428571429 | AC15: 0.7737226277
A16: CAQUELOT Maurice | B16: 0 | C16: 0 | E16: 0 | F16: 0 | I16: 0 | J16: 0 | L16: 0 | M16: 0 | P16: 0 | Q16: 0 | S16: 0 | T16: 0 | W16: 0 | X16: 4 | Y16: 0 | Z16: 1 | AA16: 8 | AB16: 0.1111111111 | AC16: 0.6742857143
A17: CARPENTIER Yohanne | B17: 0 | C17: 0 | E17: 0 | F17: 0 | I17: 0 | J17: 0 | L17: 0 | M17: 0 | P17: 0 | Q17: 0 | S17: 0 | T17: 0 | W17: 23 | X17: 33 | Y17: 0.4107142857 | Z17: 63 | AA17: 79 | AB17: 0.4436619718 | AC17: 0.9750307
A18: CARTIERE André | B18: 0 | C18: 0 | E18: 0 | F18: 0 | I18: 0 | J18: 0 | L18: 0 | M18: 0 | P18: 0 | Q18: 0 | S18: 0 | T18: 0 | W18: 1 | X18: 4 | Y18: 0.2 | Z18: 3 | AA18: 8 | AB18: 0.2727272727 | AC18: 0.8025477707
A19: CAUX Frédéric | B19: 16 | C19: 20 | D19: 0.4444444444 | E19: 40 | F19: 51 | G19: 0.4395604396 | H19: 0.950527841 | I19: 5 | J19: 21 | K19: 0.1923076923 | L19: 14 | M19: 39 | N19: 0.2641509434 | O19: 0.7874585469 | P19: 21 | Q19: 41 | R19: 0.3387096774 | S19: 54 | T19: 90 | U19: 0.375 | V19: 0.8841433481 | W19: 97 | X19: 190 | Y19: 0.3379790941 | Z19: 282 | AA19: 468 | AB19: 0.376 | AC19: 0.8784643963
A20: CAUX Grégory | B20: 4 | C20: 3 | D20: 0.5714285714 | E20: 8 | F20: 9 | G20: 0.4705882353 | H20: 0.8672665917 | I20: 0 | J20: 0 | L20: 0 | M20: 0 | P20: 4 | Q20: 3 | R20: 0.5714285714 | S20: 8 | T20: 9 | U20: 0.4705882353 | V20: 0.8672665917 | W20: 17 | X20: 18 | Y20: 0.4857142857 | Z20: 41 | AA20: 45 | AB20: 0.476744186 | AC20: 0.9344842851
A21: CLYNCKE Jean-Jacques | B21: 11 | C21: 15 | D21: 0.4230769231 | E21: 32 | F21: 41 | G21: 0.4383561644 | H21: 0.9939692982 | I21: 18 | J21: 26 | K21: 0.4090909091 | L21: 50 | M21: 72 | N21: 0.4098360656 | O21: 0.8740279938 | P21: 29 | Q21: 41 | R21: 0.4142857143 | S21: 82 | T21: 113 | U21: 0.4205128205 | V21: 0.9174439373 | W21: 110 | X21: 169 | Y21: 0.394265233 | Z21: 331 | AA21: 458 | AB21: 0.4195183777 | AC21: 0.9098266461
A22: DECONINCK Franky | B22: 11 | C22: 5 | D22: 0.6875 | E22: 30 | F22: 15 | G22: 0.6666666667 | H22: 1.199117214 | I22: 0 | J22: 0 | L22: 0 | M22: 0 | P22: 11 | Q22: 5 | R22: 0.6875 | S22: 30 | T22: 15 | U22: 0.6666666667 | V22: 1.199117214 | W22: 17 | X22: 12 | Y22: 0.5862068966 | Z22: 37 | AA22: 26 | AB22: 0.5873015873 | AC22: 1.094270991
A23: DELEPIERRE Patrick | B23: 0 | C23: 0 | E23: 0 | F23: 0 | I23: 0 | J23: 0 | L23: 0 | M23: 0 | P23: 0 | Q23: 0 | S23: 0 | T23: 0 | W23: 14 | X23: 35 | Y23: 0.2857142857 | Z23: 43 | AA23: 93 | AB23: 0.3161764706 | AC23: 0.7784963622
A24: DELFORGE Benjamin | B24: 0 | C24: 0 | E24: 0 | F24: 0 | I24: 0 | J24: 0 | L24: 0 | M24: 0 | P24: 0 | Q24: 0 | S24: 0 | T24: 0 | W24: 0 | X24: 4 | Y24: 0 | Z24: 0 | AA24: 6 | AB24: 0 | AC24: 0.425
A25: DELRUE André | B25: 0 | C25: 0 | E25: 0 | F25: 0 | I25: 0 | J25: 0 | L25: 0 | M25: 0 | P25: 0 | Q25: 0 | S25: 0 | T25: 0 | W25: 0 | X25: 6 | Y25: 0 | Z25: 4 | AA25: 12 | AB25: 0.25 | AC25: 0.7257876313
A26: DELSOL Philippe | B26: 10 | C26: 9 | D26: 0.5263157895 | E26: 38 | F26: 43 | G26: 0.4691358025 | H26: 0.9594300894 | I26: 14 | J26: 1 | K26: 0.9333333333 | L26: 33 | M26: 9 | N26: 0.7857142857 | O26: 1.455513784 | P26: 24 | Q26: 10 | R26: 0.7058823529 | S26: 71 | T26: 52 | U26: 0.5772357724 | V26: 1.097437685 | W26: 144 | X26: 36 | Y26: 0.8 | Z26: 368 | AA26: 156 | AB26: 0.7022900763 | AC26: 1.27220579
A27: DEMILLY Dominique | B27: 0 | C27: 0 | E27: 0 | F27: 0 | I27: 0 | J27: 0 | L27: 0 | M27: 0 | P27: 0 | Q27: 0 | S27: 0 | T27: 0 | W27: 0 | X27: 3 | Y27: 0 | Z27: 0 | AA27: 6 | AB27: 0 | AC27: 0.4555555556
A28: DEPLECHIN Robert | B28: 9 | C28: 7 | D28: 0.5625 | E28: 18 | F28: 21 | G28: 0.4615384615 | H28: 0.9468186135 | I28: 0 | J28: 2 | K28: 0 | L28: 1 | M28: 4 | N28: 0.2 | O28: 0.6690140845 | P28: 9 | Q28: 9 | R28: 0.5 | S28: 19 | T28: 25 | U28: 0.4318181818 | V28: 0.9138075314 | W28: 17 | X28: 16 | Y28: 0.5151515152 | Z28: 33 | AA28: 38 | AB28: 0.4647887324 | AC28: 0.9920837589
A29: DEROLEZ Jean-Pierre | B29: 9 | C29: 16 | D29: 0.36 | E29: 28 | F29: 39 | G29: 0.4179104478 | H29: 0.8929546696 | I29: 18 | J29: 10 | K29: 0.6428571429 | L29: 38 | M29: 31 | N29: 0.5507246377 | O29: 1.042612064 | P29: 27 | Q29: 26 | R29: 0.5094339623 | S29: 66 | T29: 70 | U29: 0.4852941176 | V29: 0.9672897196 | W29: 60 | X29: 92 | Y29: 0.3947368421 | Z29: 152 | AA29: 211 | AB29: 0.4187327824 | AC29: 0.9297915608
A30: DEVOS Jackie | B30: 6 | C30: 2 | D30: 0.75 | E30: 12 | F30: 6 | G30: 0.6666666667 | H30: 1.192262603 | I30: 2 | J30: 1 | K30: 0.6666666667 | L30: 4 | M30: 3 | N30: 0.5714285714 | O30: 1.06442577 | P30: 8 | Q30: 3 | R30: 0.7272727273 | S30: 16 | T30: 9 | U30: 0.64 | V30: 1.154545455 | W30: 23 | X30: 11 | Y30: 0.6764705882 | Z30: 46 | AA30: 28 | AB30: 0.6216216216 | AC30: 1.120774264
A31: ESTERMANS Bernard | B31: 1 | C31: 7 | D31: 0.125 | E31: 5 | F31: 13 | G31: 0.2777777778 | H31: 0.8403441683 | I31: 0 | J31: 0 | L31: 0 | M31: 0 | P31: 1 | Q31: 7 | R31: 0.125 | S31: 5 | T31: 13 | U31: 0.2777777778 | V31: 0.8403441683 | W31: 10 | X31: 28 | Y31: 0.2631578947 | Z31: 25 | AA31: 52 | AB31: 0.3246753247 | AC31: 0.8498331479
A32: FAUCOMPREZ Didier | B32: 0 | C32: 0 | E32: 0 | F32: 0 | I32: 0 | J32: 0 | L32: 0 | M32: 0 | P32: 0 | Q32: 0 | S32: 0 | T32: 0 | W32: 30 | X32: 24 | Y32: 0.5555555556 | Z32: 81 | AA32: 76 | AB32: 0.5159235669 | AC32: 1.011875245
A33: FLEURANT Richard | B33: 0 | C33: 0 | E33: 0 | F33: 0 | I33: 0 | J33: 0 | L33: 0 | M33: 0 | P33: 0 | Q33: 0 | S33: 0 | T33: 0 | W33: 6 | X33: 9 | Y33: 0.4 | Z33: 14 | AA33: 19 | AB33: 0.4242424242 | AC33: 0.9826524902
A34: FONTAINE Christian | B34: 0 | C34: 0 | E34: 0 | F34: 0 | I34: 0 | J34: 0 | L34: 0 | M34: 0 | P34: 0 | Q34: 0 | S34: 0 | T34: 0 | W34: 3 | X34: 1 | Y34: 0.75 | Z34: 6 | AA34: 4 | AB34: 0.6 | AC34: 1.100446429
A35: FOULON Jeremy | B35: 0 | C35: 3 | D35: 0 | E35: 4 | F35: 9 | G35: 0.3076923077 | H35: 0.8169014085 | I35: 0 | J35: 0 | L35: 0 | M35: 0 | P35: 0 | Q35: 3 | R35: 0 | S35: 4 | T35: 9 | U35: 0.3076923077 | V35: 0.8169014085 | W35: 0 | X35: 3 | Y35: 0 | Z35: 4 | AA35: 9 | AB35: 0.3076923077 | AC35: 0.8169014085
A36: FRADET David | B36: 0 | C36: 3 | D36: 0 | E36: 1 | F36: 6 | G36: 0.1428571429 | H36: 0.7975308642 | I36: 0 | J36: 0 | L36: 0 | M36: 0 | P36: 0 | Q36: 3 | R36: 0 | S36: 1 | T36: 6 | U36: 0.1428571429 | V36: 0.7975308642 | W36: 0 | X36: 3 | Y36: 0 | Z36: 1 | AA36: 6 | AB36: 0.1428571429 | AC36: 0.7975308642
A37: GAUQUIE Serge | B37: 0 | C37: 2 | D37: 0 | E37: 1 | F37: 4 | G37: 0.2 | H37: 0.7552447552 | I37: 0 | J37: 0 | L37: 0 | M37: 0 | P37: 0 | Q37: 2 | R37: 0 | S37: 1 | T37: 4 | U37: 0.2 | V37: 0.7552447552 | W37: 2 | X37: 9 | Y37: 0.1818181818 | Z37: 8 | AA37: 19 | AB37: 0.2962962963 | AC37: 0.8169582773
A38: GEETS Patrice | B38: 27 | C38: 20 | D38: 0.5744680851 | E38: 81 | F38: 63 | G38: 0.5625 | H38: 1.116782905 | I38: 30 | J38: 15 | K38: 0.6666666667 | L38: 88 | M38: 58 | N38: 0.602739726 | O38: 1.113146233 | P38: 57 | Q38: 35 | R38: 0.6195652174 | S38: 169 | T38: 121 | U38: 0.5827586207 | V38: 1.114960397 | W38: 165 | X38: 100 | Y38: 0.6226415094 | Z38: 451 | AA38: 346 | AB38: 0.5658720201 | AC38: 1.07098294
A39: GHEVART Jean | B39: 3 | C39: 12 | D39: 0.2 | E39: 15 | F39: 29 | G39: 0.3409090909 | H39: 0.7900326797 | I39: 7 | J39: 26 | K39: 0.2121212121 | L39: 20 | M39: 53 | N39: 0.2739726027 | O39: 0.7705841121 | P39: 10 | Q39: 38 | R39: 0.2083333333 | S39: 35 | T39: 82 | U39: 0.2991452991 | V39: 0.7776605232 | W39: 10 | X39: 45 | Y39: 0.1818181818 | Z39: 36 | AA39: 94 | AB39: 0.2769230769 | AC39: 0.7593848997
A40: GREMAIN Gino | B40: 10 | C40: 8 | D40: 0.5555555556 | E40: 33 | F40: 28 | G40: 0.5409836066 | H40: 0.9989809783 | I40: 0 | J40: 0 | L40: 0 | M40: 0 | P40: 10 | Q40: 8 | R40: 0.5555555556 | S40: 33 | T40: 28 | U40: 0.5409836066 | V40: 0.9989809783 | W40: 106 | X40: 63 | Y40: 0.6272189349 | Z40: 308 | AA40: 231 | AB40: 0.5714285714 | AC40: 1.082478769
A41: GROLLET Fabien | B41: 0 | C41: 0 | E41: 0 | F41: 0 | I41: 0 | J41: 0 | L41: 0 | M41: 0 | P41: 0 | Q41: 0 | S41: 0 | T41: 0 | W41: 4 | X41: 6 | Y41: 0.4 | Z41: 10 | AA41: 14 | AB41: 0.4166666667 | AC41: 0.8786039454
A42: GUILLEMANT Alexandre | B42: 0 | C42: 0 | E42: 0 | F42: 0 | I42: 0 | J42: 0 | L42: 0 | M42: 0 | P42: 0 | Q42: 0 | S42: 0 | T42: 0 | W42: 113 | X42: 13 | Y42: 0.8968253968 | Z42: 356 | AA42: 97 | AB42: 0.7858719647 | AC42: 1.46435353
A43: GUILLEMANT David | B43: 12 | C43: 8 | D43: 0.6 | E43: 35 | F43: 26 | G43: 0.5737704918 | H43: 1.111667852 | I43: 12 | J43: 12 | K43: 0.5 | L43: 52 | M43: 46 | N43: 0.5306122449 | O43: 0.9897597479 | P43: 24 | Q43: 20 | R43: 0.5454545455 | S43: 87 | T43: 72 | U43: 0.5471698113 | V43: 1.033207858 | W43: 138 | X43: 79 | Y43: 0.6359447005 | Z43: 438 | AA43: 329 | AB43: 0.5710560626 | AC43: 1.073881017
A44: GUILLEMANT Jean-Marc | B44: 0 | C44: 0 | E44: 0 | F44: 0 | I44: 0 | J44: 0 | L44: 0 | M44: 0 | P44: 0 | Q44: 0 | S44: 0 | T44: 0 | W44: 58 | X44: 94 | Y44: 0.3815789474 | Z44: 191 | AA44: 272 | AB44: 0.4125269978 | AC44: 0.9146022458
A45: GUILLUY Jean-René | B45: 0 | C45: 0 | E45: 0 | F45: 0 | I45: 0 | J45: 0 | L45: 0 | M45: 0 | P45: 0 | Q45: 0 | S45: 0 | T45: 0 | W45: 0 | X45: 3 | Y45: 0 | Z45: 0 | AA45: 3 | AB45: 0 | AC45: 0.4733333333
A46: HENNEUSE Patrick | B46: 0 | C46: 0 | E46: 0 | F46: 0 | I46: 0 | J46: 0 | L46: 0 | M46: 0 | P46: 0 | Q46: 0 | S46: 0 | T46: 0 | W46: 7 | X46: 12 | Y46: 0.3684210526 | Z46: 22 | AA46: 29 | AB46: 0.431372549 | AC46: 0.9168256391
A47: HERREBRECHT Emerick | B47: 2 | C47: 6 | D47: 0.25 | E47: 8 | F47: 17 | G47: 0.32 | H47: 0.6182212581 | I47: 0 | J47: 5 | K47: 0 | L47: 4 | M47: 12 | N47: 0.25 | O47: 0.6734913793 | P47: 2 | Q47: 11 | R47: 0.1538461538 | S47: 12 | T47: 29 | U47: 0.2926829268 | V47: 0.6404154046 | W47: 3 | X47: 14 | Y47: 0.1764705882 | Z47: 14 | AA47: 34 | AB47: 0.2916666667 | AC47: 0.656238763
A48: HERREBRECHT Erian | B48: 1 | C48: 10 | D48: 0.09090909091 | E48: 7 | F48: 26 | G48: 0.2121212121 | H48: 0.6419354839 | I48: 0 | J48: 3 | K48: 0 | L48: 0 | M48: 6 | N48: 0 | O48: 0.4083333333 | P48: 1 | Q48: 13 | R48: 0.07142857143 | S48: 7 | T48: 32 | U48: 0.1794871795 | V48: 0.6040540541 | W48: 3 | X48: 19 | Y48: 0.1363636364 | Z48: 10 | AA48: 42 | AB48: 0.1923076923 | AC48: 0.6579719596
A49: HERREBRECHT Thierry | B49: 21 | C49: 9 | D49: 0.7 | E49: 61 | F49: 34 | G49: 0.6421052632 | H49: 1.199570815 | I49: 0 | J49: 0 | L49: 0 | M49: 0 | P49: 21 | Q49: 9 | R49: 0.7 | S49: 61 | T49: 34 | U49: 0.6421052632 | V49: 1.199570815 | W49: 136 | X49: 52 | Y49: 0.7234042553 | Z49: 371 | AA49: 209 | AB49: 0.6396551724 | AC49: 1.172695623
A50: HINGRAND Tony | B50: 0 | C50: 0 | E50: 0 | F50: 0 | I50: 3 | J50: 2 | K50: 0.6 | L50: 4 | M50: 3 | N50: 0.5714285714 | O50: 0.9958677686 | P50: 3 | Q50: 2 | R50: 0.6 | S50: 4 | T50: 3 | U50: 0.5714285714 | V50: 0.9958677686 | W50: 3 | X50: 2 | Y50: 0.6 | Z50: 4 | AA50: 3 | AB50: 0.5714285714 | AC50: 0.9958677686
A51: HOCHART James | B51: 0 | C51: 0 | E51: 0 | F51: 0 | I51: 0 | J51: 0 | L51: 0 | M51: 0 | P51: 0 | Q51: 0 | S51: 0 | T51: 0 | W51: 4 | X51: 9 | Y51: 0.3076923077 | Z51: 7 | AA51: 17 | AB51: 0.2916666667 | AC51: 0.7527723418
A52: HORNAIN Denis | B52: 0 | C52: 0 | E52: 0 | F52: 0 | I52: 0 | J52: 0 | L52: 0 | M52: 0 | P52: 0 | Q52: 0 | S52: 0 | T52: 0 | W52: 12 | X52: 22 | Y52: 0.3529411765 | Z52: 32 | AA52: 45 | AB52: 0.4155844156 | AC52: 0.9167510121
A53: HULOT Sophie | B53: 0 | C53: 0 | E53: 0 | F53: 0 | I53: 0 | J53: 0 | L53: 0 | M53: 0 | P53: 0 | Q53: 0 | S53: 0 | T53: 0 | W53: 1 | X53: 20 | Y53: 0.04761904762 | Z53: 6 | AA53: 43 | AB53: 0.1224489796 | AC53: 0.6574307305
A54: KAYA Turgul | B54: 0 | C54: 0 | E54: 0 | F54: 0 | I54: 0 | J54: 0 | L54: 0 | M54: 0 | P54: 0 | Q54: 0 | S54: 0 | T54: 0 | W54: 8 | X54: 10 | Y54: 0.4444444444 | Z54: 14 | AA54: 20 | AB54: 0.4117647059 | AC54: 0.9085219066
A55: KERKHOF Hervé | B55: 0 | C55: 0 | E55: 0 | F55: 0 | I55: 2 | J55: 4 | K55: 0.3333333333 | L55: 3 | M55: 8 | N55: 0.2727272727 | O55: 0.9211309524 | P55: 2 | Q55: 4 | R55: 0.3333333333 | S55: 3 | T55: 8 | U55: 0.2727272727 | V55: 0.9211309524 | W55: 2 | X55: 4 | Y55: 0.3333333333 | Z55: 3 | AA55: 8 | AB55: 0.2727272727 | AC55: 0.9211309524
A56: LAMBIASE Guiseppe | B56: 0 | C56: 0 | E56: 0 | F56: 0 | I56: 0 | J56: 0 | L56: 0 | M56: 0 | P56: 0 | Q56: 0 | S56: 0 | T56: 0 | W56: 14 | X56: 4 | Y56: 0.7777777778 | Z56: 34 | AA56: 13 | AB56: 0.7234042553 | AC56: 1.260869565
A57: LEBLANC Jean-Noël | B57: 0 | C57: 0 | E57: 0 | F57: 0 | I57: 1 | J57: 2 | K57: 0.3333333333 | L57: 2 | M57: 5 | N57: 0.2857142857 | O57: 0.8700265252 | P57: 1 | Q57: 2 | R57: 0.3333333333 | S57: 2 | T57: 5 | U57: 0.2857142857 | V57: 0.8700265252 | W57: 3 | X57: 5 | Y57: 0.375 | Z57: 5 | AA57: 10 | AB57: 0.3333333333 | AC57: 0.8797752809
A58: LECLERCQ Alain | B58: 0 | C58: 0 | E58: 0 | F58: 0 | I58: 0 | J58: 2 | K58: 0 | L58: 1 | M58: 4 | N58: 0.2 | O58: 0.7431906615 | P58: 0 | Q58: 2 | R58: 0 | S58: 1 | T58: 4 | U58: 0.2 | V58: 0.7431906615 | W58: 0 | X58: 2 | Y58: 0 | Z58: 1 | AA58: 4 | AB58: 0.2 | AC58: 0.7431906615
A59: LECROART Serge | B59: 0 | C59: 0 | E59: 0 | F59: 0 | I59: 4 | J59: 9 | K59: 0.3076923077 | L59: 9 | M59: 15 | N59: 0.375 | O59: 0.9048931771 | P59: 4 | Q59: 9 | R59: 0.3076923077 | S59: 9 | T59: 15 | U59: 0.375 | V59: 0.9048931771 | W59: 17 | X59: 38 | Y59: 0.3090909091 | Z59: 43 | AA59: 74 | AB59: 0.3675213675 | AC59: 0.8260402272
A60: LEFEBVRE Julien | B60: 1 | C60: 2 | D60: 0.3333333333 | E60: 4 | F60: 6 | G60: 0.4 | H60: 0.735395189 | I60: 0 | J60: 0 | L60: 0 | M60: 0 | P60: 1 | Q60: 2 | R60: 0.3333333333 | S60: 4 | T60: 6 | U60: 0.4 | V60: 0.735395189 | W60: 1 | X60: 2 | Y60: 0.3333333333 | Z60: 4 | AA60: 6 | AB60: 0.4 | AC60: 0.735395189
A61: LEMATRE Alexis | B61: 0 | C61: 0 | E61: 0 | F61: 0 | I61: 6 | J61: 4 | K61: 0.6 | L61: 21 | M61: 16 | N61: 0.5675675676 | O61: 1.047830923 | P61: 6 | Q61: 4 | R61: 0.6 | S61: 21 | T61: 16 | U61: 0.5675675676 | V61: 1.047830923 | W61: 6 | X61: 4 | Y61: 0.6 | Z61: 21 | AA61: 16 | AB61: 0.5675675676 | AC61: 1.047830923
A62: LEMATRE Jérémy | B62: 1 | C62: 2 | D62: 0.3333333333 | E62: 4 | F62: 7 | G62: 0.3636363636 | H62: 0.8878504673 | I62: 0 | J62: 0 | L62: 0 | M62: 0 | P62: 1 | Q62: 2 | R62: 0.3333333333 | S62: 4 | T62: 7 | U62: 0.3636363636 | V62: 0.8878504673 | W62: 1 | X62: 2 | Y62: 0.3333333333 | Z62: 4 | AA62: 7 | AB62: 0.3636363636 | AC62: 0.8878504673
A63: LEMÂTRE Alexis | B63: 16 | C63: 7 | D63: 0.6956521739 | E63: 40 | F63: 22 | G63: 0.6451612903 | H63: 1.174434544 | I63: 9 | J63: 6 | K63: 0.6 | L63: 19 | M63: 16 | N63: 0.5428571429 | O63: 1.060126582 | P63: 25 | Q63: 13 | R63: 0.6578947368 | S63: 59 | T63: 38 | U63: 0.6082474227 | V63: 1.129414209 | W63: 25 | X63: 13 | Y63: 0.6578947368 | Z63: 59 | AA63: 38 | AB63: 0.6082474227 | AC63: 1.129414209
A64: LEMÂTRE Jérémy | B64: 16 | C64: 2 | D64: 0.8888888889 | E64: 38 | F64: 12 | G64: 0.76 | H64: 1.214317084 | I64: 10 | J64: 6 | K64: 0.625 | L64: 22 | M64: 16 | N64: 0.5789473684 | O64: 1.091814159 | P64: 26 | Q64: 8 | R64: 0.7647058824 | S64: 60 | T64: 28 | U64: 0.6818181818 | V64: 1.160097919 | W64: 48 | X64: 25 | Y64: 0.6575342466 | Z64: 118 | AA64: 78 | AB64: 0.6020408163 | AC64: 1.097645655
A65: LERICQUE Pierre | B65: 0 | C65: 0 | E65: 0 | F65: 0 | I65: 0 | J65: 0 | L65: 0 | M65: 0 | P65: 0 | Q65: 0 | S65: 0 | T65: 0 | W65: 3 | X65: 4 | Y65: 0.4285714286 | Z65: 7 | AA65: 11 | AB65: 0.3888888889 | AC65: 0.7932843652
A66: LHERMITTE Cédric | B66: 0 | C66: 0 | E66: 0 | F66: 0 | I66: 0 | J66: 0 | L66: 0 | M66: 0 | P66: 0 | Q66: 0 | S66: 0 | T66: 0 | W66: 80 | X66: 40 | Y66: 0.6666666667 | Z66: 197 | AA66: 128 | AB66: 0.6061538462 | AC66: 1.120047309
A67: LORTHIOIR Jean-Luc | B67: 7 | C67: 15 | D67: 0.3181818182 | E67: 16 | F67: 34 | G67: 0.32 | H67: 0.810720268 | I67: 4 | J67: 12 | K67: 0.25 | L67: 7 | M67: 21 | N67: 0.25 | O67: 0.7466887417 | P67: 11 | Q67: 27 | R67: 0.2894736842 | S67: 23 | T67: 55 | U67: 0.2948717949 | V67: 0.7865332499 | W67: 60 | X67: 155 | Y67: 0.2790697674 | Z67: 159 | AA67: 349 | AB67: 0.312992126 | AC67: 0.7859704245
A68: LOTHE Jean-Luc | B68: 2 | C68: 6 | D68: 0.25 | E68: 9 | F68: 17 | G68: 0.3461538462 | H68: 0.907079646 | I68: 0 | J68: 0 | L68: 0 | M68: 0 | P68: 2 | Q68: 6 | R68: 0.25 | S68: 9 | T68: 17 | U68: 0.3461538462 | V68: 0.907079646 | W68: 2 | X68: 10 | Y68: 0.1666666667 | Z68: 12 | AA68: 25 | AB68: 0.3243243243 | AC68: 0.8778586279
A69: LUBREZ Pierre | B69: 3 | C69: 11 | D69: 0.2142857143 | E69: 7 | F69: 18 | G69: 0.28 | H69: 0.8672069825 | I69: 0 | J69: 0 | L69: 0 | M69: 0 | P69: 3 | Q69: 11 | R69: 0.2142857143 | S69: 7 | T69: 18 | U69: 0.28 | V69: 0.8672069825 | W69: 9 | X69: 31 | Y69: 0.225 | Z69: 23 | AA69: 53 | AB69: 0.3026315789 | AC69: 0.8356419268
A70: MAILLE Bernard | B70: 15 | C70: 10 | D70: 0.6 | E70: 42 | F70: 36 | G70: 0.5384615385 | H70: 1.061866667 | I70: 38 | J70: 19 | K70: 0.6666666667 | L70: 102 | M70: 70 | N70: 0.5930232558 | O70: 1.135412704 | P70: 53 | Q70: 29 | R70: 0.6463414634 | S70: 144 | T70: 106 | U70: 0.576 | V70: 1.111712641 | W70: 193 | X70: 142 | Y70: 0.576119403 | Z70: 552 | AA70: 461 | AB70: 0.5449160908 | AC70: 1.059228938
A71: MANTEN Paul | B71: 1 | C71: 4 | D71: 0.2 | E71: 3 | F71: 8 | G71: 0.2727272727 | H71: 0.8170940171 | I71: 1 | J71: 8 | K71: 0.1111111111 | L71: 5 | M71: 15 | N71: 0.25 | O71: 0.7577319588 | P71: 2 | Q71: 12 | R71: 0.1428571429 | S71: 8 | T71: 23 | U71: 0.2580645161 | V71: 0.7775871927 | W71: 10 | X71: 31 | Y71: 0.243902439 | Z71: 19 | AA71: 56 | AB71: 0.2533333333 | AC71: 0.8231588095
A72: MARRONNIER Jean-Luc | B72: 0 | C72: 0 | E72: 0 | F72: 0 | I72: 0 | J72: 0 | L72: 0 | M72: 0 | P72: 0 | Q72: 0 | S72: 0 | T72: 0 | W72: 0 | X72: 4 | Y72: 0 | Z72: 0 | AA72: 6 | AB72: 0 | AC72: 0.4772727273
A73: MARTEL Bruno | B73: 0 | C73: 0 | E73: 0 | F73: 0 | I73: 0 | J73: 0 | L73: 0 | M73: 0 | P73: 0 | Q73: 0 | S73: 0 | T73: 0 | W73: 4 | X73: 12 | Y73: 0.25 | Z73: 12 | AA73: 27 | AB73: 0.3076923077 | AC73: 0.8597820938
A74: MASIERO Lorenzo | B74: 0 | C74: 0 | E74: 0 | F74: 0 | I74: 0 | J74: 0 | L74: 0 | M74: 0 | P74: 0 | Q74: 0 | S74: 0 | T74: 0 | W74: 4 | X74: 7 | Y74: 0.3636363636 | Z74: 11 | AA74: 17 | AB74: 0.3928571429 | AC74: 0.8332272438
A75: MAUPIN Patrick | B75: 0 | C75: 0 | E75: 0 | F75: 0 | I75: 0 | J75: 0 | L75: 0 | M75: 0 | P75: 0 | Q75: 0 | S75: 0 | T75: 0 | W75: 10 | X75: 8 | Y75: 0.5555555556 | Z75: 23 | AA75: 19 | AB75: 0.5476190476 | AC75: 1.028278888
A76: MEUROT Philippe | B76: 0 | C76: 0 | E76: 0 | F76: 0 | I76: 0 | J76: 0 | L76: 0 | M76: 0 | P76: 0 | Q76: 0 | S76: 0 | T76: 0 | W76: 2 | X76: 2 | Y76: 0.5 | Z76: 5 | AA76: 5 | AB76: 0.5 | AC76: 0.9259259259
A77: MONFLIER Francis | B77: 0 | C77: 0 | E77: 0 | F77: 0 | I77: 0 | J77: 0 | L77: 0 | M77: 0 | P77: 0 | Q77: 0 | S77: 0 | T77: 0 | W77: 2 | X77: 15 | Y77: 0.1176470588 | Z77: 6 | AA77: 26 | AB77: 0.1875 | AC77: 0.6574746009
A78: PAILLARD Bertrand | B78: 0 | C78: 0 | E78: 0 | F78: 0 | I78: 0 | J78: 0 | L78: 0 | M78: 0 | P78: 0 | Q78: 0 | S78: 0 | T78: 0 | W78: 0 | X78: 4 | Y78: 0 | Z78: 2 | AA78: 6 | AB78: 0.25 | AC78: 0.6890909091
A79: PARISIS Francis | B79: 0 | C79: 0 | E79: 0 | F79: 0 | I79: 0 | J79: 0 | L79: 0 | M79: 0 | P79: 0 | Q79: 0 | S79: 0 | T79: 0 | W79: 1 | X79: 8 | Y79: 0.1111111111 | Z79: 2 | AA79: 12 | AB79: 0.1428571429 | AC79: 0.5349794239
A80: PIERRU Didier | B80: 0 | C80: 0 | E80: 0 | F80: 0 | I80: 1 | J80: 7 | K80: 0.125 | L80: 5 | M80: 17 | N80: 0.2272727273 | O80: 0.7075697211 | P80: 1 | Q80: 7 | R80: 0.125 | S80: 5 | T80: 17 | U80: 0.2272727273 | V80: 0.7075697211 | W80: 1 | X80: 7 | Y80: 0.125 | Z80: 5 | AA80: 17 | AB80: 0.2272727273 | AC80: 0.7075697211
A81: PONCHANT Grégory | B81: 0 | C81: 0 | E81: 0 | F81: 0 | I81: 0 | J81: 0 | L81: 0 | M81: 0 | P81: 0 | Q81: 0 | S81: 0 | T81: 0 | W81: 5 | X81: 11 | Y81: 0.3125 | Z81: 17 | AA81: 28 | AB81: 0.3777777778 | AC81: 0.868907563
A82: POULEYN André | B82: 13 | C82: 26 | D82: 0.3333333333 | E82: 40 | F82: 67 | G82: 0.3738317757 | H82: 0.8459255533 | I82: 13 | J82: 23 | K82: 0.3611111111 | L82: 35 | M82: 60 | N82: 0.3684210526 | O82: 0.8595664467 | P82: 26 | Q82: 49 | R82: 0.3466666667 | S82: 75 | T82: 127 | U82: 0.3712871287 | V82: 0.852347147 | W82: 66 | X82: 121 | Y82: 0.3529411765 | Z82: 199 | AA82: 307 | AB82: 0.3932806324 | AC82: 0.888585683
A83: PRUVOST Franck | B83: 0 | C83: 0 | E83: 0 | F83: 0 | I83: 0 | J83: 0 | L83: 0 | M83: 0 | P83: 0 | Q83: 0 | S83: 0 | T83: 0 | W83: 1 | X83: 10 | Y83: 0.09090909091 | Z83: 5 | AA83: 23 | AB83: 0.1785714286 | AC83: 0.5542467452
A84: RACARY Thibault | B84: 12 | C84: 5 | D84: 0.7058823529 | E84: 44 | F84: 21 | G84: 0.6769230769 | H84: 1.221955403 | I84: 16 | J84: 4 | K84: 0.8 | L84: 50 | M84: 23 | N84: 0.6849315068 | O84: 1.265212047 | P84: 28 | Q84: 9 | R84: 0.7567567568 | S84: 94 | T84: 44 | U84: 0.6811594203 | V84: 1.244772248 | W84: 126 | X84: 46 | Y84: 0.7325581395 | Z84: 371 | AA84: 205 | AB84: 0.6440972222 | AC84: 1.186290668
A85: RAUX Jean-François | B85: 0 | C85: 0 | E85: 0 | F85: 0 | I85: 0 | J85: 0 | L85: 0 | M85: 0 | P85: 0 | Q85: 0 | S85: 0 | T85: 0 | W85: 2 | X85: 3 | Y85: 0.4 | Z85: 5 | AA85: 7 | AB85: 0.4166666667 | AC85: 0.8690095847
A86: RENAUX Damien | B86: 0 | C86: 0 | E86: 0 | F86: 0 | I86: 0 | J86: 0 | L86: 0 | M86: 0 | P86: 0 | Q86: 0 | S86: 0 | T86: 0 | W86: 1 | X86: 3 | Y86: 0.25 | Z86: 2 | AA86: 5 | AB86: 0.2857142857 | AC86: 0.8695652174
A87: SAINT-GEORGES Claude | B87: 32 | C87: 17 | D87: 0.6530612245 | E87: 100 | F87: 67 | G87: 0.5988023952 | H87: 1.12195122 | I87: 19 | J87: 15 | K87: 0.5588235294 | L87: 56 | M87: 51 | N87: 0.523364486 | O87: 1.071909248 | P87: 51 | Q87: 32 | R87: 0.6144578313 | S87: 156 | T87: 118 | U87: 0.5693430657 | V87: 1.101789449 | W87: 157 | X87: 115 | Y87: 0.5772058824 | Z87: 445 | AA87: 382 | AB87: 0.53808948 | AC87: 1.030841781
A88: SEINGIER Jean-Claude | B88: 1 | C88: 2 | D88: 0.3333333333 | E88: 3 | F88: 4 | G88: 0.4285714286 | H88: 0.8252688172 | I88: 0 | J88: 0 | L88: 0 | M88: 0 | P88: 1 | Q88: 2 | R88: 0.3333333333 | S88: 3 | T88: 4 | U88: 0.4285714286 | V88: 0.8252688172 | W88: 7 | X88: 18 | Y88: 0.28 | Z88: 27 | AA88: 50 | AB88: 0.3506493506 | AC88: 0.8847972132
A89: SKORDILIS Christo | B89: 0 | C89: 0 | E89: 0 | F89: 0 | I89: 0 | J89: 0 | L89: 0 | M89: 0 | P89: 0 | Q89: 0 | S89: 0 | T89: 0 | W89: 12 | X89: 19 | Y89: 0.3870967742 | Z89: 33 | AA89: 47 | AB89: 0.4125 | AC89: 0.863584081
A90: ST MAXENT Stéphane | B90: 0 | C90: 0 | E90: 0 | F90: 0 | I90: 0 | J90: 0 | L90: 0 | M90: 0 | P90: 0 | Q90: 0 | S90: 0 | T90: 0 | W90: 1 | X90: 4 | Y90: 0.2 | Z90: 2 | AA90: 6 | AB90: 0.25 | AC90: 0.7560073937
A91: STOPIN Gilles | B91: 2 | C91: 2 | D91: 0.5 | E91: 7 | F91: 9 | G91: 0.4375 | H91: 0.9421182266 | I91: 0 | J91: 0 | L91: 0 | M91: 0 | P91: 2 | Q91: 2 | R91: 0.5 | S91: 7 | T91: 9 | U91: 0.4375 | V91: 0.9421182266 | W91: 4 | X91: 6 | Y91: 0.4 | Z91: 13 | AA91: 18 | AB91: 0.4193548387 | AC91: 0.9496173469
A92: THERY Jean-Pierre | B92: 0 | C92: 0 | E92: 0 | F92: 0 | I92: 0 | J92: 3 | K92: 0 | L92: 0 | M92: 6 | N92: 0 | O92: 0.5388888889 | P92: 0 | Q92: 3 | R92: 0 | S92: 0 | T92: 6 | U92: 0 | V92: 0.5388888889 | W92: 0 | X92: 3 | Y92: 0 | Z92: 0 | AA92: 6 | AB92: 0 | AC92: 0.5388888889
A93: TRIPLET Freddy | B93: 0 | C93: 0 | E93: 0 | F93: 0 | I93: 0 | J93: 2 | K93: 0 | L93: 0 | M93: 4 | N93: 0 | O93: 0.525 | P93: 0 | Q93: 2 | R93: 0 | S93: 0 | T93: 4 | U93: 0 | V93: 0.525 | W93: 0 | X93: 2 | Y93: 0 | Z93: 0 | AA93: 4 | AB93: 0 | AC93: 0.525
A94: TRIPLET Gilbert | B94: 1 | C94: 10 | D94: 0.09090909091 | E94: 3 | F94: 16 | G94: 0.1578947368 | H94: 0.7477911647 | I94: 1 | J94: 2 | K94: 0.3333333333 | L94: 3 | M94: 5 | N94: 0.375 | O94: 0.8421052632 | P94: 2 | Q94: 12 | R94: 0.1428571429 | S94: 6 | T94: 21 | U94: 0.2222222222 | V94: 0.772294887 | W94: 5 | X94: 25 | Y94: 0.1666666667 | Z94: 17 | AA94: 48 | AB94: 0.2615384615 | AC94: 0.7757255937
A95: TRUQUET David | B95: 0 | C95: 0 | E95: 0 | F95: 0 | I95: 0 | J95: 0 | L95: 0 | M95: 0 | P95: 0 | Q95: 0 | S95: 0 | T95: 0 | W95: 4 | X95: 5 | Y95: 0.4444444444 | Z95: 11 | AA95: 11 | AB95: 0.5 | AC95: 1.019283747
A96: TURPIN Laurent | B96: 0 | C96: 0 | E96: 0 | F96: 0 | I96: 0 | J96: 0 | L96: 0 | M96: 0 | P96: 0 | Q96: 0 | S96: 0 | T96: 0 | W96: 34 | X96: 26 | Y96: 0.5666666667 | Z96: 78 | AA96: 70 | AB96: 0.527027027 | AC96: 1.024363833
A97: VANDIONANT Michel | B97: 0 | C97: 0 | E97: 0 | F97: 0 | I97: 0 | J97: 0 | L97: 0 | M97: 0 | P97: 0 | Q97: 0 | S97: 0 | T97: 0 | W97: 0 | X97: 6 | Y97: 0 | Z97: 0 | AA97: 12 | AB97: 0 | AC97: 0.4402777778
A98: VANLERBERGHE Nicolas | B98: 0 | C98: 0 | E98: 0 | F98: 0 | I98: 0 | J98: 0 | L98: 0 | M98: 0 | P98: 0 | Q98: 0 | S98: 0 | T98: 0 | W98: 5 | X98: 7 | Y98: 0.4166666667 | Z98: 14 | AA98: 21 | AB98: 0.4 | AC98: 0.9705882353
A99: VANNUCCI Emilio | B99: 0 | C99: 0 | E99: 0 | F99: 0 | I99: 0 | J99: 0 | L99: 0 | M99: 0 | P99: 0 | Q99: 0 | S99: 0 | T99: 0 | W99: 23 | X99: 11 | Y99: 0.6764705882 | Z99: 54 | AA99: 36 | AB99: 0.6 | AC99: 1.101891253
A100: VEREECQUE Bernard | B100: 0 | C100: 0 | E100: 0 | F100: 0 | I100: 0 | J100: 0 | L100: 0 | M100: 0 | P100: 0 | Q100: 0 | S100: 0 | T100: 0 | W100: 2 | X100: 3 | Y100: 0.4 | Z100: 3 | AA100: 6 | AB100: 0.3333333333 | AC100: 0.7383333333
A101: VEREECQUE Ludovic | B101: 1 | C101: 2 | D101: 0.3333333333 | E101: 3 | F101: 5 | G101: 0.375 | H101: 0.8513513514 | I101: 3 | J101: 4 | K101: 0.4285714286 | L101: 8 | M101: 10 | N101: 0.4444444444 | O101: 0.9459770115 | P101: 4 | Q101: 6 | R101: 0.4 | S101: 11 | T101: 15 | U101: 0.4230769231 | V101: 0.9140030441 | W101: 37 | X101: 38 | Y101: 0.4933333333 | Z101: 91 | AA101: 94 | AB101: 0.4918918919 | AC101: 0.9940604752
A102: VERHAGHE Dominique | B102: 5 | C102: 8 | D102: 0.3846153846 | E102: 18 | F102: 23 | G102: 0.4390243902 | H102: 0.9033793432 | I102: 0 | J102: 0 | L102: 0 | M102: 0 | P102: 5 | Q102: 8 | R102: 0.3846153846 | S102: 18 | T102: 23 | U102: 0.4390243902 | V102: 0.9033793432 | W102: 9 | X102: 12 | Y102: 0.4285714286 | Z102: 28 | AA102: 33 | AB102: 0.4590163934 | AC102: 0.9418075423
A103: VERPOORT José | B103: 0 | C103: 0 | E103: 0 | F103: 0 | I103: 0 | J103: 0 | L103: 0 | M103: 0 | P103: 0 | Q103: 0 | S103: 0 | T103: 0 | W103: 1 | X103: 3 | Y103: 0.25 | Z103: 2 | AA103: 5 | AB103: 0.2857142857 | AC103: 0.8568232662
A104: WALLART Jean-Charles | B104: 21 | C104: 15 | D104: 0.5833333333 | E104: 53 | F104: 49 | G104: 0.5196078431 | H104: 1.0746 | I104: 29 | J104: 21 | K104: 0.58 | L104: 85 | M104: 64 | N104: 0.5704697987 | O104: 1.097697139 | P104: 50 | Q104: 36 | R104: 0.5813953488 | S104: 138 | T104: 113 | U104: 0.5498007968 | V104: 1.088203864 | W104: 207 | X104: 170 | Y104: 0.549071618 | Z104: 584 | AA104: 531 | AB104: 0.5237668161 | AC104: 1.04703423
A105: WESTEEL Bruno | B105: 0 | C105: 0 | E105: 0 | F105: 0 | I105: 0 | J105: 0 | L105: 0 | M105: 0 | P105: 0 | Q105: 0 | S105: 0 | T105: 0 | W105: 19 | X105: 10 | Y105: 0.6551724138 | Z105: 55 | AA105: 38 | AB105: 0.5913978495 | AC105: 1.105880996
A106: ZEUDE Alain | B106: 0 | C106: 0 | E106: 0 | F106: 0 | I106: 0 | J106: 0 | L106: 0 | M106: 0 | P106: 0 | Q106: 0 | S106: 0 | T106: 0 | W106: 3 | X106: 19 | Y106: 0.1363636364 | Z106: 4 | AA106: 35 | AB106: 0.1025641026 | AC106: 0.5722334004

Sheet ALDEGUER Lionel
A1: ALDEGUER Lionel | P1: =Récapitulatif!$B$2 -> 2014-2015 | R1: =Récapitulatif!$B$3 -> 2015-2016 | T1: Toutes saisons
A2: <Club> | P2: Nombre | Q2: %age | R2: Nombre | S2: %age | T2: Nombre | U2: %age
A3: <Licence> | N3: Matchs | O3: Gagnés | P3: =SUM(P$15:P$50) -> 4 | Q3: =IF(P$3+P$4>0,P3/(P$3+P$4),"") -> 0.3076923077 | R3: =SUM(R$15:R$50) -> 4 | S3: =IF(R$3+R$4>0,R3/(R$3+R$4),"") -> 0.25 | T3: =COUNTIF($C$15:$C$50,"G") -> 10 | U3: =IF(T$3+T$4>0,T3/(T$3+T$4),"") -> 0.2941176471
A4: <Tel> | O4: Perdus | P4: =COUNTIF($K$15:$K$50,Récapitulatif!$B$2)-P3 -> 9 | Q4: =IF(P$3+P$4>0,P4/(P$3+P$4),"") -> 0.6923076923 | R4: =COUNTIF($K$15:$K$50,Récapitulatif!$B$3)-R3 -> 12 | S4: =IF(R$3+R$4>0,R4/(R$3+R$4),"") -> 0.75 | T4: =COUNTIF($C$15:$C$50,"P") -> 24 | U4: =IF(T$3+T$4>0,T4/(T$3+T$4),"") -> 0.7058823529
A5: <email> | O5: Total / Moy. | P5: =SUM(P3:P4) -> 13 | Q5: =IF(SUMIF($K$15:$K$50,Récapitulatif!$B$2,$G$15:$G$50)>0,SUMIF($K$15:$K$50,Récapitulatif!$B$2,$F$15:$F$50)/SUMIF($K$15:$K$50,Récapitulatif!$B$2,$G$15:$G$50),"") -> 0.8527298851 | R5: =SUM(R3:R4) -> 16 | S5: =IF(SUMIF($K$15:$K$50,Récapitulatif!$B$3,$G$15:$G$50)>0,SUMIF($K$15:$K$50,Récapitulatif!$B$3,$F$15:$F$50)/SUMIF($K$15:$K$50,Récapitulatif!$B$3,$G$15:$G$50),"") -> 0.7854097584 | T5: =SUM(T3:T4) -> 34 | U5: =IF(SUM($G$15:$G$50)>0,SUM($F$15:$F$50)/SUM($G$15:$G$50),"") -> 0.8152173913 | V5: =IF(SUMIF($K$15:$K$50,Récapitulatif!$B$2,$G$15:$G$50)+SUMIF($K$15:$K$50,Récapitulatif!$B$3,$G$15:$G$50)>0,(SUMIF($K$15:$K$50,Récapitulatif!$B$2,$F$15:$F$50)+SUMIF($K$15:$K$50,Récapitulatif!$B$3,$F$15:$F$50))/(SUMIF($K$15:$K$50,Récapitulatif!$B$2,$G$15:$G$50)+SUMIF($K$15:$K$50,Récapitulatif!$B$3,$G$15:$G$50)),"") -> 0.8121610049
N6: Sets | O6: Gagnés | P6: =SUMIF($K$15:$K$50,Récapitulatif!$B$2,$D$15:$D$50) -> 6 | Q6: =IF(P$6+P$7>0,P6/(P$6+P$7),"") -> 0.2727272727 | R6: =SUMIF($K$15:$K$50,Récapitulatif!$B$3,$D$15:$D$50) -> 11 | S6: =IF(R$6+R$7>0,R6/(R$6+R$7),"") -> 0.2972972973 | T6: =SUM($D$15:$D$50) -> 19 | U6: =IF(T$6+T$7>0,T6/(T$6+T$7),"") -> 0.2878787879
O7: Perdus | P7: =SUMIF($K$15:$K$50,Récapitulatif!$B$2,$E$15:$E$50) -> 16 | Q7: =IF(P$6+P$7>0,P7/(P$6+P$7),"") -> 0.7272727273 | R7: =SUMIF($K$15:$K$50,Récapitulatif!$B$3,$E$15:$E$50) -> 26 | S7: =IF(R$6+R$7>0,R7/(R$6+R$7),"") -> 0.7027027027 | T7: =SUM($E$15:$E$50) -> 47 | U7: =IF(T$6+T$7>0,T7/(T$6+T$7),"") -> 0.7121212121
A8: Récapitulatif joueurs | O8: Total | P8: =SUM(P6:P7) -> 22 | R8: =SUM(R6:R7) -> 37 | T8: =SUM(T6:T7) -> 66
A15: Joueur | B15: Adversaire | C15: G/P | D15: Sets gagnés | E15: Sets perdus | F15: pts marqués | G15: pts subis | H15: Date | I15: Compétition | J15: Phase | K15: Saison
A16: ALDEGUER Lionel | B16: DEVOS Jackie | C16: P | D16: 0 | E16: 2 | F16: 70 | G16: 120 | H16: 2014-04-05 | I16: N1 Ligue T3 GRAVELINES | J16: Poules | K16: =IF(H16<>"",IF(MONTH(H16)>MoisRef,YEAR(H16)&"-"&YEAR(H16)+1,YEAR(H16)-1&"-"&YEAR(H16)),"") -> 2013-2014 | P16: =IF($K16=P$1,COUNTIF($C16,"G"),0) -> 0 | R16: =IF($K16=R$1,COUNTIF($C16,"G"),0) -> 0
A17: ALDEGUER Lionel | B17: SAINT-GEORGES Claude | C17: P | D17: 0 | E17: 2 | F17: 61 | G17: 120 | H17: 2014-04-05 | I17: N1 Ligue T3 GRAVELINES | J17: Poules | K17: 2013-2014 | P17: 0 | R17: 0
A18: ALDEGUER Lionel | B18: PARISIS Francis | C18: G | D18: 1 | E18: 0 | F18: 100 | G18: 48 | H18: 2014-04-05 | I18: N1 Ligue T3 GRAVELINES | J18: Poules Consolante | K18: 2013-2014 | P18: 0 | R18: 0
A19: ALDEGUER Lionel | B19: VEREECQUE Bernard | C19: G | D19: 1 | E19: 0 | F19: 100 | G19: 65 | H19: 2014-04-05 | I19: N1 Ligue T3 GRAVELINES | J19: Poules Consolante | K19: 2013-2014 | P19: 0 | R19: 0
A20: ALDEGUER Lionel | B20: DEROLEZ Jean-Pierre | C20: P | D20: 0 | E20: 1 | F20: 49 | G20: 100 | H20: 2014-04-05 | I20: N1 Ligue T3 GRAVELINES | J20: 1/2 Finale Consolante | K20: 2013-2014 | P20: 0 | R20: 0
A21: ALDEGUER Lionel | B21: POULEYN andré | C21: P | D21: 0 | E21: 1 | F21: 96 | G21: 100 | H21: 2015-01-17 | I21: N1 Ligue T1 DUNKERQUE | J21: Poules Consolante | K21: 2014-2015 | P21: 0 | R21: 0
A22: ALDEGUER Lionel | B22: WALLART Jean-charles | C22: P | D22: 0 | E22: 1 | F22: 59 | G22: 100 | H22: 2015-01-17 | I22: N1 Ligue T1 DUNKERQUE | J22: Poules Consolante | K22: 2014-2015 | P22: 0 | R22: 0
A23: ALDEGUER Lionel | B23: DEVOS Jackie | C23: P | D23: 0 | E23: 2 | F23: 81 | G23: 120 | H23: 2015-01-17 | I23: N1 Ligue T1 DUNKERQUE | J23: Poules | K23: 2014-2015 | P23: 0 | R23: 0
A24: ALDEGUER Lionel | B24: SEINGIER Jean-Claude | C24: P | D24: 0 | E24: 2 | F24: 88 | G24: 120 | H24: 2015-01-17 | I24: N1 Ligue T1 DUNKERQUE | J24: Poules | K24: 2014-2015 | P24: 0 | R24: 0
A25: ALDEGUER Lionel | B25: POULEYN andré | C25: G | D25: 1 | E25: 0 | F25: 100 | G25: 33 | H25: 2015-02-07 | I25: N1 Ligue T2 CALAIS | J25: Poules Consolante | K25: 2014-2015 | P25: 1 | R25: 0
A26: ALDEGUER Lionel | B26: LUBREZ Pierre | C26: G | D26: 1 | E26: 0 | F26: 100 | G26: 91 | H26: 2015-02-07 | I26: N1 Ligue T2 CALAIS | J26: Poules Consolante | K26: 2014-2015 | P26: 1 | R26: 0
A27: ALDEGUER Lionel | B27: POULEYN andré | C27: P | D27: 0 | E27: 1 | F27: 85 | G27: 100 | H27: 2015-02-07 | I27: N1 Ligue T2 CALAIS | J27: 1/2 finale Consolante | K27: 2014-2015 | P27: 0 | R27: 0
A28: ALDEGUER Lionel | B28: DEROLEZ Jean-pierre | C28: P | D28: 0 | E28: 2 | F28: 80 | G28: 120 | H28: 2015-02-07 | I28: N1 Ligue T2 CALAIS | J28: Poules | K28: 2014-2015 | P28: 0 | R28: 0
A29: ALDEGUER Lionel | B29: CLYNCKE Jean-Jacques | C29: G | D29: 2 | E29: 1 | F29: 147 | G29: 158 | H29: 2015-02-07 | I29: N1 Ligue T2 CALAIS | J29: Poules | K29: 2014-2015 | P29: 1 | R29: 0
A30: ALDEGUER Lionel | B30: LEMÂTRE Alexis | C30: P | D30: 0 | E30: 2 | F30: 65 | G30: 120 | H30: 2015-02-07 | I30: N1 Ligue T2 CALAIS | J30: 1/8 Finale | K30: 2014-2015 | P30: 0 | R30: 0
A31: ALDEGUER Lionel | B31: TRIPLET Gilbert | C31: G | D31: 2 | E31: 0 | F31: 120 | G31: 90 | H31: 2015-03-14 | I31: N1 Ligue T3 ANNOEULLIN | J31: Poules | K31: 2014-2015 | P31: 1 | R31: 0
A32: ALDEGUER Lionel | B32: LEMÂTRE Jérémy | C32: P | D32: 0 | E32: 2 | F32: 102 | G32: 120 | H32: 2015-03-14 | I32: N1 Ligue T3 ANNOEULLIN | J32: Poules | K32: 2014-2015 | P32: 0 | R32: 0
A33: ALDEGUER Lionel | B33: LEMÂTRE Alexis | C33: P | D33: 0 | E33: 2 | F33: 64 | G33: 120 | H33: 2015-03-14 | I33: N1 Ligue T3 ANNOEULLIN | J33: 1/4 Finale | K33: 2014-2015 | P33: 0 | R33: 0
A34: ALDEGUER Lionel | B34: RACARY Thibault | C34: P | D34: 0 | E34: 2 | F34: 52 | G34: 120 | H34: 2016-03-04 | I34: National T5 GRAVELINES | J34: Préqualifs | K34: 2015-2016 | P34: 0 | R34: 0
A35: ALDEGUER Lionel | B35: BILLIARD Alain | C35: G | D35: 2 | E35: 1 | F35: 135 | G35: 153 | H35: 2016-03-04 | I35: National T5 GRAVELINES | J35: Préqualifs | K35: 2015-2016 | P35: 0 | R35: 1
A36: ALDEGUER Lionel | B36: LHERMITTE Sylvain | C36: P | D36: 0 | E36: 2 | F36: 78 | G36: 120 | H36: 2016-03-04 | I36: National T5 GRAVELINES | J36: Préqualifs | K36: 2015-2016 | P36: 0 | R36: 0
A37: ALDEGUER Lionel | B37: ZACCAGNINI Antoine | C37: P | D37: 0 | E37: 3 | F37: 93 | G37: 180 | H37: 2016-03-05 | I37: National T5 GRAVELINES | J37: Qualifs promotion | K37: 2015-2016 | P37: 0 | R37: 0
A38: ALDEGUER Lionel | B38: WEBER Thierry | C38: P | D38: 1 | E38: 3 | F38: 178 | G38: 205 | H38: 2016-03-05 | I38: National T5 GRAVELINES | J38: Qualifs promotion | K38: 2015-2016 | P38: 0 | R38: 0
A39: ALDEGUER Lionel | B39: LORTHIOIR Jean-Luc | C39: G | D39: 1 | E39: 0 | F39: 100 | G39: 64 | H39: 2015-12-05 | I39: CONSOLANTE T1 LIGUE 5 QUILLES N1 - FACHES-THUMESNIL | J39: Poules | K39: 2015-2016 | P39: 0 | R39: 1
A40: ALDEGUER Lionel | B40: CLYNCKE Jean-Jacques | C40: P | D40: 0 | E40: 1 | F40: 29 | G40: 100 | H40: 2015-12-05 | I40: CONSOLANTE T1 LIGUE 5 QUILLES N1 - FACHES-THUMESNIL | J40: Poules | K40: 2015-2016 | P40: 0 | R40: 0
A41: ALDEGUER Lionel | B41: LECROART Serge | C41: G | D41: 2 | E41: 1 | F41: 176 | G41: 139 | H41: 2015-12-04 | I41: T1 LIGUE 5 QUILLES N1 - FACHES-THUMESNIL | J41: Poules | K41: 2015-2016 | P41: 0 | R41: 1
A42: ALDEGUER Lionel | B42: MAILLE Bernard | C42: P | D42: 0 | E42: 2 | F42: 83 | G42: 120 | H42: 2015-12-04 | I42: T1 LIGUE 5 QUILLES N1 - FACHES-THUMESNIL | J42: Poules | K42: 2015-2016 | P42: 0 | R42: 0
A43: ALDEGUER Lionel | B43: LEMÂTRE Alexis | C43: P | D43: 0 | E43: 1 | F43: 57 | G43: 100 | H43: 2016-01-09 | I43: CONSOLANTE T2 LIGUE 5 QUILLES N1 - GRAVELINES | J43: Qualifications | K43: 2015-2016 | P43: 0 | R43: 0
A44: ALDEGUER Lionel | B44: GHEVART Jean | C44: P | D44: 0 | E44: 1 | F44: 98 | G44: 100 | H44: 2016-01-09 | I44: CONSOLANTE T2 LIGUE 5 QUILLES N1 - GRAVELINES | J44: Qualifications | K44: 2015-2016 | P44: 0 | R44: 0
A45: ALDEGUER Lionel | B45: TRIPLET Gilbert | C45: P | D45: 1 | E45: 2 | F45: 140 | G45: 138 | H45: 2016-01-09 | I45: T2 LIGUE 5 QUILLES N1 - GRAVELINES | J45: Qualifications | K45: 2015-2016 | P45: 0 | R45: 0
A46: ALDEGUER Lionel | B46: SAINT-GEORGES Claude | C46: P | D46: 1 | E46: 2 | F46: 117 | G46: 156 | H46: 2016-01-09 | I46: T2 LIGUE 5 QUILLES N1 - GRAVELINES | J46: Qualifications | K46: 2015-2016 | P46: 0 | R46: 0
A47: ALDEGUER Lionel | B47: GHEVART Jean | C47: G | D47: 2 | E47: 1 | F47: 144 | G47: 134 | H47: 2016-01-23 | I47: T3 Ligue 5 Quilles N1 - ANNOEULLIN | J47: Qualifications | K47: 2015-2016 | P47: 0 | R47: 1
A48: ALDEGUER Lionel | B48: MAILLE Bernard | C48: P | D48: 1 | E48: 2 | F48: 122 | G48: 162 | H48: 2016-01-23 | I48: T3 Ligue 5 Quilles N1 - ANNOEULLIN | J48: Qualifications | K48: 2015-2016 | P48: 0 | R48: 0
A49: ALDEGUER Lionel | B49: WALLART Jean-Charles | C49: P | D49: 0 | E49: 2 | F49: 56 | G49: 120 | H49: 2016-01-23 | I49: T3 Ligue 5 Quilles N1 - ANNOEULLIN | J49: 1/4 Finale | K49: 2015-2016 | P49: 0 | R49: 0
A50: Fin des données | P50: 0 | R50: 0

Sheet BASTENIER Jean
A1: BASTENIER Jean | P1: =Récapitulatif!$B$2 -> 2014-2015 | R1: =Récapitulatif!$B$3 -> 2015-2016 | T1: Toutes saisons
A2: FACHES-THUMESNIL | P2: Nombre | Q2: %age | R2: Nombre | S2: %age | T2: Nombre | U2: %age
A3: 017360-S | N3: Matchs | O3: Gagnés | P3: =SUM(P$15:P$123) -> 0 | Q3: =IF(P$3+P$4>0,P3/(P$3+P$4),"") ->  | R3: =SUM(R$15:R$123) -> 0 | S3: =IF(R$3+R$4>0,R3/(R$3+R$4),"") ->  | T3: =COUNTIF($C$15:$C$123,"G") -> 57 | U3: =IF(T$3+T$4>0,T3/(T$3+T$4),"") -> 0.5327102804
O4: Perdus | P4: =COUNTIF($K$15:$K$123,Récapitulatif!$B$2)-P3 -> 0 | Q4: =IF(P$3+P$4>0,P4/(P$3+P$4),"") ->  | R4: =COUNTIF($K$15:$K$123,Récapitulatif!$B$3)-R3 -> 0 | S4: =IF(R$3+R$4>0,R4/(R$3+R$4),"") ->  | T4: =COUNTIF($C$15:$C$123,"P") -> 50 | U4: =IF(T$3+T$4>0,T4/(T$3+T$4),"") -> 0.4672897196
A5: jeanbastenier@hotmail.fr | O5: Total / Moy. | P5: =SUM(P3:P4) -> 0 | Q5: =IF(SUMIF($K$15:$K$123,Récapitulatif!$B$2,$G$15:$G$123)>0,SUMIF($K$15:$K$123,Récapitulatif!$B$2,$F$15:$F$123)/SUMIF($K$15:$K$123,Récapitulatif!$B$2,$G$15:$G$123),"") ->  | R5: =SUM(R3:R4) -> 0 | S5: =IF(SUMIF($K$15:$K$123,Récapitulatif!$B$3,$G$15:$G$123)>0,SUMIF($K$15:$K$123,Récapitulatif!$B$3,$F$15:$F$123)/SUMIF($K$15:$K$123,Récapitulatif!$B$3,$G$15:$G$123),"") ->  | T5: =SUM(T3:T4) -> 107 | U5: =IF(SUM($G$15:$G$123)>0,SUM($F$15:$F$123)/SUM($G$15:$G$123),"") -> 0.9944038156 | V5: =IF(SUMIF($K$15:$K$123,Récapitulatif!$B$2,$G$15:$G$123)+SUMIF($K$15:$K$123,Récapitulatif!$B$3,$G$15:$G$123)>0,(SUMIF($K$15:$K$123,Récapitulatif!$B$2,$F$15:$F$123)+SUMIF($K$15:$K$123,Récapitulatif!$B$3,$F$15:$F$123))/(SUMIF($K$15:$K$123,Récapitulatif!$B$2,$G$15:$G$123)+SUMIF($K$15:$K$123,Récapitulatif!$B$3,$G$15:$G$123)),"") -> 
N6: Sets | O6: Gagnés | P6: =SUMIF($K$15:$K$123,Récapitulatif!$B$2,$D$15:$D$123) -> 0 | Q6: =IF(P$6+P$7>0,P6/(P$6+P$7),"") ->  | R6: =SUMIF($K$15:$K$123,Récapitulatif!$B$3,$D$15:$D$123) -> 0 | S6: =IF(R$6+R$7>0,R6/(R$6+R$7),"") ->  | T6: =SUM($D$15:$D$123) -> 162 | U6: =IF(T$6+T$7>0,T6/(T$6+T$7),"") -> 0.5015479876
O7: Perdus | P7: =SUMIF($K$15:$K$123,Récapitulatif!$B$2,$E$15:$E$123) -> 0 | Q7: =IF(P$6+P$7>0,P7/(P$6+P$7),"") ->  | R7: =SUMIF($K$15:$K$123,Récapitulatif!$B$3,$E$15:$E$123) -> 0 | S7: =IF(R$6+R$7>0,R7/(R$6+R$7),"") ->  | T7: =SUM($E$15:$E$123) -> 161 | U7: =IF(T$6+T$7>0,T7/(T$6+T$7),"") -> 0.4984520124
A8: Récapitulatif joueurs | O8: Total | P8: =SUM(P6:P7) -> 0 | R8: =SUM(R6:R7) -> 0 | T8: =SUM(T6:T7) -> 323
A15: Joueur | B15: Adversaire | C15: G/P | D15: Sets gagnés | E15: Sets perdus | F15: pts marqués | G15: pts subis | H15: Date | I15: Compétition | J15: Phase | K15: Saison
A16: BASTENIER Jean | B16: BOUVIER Philippe | C16: G | D16: 2 | E16: 0 | F16: 120 | G16: 69 | H16: 2008-12-12 | I16: National T3 ANNOEULLIN | J16: Préqualifs | K16: =IF(H16<>"",IF(MONTH(H16)>MoisRef,YEAR(H16)&"-"&YEAR(H16)+1,YEAR(H16)-1&"-"&YEAR(H16)),"") -> 2008-2009 | P16: =IF($K16=P$1,COUNTIF($C16,"G"),0) -> 0 | R16: =IF($K16=R$1,COUNTIF($C16,"G"),0) -> 0
A17: BASTENIER Jean | B17: KERCRET Geneviève | C17: G | D17: 2 | E17: 0 | F17: 120 | G17: 47 | H17: 2008-12-12 | I17: National T3 ANNOEULLIN | J17: Préqualifs | K17: 2008-2009 | P17: 0 | R17: 0
A18: BASTENIER Jean | B18: GONTHIER Arnaud | C18: G | D18: 2 | E18: 1 | F18: 163 | G18: 131 | H18: 2008-12-12 | I18: National T3 ANNOEULLIN | J18: Préqualifs | K18: 2008-2009 | P18: 0 | R18: 0
A19: BASTENIER Jean | B19: HINGANT Matthieu | C19: P | D19: 1 | E19: 3 | F19: 152 | G19: 236 | H19: 2008-12-13 | I19: National T3 ANNOEULLIN | J19: Qualifs Masters | K19: 2008-2009 | P19: 0 | R19: 0
A20: BASTENIER Jean | B20: TRIFAULT Amand | C20: P | D20: 0 | E20: 3 | F20: 159 | G20: 180 | H20: 2008-12-13 | I20: National T3 ANNOEULLIN | J20: Qualifs Masters | K20: 2008-2009 | P20: 0 | R20: 0
A21: BASTENIER Jean | B21: PERRIN Thierry | C21: G | D21: 2 | E21: 0 | F21: 120 | G21: 58 | H21: 2009-02-06 | I21: National T4 LAXOU | J21: Préqualifs | K21: 2008-2009 | P21: 0 | R21: 0
A22: BASTENIER Jean | B22: MORALES Luis | C22: P | D22: 0 | E22: 2 | F22: 69 | G22: 120 | H22: 2009-02-06 | I22: National T4 LAXOU | J22: Préqualifs | K22: 2008-2009 | P22: 0 | R22: 0
A23: BASTENIER Jean | B23: J. BLANC | C23: G | D23: 2 | E23: 0 | F23: 120 | G23: 86 | H23: 2009-02-06 | I23: National T4 LAXOU | J23: Préqualifs | K23: 2008-2009 | P23: 0 | R23: 0
A24: BASTENIER Jean | B24: DENIS Jean | C24: G | D24: 3 | E24: 1 | F24: 227 | G24: 204 | H24: 2009-02-07 | I24: National T4 LAXOU | J24: Qualifs promotion | K24: 2008-2009 | P24: 0 | R24: 0
A25: BASTENIER Jean | B25: GUIBERT Philippe | C25: P | D25: 0 | E25: 3 | F25: 120 | G25: 180 | H25: 2009-02-07 | I25: National T4 LAXOU | J25: Qualifs promotion | K25: 2008-2009 | P25: 0 | R25: 0
A26: BASTENIER Jean | B26: DENIS Jean | C26: G | D26: 3 | E26: 1 | F26: 233 | G26: 173 | H26: 2009-02-07 | I26: National T4 LAXOU | J26: Qualifs promotion | K26: 2008-2009 | P26: 0 | R26: 0
A27: BASTENIER Jean | B27: GUILLEMANT Jean-Marc | C27: G | D27: 3 | E27: 1 | F27: 235 | G27: 195 | H27: 2009-02-08 | I27: National T4 LAXOU | J27: 1/8 finale promotion | K27: 2008-2009 | P27: 0 | R27: 0
A28: BASTENIER Jean | B28: QUENEY Damien | C28: P | D28: 2 | E28: 3 | F28: 226 | G28: 267 | H28: 2009-02-08 | I28: National T4 LAXOU | J28: 1/4 finale promotion | K28: 2008-2009 | P28: 0 | R28: 0
A29: BASTENIER Jean | B29: GEETS Patrice | C29: G | D29: 2 | E29: 0 | F29: 120 | G29: 112 | H29: 2009-03-07 | I29: N1 Ligue T2 ANNOEULLIN | J29: Poules | K29: 2008-2009 | P29: 0 | R29: 0
A30: BASTENIER Jean | B30: VANNUCCI Emilio | C30: G | D30: 2 | E30: 0 | F30: 120 | G30: 70 | H30: 2009-03-07 | I30: N1 Ligue T2 ANNOEULLIN | J30: Poules | K30: 2008-2009 | P30: 0 | R30: 0
A31: BASTENIER Jean | B31: GREMAIN Gino | C31: P | D31: 1 | E31: 2 | F31: 127 | G31: 169 | H31: 2009-03-07 | I31: N1 Ligue T2 ANNOEULLIN | J31: 1/4 Finale | K31: 2008-2009 | P31: 0 | R31: 0
A32: BASTENIER Jean | B32: WALLART Jean-Charles | C32: P | D32: 1 | E32: 2 | F32: 163 | G32: 178 | H32: 2009-03-20 | I32: National T5 ANDERNOS | J32: Préqualifs | K32: 2008-2009 | P32: 0 | R32: 0
A33: BASTENIER Jean | B33: GREMAIN Gino | C33: P | D33: 1 | E33: 2 | F33: 104 | G33: 155 | H33: 2009-03-20 | I33: National T5 ANDERNOS | J33: Préqualifs | K33: 2008-2009 | P33: 0 | R33: 0
A34: BASTENIER Jean | B34: PALOMBA Sergio | C34: G | D34: 2 | E34: 1 | F34: 172 | G34: 129 | H34: 2009-03-20 | I34: National T5 ANDERNOS | J34: Préqualifs | K34: 2008-2009 | P34: 0 | R34: 0
A35: BASTENIER Jean | B35: WALLART Jean-Charles | C35: G | D35: 3 | E35: 2 | F35: 237 | G35: 224 | H35: 2009-03-21 | I35: National T5 ANDERNOS | J35: Qualifs promotion | K35: 2008-2009 | P35: 0 | R35: 0
A36: BASTENIER Jean | B36: CLYNCKE Jean-Jacques | C36: G | D36: 3 | E36: 2 | F36: 279 | G36: 235 | H36: 2009-03-21 | I36: National T5 ANDERNOS | J36: Qualifs promotion | K36: 2008-2009 | P36: 0 | R36: 0
A37: BASTENIER Jean | B37: BOUTET Laurent | C37: P | D37: 1 | E37: 3 | F37: 178 | G37: 215 | H37: 2009-03-22 | I37: National T5 ANDERNOS | J37: 1/8 finale promotion | K37: 2008-2009 | P37: 0 | R37: 0
A38: BASTENIER Jean | B38: CAUX Frédéric | C38: G | D38: 2 | E38: 1 | F38: 143 | G38: 144 | H38: 2009-04-11 | I38: N1 Ligue T3 DUNKERQUE | J38: Poules | K38: 2008-2009 | P38: 0 | R38: 0
A39: BASTENIER Jean | B39: WALLART Jean-Charles | C39: P | D39: 0 | E39: 2 | F39: 63 | G39: 120 | H39: 2009-04-11 | I39: N1 Ligue T3 DUNKERQUE | J39: Poules | K39: 2008-2009 | P39: 0 | R39: 0
A40: BASTENIER Jean | B40: LORTHIOIR Jean-Luc | C40: G | D40: 2 | E40: 0 | F40: 120 | G40: 70 | H40: 2009-04-11 | I40: N1 Ligue T3 DUNKERQUE | J40: Poules Consolante | K40: 2008-2009 | P40: 0 | R40: 0
A41: BASTENIER Jean | B41: CARPENTIER Yohanne | C41: G | D41: 2 | E41: 1 | F41: 135 | G41: 119 | H41: 2009-04-11 | I41: N1 Ligue T3 DUNKERQUE | J41: Poules Consolante | K41: 2008-2009 | P41: 0 | R41: 0
A42: BASTENIER Jean | B42: LECROART Serge | C42: G | D42: 2 | E42: 1 | F42: 165 | G42: 104 | H42: 2009-04-11 | I42: N1 Ligue T3 DUNKERQUE | J42: Finale Consolante | K42: 2008-2009 | P42: 0 | R42: 0
A43: BASTENIER Jean | B43: SCHUB Philippe | C43: G | D43: 2 | E43: 0 | F43: 120 | G43: 55 | H43: 2009-04-17 | I43: National T6 CAUDAN | J43: Préqualifs | K43: 2008-2009 | P43: 0 | R43: 0
A44: BASTENIER Jean | B44: TRIFAULT Amand | C44: P | D44: 0 | E44: 2 | F44: 45 | G44: 120 | H44: 2009-04-17 | I44: National T6 CAUDAN | J44: Préqualifs | K44: 2008-2009 | P44: 0 | R44: 0
A45: BASTENIER Jean | B45: RETIF Jérôme | C45: G | D45: 2 | E45: 0 | F45: 120 | G45: 68 | H45: 2009-04-17 | I45: National T6 CAUDAN | J45: Préqualifs | K45: 2008-2009 | P45: 0 | R45: 0
A46: BASTENIER Jean | B46: ROBIC Daniel | C46: P | D46: 0 | E46: 3 | F46: 145 | G46: 180 | H46: 2009-04-18 | I46: National T6 CAUDAN | J46: Qualifs promotion | K46: 2008-2009 | P46: 0 | R46: 0
A47: BASTENIER Jean | B47: EVENOU Marie-Antoinette | C47: G | D47: 3 | E47: 0 | F47: 180 | G47: 78 | H47: 2009-04-18 | I47: National T6 CAUDAN | J47: Qualifs promotion | K47: 2008-2009 | P47: 0 | R47: 0
A48: BASTENIER Jean | B48: MAILLE Bernard | C48: G | D48: 3 | E48: 2 | F48: 246 | G48: 246 | H48: 2009-04-18 | I48: National T6 CAUDAN | J48: Qualifs promotion | K48: =IF(H48<>"",IF(MONTH(H48)>MoisRef,YEAR(H48)&"-"&YEAR(H48)+1,YEAR(H48)-1&"-"&YEAR(H48)),"") -> 2008-2009 | P48: 0 | R48: 0
A49: BASTENIER Jean | B49: ZACCAGNINI Antoine | C49: P | D49: 1 | E49: 3 | F49: 197 | G49: 232 | H49: 2009-04-19 | I49: National T6 CAUDAN | J49: 1/8 finale promotion | K49: 2008-2009 | P49: 0 | R49: 0
A50: BASTENIER Jean | B50: HULOT Sophie | C50: G | D50: 2 | E50: 0 | F50: 120 | G50: 83 | H50: 2009-11-06 | I50: National T1 SCHILTIGHEIM | J50: Préqualifs | K50: 2009-2010 | P50: 0 | R50: 0
A51: BASTENIER Jean | B51: SORTAIS Claude | C51: P | D51: 0 | E51: 2 | F51: 63 | G51: 120 | H51: 2009-11-06 | I51: National T1 SCHILTIGHEIM | J51: Préqualifs | K51: 2009-2010 | P51: 0 | R51: 0
A52: BASTENIER Jean | B52: MATHIS Jean | C52: P | D52: 0 | E52: 2 | F52: 82 | G52: 120 | H52: 2009-11-06 | I52: National T1 SCHILTIGHEIM | J52: Préqualifs | K52: 2009-2010 | P52: 0 | R52: 0
A53: BASTENIER Jean | B53: COTTEN Jean-Pierre | C53: P | D53: 0 | E53: 3 | F53: 118 | G53: 180 | H53: 2009-11-07 | I53: National T1 SCHILTIGHEIM | J53: Qualifs promotion | K53: 2009-2010 | P53: 0 | R53: 0
A54: BASTENIER Jean | B54: GANGLOFF Jean-Luc | C54: G | D54: 3 | E54: 2 | F54: 257 | G54: 209 | H54: 2009-11-07 | I54: National T1 SCHILTIGHEIM | J54: Qualifs promotion | K54: 2009-2010 | P54: 0 | R54: 0
A55: BASTENIER Jean | B55: COTTEN Jean-Pierre | C55: P | D55: 1 | E55: 3 | F55: 168 | G55: 218 | H55: 2009-11-07 | I55: National T1 SCHILTIGHEIM | J55: Qualifs promotion | K55: 2009-2010 | P55: 0 | R55: 0
A56: BASTENIER Jean | B56: REBELO Joaquim | C56: P | D56: 0 | E56: 2 | F56: 106 | G56: 120 | H56: 2009-12-04 | I56: National T2 ANNOEULLIN | J56: Préqualifs | K56: 2009-2010 | P56: 0 | R56: 0
A57: BASTENIER Jean | B57: SORTAIS Claude | C57: P | D57: 0 | E57: 2 | F57: 75 | G57: 120 | H57: 2009-12-04 | I57: National T2 ANNOEULLIN | J57: Préqualifs | K57: 2009-2010 | P57: 0 | R57: 0
A58: BASTENIER Jean | B58: DEVOGELAERE Mikael | C58: P | D58: 0 | E58: 2 | F58: 76 | G58: 120 | H58: 2009-12-04 | I58: National T2 ANNOEULLIN | J58: Préqualifs | K58: 2009-2010 | P58: 0 | R58: 0
A59: BASTENIER Jean | B59: DEROLEZ Jean-Pierre | C59: G | D59: 2 | E59: 1 | F59: 179 | G59: 130 | H59: 2009-12-19 | I59: N1 Ligue T2 ANNOEULLIN | J59: Poules | K59: 2009-2010 | P59: 0 | R59: 0
A60: BASTENIER Jean | B60: GREMAIN Gino | C60: P | D60: 0 | E60: 2 | F60: 84 | G60: 120 | H60: 2009-12-19 | I60: N1 Ligue T2 ANNOEULLIN | J60: Poules | K60: 2009-2010 | P60: 0 | R60: 0
A61: BASTENIER Jean | B61: RACARY Thibault | C61: G | D61: 2 | E61: 1 | F61: 178 | G61: 140 | H61: 2009-12-19 | I61: N1 Ligue T2 ANNOEULLIN | J61: Poules Consolante | K61: 2009-2010 | P61: 0 | R61: 0
A62: BASTENIER Jean | B62: HORNAIN Denis | C62: G | D62: 2 | E62: 1 | F62: 148 | G62: 129 | H62: 2009-12-19 | I62: N1 Ligue T2 ANNOEULLIN | J62: Poules Consolante | K62: 2009-2010 | P62: 0 | R62: 0
A63: BASTENIER Jean | B63: MARTEL Jean-Pierre | C63: P | D63: 0 | E63: 2 | F63: 102 | G63: 120 | H63: 2010-01-16 | I63: N1 Ligue T3 ANNOEULLIN | J63: Poules Consolante | K63: 2009-2010 | P63: 0 | R63: 0
A64: BASTENIER Jean | B64: HENNEUSE Patrick | C64: G | D64: 2 | E64: 1 | F64: 165 | G64: 163 | H64: 2010-01-16 | I64: N1 Ligue T3 ANNOEULLIN | J64: Poules Consolante | K64: 2009-2010 | P64: 0 | R64: 0
A65: BASTENIER Jean | B65: HORNAIN Denis | C65: G | D65: 2 | E65: 0 | F65: 120 | G65: 47 | H65: 2010-01-16 | I65: N1 Ligue T3 ANNOEULLIN | J65: Poules | K65: 2009-2010 | P65: 0 | R65: 0
A66: BASTENIER Jean | B66: LAMBIASE Guiseppe | C66: P | D66: 0 | E66: 2 | F66: 60 | G66: 120 | H66: 2010-01-16 | I66: N1 Ligue T3 ANNOEULLIN | J66: Poules | K66: 2009-2010 | P66: 0 | R66: 0
A67: BASTENIER Jean | B67: WALLART Jean-Charles | C67: G | D67: 2 | E67: 1 | F67: 156 | G67: 129 | H67: 2010-01-29 | I67: National T3 ORLEANS | J67: Préqualifs | K67: 2009-2010 | P67: 0 | R67: 0
A68: BASTENIER Jean | B68: BALLON Xavier | C68: P | D68: 1 | E68: 2 | F68: 149 | G68: 155 | H68: 2010-01-29 | I68: National T3 ORLEANS | J68: Préqualifs | K68: 2009-2010 | P68: 0 | R68: 0
A69: BASTENIER Jean | B69: DUVERNOY Christophe | C69: P | D69: 0 | E69: 2 | F69: 49 | G69: 120 | H69: 2010-01-29 | I69: National T3 ORLEANS | J69: Préqualifs | K69: 2009-2010 | P69: 0 | R69: 0
A70: BASTENIER Jean | B70: DEBRAY Alain | C70: G | D70: 3 | E70: 0 | F70: 180 | G70: 102 | H70: 2010-01-30 | I70: National T3 ORLEANS | J70: Qualifs promotion | K70: 2009-2010 | P70: 0 | R70: 0
A71: BASTENIER Jean | B71: TRIFAULT Amand | C71: P | D71: 1 | E71: 3 | F71: 120 | G71: 235 | H71: 2010-01-30 | I71: National T3 ORLEANS | J71: Qualifs promotion | K71: 2009-2010 | P71: 0 | R71: 0
A72: BASTENIER Jean | B72: BALLON Xavier | C72: G | D72: 3 | E72: 1 | F72: 214 | G72: 140 | H72: 2010-01-30 | I72: National T3 ORLEANS | J72: Qualifs promotion | K72: 2009-2010 | P72: 0 | R72: 0
A73: BASTENIER Jean | B73: BOUVIER Philippe | C73: P | D73: 1 | E73: 3 | F73: 209 | G73: 231 | H73: 2010-01-31 | I73: National T3 ORLEANS | J73: 1/8 finale promotion | K73: 2009-2010 | P73: 0 | R73: 0
A74: BASTENIER Jean | B74: HENNEUSE Patrick | C74: G | D74: 2 | E74: 0 | F74: 120 | G74: 93 | H74: 2010-02-20 | I74: N1 Ligue T4 DOUAI | J74: Poules | K74: 2009-2010 | P74: 0 | R74: 0
A75: BASTENIER Jean | B75: HENNEUSE Patrick | C75: P | D75: 1 | E75: 2 | F75: 131 | G75: 167 | H75: 2010-02-20 | I75: N1 Ligue T4 DOUAI | J75: Poules | K75: 2009-2010 | P75: 0 | R75: 0
A76: BASTENIER Jean | B76: TURPIN Laurent | C76: G | D76: 2 | E76: 0 | F76: 120 | G76: 101 | H76: 2010-02-20 | I76: N1 Ligue T4 DOUAI | J76: 1/8 Finale | K76: 2009-2010 | P76: 0 | R76: 0
A77: BASTENIER Jean | B77: LHERMITTE Cédric | C77: P | D77: 0 | E77: 2 | F77: 0 | G77: 120 | H77: 2010-02-20 | I77: N1 Ligue T4 DOUAI | J77: 1/4 Finale | K77: 2009-2010 | P77: 0 | R77: 0
A78: BASTENIER Jean | B78: WALLART Jean-Charles | C78: G | D78: 2 | E78: 1 | F78: 156 | G78: 129 | H78: 2010-01-29 | I78: National T3 ORLEANS | J78: Préqualifs | K78: 2009-2010 | P78: 0 | R78: 0
A79: BASTENIER Jean | B79: BALLON Xavier | C79: P | D79: 1 | E79: 2 | F79: 149 | G79: 155 | H79: 2010-01-29 | I79: National T3 ORLEANS | J79: Préqualifs | K79: 2009-2010 | P79: 0 | R79: 0
A80: BASTENIER Jean | B80: DUVERNOY Christophe | C80: P | D80: 0 | E80: 2 | F80: 49 | G80: 120 | H80: 2010-01-29 | I80: National T3 ORLEANS | J80: Préqualifs | K80: 2009-2010 | P80: =IF($K80=P$1,COUNTIF($C80,"G"),0) -> 0 | R80: =IF($K80=R$1,COUNTIF($C80,"G"),0) -> 0
A81: BASTENIER Jean | B81: DEBRAY Alain | C81: G | D81: 3 | E81: 0 | F81: 180 | G81: 102 | H81: 2010-01-30 | I81: National T3 ORLEANS | J81: Qualifs promotion | K81: 2009-2010 | P81: 0 | R81: 0
A82: BASTENIER Jean | B82: TRIFAULT Amand | C82: P | D82: 1 | E82: 3 | F82: 120 | G82: 235 | H82: 2010-01-30 | I82: National T3 ORLEANS | J82: Qualifs promotion | K82: 2009-2010 | P82: 0 | R82: 0
A83: BASTENIER Jean | B83: BALLON Xavier | C83: G | D83: 3 | E83: 1 | F83: 214 | G83: 140 | H83: 2010-01-30 | I83: National T3 ORLEANS | J83: Qualifs promotion | K83: 2009-2010 | P83: 0 | R83: 0
A84: BASTENIER Jean | B84: BOUVIER Philippe | C84: P | D84: 1 | E84: 3 | F84: 209 | G84: 231 | H84: 2010-01-31 | I84: National T3 ORLEANS | J84: 1/8 finale promotion | K84: 2009-2010 | P84: 0 | R84: 0
A85: BASTENIER Jean | B85: COTTEN Jean-Pierre | C85: G | D85: 2 | E85: 1 | F85: 128 | G85: 163 | H85: 2010-10-07 | I85: National T1 CESTAS | J85: Préqualifs | K85: 2010-2011 | P85: 0 | R85: 0
A86: BASTENIER Jean | B86: DAMONNEVILLE Blandine | C86: G | D86: 2 | E86: 0 | F86: 120 | G86: 57 | H86: 2010-10-07 | I86: National T1 CESTAS | J86: Préqualifs | K86: 2010-2011 | P86: 0 | R86: 0
A87: BASTENIER Jean | B87: FOURRE Cédric | C87: P | D87: 1 | E87: 2 | F87: 103 | G87: 164 | H87: 2010-10-07 | I87: National T1 CESTAS | J87: Préqualifs | K87: 2010-2011 | P87: 0 | R87: 0
A88: BASTENIER Jean | B88: GUILLEMANT Jean-Marc | C88: G | D88: 3 | E88: 1 | F88: 231 | G88: 163 | H88: 2010-10-08 | I88: National T1 CESTAS | J88: Qualifs promotion | K88: 2010-2011 | P88: 0 | R88: 0
A89: BASTENIER Jean | B89: DELATTRE Hervé | C89: G | D89: 3 | E89: 1 | F89: 219 | G89: 158 | H89: 2010-10-08 | I89: National T1 CESTAS | J89: Qualifs promotion | K89: 2010-2011 | P89: 0 | R89: 0
A90: BASTENIER Jean | B90: ZILLIG Pierre | C90: G | D90: 3 | E90: 2 | F90: 287 | G90: 259 | H90: 2010-10-09 | I90: National T1 CESTAS | J90: 1/8 finale promotion | K90: 2010-2011 | P90: 0 | R90: 0
A91: BASTENIER Jean | B91: GUIBERT Philippe | C91: P | D91: 1 | E91: 3 | F91: 121 | G91: 233 | H91: 2010-10-09 | I91: National T1 CESTAS | J91: 1/4 finale promotion | K91: 2010-2011 | P91: 0 | R91: 0
A92: BASTENIER Jean | B92: LECROART Serge | C92: G | D92: 2 | E92: 0 | F92: 120 | G92: 49 | H92: 2010-11-13 | I92: N1 Ligue T2 FACHES THUMESNIL | J92: Poules | K92: 2010-2011 | P92: 0 | R92: 0
A93: BASTENIER Jean | B93: GEETS Patrice | C93: P | D93: 1 | E93: 2 | F93: 91 | G93: 150 | H93: 2010-11-13 | I93: N1 Ligue T2 FACHES THUMESNIL | J93: Poules | K93: 2010-2011 | P93: 0 | R93: 0
A94: BASTENIER Jean | B94: DELRUE André | C94: G | D94: 2 | E94: 1 | F94: 152 | G94: 119 | H94: 2010-11-13 | I94: N1 Ligue T2 FACHES THUMESNIL | J94: Poules Consolante | K94: 2010-2011 | P94: 0 | R94: 0
A95: BASTENIER Jean | B95: FAUCOMPREZ Didier | C95: G | D95: 2 | E95: 1 | F95: 176 | G95: 145 | H95: 2010-11-13 | I95: N1 Ligue T2 FACHES THUMESNIL | J95: Poules Consolante | K95: 2010-2011 | P95: 0 | R95: 0
A96: BASTENIER Jean | B96: FAUCOMPREZ Didier | C96: P | D96: 0 | E96: 2 | F96: 102 | G96: 120 | H96: 2010-11-05 | I96: National T2 LAXOU | J96: Préqualifs | K96: 2010-2011 | P96: 0 | R96: 0
A97: BASTENIER Jean | B97: DUROYON Didier | C97: P | D97: 0 | E97: 2 | F97: 87 | G97: 120 | H97: 2010-11-05 | I97: National T2 LAXOU | J97: Préqualifs | K97: 2010-2011 | P97: 0 | R97: 0
A98: BASTENIER Jean | B98: MORMICHE Michel | C98: P | D98: 0 | E98: 2 | F98: 79 | G98: 120 | H98: 2010-11-05 | I98: National T2 LAXOU | J98: Préqualifs | K98: 2010-2011 | P98: 0 | R98: 0
A99: BASTENIER Jean | B99: EVENOU Marie-Antoinette | C99: G | D99: 2 | E99: 0 | F99: 120 | G99: 28 | H99: 2010-12-03 | I99: National T3 FACHES THUMESNIL - RONCHIN | J99: Préqualifs | K99: 2010-2011 | P99: 0 | R99: 0
A100: BASTENIER Jean | B100: SORTAIS Claude | C100: G | D100: 2 | E100: 0 | F100: 120 | G100: 85 | H100: 2010-12-03 | I100: National T3 FACHES THUMESNIL - RONCHIN | J100: Préqualifs | K100: 2010-2011 | P100: 0 | R100: 0
A101: BASTENIER Jean | B101: DEROLEZ Jean-Pierre | C101: G | D101: 2 | E101: 0 | F101: 120 | G101: 72 | H101: 2010-12-03 | I101: National T3 FACHES THUMESNIL - RONCHIN | J101: Préqualifs | K101: 2010-2011 | P101: 0 | R101: 0
A102: BASTENIER Jean | B102: DAVOINE Bruno | C102: P | D102: 1 | E102: 3 | F102: 137 | G102: 230 | H102: 2010-12-04 | I102: National T3 FACHES THUMESNIL - RONCHIN | J102: Qualifs Masters | K102: 2010-2011 | P102: 0 | R102: 0
A103: BASTENIER Jean | B103: PERRIN Eric | C103: P | D103: 1 | E103: 3 | F103: 181 | G103: 216 | H103: 2010-12-04 | I103: National T3 FACHES THUMESNIL - RONCHIN | J103: Qualifs Masters | K103: 2010-2011 | P103: 0 | R103: 0
A104: BASTENIER Jean | B104: SEINGIER Jean-Claude | C104: G | D104: 3 | E104: 0 | F104: 180 | G104: 132 | H104: 2011-02-12 | I104: National T4 ROUEN | J104: Qualifs promotion | K104: 2010-2011 | P104: 0 | R104: 0
A105: BASTENIER Jean | B105: DI PALMA Angelo | C105: P | D105: 1 | E105: 3 | F105: 138 | G105: 230 | H105: 2011-02-12 | I105: National T4 ROUEN | J105: Qualifs promotion | K105: 2010-2011 | P105: 0 | R105: 0
A106: BASTENIER Jean | B106: ROBERGE Bruno | C106: P | D106: 1 | E106: 3 | F106: 223 | G106: 215 | H106: 2011-02-12 | I106: National T4 ROUEN | J106: Qualifs promotion | K106: 2010-2011 | P106: 0 | R106: 0
A107: BASTENIER Jean | B107: ROBIC Daniel | C107: P | D107: 0 | E107: 2 | F107: 67 | G107: 120 | H107: 2011-03-25 | I107: National T5 BLOIS | J107: Préqualifs | K107: 2010-2011 | P107: 0 | R107: 0
A108: BASTENIER Jean | B108: MAILLE Bernard | C108: P | D108: 0 | E108: 2 | F108: 69 | G108: 120 | H108: 2011-03-25 | I108: National T5 BLOIS | J108: Préqualifs | K108: 2010-2011 | P108: 0 | R108: 0
A109: BASTENIER Jean | B109: LECLAIRE Michel | C109: G | D109: 2 | E109: 0 | F109: 120 | G109: 76 | H109: 2011-03-25 | I109: National T5 BLOIS | J109: Préqualifs | K109: 2010-2011 | P109: 0 | R109: 0
A110: BASTENIER Jean | B110: COTTEN Jean-Pierre | C110: G | D110: 3 | E110: 0 | F110: 180 | G110: 118 | H110: 2011-03-26 | I110: National T5 BLOIS | J110: Qualifs promotion | K110: 2010-2011 | P110: 0 | R110: 0
A111: BASTENIER Jean | B111: MORMICHE Michel | C111: G | D111: 3 | E111: 2 | F111: 215 | G111: 217 | H111: 2011-03-26 | I111: National T5 BLOIS | J111: Qualifs promotion | K111: 2010-2011 | P111: 0 | R111: 0
A112: BASTENIER Jean | B112: FOURRE Cédric | C112: P | D112: 1 | E112: 3 | F112: 149 | G112: 231 | H112: 2011-03-27 | I112: National T5 BLOIS | J112: 1/8 finale promotion | K112: 2010-2011 | P112: 0 | R112: 0
A113: BASTENIER Jean | B113: EVENOU Marie-Antoinette | C113: G | D113: 2 | E113: 0 | F113: 120 | G113: 50 | H113: 2011-04-15 | I113: National T6 CHAMPAGNE sur SEINE / NANDY | J113: Préqualifs | K113: 2010-2011 | P113: 0 | R113: 0
A114: BASTENIER Jean | B114: BOUVIER Philippe | C114: G | D114: 2 | E114: 0 | F114: 120 | G114: 68 | H114: 2011-04-15 | I114: National T6 CHAMPAGNE sur SEINE / NANDY | J114: Préqualifs | K114: 2010-2011 | P114: 0 | R114: 0
A115: BASTENIER Jean | B115: BAYON Pascal | C115: P | D115: 0 | E115: 2 | F115: 80 | G115: 120 | H115: 2011-04-15 | I115: National T6 CHAMPAGNE sur SEINE / NANDY | J115: Préqualifs | K115: 2010-2011 | P115: 0 | R115: 0
A116: BASTENIER Jean | B116: WEBER Thierry | C116: G | D116: 3 | E116: 1 | F116: 220 | G116: 188 | H116: 2011-04-16 | I116: National T6 CHAMPAGNE sur SEINE / NANDY | J116: Qualifs promotion | K116: 2010-2011 | P116: 0 | R116: 0
A117: BASTENIER Jean | B117: MORMICHE Michel | C117: G | D117: 3 | E117: 2 | F117: 257 | G117: 229 | H117: 2011-04-16 | I117: National T6 CHAMPAGNE sur SEINE / NANDY | J117: Qualifs promotion | K117: 2010-2011 | P117: 0 | R117: 0
A118: BASTENIER Jean | B118: ZACCAGNINI Antoine | C118: G | D118: 3 | E118: 1 | F118: 210 | G118: 199 | H118: 2011-04-17 | I118: National T6 CHAMPAGNE sur SEINE / NANDY | J118: 1/8 finale promotion | K118: 2010-2011 | P118: 0 | R118: 0
A119: BASTENIER Jean | B119: RACARY Thibault | C119: P | D119: 0 | E119: 3 | F119: 97 | G119: 180 | H119: 2011-04-17 | I119: National T6 CHAMPAGNE sur SEINE / NANDY | J119: 1/4 finale promotion | K119: 2010-2011 | P119: 0 | R119: 0
A120: BASTENIER Jean | B120: TRAGIN Laurent | C120: P | D120: 2 | E120: 3 | F120: 246 | G120: 235 | H120: 2011-05-14 | I120: National SCHILTIGHEIM | J120: Qualifs | K120: 2010-2011 | P120: 0 | R120: 0
A121: BASTENIER Jean | B121: SCHUB Philippe | C121: G | D121: 3 | E121: 2 | F121: 250 | G121: 233 | H121: 2011-05-14 | I121: National SCHILTIGHEIM | J121: Qualifs | K121: 2010-2011 | P121: 0 | R121: 0
A122: BASTENIER Jean | B122: TIRALONGO Sébastien | C122: P | D122: 0 | E122: 3 | F122: 133 | G122: 180 | H122: 2011-05-14 | I122: National SCHILTIGHEIM | J122: Qualifs | K122: 2010-2011 | P122: 0 | R122: 0
A123: Fin des données | P123: 0 | R123: 0

Sheet BLONDEEL Firmin
A1: BLONDEEL Firmin | P1: =Récapitulatif!$B$2 -> 2014-2015 | R1: =Récapitulatif!$B$3 -> 2015-2016 | T1: Toutes saisons
A2: <Club> | P2: Nombre | Q2: %age | R2: Nombre | S2: %age | T2: Nombre | U2: %age
A3: <Licence> | N3: Matchs | O3: Gagnés | P3: =SUM(P$15:P$28) -> 5 | Q3: =IF(P$3+P$4>0,P3/(P$3+P$4),"") -> 0.8333333333 | R3: =SUM(R$15:R$28) -> 0 | S3: =IF(R$3+R$4>0,R3/(R$3+R$4),"") -> 0 | T3: =COUNTIF($C$15:$C$28,"G") -> 5 | U3: =IF(T$3+T$4>0,T3/(T$3+T$4),"") -> 0.4166666667
A4: <Tel> | O4: Perdus | P4: =COUNTIF($K$15:$K$28,Récapitulatif!$B$2)-P3 -> 1 | Q4: =IF(P$3+P$4>0,P4/(P$3+P$4),"") -> 0.1666666667 | R4: =COUNTIF($K$15:$K$28,Récapitulatif!$B$3)-R3 -> 6 | S4: =IF(R$3+R$4>0,R4/(R$3+R$4),"") -> 1 | T4: =COUNTIF($C$15:$C$28,"P") -> 7 | U4: =IF(T$3+T$4>0,T4/(T$3+T$4),"") -> 0.5833333333
A5: <email> | O5: Total / Moy. | P5: =SUM(P3:P4) -> 6 | Q5: =IF(SUMIF($K$15:$K$28,Récapitulatif!$B$2,$G$15:$G$28)>0,SUMIF($K$15:$K$28,Récapitulatif!$B$2,$F$15:$F$28)/SUMIF($K$15:$K$28,Récapitulatif!$B$2,$G$15:$G$28),"") -> 1.167523124 | R5: =SUM(R3:R4) -> 6 | S5: =IF(SUMIF($K$15:$K$28,Récapitulatif!$B$3,$G$15:$G$28)>0,SUMIF($K$15:$K$28,Récapitulatif!$B$3,$F$15:$F$28)/SUMIF($K$15:$K$28,Récapitulatif!$B$3,$G$15:$G$28),"") -> 0.754248366 | T5: =SUM(T3:T4) -> 12 | U5: =IF(SUM($G$15:$G$28)>0,SUM($F$15:$F$28)/SUM($G$15:$G$28),"") -> 0.9856156502 | V5: =IF(SUMIF($K$15:$K$28,Récapitulatif!$B$2,$G$15:$G$28)+SUMIF($K$15:$K$28,Récapitulatif!$B$3,$G$15:$G$28)>0,(SUMIF($K$15:$K$28,Récapitulatif!$B$2,$F$15:$F$28)+SUMIF($K$15:$K$28,Récapitulatif!$B$3,$F$15:$F$28))/(SUMIF($K$15:$K$28,Récapitulatif!$B$2,$G$15:$G$28)+SUMIF($K$15:$K$28,Récapitulatif!$B$3,$G$15:$G$28)),"") -> 0.9856156502
N6: Sets | O6: Gagnés | P6: =SUMIF($K$15:$K$28,Récapitulatif!$B$2,$D$15:$D$28) -> 15 | Q6: =IF(P$6+P$7>0,P6/(P$6+P$7),"") -> 0.6818181818 | R6: =SUMIF($K$15:$K$28,Récapitulatif!$B$3,$D$15:$D$28) -> 1 | S6: =IF(R$6+R$7>0,R6/(R$6+R$7),"") -> 0.07692307692 | T6: =SUM($D$15:$D$28) -> 16 | U6: =IF(T$6+T$7>0,T6/(T$6+T$7),"") -> 0.4571428571
O7: Perdus | P7: =SUMIF($K$15:$K$28,Récapitulatif!$B$2,$E$15:$E$28) -> 7 | Q7: =IF(P$6+P$7>0,P7/(P$6+P$7),"") -> 0.3181818182 | R7: =SUMIF($K$15:$K$28,Récapitulatif!$B$3,$E$15:$E$28) -> 12 | S7: =IF(R$6+R$7>0,R7/(R$6+R$7),"") -> 0.9230769231 | T7: =SUM($E$15:$E$28) -> 19 | U7: =IF(T$6+T$7>0,T7/(T$6+T$7),"") -> 0.5428571429
A8: Récapitulatif joueurs | O8: Total | P8: =SUM(P6:P7) -> 22 | R8: =SUM(R6:R7) -> 13 | T8: =SUM(T6:T7) -> 35
A15: Joueur | B15: Adversaire | C15: G/P | D15: Sets gagnés | E15: Sets perdus | F15: pts marqués | G15: pts subis | H15: Date | I15: Compétition | J15: Phase | K15: Saison
A16: BLONDEEL Firmin | B16: LEFEBVRE Julien | C16: G | D16: 3 | E16: 0 | F16: 180 | G16: 87 | H16: 2014-12-27 | I16: CF Juniors | J16: Poules | K16: =IF(H16<>"",IF(MONTH(H16)>MoisRef,YEAR(H16)&"-"&YEAR(H16)+1,YEAR(H16)-1&"-"&YEAR(H16)),"") -> 2014-2015 | P16: =IF($K16=P$1,COUNTIF($C16,"G"),0) -> 1 | R16: =IF($K16=R$1,COUNTIF($C16,"G"),0) -> 0
A17: BLONDEEL Firmin | B17: TRIVELLIN Stéphane | C17: G | D17: 3 | E17: 1 | F17: 212 | G17: 171 | H17: 2014-12-27 | I17: CF Juniors | J17: Poules | K17: 2014-2015 | P17: 1 | R17: 0
A18: BLONDEEL Firmin | B18: Joueur Blanc | C18: G | D18: 3 | E18: 0 | F18: 180 | G18: 105 | H18: 2014-12-27 | I18: CF Juniors | J18: Poules | K18: 2014-2015 | P18: 1 | R18: 0
A19: BLONDEEL Firmin | B19: TRIVELLIN Stéphane | C19: G | D19: 3 | E19: 1 | F19: 228 | G19: 190 | H19: 2014-12-27 | I19: CF Juniors | J19: 1/4 finale | K19: 2014-2015 | P19: 1 | R19: 0
A20: BLONDEEL Firmin | B20: AUBERT Jordan | C20: G | D20: 3 | E20: 2 | F20: 247 | G20: 240 | H20: 2014-12-27 | I20: CF Juniors | J20: 1/2 finale | K20: 2014-2015 | P20: 1 | R20: 0
A21: BLONDEEL Firmin | B21: ROUBY Guillaume | C21: P | D21: 0 | E21: 3 | F21: 89 | G21: 180 | H21: 2014-12-27 | I21: CF Juniors | J21: Finale | K21: 2014-2015 | P21: 0 | R21: 0
A22: BLONDEEL Firmin | B22: REBELO Joaquim | C22: P | D22: 0 | E22: 2 | F22: 75 | G22: 120 | H22: 2015-12-11 | I22: National T3 FACHES THUMESNIL - RONCHIN | J22: Préqualifs | K22: 2015-2016 | P22: 0 | R22: 0
A23: BLONDEEL Firmin | B23: GOUTHIER Alain | C23: P | D23: 1 | E23: 2 | F23: 165 | G23: 165 | H23: 2015-12-11 | I23: National T3 FACHES THUMESNIL - RONCHIN | J23: Préqualifs | K23: 2015-2016 | P23: 0 | R23: 0
A24: BLONDEEL Firmin | B24: LEGRAND Guy | C24: P | D24: 0 | E24: 2 | F24: 98 | G24: 120 | H24: 2015-12-11 | I24: National T3 FACHES THUMESNIL - RONCHIN | J24: Préqualifs | K24: 2015-2016 | P24: 0 | R24: 0
A25: BLONDEEL Firmin | B25: BOUVIER Philippe | C25: P | D25: 0 | E25: 2 | F25: 96 | G25: 120 | H25: 2016-03-04 | I25: National T5 GRAVELINES | J25: Préqualifs | K25: 2015-2016 | P25: 0 | R25: 0
A26: BLONDEEL Firmin | B26: BONNEAU Benoît | C26: P | D26: 0 | E26: 2 | F26: 79 | G26: 120 | H26: 2016-03-04 | I26: National T5 GRAVELINES | J26: Préqualifs | K26: 2015-2016 | P26: 0 | R26: 0
A27: BLONDEEL Firmin | B27: SAINT-GEORGES Claude | C27: P | D27: 0 | E27: 2 | F27: 64 | G27: 120 | H27: 2016-03-04 | I27: National T5 GRAVELINES | J27: Préqualifs | K27: 2015-2016 | P27: 0 | R27: 0
A28: Fin des données | P28: =IF($K28=P$1,COUNTIF($C28,"G"),0) -> 0 | R28: =IF($K28=R$1,COUNTIF($C28,"G"),0) -> 0

Sheet BURY Alain
A1: BURY Alain | P1: =Récapitulatif!$B$2 -> 2014-2015 | R1: =Récapitulatif!$B$3 -> 2015-2016 | T1: Toutes saisons
P2: Nombre | Q2: %age | R2: Nombre | S2: %age | T2: Nombre | U2: %age
N3: Matchs | O3: Gagnés | P3: =SUM(P$15:P$19) -> 0 | Q3: =IF(P$3+P$4>0,P3/(P$3+P$4),"") ->  | R3: =SUM(R$15:R$19) -> 0 | S3: =IF(R$3+R$4>0,R3/(R$3+R$4),"") ->  | T3: =COUNTIF($C$15:$C$19,"G") -> 0 | U3: =IF(T$3+T$4>0,T3/(T$3+T$4),"") -> 0
O4: Perdus | P4: =COUNTIF($K$15:$K$19,Récapitulatif!$B$2)-P3 -> 0 | Q4: =IF(P$3+P$4>0,P4/(P$3+P$4),"") ->  | R4: =COUNTIF($K$15:$K$19,Récapitulatif!$B$3)-R3 -> 0 | S4: =IF(R$3+R$4>0,R4/(R$3+R$4),"") ->  | T4: =COUNTIF($C$15:$C$19,"P") -> 3 | U4: =IF(T$3+T$4>0,T4/(T$3+T$4),"") -> 1
O5: Total / Moy. | P5: =SUM(P3:P4) -> 0 | Q5: =IF(SUMIF($K$15:$K$19,Récapitulatif!$B$2,$G$15:$G$19)>0,SUMIF($K$15:$K$19,Récapitulatif!$B$2,$F$15:$F$19)/SUMIF($K$15:$K$19,Récapitulatif!$B$2,$G$15:$G$19),"") ->  | R5: =SUM(R3:R4) -> 0 | S5: =IF(SUMIF($K$15:$K$19,Récapitulatif!$B$3,$G$15:$G$19)>0,SUMIF($K$15:$K$19,Récapitulatif!$B$3,$F$15:$F$19)/SUMIF($K$15:$K$19,Récapitulatif!$B$3,$G$15:$G$19),"") ->  | T5: =SUM(T3:T4) -> 3 | U5: =IF(SUM($G$15:$G$19)>0,SUM($F$15:$F$19)/SUM($G$15:$G$19),"") -> 0.7737226277 | V5: =IF(SUMIF($K$15:$K$19,Récapitulatif!$B$2,$G$15:$G$19)+SUMIF($K$15:$K$19,Récapitulatif!$B$3,$G$15:$G$19)>0,(SUMIF($K$15:$K$19,Récapitulatif!$B$2,$F$15:$F$19)+SUMIF($K$15:$K$19,Récapitulatif!$B$3,$F$15:$F$19))/(SUMIF($K$15:$K$19,Récapitulatif!$B$2,$G$15:$G$19)+SUMIF($K$15:$K$19,Récapitulatif!$B$3,$G$15:$G$19)),"") -> 
N6: Sets | O6: Gagnés | P6: =SUMIF($K$15:$K$19,Récapitulatif!$B$2,$D$15:$D$19) -> 0 | Q6: =IF(P$6+P$7>0,P6/(P$6+P$7),"") ->  | R6: =SUMIF($K$15:$K$19,Récapitulatif!$B$3,$D$15:$D$19) -> 0 | S6: =IF(R$6+R$7>0,R6/(R$6+R$7),"") ->  | T6: =SUM($D$15:$D$19) -> 1 | U6: =IF(T$6+T$7>0,T6/(T$6+T$7),"") -> 0.1428571429
O7: Perdus | P7: =SUMIF($K$15:$K$19,Récapitulatif!$B$2,$E$15:$E$19) -> 0 | Q7: =IF(P$6+P$7>0,P7/(P$6+P$7),"") ->  | R7: =SUMIF($K$15:$K$19,Récapitulatif!$B$3,$E$15:$E$19) -> 0 | S7: =IF(R$6+R$7>0,R7/(R$6+R$7),"") ->  | T7: =SUM($E$15:$E$19) -> 6 | U7: =IF(T$6+T$7>0,T7/(T$6+T$7),"") -> 0.8571428571
A8: Récapitulatif joueurs | O8: Total | P8: =SUM(P6:P7) -> 0 | R8: =SUM(R6:R7) -> 0 | T8: =SUM(T6:T7) -> 7
A15: Joueur | B15: Adversaire | C15: G/P | D15: Sets gagnés | E15: Sets perdus | F15: pts marqués | G15: pts subis | H15: Date | I15: Compétition | J15: Phase | K15: Saison
A16: BURY Alain | B16: MORALES Luis | C16: P | D16: 0 | E16: 2 | F16: 71 | G16: 120 | H16: 2011-12-02 | I16: National T3 ANNOEULLIN | J16: Préqualifs | K16: =IF(H16<>"",IF(MONTH(H16)>MoisRef,YEAR(H16)&"-"&YEAR(H16)+1,YEAR(H16)-1&"-"&YEAR(H16)),"") -> 2011-2012 | P16: =IF($K16=P$1,COUNTIF($C16,"G"),0) -> 0 | R16: =IF($K16=R$1,COUNTIF($C16,"G"),0) -> 0
A17: BURY Alain | B17: SCHUB Philippe | C17: P | D17: 0 | E17: 2 | F17: 102 | G17: 120 | H17: 2011-12-02 | I17: National T3 ANNOEULLIN | J17: Préqualifs | K17: =IF(H17<>"",IF(MONTH(H17)>MoisRef,YEAR(H17)&"-"&YEAR(H17)+1,YEAR(H17)-1&"-"&YEAR(H17)),"") -> 2011-2012 | P17: =IF($K17=P$1,COUNTIF($C17,"G"),0) -> 0 | R17: =IF($K17=R$1,COUNTIF($C17,"G"),0) -> 0
A18: BURY Alain | B18: CLYNCKE Jean-Jacques | C18: P | D18: 1 | E18: 2 | F18: 145 | G18: 171 | H18: 2011-12-02 | I18: National T3 ANNOEULLIN | J18: Préqualifs | K18: =IF(H18<>"",IF(MONTH(H18)>MoisRef,YEAR(H18)&"-"&YEAR(H18)+1,YEAR(H18)-1&"-"&YEAR(H18)),"") -> 2011-2012 | P18: =IF($K18=P$1,COUNTIF($C18,"G"),0) -> 0 | R18: =IF($K18=R$1,COUNTIF($C18,"G"),0) -> 0
A19: Fin des données | K19: =IF(H19<>"",IF(MONTH(H19)>MoisRef,YEAR(H19)&"-"&YEAR(H19)+1,YEAR(H19)-1&"-"&YEAR(H19)),"") ->  | P19: =IF($K19=P$1,COUNTIF($C19,"G"),0) -> 0 | R19: =IF($K19=R$1,COUNTIF($C19,"G"),0) -> 0

Sheet CAQUELOT Maurice
A1: CAQUELOT Maurice | P1: =Récapitulatif!$B$2 -> 2014-2015 | R1: =Récapitulatif!$B$3 -> 2015-2016 | T1: Toutes saisons
A2: CUCQ | P2: Nombre | Q2: %age | R2: Nombre | S2: %age | T2: Nombre | U2: %age
A3: 016886-M | N3: Matchs | O3: Gagnés | P3: =SUM(P$15:P$20) -> 0 | Q3: =IF(P$3+P$4>0,P3/(P$3+P$4),"") ->  | R3: =SUM(R$15:R$20) -> 0 | S3: =IF(R$3+R$4>0,R3/(R$3+R$4),"") ->  | T3: =COUNTIF($C$15:$C$20,"G") -> 0 | U3: =IF(T$3+T$4>0,T3/(T$3+T$4),"") -> 0
O4: Perdus | P4: =COUNTIF($K$15:$K$20,Récapitulatif!$B$2)-P3 -> 0 | Q4: =IF(P$3+P$4>0,P4/(P$3+P$4),"") ->  | R4: =COUNTIF($K$15:$K$20,Récapitulatif!$B$3)-R3 -> 0 | S4: =IF(R$3+R$4>0,R4/(R$3+R$4),"") ->  | T4: =COUNTIF($C$15:$C$20,"P") -> 4 | U4: =IF(T$3+T$4>0,T4/(T$3+T$4),"") -> 1
O5: Total / Moy. | P5: =SUM(P3:P4) -> 0 | Q5: =IF(SUMIF($K$15:$K$20,Récapitulatif!$B$2,$G$15:$G$20)>0,SUMIF($K$15:$K$20,Récapitulatif!$B$2,$F$15:$F$20)/SUMIF($K$15:$K$20,Récapitulatif!$B$2,$G$15:$G$20),"") ->  | R5: =SUM(R3:R4) -> 0 | S5: =IF(SUMIF($K$15:$K$20,Récapitulatif!$B$3,$G$15:$G$20)>0,SUMIF($K$15:$K$20,Récapitulatif!$B$3,$F$15:$F$20)/SUMIF($K$15:$K$20,Récapitulatif!$B$3,$G$15:$G$20),"") ->  | T5: =SUM(T3:T4) -> 4 | U5: =IF(SUM($G$15:$G$20)>0,SUM($F$15:$F$20)/SUM($G$15:$G$20),"") -> 0.6742857143 | V5: =IF(SUMIF($K$15:$K$20,Récapitulatif!$B$2,$G$15:$G$20)+SUMIF($K$15:$K$20,Récapitulatif!$B$3,$G$15:$G$20)>0,(SUMIF($K$15:$K$20,Récapitulatif!$B$2,$F$15:$F$20)+SUMIF($K$15:$K$20,Récapitulatif!$B$3,$F$15:$F$20))/(SUMIF($K$15:$K$20,Récapitulatif!$B$2,$G$15:$G$20)+SUMIF($K$15:$K$20,Récapitulatif!$B$3,$G$15:$G$20)),"") -> 
N6: Sets | O6: Gagnés | P6: =SUMIF($K$15:$K$20,Récapitulatif!$B$2,$D$15:$D$20) -> 0 | Q6: =IF(P$6+P$7>0,P6/(P$6+P$7),"") ->  | R6: =SUMIF($K$15:$K$20,Récapitulatif!$B$3,$D$15:$D$20) -> 0 | S6: =IF(R$6+R$7>0,R6/(R$6+R$7),"") ->  | T6: =SUM($D$15:$D$20) -> 1 | U6: =IF(T$6+T$7>0,T6/(T$6+T$7),"") -> 0.1111111111
O7: Perdus | P7: =SUMIF($K$15:$K$20,Récapitulatif!$B$2,$E$15:$E$20) -> 0 | Q7: =IF(P$6+P$7>0,P7/(P$6+P$7),"") ->  | R7: =SUMIF($K$15:$K$20,Récapitulatif!$B$3,$E$15:$E$20) -> 0 | S7: =IF(R$6+R$7>0,R7/(R$6+R$7),"") ->  | T7: =SUM($E$15:$E$20) -> 8 | U7: =IF(T$6+T$7>0,T7/(T$6+T$7),"") -> 0.8888888889
A8: Récapitulatif joueurs | O8: Total | P8: =SUM(P6:P7) -> 0 | R8: =SUM(R6:R7) -> 0 | T8: =SUM(T6:T7) -> 9
A15: Joueur | B15: Adversaire | C15: G/P | D15: Sets gagnés | E15: Sets perdus | F15: pts marqués | G15: pts subis | H15: Date | I15: Compétition | J15: Phase | K15: Saison
A16: CAQUELOT Maurice | B16: LECROART Serge | C16: P | D16: 0 | E16: 2 | F16: 83 | G16: 120 | H16: 2010-10-16 | I16: N1 Ligue T1 DOUAI | J16: Poules | K16: =IF(H16<>"",IF(MONTH(H16)>MoisRef,YEAR(H16)&"-"&YEAR(H16)+1,YEAR(H16)-1&"-"&YEAR(H16)),"") -> 2010-2011 | P16: =IF($K16=P$1,COUNTIF($C16,"G"),0) -> 0 | R16: =IF($K16=R$1,COUNTIF($C16,"G"),0) -> 0
A17: CAQUELOT Maurice | B17: DELSOL Philippe | C17: P | D17: 0 | E17: 2 | F17: 52 | G17: 120 | H17: 2010-10-16 | I17: N1 Ligue T1 DOUAI | J17: Poules | K17: =IF(H17<>"",IF(MONTH(H17)>MoisRef,YEAR(H17)&"-"&YEAR(H17)+1,YEAR(H17)-1&"-"&YEAR(H17)),"") -> 2010-2011 | P17: =IF($K17=P$1,COUNTIF($C17,"G"),0) -> 0 | R17: =IF($K17=R$1,COUNTIF($C17,"G"),0) -> 0
A18: CAQUELOT Maurice | B18: TRIPLET Gilbert | C18: P | D18: 1 | E18: 2 | F18: 114 | G18: 165 | H18: 2010-10-16 | I18: N1 Ligue T1 DOUAI | J18: Poules Consolante | K18: =IF(H18<>"",IF(MONTH(H18)>MoisRef,YEAR(H18)&"-"&YEAR(H18)+1,YEAR(H18)-1&"-"&YEAR(H18)),"") -> 2010-2011 | P18: =IF($K18=P$1,COUNTIF($C18,"G"),0) -> 0 | R18: =IF($K18=R$1,COUNTIF($C18,"G"),0) -> 0
A19: CAQUELOT Maurice | B19: POULEYN André | C19: P | D19: 0 | E19: 2 | F19: 105 | G19: 120 | H19: 2010-10-16 | I19: N1 Ligue T1 DOUAI | J19: Poules Consolante | K19: =IF(H19<>"",IF(MONTH(H19)>MoisRef,YEAR(H19)&"-"&YEAR(H19)+1,YEAR(H19)-1&"-"&YEAR(H19)),"") -> 2010-2011 | P19: =IF($K19=P$1,COUNTIF($C19,"G"),0) -> 0 | R19: =IF($K19=R$1,COUNTIF($C19,"G"),0) -> 0
A20: Fin des données | K20: =IF(H20<>"",IF(MONTH(H20)>MoisRef,YEAR(H20)&"-"&YEAR(H20)+1,YEAR(H20)-1&"-"&YEAR(H20)),"") ->  | P20: =IF($K20=P$1,COUNTIF($C20,"G"),0) -> 0 | R20: =IF($K20=R$1,COUNTIF($C20,"G"),0) -> 0

Sheet CARPENTIER Yohanne
A1: CARPENTIER Yohanne | P1: =Récapitulatif!$B$2 -> 2014-2015 | R1: =Récapitulatif!$B$3 -> 2015-2016 | T1: Toutes saisons
A2: ANNOEULLIN | P2: Nombre | Q2: %age | R2: Nombre | S2: %age | T2: Nombre | U2: %age
A3: 016914-O | N3: Matchs | O3: Gagnés | P3: =SUM(P$15:P$72) -> 0 | Q3: =IF(P$3+P$4>0,P3/(P$3+P$4),"") ->  | R3: =SUM(R$15:R$72) -> 0 | S3: =IF(R$3+R$4>0,R3/(R$3+R$4),"") ->  | T3: =COUNTIF($C$15:$C$72,"G") -> 23 | U3: =IF(T$3+T$4>0,T3/(T$3+T$4),"") -> 0.4107142857
O4: Perdus | P4: =COUNTIF($K$15:$K$72,Récapitulatif!$B$2)-P3 -> 0 | Q4: =IF(P$3+P$4>0,P4/(P$3+P$4),"") ->  | R4: =COUNTIF($K$15:$K$72,Récapitulatif!$B$3)-R3 -> 0 | S4: =IF(R$3+R$4>0,R4/(R$3+R$4),"") ->  | T4: =COUNTIF($C$15:$C$72,"P") -> 33 | U4: =IF(T$3+T$4>0,T4/(T$3+T$4),"") -> 0.5892857143
O5: Total / Moy. | P5: =SUM(P3:P4) -> 0 | Q5: =IF(SUMIF($K$15:$K$72,Récapitulatif!$B$2,$G$15:$G$72)>0,SUMIF($K$15:$K$72,Récapitulatif!$B$2,$F$15:$F$72)/SUMIF($K$15:$K$72,Récapitulatif!$B$2,$G$15:$G$72),"") ->  | R5: =SUM(R3:R4) -> 0 | S5: =IF(SUMIF($K$15:$K$72,Récapitulatif!$B$3,$G$15:$G$72)>0,SUMIF($K$15:$K$72,Récapitulatif!$B$3,$F$15:$F$72)/SUMIF($K$15:$K$72,Récapitulatif!$B$3,$G$15:$G$72),"") ->  | T5: =SUM(T3:T4) -> 56 | U5: =IF(SUM($G$15:$G$72)>0,SUM($F$15:$F$72)/SUM($G$15:$G$72),"") -> 0.9750307 | V5: =IF(SUMIF($K$15:$K$72,Récapitulatif!$B$2,$G$15:$G$72)+SUMIF($K$15:$K$72,Récapitulatif!$B$3,$G$15:$G$72)>0,(SUMIF($K$15:$K$72,Récapitulatif!$B$2,$F$15:$F$72)+SUMIF($K$15:$K$72,Récapitulatif!$B$3,$F$15:$F$72))/(SUMIF($K$15:$K$72,Récapitulatif!$B$2,$G$15:$G$72)+SUMIF($K$15:$K$72,Récapitulatif!$B$3,$G$15:$G$72)),"") -> 
N6: Sets | O6: Gagnés | P6: =SUMIF($K$15:$K$72,Récapitulatif!$B$2,$D$15:$D$72) -> 0 | Q6: =IF(P$6+P$7>0,P6/(P$6+P$7),"") ->  | R6: =SUMIF($K$15:$K$72,Récapitulatif!$B$3,$D$15:$D$72) -> 0 | S6: =IF(R$6+R$7>0,R6/(R$6+R$7),"") ->  | T6: =SUM($D$15:$D$72) -> 63 | U6: =IF(T$6+T$7>0,T6/(T$6+T$7),"") -> 0.4436619718
O7: Perdus | P7: =SUMIF($K$15:$K$72,Récapitulatif!$B$2,$E$15:$E$72) -> 0 | Q7: =IF(P$6+P$7>0,P7/(P$6+P$7),"") ->  | R7: =SUMIF($K$15:$K$72,Récapitulatif!$B$3,$E$15:$E$72) -> 0 | S7: =IF(R$6+R$7>0,R7/(R$6+R$7),"") ->  | T7: =SUM($E$15:$E$72) -> 79 | U7: =IF(T$6+T$7>0,T7/(T$6+T$7),"") -> 0.5563380282
A8: Récapitulatif joueurs | O8: Total | P8: =SUM(P6:P7) -> 0 | R8: =SUM(R6:R7) -> 0 | T8: =SUM(T6:T7) -> 142
A15: Joueur | B15: Adversaire | C15: G/P | D15: Sets gagnés | E15: Sets perdus | F15: pts marqués | G15: pts subis | H15: Date | I15: Compétition | J15: Phase | K15: Saison
A16: CARPENTIER Yohanne | B16: CAUX Frédéric | C16: P | D16: 1 | E16: 2 | F16: 152 | G16: 172 | H16: 2008-12-12 | I16: National T3 ANNOEULLIN | J16: Préqualifs | K16: =IF(H16<>"",IF(MONTH(H16)>MoisRef,YEAR(H16)&"-"&YEAR(H16)+1,YEAR(H16)-1&"-"&YEAR(H16)),"") -> 2008-2009 | P16: =IF($K16=P$1,COUNTIF($C16,"G"),0) -> 0 | R16: =IF($K16=R$1,COUNTIF($C16,"G"),0) -> 0
A17: CARPENTIER Yohanne | B17: SCHUB Philippe | C17: P | D17: 0 | E17: 2 | F17: 83 | G17: 120 | H17: 2008-12-12 | I17: National T3 ANNOEULLIN | J17: Préqualifs | K17: 2008-2009 | P17: 0 | R17: 0
A18: CARPENTIER Yohanne | B18: MORALES Luis | C18: P | D18: 1 | E18: 2 | F18: 130 | G18: 171 | H18: 2008-12-12 | I18: National T3 ANNOEULLIN | J18: Préqualifs | K18: 2008-2009 | P18: 0 | R18: 0
A19: CARPENTIER Yohanne | B19: WALLART Jean-Charles | C19: G | D19: 2 | E19: 1 | F19: 168 | G19: 115 | H19: 2009-02-14 | I19: N1 Ligue T1 ARRAS | J19: Poules | K19: 2008-2009 | P19: 0 | R19: 0
A20: CARPENTIER Yohanne | B20: CAUX Frédéric | C20: P | D20: 1 | E20: 2 | F20: 159 | G20: 166 | H20: 2009-02-14 | I20: N1 Ligue T1 ARRAS | J20: Poules | K20: 2008-2009 | P20: 0 | R20: 0
A21: CARPENTIER Yohanne | B21: DELSOL Philippe | C21: P | D21: 1 | E21: 2 | F21: 145 | G21: 177 | H21: 2009-02-14 | I21: N1 Ligue T1 ARRAS | J21: 1/4 Finale | K21: 2008-2009 | P21: 0 | R21: 0
A22: CARPENTIER Yohanne | B22: SAINT-GEORGES Claude | C22: P | D22: 0 | E22: 2 | F22: 85 | G22: 120 | H22: 2009-03-07 | I22: N1 Ligue T2 ANNOEULLIN | J22: Poules | K22: 2008-2009 | P22: 0 | R22: 0
A23: CARPENTIER Yohanne | B23: MAILLE Bernard | C23: G | D23: 2 | E23: 1 | F23: 172 | G23: 157 | H23: 2009-03-07 | I23: N1 Ligue T2 ANNOEULLIN | J23: Poules | K23: 2008-2009 | P23: 0 | R23: 0
A24: CARPENTIER Yohanne | B24: CLYNCKE Jean-Jacques | C24: P | D24: 0 | E24: 2 | F24: 110 | G24: 120 | H24: 2009-03-07 | I24: N1 Ligue T2 ANNOEULLIN | J24: Poules Consolante | K24: 2008-2009 | P24: 0 | R24: 0
A25: CARPENTIER Yohanne | B25: TURPIN Laurent | C25: P | D25: 1 | E25: 2 | F25: 120 | G25: 163 | H25: 2009-03-07 | I25: N1 Ligue T2 ANNOEULLIN | J25: Poules Consolante | K25: 2008-2009 | P25: 0 | R25: 0
A26: CARPENTIER Yohanne | B26: HULOT Sophie | C26: G | D26: 2 | E26: 1 | F26: 165 | G26: 122 | H26: 2009-04-11 | I26: N1 Ligue T3 DUNKERQUE | J26: Poules | K26: 2008-2009 | P26: 0 | R26: 0
A27: CARPENTIER Yohanne | B27: TURPIN Laurent | C27: P | D27: 0 | E27: 2 | F27: 72 | G27: 120 | H27: 2009-04-11 | I27: N1 Ligue T3 DUNKERQUE | J27: Poules | K27: 2008-2009 | P27: 0 | R27: 0
A28: CARPENTIER Yohanne | B28: LORTHIOIR Jean-Luc | C28: G | D28: 2 | E28: 1 | F28: 175 | G28: 140 | H28: 2009-04-11 | I28: N1 Ligue T3 DUNKERQUE | J28: Poules Consolante | K28: 2008-2009 | P28: 0 | R28: 0
A29: CARPENTIER Yohanne | B29: BASTENIER Jean | C29: P | D29: 1 | E29: 2 | F29: 119 | G29: 135 | H29: 2009-04-11 | I29: N1 Ligue T3 DUNKERQUE | J29: Poules Consolante | K29: 2008-2009 | P29: 0 | R29: 0
A30: CARPENTIER Yohanne | B30: CAUX Frédéric | C30: G | D30: 2 | E30: 0 | F30: 120 | G30: 91 | H30: 2009-12-19 | I30: N1 Ligue T2 ANNOEULLIN | J30: Poules | K30: 2009-2010 | P30: 0 | R30: 0
A31: CARPENTIER Yohanne | B31: MAUPIN Patrick | C31: G | D31: 2 | E31: 1 | F31: 158 | G31: 143 | H31: 2009-12-19 | I31: N1 Ligue T2 ANNOEULLIN | J31: Poules | K31: 2009-2010 | P31: 0 | R31: 0
A32: CARPENTIER Yohanne | B32: GUILLEMANT David | C32: P | D32: 0 | E32: 2 | F32: 66 | G32: 120 | H32: 2009-12-19 | I32: N1 Ligue T2 ANNOEULLIN | J32: 1/4 Finale | K32: 2009-2010 | P32: 0 | R32: 0
A33: CARPENTIER Yohanne | B33: CAUX Frédéric | C33: G | D33: 2 | E33: 1 | F33: 178 | G33: 108 | H33: 2010-01-16 | I33: N1 Ligue T3 ANNOEULLIN | J33: Poules Consolante | K33: 2009-2010 | P33: 0 | R33: 0
A34: CARPENTIER Yohanne | B34: RACARY Thibault | C34: G | D34: 2 | E34: 1 | F34: 162 | G34: 175 | H34: 2010-01-16 | I34: N1 Ligue T3 ANNOEULLIN | J34: Poules Consolante | K34: 2009-2010 | P34: 0 | R34: 0
A35: CARPENTIER Yohanne | B35: SAINT-GEORGES Claude | C35: G | D35: 2 | E35: 1 | F35: 157 | G35: 149 | H35: 2010-01-16 | I35: N1 Ligue T3 ANNOEULLIN | J35: 1/2 Finale Consolante | K35: 2009-2010 | P35: 0 | R35: 0
A36: CARPENTIER Yohanne | B36: GEETS Patrice | C36: G | D36: 2 | E36: 1 | F36: 173 | G36: 162 | H36: 2010-01-16 | I36: N1 Ligue T3 ANNOEULLIN | J36: Finale Consolante | K36: 2009-2010 | P36: 0 | R36: 0
A37: CARPENTIER Yohanne | B37: DEROLEZ Jean-Pierre | C37: P | D37: 1 | E37: 2 | F37: 134 | G37: 150 | H37: 2010-01-16 | I37: N1 Ligue T3 ANNOEULLIN | J37: Poules | K37: 2009-2010 | P37: 0 | R37: 0
A38: CARPENTIER Yohanne | B38: GREMAIN Gino | C38: P | D38: 0 | E38: 2 | F38: 86 | G38: 120 | H38: 2010-01-16 | I38: N1 Ligue T3 ANNOEULLIN | J38: Poules | K38: 2009-2010 | P38: 0 | R38: 0
A39: CARPENTIER Yohanne | B39: MAUPIN Patrick | C39: P | D39: 0 | E39: 2 | F39: 68 | G39: 120 | H39: 2010-02-20 | I39: N1 Ligue T4 DOUAI | J39: Poules | K39: 2009-2010 | P39: 0 | R39: 0
A40: CARPENTIER Yohanne | B40: MAUPIN Patrick | C40: P | D40: 1 | E40: 2 | F40: 146 | G40: 160 | H40: 2010-02-20 | I40: N1 Ligue T4 DOUAI | J40: Poules | K40: 2009-2010 | P40: 0 | R40: 0
A41: CARPENTIER Yohanne | B41: LORTHIOIR Jean-Luc | C41: G | D41: 2 | E41: 0 | F41: 120 | G41: 80 | H41: 2010-02-20 | I41: N1 Ligue T4 DOUAI | J41: Poules Consolante | K41: 2009-2010 | P41: 0 | R41: 0
A42: CARPENTIER Yohanne | B42: CARTIERE André | C42: G | D42: 2 | E42: 1 | F42: 177 | G42: 134 | H42: 2010-02-20 | I42: N1 Ligue T4 DOUAI | J42: Poules Consolante | K42: 2009-2010 | P42: 0 | R42: 0
A43: CARPENTIER Yohanne | B43: ZEUDE Alain | C43: G | D43: 2 | E43: 0 | F43: 120 | G43: 60 | H43: 2010-10-16 | I43: N1 Ligue T1 DOUAI | J43: Poules | K43: 2010-2011 | P43: 0 | R43: 0
A44: CARPENTIER Yohanne | B44: SAINT-GEORGES Claude | C44: P | D44: 0 | E44: 2 | F44: 64 | G44: 120 | H44: 2010-10-16 | I44: N1 Ligue T1 DOUAI | J44: Poules | K44: 2010-2011 | P44: 0 | R44: 0
A45: CARPENTIER Yohanne | B45: GEETS Patrice | C45: P | D45: 1 | E45: 2 | F45: 142 | G45: 178 | H45: 2010-10-16 | I45: N1 Ligue T1 DOUAI | J45: 1/8 Finale | K45: 2010-2011 | P45: 0 | R45: 0
A46: CARPENTIER Yohanne | B46: DELRUE André | C46: G | D46: 2 | E46: 0 | F46: 120 | G46: 75 | H46: 2010-11-13 | I46: N1 Ligue T2 FACHES THUMESNIL | J46: Poules | K46: 2010-2011 | P46: 0 | R46: 0
A47: CARPENTIER Yohanne | B47: SAINT-GEORGES Claude | C47: P | D47: 1 | E47: 2 | F47: 166 | G47: 175 | H47: 2010-11-13 | I47: N1 Ligue T2 FACHES THUMESNIL | J47: Poules | K47: 2010-2011 | P47: 0 | R47: 0
A48: CARPENTIER Yohanne | B48: VEREECQUE Ludovic | C48: P | D48: 0 | E48: 2 | F48: 69 | G48: 120 | H48: 2010-11-13 | I48: N1 Ligue T2 FACHES THUMESNIL | J48: Poules Consolante | K48: 2010-2011 | P48: 0 | R48: 0
A49: CARPENTIER Yohanne | B49: CAUX Frédéric | C49: P | D49: 1 | E49: 2 | F49: 160 | G49: 175 | H49: 2010-11-13 | I49: N1 Ligue T2 FACHES THUMESNIL | J49: Poules Consolante | K49: 2010-2011 | P49: 0 | R49: 0
A50: CARPENTIER Yohanne | B50: MANTEN Paul | C50: P | D50: 1 | E50: 2 | F50: 115 | G50: 155 | H50: 2010-12-11 | I50: N1 Ligue T3 GRAVELINES | J50: Poules | K50: 2010-2011 | P50: 0 | R50: 0
A51: CARPENTIER Yohanne | B51: HORNAIN Denis | C51: G | D51: 2 | E51: 1 | F51: 160 | G51: 130 | H51: 2010-12-11 | I51: N1 Ligue T3 GRAVELINES | J51: Poules | K51: 2010-2011 | P51: 0 | R51: 0
A52: CARPENTIER Yohanne | B52: CAUX Frédéric | C52: P | D52: 1 | E52: 2 | F52: 170 | G52: 168 | H52: 2010-12-11 | I52: N1 Ligue T3 GRAVELINES | J52: Poules Consolante | K52: 2010-2011 | P52: 0 | R52: 0
A53: CARPENTIER Yohanne | B53: MONFLIER Francis | C53: G | D53: 2 | E53: 1 | F53: 173 | G53: 107 | H53: 2010-12-11 | I53: N1 Ligue T3 GRAVELINES | J53: Poules Consolante | K53: 2010-2011 | P53: 0 | R53: 0
A54: CARPENTIER Yohanne | B54: RAUX Jean-François | C54: G | D54: 2 | E54: 0 | F54: 120 | G54: 45 | H54: 2011-01-15 | I54: N1 Ligue T4 DIVION | J54: Poules | K54: 2010-2011 | P54: 0 | R54: 0
A55: CARPENTIER Yohanne | B55: POULEYN André | C55: P | D55: 1 | E55: 2 | F55: 167 | G55: 164 | H55: 2011-01-15 | I55: N1 Ligue T4 DIVION | J55: Poules | K55: 2010-2011 | P55: 0 | R55: 0
A56: CARPENTIER Yohanne | B56: DEROLEZ Jean-Pierre | C56: P | D56: 0 | E56: 2 | F56: 88 | G56: 120 | H56: 2011-01-15 | I56: N1 Ligue T4 DIVION | J56: Poules Consolante | K56: 2010-2011 | P56: 0 | R56: 0
A57: CARPENTIER Yohanne | B57: LERICQUE Pierre | C57: P | D57: 1 | E57: 2 | F57: 141 | G57: 154 | H57: 2011-01-15 | I57: N1 Ligue T4 DIVION | J57: Poules Consolante | K57: 2010-2011 | P57: 0 | R57: 0
A58: CARPENTIER Yohanne | B58: LUBREZ Pierre | C58: G | D58: 2 | E58: 0 | F58: 120 | G58: 84 | H58: 2011-10-15 | I58: N1 Ligue T1 DIVION | J58: Poules | K58: 2011-2012 | P58: 0 | R58: 0
A59: CARPENTIER Yohanne | B59: SAINT-GEORGES Claude | C59: P | D59: 0 | E59: 2 | F59: 65 | G59: 120 | H59: 2011-10-15 | I59: N1 Ligue T1 DIVION | J59: Poules | K59: 2011-2012 | P59: 0 | R59: 0
A60: CARPENTIER Yohanne | B60: LEBLANC Jean-Noël | C60: P | D60: 0 | E60: 1 | F60: 74 | G60: 100 | H60: 2011-10-15 | I60: N1 Ligue T1 DIVION | J60: Poules Consolante | K60: 2011-2012 | P60: 0 | R60: 0
A61: CARPENTIER Yohanne | B61: LORTHIOIR Jean-Luc | C61: P | D61: 0 | E61: 1 | F61: 80 | G61: 100 | H61: 2011-10-15 | I61: N1 Ligue T1 DIVION | J61: Poules Consolante | K61: 2011-2012 | P61: 0 | R61: 0
A62: CARPENTIER Yohanne | B62: CLYNCKE Jean-Jacques | C62: G | D62: 2 | E62: 1 | F62: 169 | G62: 152 | H62: 2011-11-19 | I62: N1 Ligue T2 DOUAI | J62: Poules | K62: 2011-2012 | P62: 0 | R62: 0
A63: CARPENTIER Yohanne | B63: HERREBRECHT Thierry | C63: P | D63: 0 | E63: 2 | F63: 68 | G63: 120 | H63: 2011-11-19 | I63: N1 Ligue T2 DOUAI | J63: Poules | K63: 2011-2012 | P63: 0 | R63: 0
A64: CARPENTIER Yohanne | B64: SAINT-GEORGES Claude | C64: P | D64: 1 | E64: 2 | F64: 150 | G64: 124 | H64: 2011-11-19 | I64: N1 Ligue T2 DOUAI | J64: 1/8 Finale | K64: 2011-2012 | P64: 0 | R64: 0
A65: CARPENTIER Yohanne | B65: GHEVART Jean | C65: G | D65: 2 | E65: 0 | F65: 120 | G65: 66 | H65: 2012-01-07 | I65: N1 Ligue T3 FACHES THUMESNIL | J65: Poules | K65: 2011-2012 | P65: 0 | R65: 0
A66: CARPENTIER Yohanne | B66: TURPIN Laurent | C66: G | D66: 2 | E66: 0 | F66: 120 | G66: 82 | H66: 2012-01-07 | I66: N1 Ligue T3 FACHES THUMESNIL | J66: Poules | K66: 2011-2012 | P66: 0 | R66: 0
A67: CARPENTIER Yohanne | B67: KAYA Turgul | C67: G | D67: 2 | E67: 1 | F67: 169 | G67: 151 | H67: 2012-01-07 | I67: N1 Ligue T3 FACHES THUMESNIL | J67: 1/8 Finale | K67: 2011-2012 | P67: 0 | R67: 0
A68: CARPENTIER Yohanne | B68: HERREBRECHT Thierry | C68: P | D68: 0 | E68: 2 | F68: 64 | G68: 120 | H68: 2012-01-07 | I68: N1 Ligue T3 FACHES THUMESNIL | J68: 1/4 Finale | K68: 2011-2012 | P68: 0 | R68: 0
A69: CARPENTIER Yohanne | B69: CAUX Frédéric | C69: G | D69: 2 | E69: 1 | F69: 160 | G69: 158 | H69: 2012-01-28 | I69: N1 Ligue T4 GRAVELINES | J69: Poules | K69: 2011-2012 | P69: 0 | R69: 0
A70: CARPENTIER Yohanne | B70: CAUX Frédéric | C70: P | D70: 1 | E70: 2 | F70: 150 | G70: 176 | H70: 2012-01-28 | I70: N1 Ligue T4 GRAVELINES | J70: Poules | K70: 2011-2012 | P70: 0 | R70: 0
A71: CARPENTIER Yohanne | B71: LHERMITTE Cédric | C71: P | D71: 0 | E71: 2 | F71: 62 | G71: 120 | H71: 2012-01-28 | I71: N1 Ligue T4 GRAVELINES | J71: 1/8 Finale | K71: 2011-2012 | P71: 0 | R71: 0
A72: Fin des données | P72: =IF($K72=P$1,COUNTIF($C72,"G"),0) -> 0 | R72: =IF($K72=R$1,COUNTIF($C72,"G"),0) -> 0

Sheet CARTIERE André
A1: CARTIERE André | P1: =Récapitulatif!$B$2 -> 2014-2015 | R1: =Récapitulatif!$B$3 -> 2015-2016 | T1: Toutes saisons
A2: CUCQ | P2: Nombre | Q2: %age | R2: Nombre | S2: %age | T2: Nombre | U2: %age
A3: 117749-V | N3: Matchs | O3: Gagnés | P3: =SUM(P$15:P$21) -> 0 | Q3: =IF(P$3+P$4>0,P3/(P$3+P$4),"") ->  | R3: =SUM(R$15:R$21) -> 0 | S3: =IF(R$3+R$4>0,R3/(R$3+R$4),"") ->  | T3: =COUNTIF($C$15:$C$21,"G") -> 1 | U3: =IF(T$3+T$4>0,T3/(T$3+T$4),"") -> 0.2
O4: Perdus | P4: =COUNTIF($K$15:$K$21,Récapitulatif!$B$2)-P3 -> 0 | Q4: =IF(P$3+P$4>0,P4/(P$3+P$4),"") ->  | R4: =COUNTIF($K$15:$K$21,Récapitulatif!$B$3)-R3 -> 0 | S4: =IF(R$3+R$4>0,R4/(R$3+R$4),"") ->  | T4: =COUNTIF($C$15:$C$21,"P") -> 4 | U4: =IF(T$3+T$4>0,T4/(T$3+T$4),"") -> 0.8
O5: Total / Moy. | P5: =SUM(P3:P4) -> 0 | Q5: =IF(SUMIF($K$15:$K$21,Récapitulatif!$B$2,$G$15:$G$21)>0,SUMIF($K$15:$K$21,Récapitulatif!$B$2,$F$15:$F$21)/SUMIF($K$15:$K$21,Récapitulatif!$B$2,$G$15:$G$21),"") ->  | R5: =SUM(R3:R4) -> 0 | S5: =IF(SUMIF($K$15:$K$21,Récapitulatif!$B$3,$G$15:$G$21)>0,SUMIF($K$15:$K$21,Récapitulatif!$B$3,$F$15:$F$21)/SUMIF($K$15:$K$21,Récapitulatif!$B$3,$G$15:$G$21),"") ->  | T5: =SUM(T3:T4) -> 5 | U5: =IF(SUM($G$15:$G$21)>0,SUM($F$15:$F$21)/SUM($G$15:$G$21),"") -> 0.8025477707 | V5: =IF(SUMIF($K$15:$K$21,Récapitulatif!$B$2,$G$15:$G$21)+SUMIF($K$15:$K$21,Récapitulatif!$B$3,$G$15:$G$21)>0,(SUMIF($K$15:$K$21,Récapitulatif!$B$2,$F$15:$F$21)+SUMIF($K$15:$K$21,Récapitulatif!$B$3,$F$15:$F$21))/(SUMIF($K$15:$K$21,Récapitulatif!$B$2,$G$15:$G$21)+SUMIF($K$15:$K$21,Récapitulatif!$B$3,$G$15:$G$21)),"") -> 
N6: Sets | O6: Gagnés | P6: =SUMIF($K$15:$K$21,Récapitulatif!$B$2,$D$15:$D$21) -> 0 | Q6: =IF(P$6+P$7>0,P6/(P$6+P$7),"") ->  | R6: =SUMIF($K$15:$K$21,Récapitulatif!$B$3,$D$15:$D$21) -> 0 | S6: =IF(R$6+R$7>0,R6/(R$6+R$7),"") ->  | T6: =SUM($D$15:$D$21) -> 3 | U6: =IF(T$6+T$7>0,T6/(T$6+T$7),"") -> 0.2727272727
O7: Perdus | P7: =SUMIF($K$15:$K$21,Récapitulatif!$B$2,$E$15:$E$21) -> 0 | Q7: =IF(P$6+P$7>0,P7/(P$6+P$7),"") ->  | R7: =SUMIF($K$15:$K$21,Récapitulatif!$B$3,$E$15:$E$21) -> 0 | S7: =IF(R$6+R$7>0,R7/(R$6+R$7),"") ->  | T7: =SUM($E$15:$E$21) -> 8 | U7: =IF(T$6+T$7>0,T7/(T$6+T$7),"") -> 0.7272727273
A8: Récapitulatif joueurs | O8: Total | P8: =SUM(P6:P7) -> 0 | R8: =SUM(R6:R7) -> 0 | T8: =SUM(T6:T7) -> 11
A15: Joueur | B15: Adversaire | C15: G/P | D15: Sets gagnés | E15: Sets perdus | F15: pts marqués | G15: pts subis | H15: Date | I15: Compétition | J15: Phase | K15: Saison
A16: CARTIERE André | B16: MARTEL Bruno | C16: G | D16: 2 | E16: 0 | F16: 120 | G16: 91 | H16: 2010-02-20 | I16: N1 Ligue T4 DOUAI | J16: Poules | K16: =IF(H16<>"",IF(MONTH(H16)>MoisRef,YEAR(H16)&"-"&YEAR(H16)+1,YEAR(H16)-1&"-"&YEAR(H16)),"") -> 2009-2010 | P16: =IF($K16=P$1,COUNTIF($C16,"G"),0) -> 0 | R16: =IF($K16=R$1,COUNTIF($C16,"G"),0) -> 0
A17: CARTIERE André | B17: GEETS Patrice | C17: P | D17: 0 | E17: 2 | F17: 54 | G17: 120 | H17: 2010-02-20 | I17: N1 Ligue T4 DOUAI | J17: Poules | K17: 2009-2010 | P17: 0 | R17: 0
A18: CARTIERE André | B18: HORNAIN Denis | C18: P | D18: 0 | E18: 2 | F18: 92 | G18: 120 | H18: 2010-02-20 | I18: N1 Ligue T4 DOUAI | J18: 1/8 Finale | K18: 2009-2010 | P18: 0 | R18: 0
A19: CARTIERE André | B19: CARPENTIER Yohanne | C19: P | D19: 1 | E19: 2 | F19: 134 | G19: 177 | H19: 2010-02-20 | I19: N1 Ligue T4 DOUAI | J19: Poules Consolante | K19: 2009-2010 | P19: 0 | R19: 0
A20: CARTIERE André | B20: LORTHIOIR Jean-Luc | C20: P | D20: 0 | E20: 2 | F20: 104 | G20: 120 | H20: 2010-02-20 | I20: N1 Ligue T4 DOUAI | J20: Poules Consolante | K20: 2009-2010 | P20: 0 | R20: 0
A21: Fin des données | P21: 0 | R21: 0

Sheet CAUX Frédéric
A1: CAUX Frédéric | P1: =Récapitulatif!$B$2 -> 2014-2015 | R1: =Récapitulatif!$B$3 -> 2015-2016 | T1: Toutes saisons
A2: ANNOEULLIN | P2: Nombre | Q2: %age | R2: Nombre | S2: %age | T2: Nombre | U2: %age
A3: 017026-W | N3: Matchs | O3: Gagnés | P3: =SUM(P$15:P$303) -> 16 | Q3: =IF(P$3+P$4>0,P3/(P$3+P$4),"") -> 0.4444444444 | R3: =SUM(R$15:R$303) -> 5 | S3: =IF(R$3+R$4>0,R3/(R$3+R$4),"") -> 0.1923076923 | T3: =COUNTIF($C$15:$C$303,"G") -> 97 | U3: =IF(T$3+T$4>0,T3/(T$3+T$4),"") -> 0.3379790941
O4: Perdus | P4: =COUNTIF($K$15:$K$303,Récapitulatif!$B$2)-P3 -> 20 | Q4: =IF(P$3+P$4>0,P4/(P$3+P$4),"") -> 0.5555555556 | R4: =COUNTIF($K$15:$K$303,Récapitulatif!$B$3)-R3 -> 21 | S4: =IF(R$3+R$4>0,R4/(R$3+R$4),"") -> 0.8076923077 | T4: =COUNTIF($C$15:$C$303,"P") -> 190 | U4: =IF(T$3+T$4>0,T4/(T$3+T$4),"") -> 0.6620209059
O5: Total / Moy. | P5: =SUM(P3:P4) -> 36 | Q5: =IF(SUMIF($K$15:$K$303,Récapitulatif!$B$2,$G$15:$G$303)>0,SUMIF($K$15:$K$303,Récapitulatif!$B$2,$F$15:$F$303)/SUMIF($K$15:$K$303,Récapitulatif!$B$2,$G$15:$G$303),"") -> 0.950527841 | R5: =SUM(R3:R4) -> 26 | S5: =IF(SUMIF($K$15:$K$303,Récapitulatif!$B$3,$G$15:$G$303)>0,SUMIF($K$15:$K$303,Récapitulatif!$B$3,$F$15:$F$303)/SUMIF($K$15:$K$303,Récapitulatif!$B$3,$G$15:$G$303),"") -> 0.7874585469 | T5: =SUM(T3:T4) -> 287 | U5: =IF(SUM($G$15:$G$303)>0,SUM($F$15:$F$303)/SUM($G$15:$G$303),"") -> 0.8784643963 | V5: =IF(SUMIF($K$15:$K$303,Récapitulatif!$B$2,$G$15:$G$303)+SUMIF($K$15:$K$303,Récapitulatif!$B$3,$G$15:$G$303)>0,(SUMIF($K$15:$K$303,Récapitulatif!$B$2,$F$15:$F$303)+SUMIF($K$15:$K$303,Récapitulatif!$B$3,$F$15:$F$303))/(SUMIF($K$15:$K$303,Récapitulatif!$B$2,$G$15:$G$303)+SUMIF($K$15:$K$303,Récapitulatif!$B$3,$G$15:$G$303)),"") -> 0.8841433481
N6: Sets | O6: Gagnés | P6: =SUMIF($K$15:$K$303,Récapitulatif!$B$2,$D$15:$D$303) -> 40 | Q6: =IF(P$6+P$7>0,P6/(P$6+P$7),"") -> 0.4395604396 | R6: =SUMIF($K$15:$K$303,Récapitulatif!$B$3,$D$15:$D$303) -> 14 | S6: =IF(R$6+R$7>0,R6/(R$6+R$7),"") -> 0.2641509434 | T6: =SUM($D$15:$D$303) -> 282 | U6: =IF(T$6+T$7>0,T6/(T$6+T$7),"") -> 0.376
O7: Perdus | P7: =SUMIF($K$15:$K$303,Récapitulatif!$B$2,$E$15:$E$303) -> 51 | Q7: =IF(P$6+P$7>0,P7/(P$6+P$7),"") -> 0.5604395604 | R7: =SUMIF($K$15:$K$303,Récapitulatif!$B$3,$E$15:$E$303) -> 39 | S7: =IF(R$6+R$7>0,R7/(R$6+R$7),"") -> 0.7358490566 | T7: =SUM($E$15:$E$303) -> 468 | U7: =IF(T$6+T$7>0,T7/(T$6+T$7),"") -> 0.624
A8: Récapitulatif joueurs | O8: Total | P8: =SUM(P6:P7) -> 91 | R8: =SUM(R6:R7) -> 53 | T8: =SUM(T6:T7) -> 750
A15: Joueur | B15: Adversaire | C15: G/P | D15: Sets gagnés | E15: Sets perdus | F15: pts marqués | G15: pts subis | H15: Date | I15: Compétition | J15: Phase | K15: Saison
A16: CAUX Frédéric | B16: AUCLAIR Henri | C16: G | D16: 2 | E16: 1 | F16: 149 | G16: 167 | H16: 2008-10-10 | I16: National T1 MAISONS ALFORT | J16: Préqualifs | K16: =IF(H16<>"",IF(MONTH(H16)>MoisRef,YEAR(H16)&"-"&YEAR(H16)+1,YEAR(H16)-1&"-"&YEAR(H16)),"") -> 2008-2009 | P16: =IF($K16=P$1,COUNTIF($C16,"G"),0) -> 0 | R16: =IF($K16=R$1,COUNTIF($C16,"G"),0) -> 0
A17: CAUX Frédéric | B17: COTTEN Jean-Pierre | C17: P | D17: 0 | E17: 2 | F17: 101 | G17: 120 | H17: 2008-10-10 | I17: National T1 MAISONS ALFORT | J17: Préqualifs | K17: 2008-2009 | P17: 0 | R17: 0
A18: CAUX Frédéric | B18: FONTAINE Isabelle | C18: G | D18: 2 | E18: 1 | F18: 179 | G18: 110 | H18: 2008-10-10 | I18: National T1 MAISONS ALFORT | J18: Préqualifs | K18: 2008-2009 | P18: 0 | R18: 0
A19: CAUX Frédéric | B19: BERNARD Yves | C19: G | D19: 3 | E19: 0 | F19: 180 | G19: 143 | H19: 2008-10-11 | I19: National T1 MAISONS ALFORT | J19: Qualifs promotion | K19: 2008-2009 | P19: 0 | R19: 0
A20: CAUX Frédéric | B20: SORTAIS Claude | C20: G | D20: 3 | E20: 1 | F20: 219 | G20: 185 | H20: 2008-10-11 | I20: National T1 MAISONS ALFORT | J20: Qualifs promotion | K20: 2008-2009 | P20: 0 | R20: 0
A21: CAUX Frédéric | B21: PERRIN Eric | C21: P | D21: 1 | E21: 3 | F21: 155 | G21: 235 | H21: 2008-10-12 | I21: National T1 MAISONS ALFORT | J21: 1/8 finale promotion | K21: 2008-2009 | P21: 0 | R21: 0
A22: CAUX Frédéric | B22: DUROYON Didier | C22: P | D22: 1 | E22: 2 | F22: 152 | G22: 162 | H22: 2008-11-14 | I22: National T2 SCHILTIGHEIM | J22: Préqualifs | K22: 2008-2009 | P22: 0 | R22: 0
A23: CAUX Frédéric | B23: ZILLIG Pierre | C23: P | D23: 0 | E23: 2 | F23: 104 | G23: 120 | H23: 2008-11-14 | I23: National T2 SCHILTIGHEIM | J23: Préqualifs | K23: 2008-2009 | P23: 0 | R23: 0
A24: CAUX Frédéric | B24: RIGAULT Jean-Lou | C24: P | D24: 0 | E24: 2 | F24: 102 | G24: 120 | H24: 2008-11-14 | I24: National T2 SCHILTIGHEIM | J24: Préqualifs | K24: 2008-2009 | P24: 0 | R24: 0
A25: CAUX Frédéric | B25: CARPENTIER Yohanne | C25: G | D25: 2 | E25: 1 | F25: 172 | G25: 152 | H25: 2008-12-12 | I25: National T3 ANNOEULLIN | J25: Préqualifs | K25: 2008-2009 | P25: 0 | R25: 0
A26: CAUX Frédéric | B26: MORALES Luis | C26: P | D26: 1 | E26: 2 | F26: 110 | G26: 168 | H26: 2008-12-12 | I26: National T3 ANNOEULLIN | J26: Préqualifs | K26: 2008-2009 | P26: 0 | R26: 0
A27: CAUX Frédéric | B27: SCHUB Philippe | C27: P | D27: 0 | E27: 2 | F27: 95 | G27: 120 | H27: 2008-12-12 | I27: National T3 ANNOEULLIN | J27: Préqualifs | K27: 2008-2009 | P27: 0 | R27: 0
A28: CAUX Frédéric | B28: TIRALONGO Sébastien | C28: P | D28: 0 | E28: 3 | F28: 114 | G28: 180 | H28: 2008-12-13 | I28: National T3 ANNOEULLIN | J28: Qualifs promotion | K28: 2008-2009 | P28: 0 | R28: 0
A29: CAUX Frédéric | B29: DUROYON Didier | C29: P | D29: 0 | E29: 3 | F29: 128 | G29: 180 | H29: 2008-12-13 | I29: National T3 ANNOEULLIN | J29: Qualifs promotion | K29: 2008-2009 | P29: 0 | R29: 0
A30: CAUX Frédéric | B30: GONTHIER Arnaud | C30: P | D30: 1 | E30: 2 | F30: 115 | G30: 156 | H30: 2009-02-06 | I30: National T4 LAXOU | J30: Préqualifs | K30: 2008-2009 | P30: 0 | R30: 0
A31: CAUX Frédéric | B31: J. BLANC | C31: G | D31: 2 | E31: 0 | F31: 120 | G31: 106 | H31: 2009-02-06 | I31: National T4 LAXOU | J31: Préqualifs | K31: 2008-2009 | P31: 0 | R31: 0
A32: CAUX Frédéric | B32: REBELO Joaquim | C32: P | D32: 1 | E32: 2 | F32: 171 | G32: 169 | H32: 2009-02-06 | I32: National T4 LAXOU | J32: Préqualifs | K32: 2008-2009 | P32: 0 | R32: 0
A33: CAUX Frédéric | B33: GARONNAT Daniel | C33: P | D33: 1 | E33: 3 | F33: 159 | G33: 222 | H33: 2009-02-07 | I33: National T4 LAXOU | J33: Qualifs promotion | K33: 2008-2009 | P33: 0 | R33: 0
A34: CAUX Frédéric | B34: PAILLART Jean-Paul | C34: G | D34: 3 | E34: 1 | F34: 228 | G34: 187 | H34: 2009-02-07 | I34: National T4 LAXOU | J34: Qualifs promotion | K34: 2008-2009 | P34: 0 | R34: 0
A35: CAUX Frédéric | B35: GARONNAT Daniel | C35: G | D35: 3 | E35: 2 | F35: 263 | G35: 286 | H35: 2009-02-07 | I35: National T4 LAXOU | J35: Qualifs promotion | K35: 2008-2009 | P35: 0 | R35: 0
A36: CAUX Frédéric | B36: JUBLOT Denis | C36: P | D36: 0 | E36: 3 | F36: 98 | G36: 180 | H36: 2009-02-08 | I36: National T4 LAXOU | J36: 1/8 finale promotion | K36: 2008-2009 | P36: 0 | R36: 0
A37: CAUX Frédéric | B37: CARPENTIER Yohanne | C37: G | D37: 2 | E37: 1 | F37: 166 | G37: 159 | H37: 2009-02-14 | I37: N1 Ligue T1 ARRAS | J37: Poules | K37: 2008-2009 | P37: 0 | R37: 0
A38: CAUX Frédéric | B38: WALLART Jean-Charles | C38: P | D38: 0 | E38: 2 | F38: 52 | G38: 120 | H38: 2009-02-14 | I38: N1 Ligue T1 ARRAS | J38: Poules | K38: 2008-2009 | P38: 0 | R38: 0
A39: CAUX Frédéric | B39: MARTEL Jean-Pierre | C39: G | D39: 2 | E39: 1 | F39: 172 | G39: 117 | H39: 2009-02-14 | I39: N1 Ligue T1 ARRAS | J39: Poules Consolante | K39: 2008-2009 | P39: 0 | R39: 0
A40: CAUX Frédéric | B40: TRUQUET David | C40: P | D40: 0 | E40: 2 | F40: 55 | G40: 120 | H40: 2009-02-14 | I40: N1 Ligue T1 ARRAS | J40: Poules Consolante | K40: 2008-2009 | P40: 0 | R40: 0
A41: CAUX Frédéric | B41: GUILLEMANT David | C41: P | D41: 0 | E41: 2 | F41: 91 | G41: 120 | H41: 2009-03-07 | I41: N1 Ligue T2 ANNOEULLIN | J41: Poules | K41: 2008-2009 | P41: 0 | R41: 0
A42: CAUX Frédéric | B42: GREMAIN Gino | C42: P | D42: 0 | E42: 2 | F42: 91 | G42: 120 | H42: 2009-03-07 | I42: N1 Ligue T2 ANNOEULLIN | J42: Poules | K42: 2008-2009 | P42: 0 | R42: 0
A43: CAUX Frédéric | B43: MARTEL Jean-Pierre | C43: P | D43: 0 | E43: 2 | F43: 77 | G43: 120 | H43: 2009-03-07 | I43: N1 Ligue T2 ANNOEULLIN | J43: Poules Consolante | K43: 2008-2009 | P43: 0 | R43: 0
A44: CAUX Frédéric | B44: TRUQUET David | C44: P | D44: 0 | E44: 2 | F44: 94 | G44: 120 | H44: 2009-03-07 | I44: N1 Ligue T2 ANNOEULLIN | J44: Poules Consolante | K44: 2008-2009 | P44: 0 | R44: 0
A45: CAUX Frédéric | B45: PERRIN Thierry | C45: P | D45: 1 | E45: 2 | F45: 147 | G45: 152 | H45: 2009-03-20 | I45: National T5 ANDERNOS | J45: Préqualifs | K45: 2008-2009 | P45: 0 | R45: 0
A46: CAUX Frédéric | B46: TRIFAULT Amand | C46: P | D46: 1 | E46: 2 | F46: 124 | G46: 152 | H46: 2009-03-20 | I46: National T5 ANDERNOS | J46: Préqualifs | K46: 2008-2009 | P46: 0 | R46: 0
A47: CAUX Frédéric | B47: BOUTET Laurent | C47: P | D47: 0 | E47: 2 | F47: 76 | G47: 120 | H47: 2009-03-20 | I47: National T5 ANDERNOS | J47: Préqualifs | K47: 2008-2009 | P47: 0 | R47: 0
A48: CAUX Frédéric | B48: SAINT-GEORGES Claude | C48: P | D48: 1 | E48: 3 | F48: 198 | G48: 227 | H48: 2009-03-21 | I48: National T5 ANDERNOS | J48: Qualifs promotion | K48: =IF(H48<>"",IF(MONTH(H48)>MoisRef,YEAR(H48)&"-"&YEAR(H48)+1,YEAR(H48)-1&"-"&YEAR(H48)),"") -> 2008-2009 | P48: 0 | R48: 0
A49: CAUX Frédéric | B49: GANGLOFF Jean-Luc | C49: P | D49: 1 | E49: 3 | F49: 183 | G49: 211 | H49: 2009-03-21 | I49: National T5 ANDERNOS | J49: Qualifs promotion | K49: 2008-2009 | P49: 0 | R49: 0
A50: CAUX Frédéric | B50: BASTENIER Jean | C50: P | D50: 1 | E50: 2 | F50: 144 | G50: 143 | H50: 2009-04-11 | I50: N1 Ligue T3 DUNKERQUE | J50: Poules | K50: 2008-2009 | P50: 0 | R50: 0
A51: CAUX Frédéric | B51: WALLART Jean-Charles | C51: P | D51: 1 | E51: 2 | F51: 145 | G51: 179 | H51: 2009-04-11 | I51: N1 Ligue T3 DUNKERQUE | J51: Poules | K51: 2008-2009 | P51: 0 | R51: 0
A52: CAUX Frédéric | B52: MARTEL Jean-Pierre | C52: P | D52: 1 | E52: 2 | F52: 146 | G52: 169 | H52: 2009-04-11 | I52: N1 Ligue T3 DUNKERQUE | J52: Poules Consolante | K52: 2008-2009 | P52: 0 | R52: 0
A53: CAUX Frédéric | B53: LECROART Serge | C53: G | D53: 2 | E53: 1 | F53: 165 | G53: 111 | H53: 2009-04-11 | I53: N1 Ligue T3 DUNKERQUE | J53: Poules Consolante | K53: 2008-2009 | P53: 0 | R53: 0
A54: CAUX Frédéric | B54: DUROYON Didier | C54: P | D54: 0 | E54: 2 | F54: 34 | G54: 120 | H54: 2009-04-17 | I54: National T6 CAUDAN | J54: Préqualifs | K54: 2008-2009 | P54: 0 | R54: 0
A55: CAUX Frédéric | B55: J. BLANC | C55: G | D55: 2 | E55: 0 | F55: 120 | G55: 114 | H55: 2009-04-17 | I55: National T6 CAUDAN | J55: Préqualifs | K55: 2008-2009 | P55: 0 | R55: 0
A56: CAUX Frédéric | B56: DI PALMA Angelo | C56: P | D56: 1 | E56: 2 | F56: 109 | G56: 170 | H56: 2009-04-17 | I56: National T6 CAUDAN | J56: Préqualifs | K56: 2008-2009 | P56: 0 | R56: 0
A57: CAUX Frédéric | B57: ZACCAGNINI Antoine | C57: P | D57: 0 | E57: 3 | F57: 105 | G57: 180 | H57: 2009-04-18 | I57: National T6 CAUDAN | J57: Qualifs promotion | K57: 2008-2009 | P57: 0 | R57: 0
A58: CAUX Frédéric | B58: PERRIN Eric | C58: P | D58: 0 | E58: 3 | F58: 88 | G58: 180 | H58: 2009-04-18 | I58: National T6 CAUDAN | J58: Qualifs promotion | K58: 2008-2009 | P58: 0 | R58: 0
A59: CAUX Frédéric | B59: ROBIC Daniel | C59: P | D59: 0 | E59: 2 | F59: 85 | G59: 120 | H59: 2009-11-06 | I59: National T1 SCHILTIGHEIM | J59: Préqualifs | K59: 2009-2010 | P59: 0 | R59: 0
A60: CAUX Frédéric | B60: GREMAIN Gino | C60: P | D60: 0 | E60: 2 | F60: 87 | G60: 120 | H60: 2009-11-06 | I60: National T1 SCHILTIGHEIM | J60: Préqualifs | K60: 2009-2010 | P60: 0 | R60: 0
A61: CAUX Frédéric | B61: J. BLANC | C61: G | D61: 2 | E61: 0 | F61: 120 | G61: 118 | H61: 2009-11-06 | I61: National T1 SCHILTIGHEIM | J61: Préqualifs | K61: 2009-2010 | P61: 0 | R61: 0
A62: CAUX Frédéric | B62: GREMAIN Gino | C62: P | D62: 1 | E62: 3 | F62: 191 | G62: 236 | H62: 2009-11-07 | I62: National T1 SCHILTIGHEIM | J62: Qualifs promotion | K62: 2009-2010 | P62: 0 | R62: 0
A63: CAUX Frédéric | B63: GUILLEMANT Jean-Marc | C63: G | D63: 3 | E63: 2 | F63: 272 | G63: 185 | H63: 2009-11-07 | I63: National T1 SCHILTIGHEIM | J63: Qualifs promotion | K63: 2009-2010 | P63: 0 | R63: 0
A64: CAUX Frédéric | B64: GREMAIN Gino | C64: P | D64: 0 | E64: 3 | F64: 98 | G64: 180 | H64: 2009-11-07 | I64: National T1 SCHILTIGHEIM | J64: Qualifs promotion | K64: 2009-2010 | P64: 0 | R64: 0
A65: CAUX Frédéric | B65: MAUPIN Patrick | C65: P | D65: 0 | E65: 2 | F65: 54 | G65: 120 | H65: 2009-11-21 | I65: N1 Ligue T1 GRAVELINES | J65: Poules | K65: 2009-2010 | P65: 0 | R65: 0
A66: CAUX Frédéric | B66: LAMBIASE Guiseppe | C66: G | D66: 2 | E66: 1 | F66: 165 | G66: 105 | H66: 2009-11-21 | I66: N1 Ligue T1 GRAVELINES | J66: Poules | K66: 2009-2010 | P66: 0 | R66: 0
A67: CAUX Frédéric | B67: MANTEN Paul | C67: G | D67: 2 | E67: 0 | F67: 120 | G67: 73 | H67: 2009-11-21 | I67: N1 Ligue T1 GRAVELINES | J67: Poules Consolante | K67: 2009-2010 | P67: 0 | R67: 0
A68: CAUX Frédéric | B68: LECROART Serge | C68: G | D68: 2 | E68: 0 | F68: 120 | G68: 86 | H68: 2009-11-21 | I68: N1 Ligue T1 GRAVELINES | J68: Poules Consolante | K68: 2009-2010 | P68: 0 | R68: 0
A69: CAUX Frédéric | B69: TURPIN Laurent | C69: G | D69: 2 | E69: 0 | F69: 120 | G69: 87 | H69: 2009-11-21 | I69: N1 Ligue T1 GRAVELINES | J69: 1/2 Finale Consolante | K69: 2009-2010 | P69: 0 | R69: 0
A70: CAUX Frédéric | B70: MAUPIN Patrick | C70: P | D70: 0 | E70: 2 | F70: 110 | G70: 120 | H70: 2009-11-21 | I70: N1 Ligue T1 GRAVELINES | J70: Finale Consolante | K70: 2009-2010 | P70: 0 | R70: 0
A71: CAUX Frédéric | B71: MAIZOUE Alain | C71: G | D71: 2 | E71: 0 | F71: 120 | G71: 81 | H71: 2009-12-04 | I71: National T2 ANNOEULLIN | J71: Préqualifs | K71: 2009-2010 | P71: 0 | R71: 0
A72: CAUX Frédéric | B72: DEMILLY Jean-Sébastien | C72: P | D72: 0 | E72: 2 | F72: 93 | G72: 120 | H72: 2009-12-04 | I72: National T2 ANNOEULLIN | J72: Préqualifs | K72: 2009-2010 | P72: 0 | R72: 0
A73: CAUX Frédéric | B73: LHERMITTE Cédric | C73: G | D73: 2 | E73: 0 | F73: 120 | G73: 96 | H73: 2009-12-04 | I73: National T2 ANNOEULLIN | J73: Préqualifs | K73: 2009-2010 | P73: 0 | R73: 0
A74: CAUX Frédéric | B74: SORTAIS Claude | C74: P | D74: 0 | E74: 3 | F74: 122 | G74: 180 | H74: 2009-12-05 | I74: National T2 ANNOEULLIN | J74: Qualifs promotion | K74: 2009-2010 | P74: 0 | R74: 0
A75: CAUX Frédéric | B75: SCHUB Philippe | C75: P | D75: 2 | E75: 3 | F75: 234 | G75: 232 | H75: 2009-12-05 | I75: National T2 ANNOEULLIN | J75: Qualifs promotion | K75: 2009-2010 | P75: 0 | R75: 0
A76: CAUX Frédéric | B76: CARPENTIER Yohanne | C76: P | D76: 0 | E76: 2 | F76: 91 | G76: 120 | H76: 2009-12-19 | I76: N1 Ligue T2 ANNOEULLIN | J76: Poules | K76: 2009-2010 | P76: 0 | R76: 0
A77: CAUX Frédéric | B77: MAUPIN Patrick | C77: G | D77: 2 | E77: 0 | F77: 120 | G77: 59 | H77: 2009-12-19 | I77: N1 Ligue T2 ANNOEULLIN | J77: Poules | K77: 2009-2010 | P77: 0 | R77: 0
A78: CAUX Frédéric | B78: CLYNCKE Jean-Jacques | C78: P | D78: 0 | E78: 2 | F78: 90 | G78: 120 | H78: 2009-12-19 | I78: N1 Ligue T2 ANNOEULLIN | J78: Poules Consolante | K78: 2009-2010 | P78: 0 | R78: 0
A79: CAUX Frédéric | B79: MAUPIN Patrick | C79: P | D79: 0 | E79: 2 | F79: 67 | G79: 120 | H79: 2009-12-19 | I79: N1 Ligue T2 ANNOEULLIN | J79: Poules Consolante | K79: 2009-2010 | P79: 0 | R79: 0
A80: CAUX Frédéric | B80: CARPENTIER Yohanne | C80: P | D80: 1 | E80: 2 | F80: 108 | G80: 178 | H80: 2010-01-16 | I80: N1 Ligue T3 ANNOEULLIN | J80: Poules Consolante | K80: =IF(H80<>"",IF(MONTH(H80)>MoisRef,YEAR(H80)&"-"&YEAR(H80)+1,YEAR(H80)-1&"-"&YEAR(H80)),"") -> 2009-2010 | P80: =IF($K80=P$1,COUNTIF($C80,"G"),0) -> 0 | R80: =IF($K80=R$1,COUNTIF($C80,"G"),0) -> 0
A81: CAUX Frédéric | B81: RACARY Thibault | C81: P | D81: 0 | E81: 2 | F81: 102 | G81: 120 | H81: 2010-01-16 | I81: N1 Ligue T3 ANNOEULLIN | J81: Poules Consolante | K81: 2009-2010 | P81: 0 | R81: 0
A82: CAUX Frédéric | B82: GUILLEMANT David | C82: P | D82: 1 | E82: 2 | F82: 144 | G82: 166 | H82: 2010-01-16 | I82: N1 Ligue T3 ANNOEULLIN | J82: Poules | K82: 2009-2010 | P82: 0 | R82: 0
A83: CAUX Frédéric | B83: GUILLEMANT David | C83: P | D83: 0 | E83: 2 | F83: 67 | G83: 120 | H83: 2010-01-16 | I83: N1 Ligue T3 ANNOEULLIN | J83: Poules | K83: 2009-2010 | P83: 0 | R83: 0
A84: CAUX Frédéric | B84: ALEXANDRE Michel | C84: P | D84: 1 | E84: 2 | F84: 149 | G84: 139 | H84: 2010-01-29 | I84: National T3 ORLEANS | J84: Préqualifs | K84: 2009-2010 | P84: 0 | R84: 0
A85: CAUX Frédéric | B85: MICHELOTTI Francesco | C85: P | D85: 0 | E85: 2 | F85: 92 | G85: 120 | H85: 2010-01-29 | I85: National T3 ORLEANS | J85: Préqualifs | K85: 2009-2010 | P85: 0 | R85: 0
A86: CAUX Frédéric | B86: GUIBERT Philippe | C86: P | D86: 0 | E86: 2 | F86: 81 | G86: 120 | H86: 2010-01-29 | I86: National T3 ORLEANS | J86: Préqualifs | K86: 2009-2010 | P86: 0 | R86: 0
A87: CAUX Frédéric | B87: MASIERO Lorenzo | C87: P | D87: 1 | E87: 2 | F87: 142 | G87: 162 | H87: 2010-02-20 | I87: N1 Ligue T4 DOUAI | J87: Poules | K87: 2009-2010 | P87: 0 | R87: 0
A88: CAUX Frédéric | B88: HORNAIN Denis | C88: P | D88: 1 | E88: 2 | F88: 118 | G88: 152 | H88: 2010-02-20 | I88: N1 Ligue T4 DOUAI | J88: Poules | K88: 2009-2010 | P88: 0 | R88: 0
A89: CAUX Frédéric | B89: TRIPLET Gilbert | C89: G | D89: 2 | E89: 1 | F89: 173 | G89: 137 | H89: 2010-02-20 | I89: N1 Ligue T4 DOUAI | J89: Poules Consolante | K89: 2009-2010 | P89: 0 | R89: 0
A90: CAUX Frédéric | B90: CLYNCKE Jean-Jacques | C90: P | D90: 1 | E90: 2 | F90: 146 | G90: 146 | H90: 2010-02-20 | I90: N1 Ligue T4 DOUAI | J90: Poules Consolante | K90: 2009-2010 | P90: 0 | R90: 0
A91: CAUX Frédéric | B91: ALEXANDRE Michel | C91: P | D91: 1 | E91: 2 | F91: 149 | G91: 139 | H91: 2010-01-29 | I91: National T3 ORLEANS | J91: Préqualifs | K91: 2009-2010 | P91: 0 | R91: 0
A92: CAUX Frédéric | B92: MICHELOTTI Francesco | C92: P | D92: 0 | E92: 2 | F92: 92 | G92: 120 | H92: 2010-01-29 | I92: National T3 ORLEANS | J92: Préqualifs | K92: 2009-2010 | P92: 0 | R92: 0
A93: CAUX Frédéric | B93: GUIBERT Philippe | C93: P | D93: 0 | E93: 2 | F93: 81 | G93: 120 | H93: 2010-01-29 | I93: National T3 ORLEANS | J93: Préqualifs | K93: 2009-2010 | P93: 0 | R93: 0
A94: CAUX Frédéric | B94: DERIU Georges | C94: P | D94: 0 | E94: 2 | F94: 104 | G94: 120 | H94: 2010-02-26 | I94: National T4 ROUEN | J94: Préqualifs | K94: 2009-2010 | P94: 0 | R94: 0
A95: CAUX Frédéric | B95: CUL Frédéric | C95: G | D95: 2 | E95: 0 | F95: 120 | G95: 80 | H95: 2010-02-26 | I95: National T4 ROUEN | J95: Préqualifs | K95: 2009-2010 | P95: 0 | R95: 0
A96: CAUX Frédéric | B96: GUIBERT Philippe | C96: P | D96: 1 | E96: 2 | F96: 112 | G96: 158 | H96: 2010-02-26 | I96: National T4 ROUEN | J96: Préqualifs | K96: 2009-2010 | P96: 0 | R96: 0
A97: CAUX Frédéric | B97: JACQ Laurent | C97: P | D97: 2 | E97: 3 | F97: 235 | G97: 264 | H97: 2010-02-27 | I97: National T4 ROUEN | J97: Qualifs promotion | K97: 2009-2010 | P97: 0 | R97: 0
A98: CAUX Frédéric | B98: DERIU Georges | C98: P | D98: 1 | E98: 3 | F98: 138 | G98: 210 | H98: 2010-02-27 | I98: National T4 ROUEN | J98: Qualifs promotion | K98: 2009-2010 | P98: 0 | R98: 0
A99: CAUX Frédéric | B99: DELEPIERRE Patrick | C99: G | D99: 2 | E99: 1 | F99: 176 | G99: 155 | H99: 2010-03-26 | I99: National T5 ST SEBASTIEN / LOIRE | J99: Préqualifs | K99: 2009-2010 | P99: 0 | R99: 0
A100: CAUX Frédéric | B100: BLANC J. | C100: G | D100: 2 | E100: 0 | F100: 120 | G100: 104 | H100: 2010-03-26 | I100: National T5 ST SEBASTIEN / LOIRE | J100: Préqualifs | K100: 2009-2010 | P100: 0 | R100: 0
A101: CAUX Frédéric | B101: ZACCAGNINI Antoine | C101: P | D101: 1 | E101: 2 | F101: 99 | G101: 168 | H101: 2010-03-26 | I101: National T5 ST SEBASTIEN / LOIRE | J101: Préqualifs | K101: 2009-2010 | P101: 0 | R101: 0
A102: CAUX Frédéric | B102: SAINT-GEORGES Claude | C102: P | D102: 0 | E102: 3 | F102: 134 | G102: 180 | H102: 2010-03-27 | I102: National T5 ST SEBASTIEN / LOIRE | J102: Qualifs promotion | K102: 2009-2010 | P102: 0 | R102: 0
A103: CAUX Frédéric | B103: GOUTHIER Alain | C103: G | D103: 3 | E103: 1 | F103: 238 | G103: 170 | H103: 2010-03-27 | I103: National T5 ST SEBASTIEN / LOIRE | J103: Qualifs promotion | K103: 2009-2010 | P103: 0 | R103: 0
A104: CAUX Frédéric | B104: SAINT-GEORGES Claude | C104: P | D104: 0 | E104: 3 | F104: 80 | G104: 180 | H104: 2010-03-27 | I104: National T5 ST SEBASTIEN / LOIRE | J104: Qualifs promotion | K104: 2009-2010 | P104: 0 | R104: 0
A105: CAUX Frédéric | B105: CLYNCKE Jean-Jacques | C105: G | D105: 2 | E105: 0 | F105: 120 | G105: 63 | H105: 2010-04-23 | I105: National T6 ANDERNOS | J105: Préqualifs | K105: 2009-2010 | P105: 0 | R105: 0
A106: CAUX Frédéric | B106: J. BLANC | C106: G | D106: 2 | E106: 0 | F106: 120 | G106: 92 | H106: 2010-04-23 | I106: National T6 ANDERNOS | J106: Préqualifs | K106: 2009-2010 | P106: 0 | R106: 0
A107: CAUX Frédéric | B107: ZACCAGNINI Antoine | C107: P | D107: 1 | E107: 2 | F107: 114 | G107: 174 | H107: 2010-04-23 | I107: National T6 ANDERNOS | J107: Préqualifs | K107: 2009-2010 | P107: 0 | R107: 0
A108: CAUX Frédéric | B108: FUTERAL Max | C108: G | D108: 3 | E108: 1 | F108: 208 | G108: 202 | H108: 2010-04-24 | I108: National T6 ANDERNOS | J108: Qualifs promotion | K108: 2009-2010 | P108: 0 | R108: 0
A109: CAUX Frédéric | B109: DERIU Georges | C109: P | D109: 1 | E109: 3 | F109: 190 | G109: 228 | H109: 2010-04-24 | I109: National T6 ANDERNOS | J109: Qualifs promotion | K109: 2009-2010 | P109: 0 | R109: 0
A110: CAUX Frédéric | B110: FUTERAL Max | C110: P | D110: 0 | E110: 3 | F110: 142 | G110: 180 | H110: 2010-04-24 | I110: National T6 ANDERNOS | J110: Qualifs promotion | K110: 2009-2010 | P110: 0 | R110: 0
A111: CAUX Frédéric | B111: SACRE Jean-Yves | C111: P | D111: 0 | E111: 2 | F111: 77 | G111: 120 | H111: 2010-10-07 | I111: National T1 CESTAS | J111: Préqualifs | K111: 2010-2011 | P111: 0 | R111: 0
A112: CAUX Frédéric | B112: EVENOU Marie-Antoinette | C112: G | D112: 2 | E112: 1 | F112: 164 | G112: 136 | H112: 2010-10-07 | I112: National T1 CESTAS | J112: Préqualifs | K112: 2010-2011 | P112: 0 | R112: 0
A113: CAUX Frédéric | B113: ZACCAGNINI Antoine | C113: P | D113: 0 | E113: 2 | F113: 48 | G113: 120 | H113: 2010-10-07 | I113: National T1 CESTAS | J113: Préqualifs | K113: 2010-2011 | P113: 0 | R113: 0
A114: CAUX Frédéric | B114: DERIU Georges | C114: P | D114: 0 | E114: 3 | F114: 126 | G114: 180 | H114: 2010-10-08 | I114: National T1 CESTAS | J114: Qualifs promotion | K114: 2010-2011 | P114: 0 | R114: 0
A115: CAUX Frédéric | B115: MARTEL Jean-Pierre | C115: P | D115: 2 | E115: 3 | F115: 257 | G115: 277 | H115: 2010-10-08 | I115: National T1 CESTAS | J115: Qualifs promotion | K115: 2010-2011 | P115: 0 | R115: 0
A116: CAUX Frédéric | B116: FAUCOMPREZ Didier | C116: P | D116: 1 | E116: 2 | F116: 149 | G116: 175 | H116: 2010-10-16 | I116: N1 Ligue T1 DOUAI | J116: Poules | K116: 2010-2011 | P116: 0 | R116: 0
A117: CAUX Frédéric | B117: TURPIN Laurent | C117: G | D117: 2 | E117: 1 | F117: 146 | G117: 148 | H117: 2010-10-16 | I117: N1 Ligue T1 DOUAI | J117: Poules | K117: 2010-2011 | P117: 0 | R117: 0
A118: CAUX Frédéric | B118: DELSOL Philippe | C118: P | D118: 0 | E118: 2 | F118: 38 | G118: 120 | H118: 2010-10-16 | I118: N1 Ligue T1 DOUAI | J118: 1/8 Finale | K118: 2010-2011 | P118: 0 | R118: 0
A119: CAUX Frédéric | B119: CLYNCKE Jean-Jacques | C119: P | D119: 1 | E119: 2 | F119: 136 | G119: 167 | H119: 2010-11-13 | I119: N1 Ligue T2 FACHES THUMESNIL | J119: Poules | K119: 2010-2011 | P119: 0 | R119: 0
A120: CAUX Frédéric | B120: LHERMITTE Cédric | C120: P | D120: 1 | E120: 2 | F120: 163 | G120: 150 | H120: 2010-11-13 | I120: N1 Ligue T2 FACHES THUMESNIL | J120: Poules | K120: 2010-2011 | P120: 0 | R120: 0
A121: CAUX Frédéric | B121: VEREECQUE Ludovic | C121: P | D121: 0 | E121: 2 | F121: 63 | G121: 120 | H121: 2010-11-13 | I121: N1 Ligue T2 FACHES THUMESNIL | J121: Poules Consolante | K121: 2010-2011 | P121: 0 | R121: 0
A122: CAUX Frédéric | B122: CARPENTIER Yohanne | C122: G | D122: 2 | E122: 1 | F122: 175 | G122: 160 | H122: 2010-11-13 | I122: N1 Ligue T2 FACHES THUMESNIL | J122: Poules Consolante | K122: 2010-2011 | P122: 0 | R122: 0
A123: CAUX Frédéric | B123: SCHNEIDER Virgile | C123: G | D123: 2 | E123: 1 | F123: 169 | G123: 159 | H123: 2010-11-05 | I123: National T2 LAXOU | J123: Préqualifs | K123: 2010-2011 | P123: 0 | R123: 0
A124: CAUX Frédéric | B124: DUVERNOY Christophe | C124: P | D124: 0 | E124: 2 | F124: 36 | G124: 120 | H124: 2010-11-05 | I124: National T2 LAXOU | J124: Préqualifs | K124: 2010-2011 | P124: 0 | R124: 0
A125: CAUX Frédéric | B125: DI PALMA Angelo | C125: P | D125: 0 | E125: 2 | F125: 70 | G125: 120 | H125: 2010-11-05 | I125: National T2 LAXOU | J125: Préqualifs | K125: 2010-2011 | P125: 0 | R125: 0
A126: CAUX Frédéric | B126: DELATTRE Hervé | C126: G | D126: 3 | E126: 2 | F126: 255 | G126: 269 | H126: 2010-11-06 | I126: National T2 LAXOU | J126: Qualifs promotion | K126: 2010-2011 | P126: 0 | R126: 0
A127: CAUX Frédéric | B127: JACQ Laurent | C127: P | D127: 0 | E127: 3 | F127: 119 | G127: 180 | H127: 2010-11-06 | I127: National T2 LAXOU | J127: Qualifs promotion | K127: 2010-2011 | P127: 0 | R127: 0
A128: CAUX Frédéric | B128: SCHNEIDER Virgile | C128: P | D128: 1 | E128: 3 | F128: 194 | G128: 231 | H128: 2010-11-06 | I128: National T2 LAXOU | J128: Qualifs promotion | K128: 2010-2011 | P128: 0 | R128: 0
A129: CAUX Frédéric | B129: DEVOS Jackie | C129: P | D129: 1 | E129: 2 | F129: 122 | G129: 145 | H129: 2010-12-11 | I129: N1 Ligue T3 GRAVELINES | J129: Poules | K129: 2010-2011 | P129: 0 | R129: 0
A130: CAUX Frédéric | B130: RACARY Thibault | C130: P | D130: 1 | E130: 2 | F130: 164 | G130: 157 | H130: 2010-12-11 | I130: N1 Ligue T3 GRAVELINES | J130: Poules | K130: 2010-2011 | P130: 0 | R130: 0
A131: CAUX Frédéric | B131: MONFLIER Francis | C131: G | D131: 2 | E131: 1 | F131: 168 | G131: 136 | H131: 2010-12-11 | I131: N1 Ligue T3 GRAVELINES | J131: Poules Consolante | K131: 2010-2011 | P131: 0 | R131: 0
A132: CAUX Frédéric | B132: CARPENTIER Yohanne | C132: G | D132: 2 | E132: 1 | F132: 168 | G132: 170 | H132: 2010-12-11 | I132: N1 Ligue T3 GRAVELINES | J132: Poules Consolante | K132: 2010-2011 | P132: 0 | R132: 0
A133: CAUX Frédéric | B133: DEVOS Jackie | C133: P | D133: 1 | E133: 2 | F133: 169 | G133: 146 | H133: 2010-12-11 | I133: N1 Ligue T3 GRAVELINES | J133: 1/2 Finale Consolante | K133: 2010-2011 | P133: 0 | R133: 0
A134: CAUX Frédéric | B134: SCHNEIDER Virgile | C134: G | D134: 2 | E134: 1 | F134: 165 | G134: 135 | H134: 2010-12-03 | I134: National T3 FACHES THUMESNIL - RONCHIN | J134: Préqualifs | K134: 2010-2011 | P134: 0 | R134: 0
A135: CAUX Frédéric | B135: DUVERNOY Christophe | C135: P | D135: 0 | E135: 2 | F135: 75 | G135: 120 | H135: 2010-12-03 | I135: National T3 FACHES THUMESNIL - RONCHIN | J135: Préqualifs | K135: 2010-2011 | P135: 0 | R135: 0
A136: CAUX Frédéric | B136: SACRE Jean-Yves | C136: G | D136: 3 | E136: 0 | F136: 180 | G136: 154 | H136: 2010-12-04 | I136: National T3 FACHES THUMESNIL - RONCHIN | J136: Qualifs promotion | K136: 2010-2011 | P136: 0 | R136: 0
A137: CAUX Frédéric | B137: RACARY Thibault | C137: P | D137: 0 | E137: 3 | F137: 103 | G137: 180 | H137: 2010-12-04 | I137: National T3 FACHES THUMESNIL - RONCHIN | J137: Qualifs promotion | K137: 2010-2011 | P137: 0 | R137: 0
A138: CAUX Frédéric | B138: GANGLOFF Jean-Luc | C138: P | D138: 1 | E138: 3 | F138: 197 | G138: 238 | H138: 2010-12-04 | I138: National T3 FACHES THUMESNIL - RONCHIN | J138: Qualifs promotion | K138: 2010-2011 | P138: 0 | R138: 0
A139: CAUX Frédéric | B139: ZEUDE Alain | C139: G | D139: 2 | E139: 1 | F139: 156 | G139: 148 | H139: 2011-01-15 | I139: N1 Ligue T4 DIVION | J139: Poules | K139: 2010-2011 | P139: 0 | R139: 0
A140: CAUX Frédéric | B140: SAINT-GEORGES Claude | C140: P | D140: 1 | E140: 2 | F140: 160 | G140: 174 | H140: 2011-01-15 | I140: N1 Ligue T4 DIVION | J140: Poules | K140: 2010-2011 | P140: 0 | R140: 0
A141: CAUX Frédéric | B141: MAILLE Bernard | C141: P | D141: 1 | E141: 2 | F141: 128 | G141: 140 | H141: 2011-01-15 | I141: N1 Ligue T4 DIVION | J141: Poules Consolante | K141: 2010-2011 | P141: 0 | R141: 0
A142: CAUX Frédéric | B142: MAILLE Bernard | C142: P | D142: 0 | E142: 2 | F142: 99 | G142: 120 | H142: 2011-01-15 | I142: N1 Ligue T4 DIVION | J142: Poules Consolante | K142: 2010-2011 | P142: 0 | R142: 0
A143: CAUX Frédéric | B143: SKORDILIS Christo | C143: G | D143: 2 | E143: 1 | F143: 165 | G143: 131 | H143: 2011-02-11 | I143: National T4 ROUEN | J143: Préqualifs | K143: 2010-2011 | P143: 0 | R143: 0
A144: CAUX Frédéric | B144: MORALES Luis | C144: P | D144: 0 | E144: 2 | F144: 57 | G144: 120 | H144: 2011-02-11 | I144: National T4 ROUEN | J144: Préqualifs | K144: 2010-2011 | P144: =IF($K144=P$1,COUNTIF($C144,"G"),0) -> 0 | R144: =IF($K144=R$1,COUNTIF($C144,"G"),0) -> 0
A145: CAUX Frédéric | B145: BLANC J. | C145: G | D145: 2 | E145: 0 | F145: 120 | G145: 98 | H145: 2011-02-11 | I145: National T4 ROUEN | J145: Préqualifs | K145: 2010-2011 | P145: 0 | R145: 0
A146: CAUX Frédéric | B146: ZILLIG Pierre | C146: P | D146: 0 | E146: 3 | F146: 102 | G146: 180 | H146: 2011-02-12 | I146: National T4 ROUEN | J146: Qualifs promotion | K146: 2010-2011 | P146: 0 | R146: 0
A147: CAUX Frédéric | B147: JUBLOT Denis | C147: P | D147: 0 | E147: 3 | F147: 115 | G147: 180 | H147: 2011-02-12 | I147: National T4 ROUEN | J147: Qualifs promotion | K147: 2010-2011 | P147: 0 | R147: 0
A148: CAUX Frédéric | B148: JACQ Laurent | C148: P | D148: 1 | E148: 2 | F148: 161 | G148: 165 | H148: 2011-03-25 | I148: National T5 BLOIS | J148: Préqualifs | K148: 2010-2011 | P148: 0 | R148: 0
A149: CAUX Frédéric | B149: LHEUREUX François | C149: P | D149: 1 | E149: 2 | F149: 171 | G149: 153 | H149: 2011-03-25 | I149: National T5 BLOIS | J149: Préqualifs | K149: 2010-2011 | P149: 0 | R149: 0
A150: CAUX Frédéric | B150: ZACCAGNINI Antoine | C150: P | D150: 0 | E150: 2 | F150: 28 | G150: 120 | H150: 2011-03-25 | I150: National T5 BLOIS | J150: Préqualifs | K150: 2010-2011 | P150: 0 | R150: 0
A151: CAUX Frédéric | B151: DESPIERRE Yannick | C151: P | D151: 1 | E151: 2 | F151: 109 | G151: 172 | H151: 2011-04-15 | I151: National T6 CHAMPAGNE sur SEINE / NANDY | J151: Préqualifs | K151: 2010-2011 | P151: 0 | R151: 0
A152: CAUX Frédéric | B152: SCHUB Philippe | C152: G | D152: 2 | E152: 1 | F152: 151 | G152: 139 | H152: 2011-04-15 | I152: National T6 CHAMPAGNE sur SEINE / NANDY | J152: Préqualifs | K152: 2010-2011 | P152: 0 | R152: 0
A153: CAUX Frédéric | B153: ZACCAGNINI Antoine | C153: P | D153: 1 | E153: 2 | F153: 146 | G153: 174 | H153: 2011-04-15 | I153: National T6 CHAMPAGNE sur SEINE / NANDY | J153: Préqualifs | K153: 2010-2011 | P153: 0 | R153: 0
A154: CAUX Frédéric | B154: DI PALMA Angelo | C154: P | D154: 0 | E154: 3 | F154: 89 | G154: 180 | H154: 2011-04-16 | I154: National T6 CHAMPAGNE sur SEINE / NANDY | J154: Qualifs promotion | K154: 2010-2011 | P154: 0 | R154: 0
A155: CAUX Frédéric | B155: GUILLEMANT Jean-Marc | C155: G | D155: 3 | E155: 0 | F155: 180 | G155: 167 | H155: 2011-04-16 | I155: National T6 CHAMPAGNE sur SEINE / NANDY | J155: Qualifs promotion | K155: 2010-2011 | P155: 0 | R155: 0
A156: CAUX Frédéric | B156: GOUTHIER Alain | C156: G | D156: 3 | E156: 1 | F156: 238 | G156: 224 | H156: 2011-04-16 | I156: National T6 CHAMPAGNE sur SEINE / NANDY | J156: Qualifs promotion | K156: 2010-2011 | P156: 0 | R156: 0
A157: CAUX Frédéric | B157: WALLART Jean-Charles | C157: G | D157: 3 | E157: 0 | F157: 180 | G157: 140 | H157: 2011-04-17 | I157: National T6 CHAMPAGNE sur SEINE / NANDY | J157: 1/8 finale promotion | K157: 2010-2011 | P157: 0 | R157: 0
A158: CAUX Frédéric | B158: ZILLIG Pierre | C158: P | D158: 0 | E158: 3 | F158: 157 | G158: 180 | H158: 2011-04-17 | I158: National T6 CHAMPAGNE sur SEINE / NANDY | J158: 1/4 finale promotion | K158: 2010-2011 | P158: 0 | R158: 0
A159: CAUX Frédéric | B159: DEVOS Jackie | C159: P | D159: 0 | E159: 2 | F159: 114 | G159: 120 | H159: 2011-10-15 | I159: N1 Ligue T1 DIVION | J159: Poules | K159: 2011-2012 | P159: 0 | R159: 0
A160: CAUX Frédéric | B160: DELSOL Philippe | C160: P | D160: 0 | E160: 2 | F160: 47 | G160: 120 | H160: 2011-10-15 | I160: N1 Ligue T1 DIVION | J160: Poules | K160: 2011-2012 | P160: 0 | R160: 0
A161: CAUX Frédéric | B161: LUBREZ Pierre | C161: P | D161: 0 | E161: 1 | F161: 98 | G161: 100 | H161: 2011-10-15 | I161: N1 Ligue T1 DIVION | J161: Poules Consolante | K161: 2011-2012 | P161: 0 | R161: 0
A162: CAUX Frédéric | B162: POULEYN André | C162: P | D162: 0 | E162: 1 | F162: 75 | G162: 100 | H162: 2011-10-15 | I162: N1 Ligue T1 DIVION | J162: Poules Consolante | K162: 2011-2012 | P162: 0 | R162: 0
A163: CAUX Frédéric | B163: FONTAINE Isabelle | C163: G | D163: 2 | E163: 0 | F163: 120 | G163: 98 | H163: 2011-09-30 | I163: National T1 CESTAS | J163: Préqualifs | K163: 2011-2012 | P163: 0 | R163: 0
A164: CAUX Frédéric | B164: PERRIN Eric | C164: P | D164: 0 | E164: 2 | F164: 68 | G164: 120 | H164: 2011-09-30 | I164: National T1 CESTAS | J164: Préqualifs | K164: 2011-2012 | P164: 0 | R164: 0
A165: CAUX Frédéric | B165: GULDNER Aurelien | C165: G | D165: 2 | E165: 1 | F165: 168 | G165: 154 | H165: 2011-09-30 | I165: National T1 CESTAS | J165: Préqualifs | K165: 2011-2012 | P165: 0 | R165: 0
A166: CAUX Frédéric | B166: PALOMBA Sergio | C166: P | D166: 2 | E166: 3 | F166: 220 | G166: 271 | H166: 2011-10-01 | I166: National T1 CESTAS | J166: Qualifs promotion | K166: 2011-2012 | P166: 0 | R166: 0
A167: CAUX Frédéric | B167: KERCRET Geneviève | C167: G | D167: 3 | E167: 0 | F167: 180 | G167: 99 | H167: 2011-10-01 | I167: National T1 CESTAS | J167: Qualifs promotion | K167: 2011-2012 | P167: 0 | R167: 0
A168: CAUX Frédéric | B168: WALLART Jean-Charles | C168: P | D168: 1 | E168: 3 | F168: 199 | G168: 236 | H168: 2011-10-01 | I168: National T1 CESTAS | J168: Qualifs promotion | K168: 2011-2012 | P168: 0 | R168: 0
A169: CAUX Frédéric | B169: DEROLEZ Jean-Pierre | C169: G | D169: 2 | E169: 0 | F169: 120 | G169: 79 | H169: 2011-11-19 | I169: N1 Ligue T2 DOUAI | J169: Poules | K169: 2011-2012 | P169: 0 | R169: 0
A170: CAUX Frédéric | B170: LHERMITTE Cédric | C170: G | D170: 2 | E170: 1 | F170: 135 | G170: 164 | H170: 2011-11-19 | I170: N1 Ligue T2 DOUAI | J170: Poules | K170: 2011-2012 | P170: 0 | R170: 0
A171: CAUX Frédéric | B171: WALLART Jean-Charles | C171: G | D171: 2 | E171: 1 | F171: 159 | G171: 133 | H171: 2011-11-19 | I171: N1 Ligue T2 DOUAI | J171: 1/8 Finale | K171: 2011-2012 | P171: 0 | R171: 0
A172: CAUX Frédéric | B172: DELSOL Philippe | C172: P | D172: 0 | E172: 2 | F172: 92 | G172: 120 | H172: 2011-11-19 | I172: N1 Ligue T2 DOUAI | J172: 1/4 Finale | K172: 2011-2012 | P172: 0 | R172: 0
A173: CAUX Frédéric | B173: KERCRET Geneviève | C173: G | D173: 2 | E173: 0 | F173: 120 | G173: 58 | H173: 2011-11-04 | I173: National T2 SCHILTIGHEIM | J173: Préqualifs | K173: 2011-2012 | P173: 0 | R173: 0
A174: CAUX Frédéric | B174: SORTAIS Claude | C174: P | D174: 1 | E174: 2 | F174: 119 | G174: 170 | H174: 2011-11-04 | I174: National T2 SCHILTIGHEIM | J174: Préqualifs | K174: 2011-2012 | P174: 0 | R174: 0
A175: CAUX Frédéric | B175: DOMINGUEZ Cyrille | C175: G | D175: 2 | E175: 0 | F175: 120 | G175: 66 | H175: 2011-11-04 | I175: National T2 SCHILTIGHEIM | J175: Préqualifs | K175: 2011-2012 | P175: 0 | R175: 0
A176: CAUX Frédéric | B176: DOMINGUEZ Cyrille | C176: P | D176: 1 | E176: 3 | F176: 159 | G176: 227 | H176: 2011-11-05 | I176: National T2 SCHILTIGHEIM | J176: Qualifs promotion | K176: 2011-2012 | P176: 0 | R176: 0
A177: CAUX Frédéric | B177: HEIT Lionel | C177: P | D177: 0 | E177: 3 | F177: 146 | G177: 180 | H177: 2011-11-05 | I177: National T2 SCHILTIGHEIM | J177: Qualifs promotion | K177: 2011-2012 | P177: 0 | R177: 0
A178: CAUX Frédéric | B178: BONNEAU Benoît | C178: P | D178: 0 | E178: 2 | F178: 98 | G178: 120 | H178: 2011-12-02 | I178: National T3 ANNOEULLIN | J178: Préqualifs | K178: 2011-2012 | P178: 0 | R178: 0
A179: CAUX Frédéric | B179: J BLANC | C179: G | D179: 2 | E179: 0 | F179: 120 | G179: 118 | H179: 2011-12-02 | I179: National T3 ANNOEULLIN | J179: Préqualifs | K179: 2011-2012 | P179: 0 | R179: 0
A180: CAUX Frédéric | B180: BOUVIER Philippe | C180: P | D180: 0 | E180: 2 | F180: 59 | G180: 120 | H180: 2011-12-02 | I180: National T3 ANNOEULLIN | J180: Préqualifs | K180: 2011-2012 | P180: 0 | R180: 0
A181: CAUX Frédéric | B181: SACRE Jean-Yves | C181: P | D181: 0 | E181: 3 | F181: 95 | G181: 180 | H181: 2011-12-03 | I181: National T3 ANNOEULLIN | J181: Qualifs promotion | K181: 2011-2012 | P181: 0 | R181: 0
A182: CAUX Frédéric | B182: LORTHIOIR Jean-Luc | C182: G | D182: 3 | E182: 1 | F182: 238 | G182: 200 | H182: 2011-12-03 | I182: National T3 ANNOEULLIN | J182: Qualifs promotion | K182: 2011-2012 | P182: 0 | R182: 0
A183: CAUX Frédéric | B183: SORTAIS Claude | C183: P | D183: 0 | E183: 3 | F183: 78 | G183: 180 | H183: 2011-12-03 | I183: National T3 ANNOEULLIN | J183: Qualifs promotion | K183: 2011-2012 | P183: 0 | R183: 0
A184: CAUX Frédéric | B184: GAUQUIE Serge | C184: G | D184: 2 | E184: 1 | F184: 149 | G184: 136 | H184: 2012-01-07 | I184: N1 Ligue T3 FACHES THUMESNIL | J184: Poules | K184: 2011-2012 | P184: 0 | R184: 0
A185: CAUX Frédéric | B185: VEREECQUE Ludovic | C185: G | D185: 2 | E185: 0 | F185: 120 | G185: 89 | H185: 2012-01-07 | I185: N1 Ligue T3 FACHES THUMESNIL | J185: Poules | K185: 2011-2012 | P185: 0 | R185: 0
A186: CAUX Frédéric | B186: GAUQUIE Serge | C186: G | D186: 2 | E186: 0 | F186: 120 | G186: 92 | H186: 2012-01-07 | I186: N1 Ligue T3 FACHES THUMESNIL | J186: 1/8 Finale | K186: 2011-2012 | P186: 0 | R186: 0
A187: CAUX Frédéric | B187: WALLART Jean-Charles | C187: P | D187: 1 | E187: 2 | F187: 99 | G187: 165 | H187: 2012-01-07 | I187: N1 Ligue T3 FACHES THUMESNIL | J187: 1/4 Finale | K187: 2011-2012 | P187: 0 | R187: 0
A188: CAUX Frédéric | B188: ESTERMANS Bernard | C188: G | D188: 1 | E188: 0 | F188: 100 | G188: 42 | H188: 2012-01-28 | I188: N1 Ligue T4 GRAVELINES | J188: Poules Consolante | K188: 2011-2012 | P188: 0 | R188: 0
A189: CAUX Frédéric | B189: LUBREZ Pierre | C189: G | D189: 1 | E189: 0 | F189: 100 | G189: 68 | H189: 2012-01-28 | I189: N1 Ligue T4 GRAVELINES | J189: Poules Consolante | K189: 2011-2012 | P189: 0 | R189: 0
A190: CAUX Frédéric | B190: DEROLEZ Jean-Pierre | C190: G | D190: 1 | E190: 0 | F190: 100 | G190: 91 | H190: 2012-01-28 | I190: N1 Ligue T4 GRAVELINES | J190: Finale Consolante | K190: 2011-2012 | P190: 0 | R190: 0
A191: CAUX Frédéric | B191: CARPENTIER Yohanne | C191: P | D191: 1 | E191: 2 | F191: 158 | G191: 160 | H191: 2012-01-28 | I191: N1 Ligue T4 GRAVELINES | J191: Poules | K191: 2011-2012 | P191: 0 | R191: 0
A192: CAUX Frédéric | B192: CARPENTIER Yohanne | C192: G | D192: 2 | E192: 1 | F192: 176 | G192: 150 | H192: 2012-01-28 | I192: N1 Ligue T4 GRAVELINES | J192: Poules | K192: 2011-2012 | P192: 0 | R192: 0
A193: CAUX Frédéric | B193: VEREECQUE Ludovic | C193: P | D193: 1 | E193: 2 | F193: 136 | G193: 144 | H193: 2012-01-28 | I193: N1 Ligue T4 GRAVELINES | J193: 1/8 Finale | K193: 2011-2012 | P193: 0 | R193: 0
A194: CAUX Frédéric | B194: LHEUREUX François | C194: P | D194: 0 | E194: 2 | F194: 88 | G194: 120 | H194: 2012-02-17 | I194: National T4 ORLEANS | J194: Préqualifs | K194: 2011-2012 | P194: 0 | R194: 0
A195: CAUX Frédéric | B195: SALAUN Michel | C195: G | D195: 2 | E195: 0 | F195: 120 | G195: 73 | H195: 2012-02-17 | I195: National T4 ORLEANS | J195: Préqualifs | K195: 2011-2012 | P195: 0 | R195: 0
A196: CAUX Frédéric | B196: SORTAIS Claude | C196: P | D196: 1 | E196: 2 | F196: 103 | G196: 173 | H196: 2012-02-17 | I196: National T4 ORLEANS | J196: Préqualifs | K196: 2011-2012 | P196: 0 | R196: 0
A197: CAUX Frédéric | B197: PERRIN Eric | C197: P | D197: 0 | E197: 3 | F197: 145 | G197: 180 | H197: 2012-02-18 | I197: National T4 ORLEANS | J197: Qualifs promotion | K197: 2011-2012 | P197: 0 | R197: 0
A198: CAUX Frédéric | B198: LANUSSE Christophe | C198: G | D198: 3 | E198: 1 | F198: 215 | G198: 199 | H198: 2012-02-18 | I198: National T4 ORLEANS | J198: Qualifs promotion | K198: 2011-2012 | P198: 0 | R198: 0
A199: CAUX Frédéric | B199: BOUVIER Philippe | C199: P | D199: 1 | E199: 3 | F199: 214 | G199: 217 | H199: 2012-02-18 | I199: National T4 ORLEANS | J199: Qualifs promotion | K199: 2011-2012 | P199: 0 | R199: 0
A200: CAUX Frédéric | B200: SACRE Jean-Yves | C200: G | D200: 2 | E200: 1 | F200: 153 | G200: 143 | H200: 2012-03-16 | I200: National T5 L HAY LES ROSES | J200: Préqualifs | K200: 2011-2012 | P200: 0 | R200: 0
A201: CAUX Frédéric | B201: BILLIARD Alain | C201: P | D201: 0 | E201: 2 | F201: 96 | G201: 120 | H201: 2012-03-16 | I201: National T5 L HAY LES ROSES | J201: Préqualifs | K201: 2011-2012 | P201: 0 | R201: 0
A202: CAUX Frédéric | B202: DI PALMA Angelo | C202: P | D202: 0 | E202: 2 | F202: 36 | G202: 120 | H202: 2012-03-16 | I202: National T5 L HAY LES ROSES | J202: Préqualifs | K202: 2011-2012 | P202: 0 | R202: 0
A203: CAUX Frédéric | B203: DECONINCK Franky | C203: P | D203: 0 | E203: 1 | F203: 57 | G203: 100 | H203: 2012-10-13 | I203: N1 Ligue T1 ANNOEULLIN | J203: Poules Consolante | K203: 2012-2013 | P203: 0 | R203: 0
A204: CAUX Frédéric | B204: LORTHIOIR Jean-Luc | C204: P | D204: 0 | E204: 1 | F204: 99 | G204: 100 | H204: 2012-10-13 | I204: N1 Ligue T1 ANNOEULLIN | J204: Poules Consolante | K204: 2012-2013 | P204: 0 | R204: 0
A205: CAUX Frédéric | B205: CAUX Grégory | C205: P | D205: 0 | E205: 2 | F205: 83 | G205: 120 | H205: 2012-10-13 | I205: N1 Ligue T1 ANNOEULLIN | J205: Poules | K205: 2012-2013 | P205: 0 | R205: 0
A206: CAUX Frédéric | B206: SAINT-GEORGES Claude | C206: P | D206: 0 | E206: 2 | F206: 82 | G206: 120 | H206: 2012-10-13 | I206: N1 Ligue T1 ANNOEULLIN | J206: Poules | K206: 2012-2013 | P206: 0 | R206: 0
... 97 more rows

Sheet CAUX Grégory
A1: CAUX Grégory | P1: =Récapitulatif!$B$2 -> 2014-2015 | R1: =Récapitulatif!$B$3 -> 2015-2016 | T1: Toutes saisons
P2: Nombre | Q2: %age | R2: Nombre | S2: %age | T2: Nombre | U2: %age
N3: Matchs | O3: Gagnés | P3: =SUM(P$15:P$51) -> 4 | Q3: =IF(P$3+P$4>0,P3/(P$3+P$4),"") -> 0.5714285714 | R3: =SUM(R$15:R$51) -> 0 | S3: =IF(R$3+R$4>0,R3/(R$3+R$4),"") ->  | T3: =COUNTIF($C$15:$C$51,"G") -> 17 | U3: =IF(T$3+T$4>0,T3/(T$3+T$4),"") -> 0.4857142857
O4: Perdus | P4: =COUNTIF($K$15:$K$51,Récapitulatif!$B$2)-P3 -> 3 | Q4: =IF(P$3+P$4>0,P4/(P$3+P$4),"") -> 0.4285714286 | R4: =COUNTIF($K$15:$K$51,Récapitulatif!$B$3)-R3 -> 0 | S4: =IF(R$3+R$4>0,R4/(R$3+R$4),"") ->  | T4: =COUNTIF($C$15:$C$51,"P") -> 18 | U4: =IF(T$3+T$4>0,T4/(T$3+T$4),"") -> 0.5142857143
O5: Total / Moy. | P5: =SUM(P3:P4) -> 7 | Q5: =IF(SUMIF($K$15:$K$51,Récapitulatif!$B$2,$G$15:$G$51)>0,SUMIF($K$15:$K$51,Récapitulatif!$B$2,$F$15:$F$51)/SUMIF($K$15:$K$51,Récapitulatif!$B$2,$G$15:$G$51),"") -> 0.8672665917 | R5: =SUM(R3:R4) -> 0 | S5: =IF(SUMIF($K$15:$K$51,Récapitulatif!$B$3,$G$15:$G$51)>0,SUMIF($K$15:$K$51,Récapitulatif!$B$3,$F$15:$F$51)/SUMIF($K$15:$K$51,Récapitulatif!$B$3,$G$15:$G$51),"") ->  | T5: =SUM(T3:T4) -> 35 | U5: =IF(SUM($G$15:$G$51)>0,SUM($F$15:$F$51)/SUM($G$15:$G$51),"") -> 0.9344842851 | V5: =IF(SUMIF($K$15:$K$51,Récapitulatif!$B$2,$G$15:$G$51)+SUMIF($K$15:$K$51,Récapitulatif!$B$3,$G$15:$G$51)>0,(SUMIF($K$15:$K$51,Récapitulatif!$B$2,$F$15:$F$51)+SUMIF($K$15:$K$51,Récapitulatif!$B$3,$F$15:$F$51))/(SUMIF($K$15:$K$51,Récapitulatif!$B$2,$G$15:$G$51)+SUMIF($K$15:$K$51,Récapitulatif!$B$3,$G$15:$G$51)),"") -> 0.8672665917
N6: Sets | O6: Gagnés | P6: =SUMIF($K$15:$K$51,Récapitulatif!$B$2,$D$15:$D$51) -> 8 | Q6: =IF(P$6+P$7>0,P6/(P$6+P$7),"") -> 0.4705882353 | R6: =SUMIF($K$15:$K$51,Récapitulatif!$B$3,$D$15:$D$51) -> 0 | S6: =IF(R$6+R$7>0,R6/(R$6+R$7),"") ->  | T6: =SUM($D$15:$D$51) -> 41 | U6: =IF(T$6+T$7>0,T6/(T$6+T$7),"") -> 0.476744186
O7: Perdus | P7: =SUMIF($K$15:$K$51,Récapitulatif!$B$2,$E$15:$E$51) -> 9 | Q7: =IF(P$6+P$7>0,P7/(P$6+P$7),"") -> 0.5294117647 | R7: =SUMIF($K$15:$K$51,Récapitulatif!$B$3,$E$15:$E$51) -> 0 | S7: =IF(R$6+R$7>0,R7/(R$6+R$7),"") ->  | T7: =SUM($E$15:$E$51) -> 45 | U7: =IF(T$6+T$7>0,T7/(T$6+T$7),"") -> 0.523255814
A8: Récapitulatif joueurs | O8: Total | P8: =SUM(P6:P7) -> 17 | R8: =SUM(R6:R7) -> 0 | T8: =SUM(T6:T7) -> 86
A15: Joueur | B15: Adversaire | C15: G/P | D15: Sets gagnés | E15: Sets perdus | F15: pts marqués | G15: pts subis | H15: Date | I15: Compétition | J15: Phase | K15: Saison
A16: CAUX Grégory | B16: CAUX Frédéric | C16: G | D16: 2 | E16: 0 | F16: 120 | G16: 83 | H16: 2012-10-13 | I16: N1 Ligue T1 ANNOEULLIN | J16: Poules | K16: =IF(H16<>"",IF(MONTH(H16)>MoisRef,YEAR(H16)&"-"&YEAR(H16)+1,YEAR(H16)-1&"-"&YEAR(H16)),"") -> 2012-2013 | P16: =IF($K16=P$1,COUNTIF($C16,"G"),0) -> 0 | R16: =IF($K16=R$1,COUNTIF($C16,"G"),0) -> 0
A17: CAUX Grégory | B17: SAINT-GEORGES Claude | C17: P | D17: 1 | E17: 2 | F17: 126 | G17: 135 | H17: 2012-10-13 | I17: N1 Ligue T1 ANNOEULLIN | J17: Poules | K17: 2012-2013 | P17: 0 | R17: 0
A18: CAUX Grégory | B18: LHERMITTE Cédric | C18: G | D18: 2 | E18: 1 | F18: 176 | G18: 162 | H18: 2012-10-13 | I18: N1 Ligue T1 ANNOEULLIN | J18: 1/8 Finale | K18: 2012-2013 | P18: 0 | R18: 0
A19: CAUX Grégory | B19: TURPIN Laurent | C19: P | D19: 1 | E19: 2 | F19: 144 | G19: 166 | H19: 2012-10-13 | I19: N1 Ligue T1 ANNOEULLIN | J19: 1/4 Finale | K19: 2012-2013 | P19: 0 | R19: 0
A20: CAUX Grégory | B20: VEREECQUE Ludovic | C20: G | D20: 2 | E20: 0 | F20: 120 | G20: 109 | H20: 2012-10-27 | I20: N1 Ligue T2 BRUAY sur ESCAUT | J20: Poules | K20: 2012-2013 | P20: 0 | R20: 0
A21: CAUX Grégory | B21: VEREECQUE Ludovic | C21: P | D21: 1 | E21: 2 | F21: 135 | G21: 162 | H21: 2012-10-27 | I21: N1 Ligue T2 BRUAY sur ESCAUT | J21: Poules | K21: 2012-2013 | P21: 0 | R21: 0
A22: CAUX Grégory | B22: TURPIN Laurent | C22: P | D22: 0 | E22: 2 | F22: 86 | G22: 120 | H22: 2012-10-27 | I22: N1 Ligue T2 BRUAY sur ESCAUT | J22: 1/4 Finale | K22: 2012-2013 | P22: 0 | R22: 0
A23: CAUX Grégory | B23: RENAUX Damien | C23: P | D23: 1 | E23: 2 | F23: 140 | G23: 173 | H23: 2012-11-24 | I23: N1 Ligue T3 CALAIS | J23: Poules | K23: 2012-2013 | P23: 0 | R23: 0
A24: CAUX Grégory | B24: POULEYN André | C24: G | D24: 2 | E24: 0 | F24: 120 | G24: 88 | H24: 2012-11-24 | I24: N1 Ligue T3 CALAIS | J24: Poules | K24: 2012-2013 | P24: 0 | R24: 0
A25: CAUX Grégory | B25: DEVOS Jackie | C25: P | D25: 1 | E25: 2 | F25: 149 | G25: 158 | H25: 2012-11-24 | I25: N1 Ligue T3 CALAIS | J25: 1/8 Finale | K25: 2012-2013 | P25: 0 | R25: 0
A26: CAUX Grégory | B26: LEMÂTRE Jérémy | C26: P | D26: 1 | E26: 2 | F26: 144 | G26: 177 | H26: 2012-12-15 | I26: N1 Ligue T4 VILLENEUVE D'ASCQ | J26: Poules | K26: 2012-2013 | P26: 0 | R26: 0
A27: CAUX Grégory | B27: TURPIN Laurent | C27: G | D27: 2 | E27: 0 | F27: 120 | G27: 59 | H27: 2012-12-15 | I27: N1 Ligue T4 VILLENEUVE D'ASCQ | J27: Poules | K27: 2012-2013 | P27: 0 | R27: 0
A28: CAUX Grégory | B28: GEETS Patrice | C28: P | D28: 1 | E28: 2 | F28: 161 | G28: 175 | H28: 2012-12-15 | I28: N1 Ligue T4 VILLENEUVE D'ASCQ | J28: 1/4 Finale | K28: 2012-2013 | P28: 0 | R28: 0
A29: CAUX Grégory | B29: DEROLEZ Jean-Pierre | C29: P | D29: 0 | E29: 2 | F29: 74 | G29: 120 | H29: 2014-01-04 | I29: N1 Ligue T1 ANNOEULLIN | J29: Poules | K29: 2013-2014 | P29: 0 | R29: 0
A30: CAUX Grégory | B30: DEROLEZ Jean-Pierre | C30: G | D30: 2 | E30: 1 | F30: 175 | G30: 161 | H30: 2014-01-04 | I30: N1 Ligue T1 ANNOEULLIN | J30: Poules | K30: 2013-2014 | P30: 0 | R30: 0
A31: CAUX Grégory | B31: DELSOL Philippe | C31: G | D31: 2 | E31: 0 | F31: 120 | G31: 63 | H31: 2014-01-04 | I31: N1 Ligue T1 ANNOEULLIN | J31: 1/8 Finale | K31: 2013-2014 | P31: 0 | R31: 0
A32: CAUX Grégory | B32: TURPIN Laurent | C32: G | D32: 2 | E32: 1 | F32: 158 | G32: 159 | H32: 2014-01-04 | I32: N1 Ligue T1 ANNOEULLIN | J32: 1/4 Finale | K32: 2013-2014 | P32: 0 | R32: 0
A33: CAUX Grégory | B33: SAINT-GEORGES Claude | C33: P | D33: 0 | E33: 2 | F33: 73 | G33: 120 | H33: 2014-01-04 | I33: N1 Ligue T1 ANNOEULLIN | J33: 1/2 Finale | K33: 2013-2014 | P33: 0 | R33: 0
A34: CAUX Grégory | B34: LUBREZ Pierre | C34: G | D34: 2 | E34: 1 | F34: 171 | G34: 149 | H34: 2014-03-15 | I34: N1 Ligue T2 FACHES THUMESNIL | J34: Poules | K34: 2013-2014 | P34: 0 | R34: 0
A35: CAUX Grégory | B35: LORTHIOIR Jean-Luc | C35: G | D35: 2 | E35: 0 | F35: 120 | G35: 82 | H35: 2014-03-15 | I35: N1 Ligue T2 FACHES THUMESNIL | J35: Poules | K35: 2013-2014 | P35: 0 | R35: 0
A36: CAUX Grégory | B36: WALLART Jean-Charles | C36: P | D36: 0 | E36: 2 | F36: 36 | G36: 120 | H36: 2014-03-15 | I36: N1 Ligue T2 FACHES THUMESNIL | J36: 1/4 Finale | K36: 2013-2014 | P36: 0 | R36: 0
A37: CAUX Grégory | B37: PARISIS Francis | C37: G | D37: 2 | E37: 0 | F37: 120 | G37: 62 | H37: 2014-04-05 | I37: N1 Ligue T3 GRAVELINES | J37: Poules | K37: 2013-2014 | P37: 0 | R37: 0
A38: CAUX Grégory | B38: HERREBRECHT Erian | C38: G | D38: 2 | E38: 1 | F38: 150 | G38: 138 | H38: 2014-04-05 | I38: N1 Ligue T3 GRAVELINES | J38: Poules | K38: 2013-2014 | P38: 0 | R38: 0
A39: CAUX Grégory | B39: LUBREZ Pierre | C39: P | D39: 1 | E39: 2 | F39: 138 | G39: 152 | H39: 2014-04-05 | I39: N1 Ligue T3 GRAVELINES | J39: 1/8 Finale | K39: 2013-2014 | P39: 0 | R39: 0
A40: CAUX Grégory | B40: WALLART Jean-Charles | C40: P | D40: 0 | E40: 3 | F40: 111 | G40: 180 | H40: 2014-05-18 | I40: Finale Ligue N1 CALAIS | J40: Poules | K40: 2013-2014 | P40: 0 | R40: 0
A41: CAUX Grégory | B41: DELSOL Philippe | C41: P | D41: 0 | E41: 3 | F41: 117 | G41: 180 | H41: 2014-05-18 | I41: Finale Ligue N1 CALAIS | J41: Poules | K41: 2013-2014 | P41: 0 | R41: 0
A42: CAUX Grégory | B42: MONFLIER Francis | C42: G | D42: 1 | E42: 0 | F42: 100 | G42: 76 | H42: 2014-04-05 | I42: N1 Ligue T3 GRAVELINES | J42: Poules Consolante | K42: 2013-2014 | P42: 0 | R42: 0
A43: CAUX Grégory | B43: HERREBRECHT Thierry | C43: P | D43: 0 | E43: 1 | F43: 47 | G43: 100 | H43: 2014-04-05 | I43: N1 Ligue T3 GRAVELINES | J43: Poules Consolante | K43: 2013-2014 | P43: 0 | R43: 0
A44: CAUX Grégory | B44: MANTEN Paul | C44: G | D44: 2 | E44: 1 | F44: 142 | G44: 147 | H44: 2015-01-17 | I44: N1 Ligue T1 DUNKERQUE | J44: Poules | K44: 2014-2015 | P44: 1 | R44: 0
A45: CAUX Grégory | B45: LUBREZ Pierre | C45: G | D45: 2 | E45: 0 | F45: 120 | G45: 97 | H45: 2015-01-17 | I45: N1 Ligue T1 DUNKERQUE | J45: Poules | K45: 2014-2015 | P45: 1 | R45: 0
A46: CAUX Grégory | B46: ESTERMANS Bernard | C46: G | D46: 2 | E46: 1 | F46: 160 | G46: 130 | H46: 2015-01-17 | I46: N1 Ligue T1 DUNKERQUE | J46: 1/8 Finale | K46: 2014-2015 | P46: 1 | R46: 0
A47: CAUX Grégory | B47: LEMÂTRE Jérémy | C47: G | D47: 2 | E47: 1 | F47: 143 | G47: 155 | H47: 2015-01-17 | I47: N1 Ligue T1 DUNKERQUE | J47: 1/4 Finale | K47: 2014-2015 | P47: 1 | R47: 0
A48: CAUX Grégory | B48: GEETS Patrice | C48: P | D48: 0 | E48: 2 | F48: 49 | G48: 120 | H48: 2015-01-17 | I48: N1 Ligue T1 DUNKERQUE | J48: 1/2 Finale | K48: 2014-2015 | P48: 0 | R48: 0
A49: CAUX Grégory | B49: POULEYN André | C49: P | D49: 0 | E49: 2 | F49: 93 | G49: 120 | H49: 2015-03-14 | I49: N1 Ligue T3 ANNOEULLIN | J49: Poules | K49: 2014-2015 | P49: 0 | R49: 0
A50: CAUX Grégory | B50: GEETS Patrice | C50: P | D50: 0 | E50: 2 | F50: 64 | G50: 120 | H50: 2015-03-14 | I50: N1 Ligue T3 ANNOEULLIN | J50: Poules | K50: 2014-2015 | P50: 0 | R50: 0
A51: Fin des données | P51: =IF($K51=P$1,COUNTIF($C51,"G"),0) -> 0 | R51: =IF($K51=R$1,COUNTIF($C51,"G"),0) -> 0

Sheet CLYNCKE Jean-Jacques
A1: CLYNCKE Jean-Jacques | P1: =Récapitulatif!$B$2 -> 2014-2015 | R1: =Récapitulatif!$B$3 -> 2015-2016 | T1: Toutes saisons
A2: FACHES-THUMESNIL | P2: Nombre | Q2: %age | R2: Nombre | S2: %age | T2: Nombre | U2: %age
A3: 017038-I | N3: Matchs | O3: Gagnés | P3: =SUM(P$15:P$295) -> 11 | Q3: =IF(P$3+P$4>0,P3/(P$3+P$4),"") -> 0.4230769231 | R3: =SUM(R$15:R$295) -> 18 | S3: =IF(R$3+R$4>0,R3/(R$3+R$4),"") -> 0.4090909091 | T3: =COUNTIF($C$15:$C$295,"G") -> 110 | U3: =IF(T$3+T$4>0,T3/(T$3+T$4),"") -> 0.394265233
A4: 06 20 30 89 94 | O4: Perdus | P4: =COUNTIF($K$15:$K$295,Récapitulatif!$B$2)-P3 -> 15 | Q4: =IF(P$3+P$4>0,P4/(P$3+P$4),"") -> 0.5769230769 | R4: =COUNTIF($K$15:$K$295,Récapitulatif!$B$3)-R3 -> 26 | S4: =IF(R$3+R$4>0,R4/(R$3+R$4),"") -> 0.5909090909 | T4: =COUNTIF($C$15:$C$295,"P") -> 169 | U4: =IF(T$3+T$4>0,T4/(T$3+T$4),"") -> 0.605734767
O5: Total / Moy. | P5: =SUM(P3:P4) -> 26 | Q5: =IF(SUMIF($K$15:$K$295,Récapitulatif!$B$2,$G$15:$G$295)>0,SUMIF($K$15:$K$295,Récapitulatif!$B$2,$F$15:$F$295)/SUMIF($K$15:$K$295,Récapitulatif!$B$2,$G$15:$G$295),"") -> 0.9939692982 | R5: =SUM(R3:R4) -> 44 | S5: =IF(SUMIF($K$15:$K$295,Récapitulatif!$B$3,$G$15:$G$295)>0,SUMIF($K$15:$K$295,Récapitulatif!$B$3,$F$15:$F$295)/SUMIF($K$15:$K$295,Récapitulatif!$B$3,$G$15:$G$295),"") -> 0.8740279938 | T5: =SUM(T3:T4) -> 279 | U5: =IF(SUM($G$15:$G$295)>0,SUM($F$15:$F$295)/SUM($G$15:$G$295),"") -> 0.9098266461 | V5: =IF(SUMIF($K$15:$K$295,Récapitulatif!$B$2,$G$15:$G$295)+SUMIF($K$15:$K$295,Récapitulatif!$B$3,$G$15:$G$295)>0,(SUMIF($K$15:$K$295,Récapitulatif!$B$2,$F$15:$F$295)+SUMIF($K$15:$K$295,Récapitulatif!$B$3,$F$15:$F$295))/(SUMIF($K$15:$K$295,Récapitulatif!$B$2,$G$15:$G$295)+SUMIF($K$15:$K$295,Récapitulatif!$B$3,$G$15:$G$295)),"") -> 0.9174439373
N6: Sets | O6: Gagnés | P6: =SUMIF($K$15:$K$295,Récapitulatif!$B$2,$D$15:$D$295) -> 32 | Q6: =IF(P$6+P$7>0,P6/(P$6+P$7),"") -> 0.4383561644 | R6: =SUMIF($K$15:$K$295,Récapitulatif!$B$3,$D$15:$D$295) -> 50 | S6: =IF(R$6+R$7>0,R6/(R$6+R$7),"") -> 0.4098360656 | T6: =SUM($D$15:$D$295) -> 331 | U6: =IF(T$6+T$7>0,T6/(T$6+T$7),"") -> 0.4195183777
O7: Perdus | P7: =SUMIF($K$15:$K$295,Récapitulatif!$B$2,$E$15:$E$295) -> 41 | Q7: =IF(P$6+P$7>0,P7/(P$6+P$7),"") -> 0.5616438356 | R7: =SUMIF($K$15:$K$295,Récapitulatif!$B$3,$E$15:$E$295) -> 72 | S7: =IF(R$6+R$7>0,R7/(R$6+R$7),"") -> 0.5901639344 | T7: =SUM($E$15:$E$295) -> 458 | U7: =IF(T$6+T$7>0,T7/(T$6+T$7),"") -> 0.5804816223
A8: Récapitulatif joueurs | O8: Total | P8: =SUM(P6:P7) -> 73 | R8: =SUM(R6:R7) -> 122 | T8: =SUM(T6:T7) -> 789
A15: Joueur | B15: Adversaire | C15: G/P | D15: Sets gagnés | E15: Sets perdus | F15: pts marqués | G15: pts subis | H15: Date | I15: Compétition | J15: Phase | K15: Saison
A16: CLYNCKE Jean-Jacques | B16: TIRALONGO Sébastien | C16: P | D16: 1 | E16: 2 | F16: 111 | G16: 171 | H16: 2008-10-10 | I16: National T1 MAISONS ALFORT | J16: Préqualifs | K16: =IF(H16<>"",IF(MONTH(H16)>MoisRef,YEAR(H16)&"-"&YEAR(H16)+1,YEAR(H16)-1&"-"&YEAR(H16)),"") -> 2008-2009 | P16: =IF($K16=P$1,COUNTIF($C16,"G"),0) -> 0 | R16: =IF($K16=R$1,COUNTIF($C16,"G"),0) -> 0
A17: CLYNCKE Jean-Jacques | B17: ROUBY Jean-Chistophe | C17: P | D17: 1 | E17: 2 | F17: 171 | G17: 178 | H17: 2008-10-10 | I17: National T1 MAISONS ALFORT | J17: Préqualifs | K17: 2008-2009 | P17: 0 | R17: 0
A18: CLYNCKE Jean-Jacques | B18: GUILLEMANT Jean-Marc | C18: G | D18: 2 | E18: 1 | F18: 158 | G18: 136 | H18: 2008-10-10 | I18: National T1 MAISONS ALFORT | J18: Préqualifs | K18: 2008-2009 | P18: 0 | R18: 0
A19: CLYNCKE Jean-Jacques | B19: MORALES Luis | C19: P | D19: 0 | E19: 3 | F19: 81 | G19: 180 | H19: 2008-10-11 | I19: National T1 MAISONS ALFORT | J19: Qualifs promotion | K19: 2008-2009 | P19: 0 | R19: 0
A20: CLYNCKE Jean-Jacques | B20: WALLART Jean-Charles | C20: P | D20: 2 | E20: 3 | F20: 233 | G20: 277 | H20: 2008-10-11 | I20: National T1 MAISONS ALFORT | J20: Qualifs promotion | K20: 2008-2009 | P20: 0 | R20: 0
A21: CLYNCKE Jean-Jacques | B21: DELATTRE Hervé | C21: P | D21: 0 | E21: 2 | F21: 95 | G21: 120 | H21: 2008-11-14 | I21: National T2 SCHILTIGHEIM | J21: Préqualifs | K21: 2008-2009 | P21: 0 | R21: 0
A22: CLYNCKE Jean-Jacques | B22: DROULEZ Quentin | C22: G | D22: 2 | E22: 0 | F22: 120 | G22: 47 | H22: 2008-11-14 | I22: National T2 SCHILTIGHEIM | J22: Préqualifs | K22: 2008-2009 | P22: 0 | R22: 0
A23: CLYNCKE Jean-Jacques | B23: BAYON Pascal | C23: P | D23: 0 | E23: 2 | F23: 75 | G23: 120 | H23: 2008-11-14 | I23: National T2 SCHILTIGHEIM | J23: Préqualifs | K23: 2008-2009 | P23: 0 | R23: 0
A24: CLYNCKE Jean-Jacques | B24: BAYON Pascal | C24: P | D24: 1 | E24: 3 | F24: 178 | G24: 230 | H24: 2008-11-15 | I24: National T2 SCHILTIGHEIM | J24: Qualifs promotion | K24: 2008-2009 | P24: 0 | R24: 0
A25: CLYNCKE Jean-Jacques | B25: WALLART Jean-Charles | C25: P | D25: 2 | E25: 3 | F25: 244 | G25: 248 | H25: 2008-11-15 | I25: National T2 SCHILTIGHEIM | J25: Qualifs promotion | K25: 2008-2009 | P25: 0 | R25: 0
A26: CLYNCKE Jean-Jacques | B26: WEBER Thierry | C26: P | D26: 1 | E26: 2 | F26: 157 | G26: 163 | H26: 2008-12-12 | I26: National T3 ANNOEULLIN | J26: Préqualifs | K26: 2008-2009 | P26: 0 | R26: 0
A27: CLYNCKE Jean-Jacques | B27: PERRIN Eric | C27: P | D27: 1 | E27: 2 | F27: 124 | G27: 156 | H27: 2008-12-12 | I27: National T3 ANNOEULLIN | J27: Préqualifs | K27: 2008-2009 | P27: 0 | R27: 0
A28: CLYNCKE Jean-Jacques | B28: LECROART Serge | C28: G | D28: 2 | E28: 0 | F28: 120 | G28: 92 | H28: 2008-12-12 | I28: National T3 ANNOEULLIN | J28: Préqualifs | K28: 2008-2009 | P28: 0 | R28: 0
A29: CLYNCKE Jean-Jacques | B29: BAYON Pascal | C29: G | D29: 3 | E29: 0 | F29: 180 | G29: 138 | H29: 2008-12-13 | I29: National T3 ANNOEULLIN | J29: Qualifs promotion | K29: 2008-2009 | P29: 0 | R29: 0
A30: CLYNCKE Jean-Jacques | B30: FOURRE Cédric | C30: P | D30: 1 | E30: 3 | F30: 147 | G30: 213 | H30: 2008-12-13 | I30: National T3 ANNOEULLIN | J30: Qualifs promotion | K30: 2008-2009 | P30: 0 | R30: 0
A31: CLYNCKE Jean-Jacques | B31: BAYON Pascal | C31: P | D31: 1 | E31: 3 | F31: 143 | G31: 205 | H31: 2008-12-13 | I31: National T3 ANNOEULLIN | J31: Qualifs promotion | K31: 2008-2009 | P31: 0 | R31: 0
A32: CLYNCKE Jean-Jacques | B32: ZACCAGNINI Antoine | C32: P | D32: 0 | E32: 2 | F32: 86 | G32: 120 | H32: 2009-02-06 | I32: National T4 LAXOU | J32: Préqualifs | K32: 2008-2009 | P32: 0 | R32: 0
A33: CLYNCKE Jean-Jacques | B33: MUSSET Olivier | C33: P | D33: 1 | E33: 2 | F33: 143 | G33: 177 | H33: 2009-02-06 | I33: National T4 LAXOU | J33: Préqualifs | K33: 2008-2009 | P33: 0 | R33: 0
A34: CLYNCKE Jean-Jacques | B34: PERRIN Eric | C34: P | D34: 0 | E34: 2 | F34: 75 | G34: 120 | H34: 2009-02-06 | I34: National T4 LAXOU | J34: Préqualifs | K34: 2008-2009 | P34: 0 | R34: 0
A35: CLYNCKE Jean-Jacques | B35: TRIFAULT Amand | C35: P | D35: 2 | E35: 3 | F35: 264 | G35: 275 | H35: 2009-02-07 | I35: National T4 LAXOU | J35: Qualifs promotion | K35: 2008-2009 | P35: 0 | R35: 0
A36: CLYNCKE Jean-Jacques | B36: MUSSET Olivier | C36: G | D36: 3 | E36: 1 | F36: 204 | G36: 199 | H36: 2009-02-07 | I36: National T4 LAXOU | J36: Qualifs promotion | K36: 2008-2009 | P36: 0 | R36: 0
A37: CLYNCKE Jean-Jacques | B37: PAU Mariano | C37: P | D37: 1 | E37: 3 | F37: 185 | G37: 230 | H37: 2009-02-07 | I37: National T4 LAXOU | J37: Qualifs promotion | K37: 2008-2009 | P37: 0 | R37: 0
A38: CLYNCKE Jean-Jacques | B38: TURPIN Laurent | C38: P | D38: 1 | E38: 2 | F38: 150 | G38: 177 | H38: 2009-03-07 | I38: N1 Ligue T2 ANNOEULLIN | J38: Poules | K38: 2008-2009 | P38: 0 | R38: 0
A39: CLYNCKE Jean-Jacques | B39: GUILLEMANT Jean-Marc | C39: P | D39: 0 | E39: 2 | F39: 48 | G39: 120 | H39: 2009-03-07 | I39: N1 Ligue T2 ANNOEULLIN | J39: Poules | K39: 2008-2009 | P39: 0 | R39: 0
A40: CLYNCKE Jean-Jacques | B40: CARPENTIER Yohanne | C40: G | D40: 2 | E40: 0 | F40: 120 | G40: 110 | H40: 2009-03-07 | I40: N1 Ligue T2 ANNOEULLIN | J40: Poules Consolante | K40: 2008-2009 | P40: 0 | R40: 0
A41: CLYNCKE Jean-Jacques | B41: TURPIN Laurent | C41: P | D41: 0 | E41: 2 | F41: 92 | G41: 120 | H41: 2009-03-07 | I41: N1 Ligue T2 ANNOEULLIN | J41: Poules Consolante | K41: 2008-2009 | P41: 0 | R41: 0
A42: CLYNCKE Jean-Jacques | B42: DEBRAY Alain | C42: G | D42: 2 | E42: 1 | F42: 173 | G42: 147 | H42: 2009-03-20 | I42: National T5 ANDERNOS | J42: Préqualifs | K42: 2008-2009 | P42: 0 | R42: 0
A43: CLYNCKE Jean-Jacques | B43: HEBRARD Bernard | C43: G | D43: 2 | E43: 1 | F43: 154 | G43: 130 | H43: 2009-03-20 | I43: National T5 ANDERNOS | J43: Préqualifs | K43: 2008-2009 | P43: 0 | R43: 0
A44: CLYNCKE Jean-Jacques | B44: MORALES Luis | C44: G | D44: 2 | E44: 1 | F44: 165 | G44: 165 | H44: 2009-03-20 | I44: National T5 ANDERNOS | J44: Préqualifs | K44: 2008-2009 | P44: 0 | R44: 0
A45: CLYNCKE Jean-Jacques | B45: ANE Jean-Marie | C45: G | D45: 3 | E45: 1 | F45: 220 | G45: 202 | H45: 2009-03-21 | I45: National T5 ANDERNOS | J45: Qualifs promotion | K45: 2008-2009 | P45: 0 | R45: 0
A46: CLYNCKE Jean-Jacques | B46: BASTENIER Jean | C46: P | D46: 2 | E46: 3 | F46: 235 | G46: 279 | H46: 2009-03-21 | I46: National T5 ANDERNOS | J46: Qualifs promotion | K46: 2008-2009 | P46: 0 | R46: 0
A47: CLYNCKE Jean-Jacques | B47: WALLART Jean-Charles | C47: P | D47: 0 | E47: 3 | F47: 112 | G47: 180 | H47: 2009-03-21 | I47: National T5 ANDERNOS | J47: Qualifs promotion | K47: 2008-2009 | P47: 0 | R47: 0
A48: CLYNCKE Jean-Jacques | B48: LORTHIOIR Jean-Luc | C48: G | D48: 2 | E48: 0 | F48: 120 | G48: 48 | H48: 2009-04-11 | I48: N1 Ligue T3 DUNKERQUE | J48: Poules | K48: =IF(H48<>"",IF(MONTH(H48)>MoisRef,YEAR(H48)&"-"&YEAR(H48)+1,YEAR(H48)-1&"-"&YEAR(H48)),"") -> 2008-2009 | P48: 0 | R48: 0
A49: CLYNCKE Jean-Jacques | B49: MAILLE Bernard | C49: P | D49: 1 | E49: 2 | F49: 137 | G49: 179 | H49: 2009-04-11 | I49: N1 Ligue T3 DUNKERQUE | J49: Poules | K49: 2008-2009 | P49: 0 | R49: 0
A50: CLYNCKE Jean-Jacques | B50: MAILLE Bernard | C50: P | D50: 0 | E50: 2 | F50: 80 | G50: 120 | H50: 2009-04-11 | I50: N1 Ligue T3 DUNKERQUE | J50: 1/4 Finale | K50: 2008-2009 | P50: 0 | R50: 0
A51: CLYNCKE Jean-Jacques | B51: SAINT-GEORGES Claude | C51: P | D51: 0 | E51: 2 | F51: 95 | G51: 120 | H51: 2009-11-06 | I51: National T1 SCHILTIGHEIM | J51: Préqualifs | K51: 2009-2010 | P51: 0 | R51: 0
A52: CLYNCKE Jean-Jacques | B52: J. BLANC | C52: G | D52: 2 | E52: 0 | F52: 120 | G52: 118 | H52: 2009-11-06 | I52: National T1 SCHILTIGHEIM | J52: Préqualifs | K52: 2009-2010 | P52: 0 | R52: 0
A53: CLYNCKE Jean-Jacques | B53: MORALES Luis | C53: P | D53: 0 | E53: 2 | F53: 96 | G53: 120 | H53: 2009-11-06 | I53: National T1 SCHILTIGHEIM | J53: Préqualifs | K53: 2009-2010 | P53: 0 | R53: 0
A54: CLYNCKE Jean-Jacques | B54: DEMILLY Jean-Sébastien | C54: P | D54: 0 | E54: 3 | F54: 72 | G54: 180 | H54: 2009-11-07 | I54: National T1 SCHILTIGHEIM | J54: Qualifs promotion | K54: 2009-2010 | P54: 0 | R54: 0
A55: CLYNCKE Jean-Jacques | B55: DUVERNOY Christophe | C55: P | D55: 1 | E55: 3 | F55: 155 | G55: 220 | H55: 2009-11-07 | I55: National T1 SCHILTIGHEIM | J55: Qualifs promotion | K55: 2009-2010 | P55: 0 | R55: 0
A56: CLYNCKE Jean-Jacques | B56: MARTEL Bruno | C56: P | D56: 1 | E56: 2 | F56: 164 | G56: 167 | H56: 2009-11-21 | I56: N1 Ligue T1 GRAVELINES | J56: Poules | K56: 2009-2010 | P56: 0 | R56: 0
A57: CLYNCKE Jean-Jacques | B57: MAILLE Bernard | C57: P | D57: 0 | E57: 2 | F57: 81 | G57: 120 | H57: 2009-11-21 | I57: N1 Ligue T1 GRAVELINES | J57: Poules | K57: 2009-2010 | P57: 0 | R57: 0
A58: CLYNCKE Jean-Jacques | B58: MARTEL Bruno | C58: G | D58: 2 | E58: 0 | F58: 120 | G58: 78 | H58: 2009-11-21 | I58: N1 Ligue T1 GRAVELINES | J58: Poules Consolante | K58: 2009-2010 | P58: 0 | R58: 0
A59: CLYNCKE Jean-Jacques | B59: DEVOS Jackie | C59: G | D59: 2 | E59: 0 | F59: 120 | G59: 114 | H59: 2009-11-21 | I59: N1 Ligue T1 GRAVELINES | J59: Poules Consolante | K59: 2009-2010 | P59: 0 | R59: 0
A60: CLYNCKE Jean-Jacques | B60: MAUPIN Patrick | C60: P | D60: 1 | E60: 2 | F60: 173 | G60: 175 | H60: 2009-11-21 | I60: N1 Ligue T1 GRAVELINES | J60: 1/2 Finale Consolante | K60: 2009-2010 | P60: 0 | R60: 0
A61: CLYNCKE Jean-Jacques | B61: ROBERGE Bruno | C61: G | D61: 2 | E61: 0 | F61: 120 | G61: 108 | H61: 2009-12-04 | I61: National T2 ANNOEULLIN | J61: Préqualifs | K61: 2009-2010 | P61: 0 | R61: 0
A62: CLYNCKE Jean-Jacques | B62: MARTEL Jean-Pierre | C62: G | D62: 2 | E62: 0 | F62: 120 | G62: 59 | H62: 2009-12-04 | I62: National T2 ANNOEULLIN | J62: Préqualifs | K62: 2009-2010 | P62: 0 | R62: 0
A63: CLYNCKE Jean-Jacques | B63: GUILLEMANT David | C63: P | D63: 1 | E63: 2 | F63: 136 | G63: 162 | H63: 2009-12-04 | I63: National T2 ANNOEULLIN | J63: Préqualifs | K63: 2009-2010 | P63: 0 | R63: 0
A64: CLYNCKE Jean-Jacques | B64: PONCHANT Grégory | C64: G | D64: 3 | E64: 0 | F64: 180 | G64: 106 | H64: 2009-12-05 | I64: National T2 ANNOEULLIN | J64: Qualifs promotion | K64: 2009-2010 | P64: 0 | R64: 0
A65: CLYNCKE Jean-Jacques | B65: TIRALONGO Sébastien | C65: P | D65: 0 | E65: 3 | F65: 153 | G65: 180 | H65: 2009-12-05 | I65: National T2 ANNOEULLIN | J65: Qualifs promotion | K65: 2009-2010 | P65: 0 | R65: 0
A66: CLYNCKE Jean-Jacques | B66: DEBRAY Alain | C66: P | D66: 1 | E66: 3 | F66: 163 | G66: 226 | H66: 2009-12-05 | I66: National T2 ANNOEULLIN | J66: Qualifs promotion | K66: 2009-2010 | P66: 0 | R66: 0
A67: CLYNCKE Jean-Jacques | B67: LHERMITTE Cédric | C67: P | D67: 0 | E67: 2 | F67: 70 | G67: 120 | H67: 2009-12-19 | I67: N1 Ligue T2 ANNOEULLIN | J67: Poules | K67: 2009-2010 | P67: 0 | R67: 0
A68: CLYNCKE Jean-Jacques | B68: MAILLE Bernard | C68: P | D68: 0 | E68: 2 | F68: 72 | G68: 120 | H68: 2009-12-19 | I68: N1 Ligue T2 ANNOEULLIN | J68: Poules | K68: 2009-2010 | P68: 0 | R68: 0
A69: CLYNCKE Jean-Jacques | B69: MAUPIN Patrick | C69: P | D69: 1 | E69: 2 | F69: 136 | G69: 153 | H69: 2009-12-19 | I69: N1 Ligue T2 ANNOEULLIN | J69: Poules Consolante | K69: 2009-2010 | P69: 0 | R69: 0
A70: CLYNCKE Jean-Jacques | B70: CAUX Frédéric | C70: G | D70: 2 | E70: 0 | F70: 120 | G70: 90 | H70: 2009-12-19 | I70: N1 Ligue T2 ANNOEULLIN | J70: Poules Consolante | K70: 2009-2010 | P70: 0 | R70: 0
A71: CLYNCKE Jean-Jacques | B71: SCHUB Philippe | C71: G | D71: 2 | E71: 1 | F71: 165 | G71: 129 | H71: 2010-01-29 | I71: National T3 ORLEANS | J71: Préqualifs | K71: 2009-2010 | P71: 0 | R71: 0
A72: CLYNCKE Jean-Jacques | B72: PIERGIORGIO Andreone | C72: G | D72: 2 | E72: 1 | F72: 146 | G72: 145 | H72: 2010-01-29 | I72: National T3 ORLEANS | J72: Préqualifs | K72: 2009-2010 | P72: 0 | R72: 0
A73: CLYNCKE Jean-Jacques | B73: DI PALMA Angelo | C73: P | D73: 0 | E73: 2 | F73: 69 | G73: 120 | H73: 2010-01-29 | I73: National T3 ORLEANS | J73: Préqualifs | K73: 2009-2010 | P73: 0 | R73: 0
A74: CLYNCKE Jean-Jacques | B74: ZILLIG Pierre | C74: P | D74: 1 | E74: 3 | F74: 195 | G74: 232 | H74: 2010-01-30 | I74: National T3 ORLEANS | J74: Qualifs promotion | K74: 2009-2010 | P74: 0 | R74: 0
A75: CLYNCKE Jean-Jacques | B75: ALEXANDRE Michel | C75: G | D75: 3 | E75: 2 | F75: 253 | G75: 224 | H75: 2010-01-30 | I75: National T3 ORLEANS | J75: Qualifs promotion | K75: 2009-2010 | P75: 0 | R75: 0
A76: CLYNCKE Jean-Jacques | B76: GUIBERT Philippe | C76: P | D76: 0 | E76: 3 | F76: 122 | G76: 180 | H76: 2010-01-30 | I76: National T3 ORLEANS | J76: Qualifs promotion | K76: 2009-2010 | P76: 0 | R76: 0
A77: CLYNCKE Jean-Jacques | B77: TRIPLET Gilbert | C77: G | D77: 2 | E77: 0 | F77: 120 | G77: 109 | H77: 2010-02-20 | I77: N1 Ligue T4 DOUAI | J77: Poules | K77: 2009-2010 | P77: 0 | R77: 0
A78: CLYNCKE Jean-Jacques | B78: WALLART Jean-Charles | C78: G | D78: 2 | E78: 1 | F78: 167 | G78: 138 | H78: 2010-02-20 | I78: N1 Ligue T4 DOUAI | J78: Poules | K78: 2009-2010 | P78: 0 | R78: 0
A79: CLYNCKE Jean-Jacques | B79: SAINT-GEORGES Claude | C79: P | D79: 0 | E79: 2 | F79: 60 | G79: 120 | H79: 2010-02-20 | I79: N1 Ligue T4 DOUAI | J79: 1/8 Finale | K79: 2009-2010 | P79: 0 | R79: 0
A80: CLYNCKE Jean-Jacques | B80: TRIPLET Gilbert | C80: G | D80: 2 | E80: 0 | F80: 120 | G80: 62 | H80: 2010-02-20 | I80: N1 Ligue T4 DOUAI | J80: Poules Consolante | K80: 2009-2010 | P80: =IF($K80=P$1,COUNTIF($C80,"G"),0) -> 0 | R80: =IF($K80=R$1,COUNTIF($C80,"G"),0) -> 0
A81: CLYNCKE Jean-Jacques | B81: CAUX Frédéric | C81: G | D81: 2 | E81: 1 | F81: 146 | G81: 146 | H81: 2010-02-20 | I81: N1 Ligue T4 DOUAI | J81: Poules Consolante | K81: 2009-2010 | P81: =IF($K81=P$1,COUNTIF($C81,"G"),0) -> 0 | R81: =IF($K81=R$1,COUNTIF($C81,"G"),0) -> 0
A82: CLYNCKE Jean-Jacques | B82: SCHUB Philippe | C82: G | D82: 2 | E82: 1 | F82: 165 | G82: 129 | H82: 2010-01-29 | I82: National T3 ORLEANS | J82: Préqualifs | K82: 2009-2010 | P82: =IF($K82=P$1,COUNTIF($C82,"G"),0) -> 0 | R82: =IF($K82=R$1,COUNTIF($C82,"G"),0) -> 0
A83: CLYNCKE Jean-Jacques | B83: PIERGIORGIO Andreone | C83: G | D83: 2 | E83: 1 | F83: 146 | G83: 145 | H83: 2010-01-29 | I83: National T3 ORLEANS | J83: Préqualifs | K83: 2009-2010 | P83: 0 | R83: 0
A84: CLYNCKE Jean-Jacques | B84: DI PALMA Angelo | C84: P | D84: 0 | E84: 2 | F84: 69 | G84: 120 | H84: 2010-01-29 | I84: National T3 ORLEANS | J84: Préqualifs | K84: 2009-2010 | P84: 0 | R84: 0
A85: CLYNCKE Jean-Jacques | B85: ZILLIG Pierre | C85: P | D85: 1 | E85: 3 | F85: 195 | G85: 232 | H85: 2010-01-30 | I85: National T3 ORLEANS | J85: Qualifs promotion | K85: 2009-2010 | P85: 0 | R85: 0
A86: CLYNCKE Jean-Jacques | B86: ALEXANDRE Michel | C86: G | D86: 3 | E86: 2 | F86: 253 | G86: 224 | H86: 2010-01-30 | I86: National T3 ORLEANS | J86: Qualifs promotion | K86: 2009-2010 | P86: 0 | R86: 0
A87: CLYNCKE Jean-Jacques | B87: GUIBERT Philippe | C87: P | D87: 0 | E87: 3 | F87: 122 | G87: 180 | H87: 2010-01-30 | I87: National T3 ORLEANS | J87: Qualifs promotion | K87: 2009-2010 | P87: 0 | R87: 0
A88: CLYNCKE Jean-Jacques | B88: FOURRE Cédric | C88: G | D88: 2 | E88: 1 | F88: 158 | G88: 144 | H88: 2010-02-26 | I88: National T4 ROUEN | J88: Préqualifs | K88: 2009-2010 | P88: 0 | R88: 0
A89: CLYNCKE Jean-Jacques | B89: JACQ Laurent | C89: P | D89: 0 | E89: 2 | F89: 63 | G89: 120 | H89: 2010-02-26 | I89: National T4 ROUEN | J89: Préqualifs | K89: 2009-2010 | P89: 0 | R89: 0
A90: CLYNCKE Jean-Jacques | B90: PARMENTIER Franc | C90: G | D90: 2 | E90: 0 | F90: 120 | G90: 63 | H90: 2010-02-26 | I90: National T4 ROUEN | J90: Préqualifs | K90: 2009-2010 | P90: 0 | R90: 0
A91: CLYNCKE Jean-Jacques | B91: ROBERGE Bruno | C91: P | D91: 1 | E91: 3 | F91: 193 | G91: 209 | H91: 2010-02-27 | I91: National T4 ROUEN | J91: Qualifs promotion | K91: 2009-2010 | P91: 0 | R91: 0
A92: CLYNCKE Jean-Jacques | B92: CUL Frédéric | C92: P | D92: 2 | E92: 3 | F92: 243 | G92: 289 | H92: 2010-02-27 | I92: National T4 ROUEN | J92: Qualifs promotion | K92: 2009-2010 | P92: 0 | R92: 0
A93: CLYNCKE Jean-Jacques | B93: DEMILLY Jean-Sébastien | C93: P | D93: 0 | E93: 2 | F93: 71 | G93: 120 | H93: 2010-03-26 | I93: National T5 ST SEBASTIEN / LOIRE | J93: Préqualifs | K93: 2009-2010 | P93: 0 | R93: 0
A94: CLYNCKE Jean-Jacques | B94: MICHELOTTI Francesco | C94: P | D94: 0 | E94: 2 | F94: 67 | G94: 120 | H94: 2010-03-26 | I94: National T5 ST SEBASTIEN / LOIRE | J94: Préqualifs | K94: 2009-2010 | P94: 0 | R94: 0
A95: CLYNCKE Jean-Jacques | B95: ACUNZO Raffaelle | C95: P | D95: 0 | E95: 2 | F95: 82 | G95: 120 | H95: 2010-03-26 | I95: National T5 ST SEBASTIEN / LOIRE | J95: Préqualifs | K95: 2009-2010 | P95: 0 | R95: 0
A96: CLYNCKE Jean-Jacques | B96: CAUX Frédéric | C96: P | D96: 0 | E96: 2 | F96: 63 | G96: 120 | H96: 2010-04-23 | I96: National T6 ANDERNOS | J96: Préqualifs | K96: 2009-2010 | P96: 0 | R96: 0
A97: CLYNCKE Jean-Jacques | B97: ZACCAGNINI Antoine | C97: P | D97: 0 | E97: 2 | F97: 72 | G97: 120 | H97: 2010-04-23 | I97: National T6 ANDERNOS | J97: Préqualifs | K97: 2009-2010 | P97: 0 | R97: 0
A98: CLYNCKE Jean-Jacques | B98: J. BLANC | C98: G | D98: 2 | E98: 0 | F98: 120 | G98: 118 | H98: 2010-04-23 | I98: National T6 ANDERNOS | J98: Préqualifs | K98: 2009-2010 | P98: 0 | R98: 0
A99: CLYNCKE Jean-Jacques | B99: DUROYON Didier | C99: P | D99: 1 | E99: 3 | F99: 196 | G99: 237 | H99: 2010-04-24 | I99: National T6 ANDERNOS | J99: Qualifs promotion | K99: 2009-2010 | P99: 0 | R99: 0
A100: CLYNCKE Jean-Jacques | B100: ALEXANDRE Michel | C100: G | D100: 3 | E100: 2 | F100: 288 | G100: 229 | H100: 2010-04-24 | I100: National T6 ANDERNOS | J100: Qualifs promotion | K100: 2009-2010 | P100: 0 | R100: 0
A101: CLYNCKE Jean-Jacques | B101: GUIBERT Philippe | C101: P | D101: 0 | E101: 3 | F101: 69 | G101: 180 | H101: 2010-04-24 | I101: National T6 ANDERNOS | J101: Qualifs promotion | K101: 2009-2010 | P101: 0 | R101: 0
A102: CLYNCKE Jean-Jacques | B102: MARCHISSEAU Stéphane | C102: P | D102: 1 | E102: 2 | F102: 130 | G102: 154 | H102: 2010-10-07 | I102: National T1 CESTAS | J102: Préqualifs | K102: 2010-2011 | P102: 0 | R102: 0
A103: CLYNCKE Jean-Jacques | B103: PONTHIEUX Christian | C103: G | D103: 2 | E103: 0 | F103: 120 | G103: 95 | H103: 2010-10-07 | I103: National T1 CESTAS | J103: Préqualifs | K103: 2010-2011 | P103: 0 | R103: 0
A104: CLYNCKE Jean-Jacques | B104: DAVOINE Bruno | C104: G | D104: 2 | E104: 1 | F104: 147 | G104: 167 | H104: 2010-10-07 | I104: National T1 CESTAS | J104: Préqualifs | K104: 2010-2011 | P104: 0 | R104: 0
A105: CLYNCKE Jean-Jacques | B105: SCHUB Philippe | C105: P | D105: 0 | E105: 3 | F105: 138 | G105: 180 | H105: 2010-10-08 | I105: National T1 CESTAS | J105: Qualifs promotion | K105: 2010-2011 | P105: 0 | R105: 0
A106: CLYNCKE Jean-Jacques | B106: LORTHIOIR Jean-Luc | C106: G | D106: 3 | E106: 1 | F106: 216 | G106: 175 | H106: 2010-10-08 | I106: National T1 CESTAS | J106: Qualifs promotion | K106: 2010-2011 | P106: 0 | R106: 0
A107: CLYNCKE Jean-Jacques | B107: DUROYON Didier | C107: P | D107: 0 | E107: 3 | F107: 99 | G107: 180 | H107: 2010-10-08 | I107: National T1 CESTAS | J107: Qualifs promotion | K107: 2010-2011 | P107: 0 | R107: 0
A108: CLYNCKE Jean-Jacques | B108: CAUX Frédéric | C108: G | D108: 2 | E108: 1 | F108: 167 | G108: 136 | H108: 2010-11-13 | I108: N1 Ligue T2 FACHES THUMESNIL | J108: Poules | K108: 2010-2011 | P108: 0 | R108: 0
A109: CLYNCKE Jean-Jacques | B109: LHERMITTE Cédric | C109: P | D109: 0 | E109: 2 | F109: 83 | G109: 120 | H109: 2010-11-13 | I109: N1 Ligue T2 FACHES THUMESNIL | J109: Poules | K109: 2010-2011 | P109: 0 | R109: 0
A110: CLYNCKE Jean-Jacques | B110: LECROART Serge | C110: G | D110: 2 | E110: 0 | F110: 120 | G110: 69 | H110: 2010-11-13 | I110: N1 Ligue T2 FACHES THUMESNIL | J110: Poules Consolante | K110: 2010-2011 | P110: 0 | R110: 0
A111: CLYNCKE Jean-Jacques | B111: WESTEEL Bruno | C111: P | D111: 0 | E111: 2 | F111: 72 | G111: 120 | H111: 2010-11-13 | I111: N1 Ligue T2 FACHES THUMESNIL | J111: Poules Consolante | K111: 2010-2011 | P111: 0 | R111: 0
A112: CLYNCKE Jean-Jacques | B112: GANGLOFF Jean-Luc | C112: P | D112: 0 | E112: 2 | F112: 95 | G112: 120 | H112: 2010-11-05 | I112: National T2 LAXOU | J112: Préqualifs | K112: 2010-2011 | P112: 0 | R112: 0
A113: CLYNCKE Jean-Jacques | B113: BOUVIER Philippe | C113: G | D113: 2 | E113: 1 | F113: 139 | G113: 166 | H113: 2010-11-05 | I113: National T2 LAXOU | J113: Préqualifs | K113: 2010-2011 | P113: 0 | R113: 0
A114: CLYNCKE Jean-Jacques | B114: SACHELI Jacques | C114: P | D114: 1 | E114: 2 | F114: 119 | G114: 158 | H114: 2010-11-05 | I114: National T2 LAXOU | J114: Préqualifs | K114: 2010-2011 | P114: 0 | R114: 0
A115: CLYNCKE Jean-Jacques | B115: SORTAIS Claude | C115: P | D115: 1 | E115: 3 | F115: 194 | G115: 226 | H115: 2010-11-06 | I115: National T2 LAXOU | J115: Qualifs promotion | K115: 2010-2011 | P115: 0 | R115: 0
A116: CLYNCKE Jean-Jacques | B116: GUILLEMANT Jean-Marc | C116: G | D116: 3 | E116: 2 | F116: 272 | G116: 272 | H116: 2010-11-06 | I116: National T2 LAXOU | J116: Qualifs promotion | K116: 2010-2011 | P116: 0 | R116: 0
A117: CLYNCKE Jean-Jacques | B117: BOUVIER Philippe | C117: G | D117: 3 | E117: 1 | F117: 219 | G117: 182 | H117: 2010-11-06 | I117: National T2 LAXOU | J117: Qualifs promotion | K117: 2010-2011 | P117: 0 | R117: 0
A118: CLYNCKE Jean-Jacques | B118: SIX Jean-Paul | C118: P | D118: 0 | E118: 3 | F118: 99 | G118: 180 | H118: 2010-11-07 | I118: National T2 LAXOU | J118: 1/8 finale promotion | K118: 2010-2011 | P118: 0 | R118: 0
A119: CLYNCKE Jean-Jacques | B119: VANLERBERGHE Nicolas | C119: P | D119: 1 | E119: 2 | F119: 120 | G119: 167 | H119: 2010-12-03 | I119: National T3 FACHES THUMESNIL - RONCHIN | J119: Préqualifs | K119: 2010-2011 | P119: 0 | R119: 0
A120: CLYNCKE Jean-Jacques | B120: ZACCAGNINI Antoine | C120: P | D120: 1 | E120: 2 | F120: 122 | G120: 161 | H120: 2010-12-03 | I120: National T3 FACHES THUMESNIL - RONCHIN | J120: Préqualifs | K120: 2010-2011 | P120: 0 | R120: 0
A121: CLYNCKE Jean-Jacques | B121: FONTAINE Isabelle | C121: G | D121: 2 | E121: 1 | F121: 175 | G121: 141 | H121: 2010-12-03 | I121: National T3 FACHES THUMESNIL - RONCHIN | J121: Préqualifs | K121: 2010-2011 | P121: 0 | R121: 0
A122: CLYNCKE Jean-Jacques | B122: LHERMITTE Cédric | C122: P | D122: 1 | E122: 3 | F122: 166 | G122: 202 | H122: 2010-12-04 | I122: National T3 FACHES THUMESNIL - RONCHIN | J122: Qualifs promotion | K122: 2010-2011 | P122: 0 | R122: 0
A123: CLYNCKE Jean-Jacques | B123: WEBER Thierry | C123: G | D123: 3 | E123: 1 | F123: 234 | G123: 145 | H123: 2010-12-04 | I123: National T3 FACHES THUMESNIL - RONCHIN | J123: Qualifs promotion | K123: 2010-2011 | P123: 0 | R123: 0
A124: CLYNCKE Jean-Jacques | B124: GEETS Patrice | C124: P | D124: 2 | E124: 3 | F124: 268 | G124: 237 | H124: 2010-12-04 | I124: National T3 FACHES THUMESNIL - RONCHIN | J124: Qualifs promotion | K124: 2010-2011 | P124: 0 | R124: 0
A125: CLYNCKE Jean-Jacques | B125: FAUCOMPREZ Didier | C125: G | D125: 2 | E125: 0 | F125: 120 | G125: 76 | H125: 2011-01-15 | I125: N1 Ligue T4 DIVION | J125: Poules | K125: 2010-2011 | P125: 0 | R125: 0
A126: CLYNCKE Jean-Jacques | B126: RACARY Thibault | C126: P | D126: 0 | E126: 2 | F126: 87 | G126: 120 | H126: 2011-01-15 | I126: N1 Ligue T4 DIVION | J126: Poules | K126: 2010-2011 | P126: 0 | R126: 0
A127: CLYNCKE Jean-Jacques | B127: VANNUCCI Emilio | C127: P | D127: 1 | E127: 2 | F127: 154 | G127: 164 | H127: 2011-01-15 | I127: N1 Ligue T4 DIVION | J127: Poules Consolante | K127: 2010-2011 | P127: 0 | R127: 0
A128: CLYNCKE Jean-Jacques | B128: VANNUCCI Emilio | C128: P | D128: 1 | E128: 2 | F128: 125 | G128: 169 | H128: 2011-01-15 | I128: N1 Ligue T4 DIVION | J128: Poules Consolante | K128: 2010-2011 | P128: 0 | R128: 0
A129: CLYNCKE Jean-Jacques | B129: GOUTHIER Alain | C129: G | D129: 2 | E129: 1 | F129: 158 | G129: 109 | H129: 2011-02-11 | I129: National T4 ROUEN | J129: Préqualifs | K129: 2010-2011 | P129: 0 | R129: 0
A130: CLYNCKE Jean-Jacques | B130: SORTAIS Claude | C130: P | D130: 0 | E130: 2 | F130: 58 | G130: 120 | H130: 2011-02-11 | I130: National T4 ROUEN | J130: Préqualifs | K130: 2010-2011 | P130: 0 | R130: 0
A131: CLYNCKE Jean-Jacques | B131: LOURSEL Alain | C131: P | D131: 0 | E131: 2 | F131: 95 | G131: 120 | H131: 2011-02-11 | I131: National T4 ROUEN | J131: Préqualifs | K131: 2010-2011 | P131: 0 | R131: 0
A132: CLYNCKE Jean-Jacques | B132: JUBLOT Denis | C132: G | D132: 2 | E132: 1 | F132: 172 | G132: 160 | H132: 2011-03-25 | I132: National T5 BLOIS | J132: Préqualifs | K132: 2010-2011 | P132: 0 | R132: 0
A133: CLYNCKE Jean-Jacques | B133: BLANC J. | C133: G | D133: 2 | E133: 0 | F133: 120 | G133: 110 | H133: 2011-03-25 | I133: National T5 BLOIS | J133: Préqualifs | K133: 2010-2011 | P133: 0 | R133: 0
A134: CLYNCKE Jean-Jacques | B134: HERREBRECHT Thierry | C134: P | D134: 0 | E134: 2 | F134: 75 | G134: 120 | H134: 2011-03-25 | I134: National T5 BLOIS | J134: Préqualifs | K134: 2010-2011 | P134: 0 | R134: 0
A135: CLYNCKE Jean-Jacques | B135: SORTAIS Claude | C135: P | D135: 2 | E135: 3 | F135: 253 | G135: 267 | H135: 2011-03-26 | I135: National T5 BLOIS | J135: Qualifs promotion | K135: 2010-2011 | P135: 0 | R135: 0
A136: CLYNCKE Jean-Jacques | B136: GOUSSETIS Georges | C136: G | D136: 3 | E136: 0 | F136: 180 | G136: 111 | H136: 2011-03-26 | I136: National T5 BLOIS | J136: Qualifs promotion | K136: 2010-2011 | P136: 0 | R136: 0
A137: CLYNCKE Jean-Jacques | B137: MAILLE Bernard | C137: G | D137: 3 | E137: 2 | F137: 244 | G137: 266 | H137: 2011-03-26 | I137: National T5 BLOIS | J137: Qualifs promotion | K137: 2010-2011 | P137: 0 | R137: 0
A138: CLYNCKE Jean-Jacques | B138: MARCHISSEAU Stéphane | C138: P | D138: 1 | E138: 3 | F138: 165 | G138: 225 | H138: 2011-03-27 | I138: National T5 BLOIS | J138: 1/8 finale promotion | K138: 2010-2011 | P138: 0 | R138: 0
A139: CLYNCKE Jean-Jacques | B139: POULEYN André | C139: P | D139: 1 | E139: 2 | F139: 164 | G139: 153 | H139: 2011-04-15 | I139: National T6 CHAMPAGNE sur SEINE / NANDY | J139: Préqualifs | K139: 2010-2011 | P139: 0 | R139: 0
A140: CLYNCKE Jean-Jacques | B140: GUIBERT Philippe | C140: P | D140: 0 | E140: 2 | F140: 110 | G140: 120 | H140: 2011-04-15 | I140: National T6 CHAMPAGNE sur SEINE / NANDY | J140: Préqualifs | K140: 2010-2011 | P140: 0 | R140: 0
A141: CLYNCKE Jean-Jacques | B141: AUXIETRE Michel | C141: P | D141: 0 | E141: 2 | F141: 53 | G141: 120 | H141: 2011-04-15 | I141: National T6 CHAMPAGNE sur SEINE / NANDY | J141: Préqualifs | K141: 2010-2011 | P141: 0 | R141: 0
A142: CLYNCKE Jean-Jacques | B142: PONTHIEUX Christian | C142: P | D142: 0 | E142: 2 | F142: 98 | G142: 120 | H142: 2011-09-30 | I142: National T1 CESTAS | J142: Préqualifs | K142: 2011-2012 | P142: 0 | R142: 0
A143: CLYNCKE Jean-Jacques | B143: MORALES Luis | C143: P | D143: 1 | E143: 2 | F143: 156 | G143: 145 | H143: 2011-09-30 | I143: National T1 CESTAS | J143: Préqualifs | K143: 2011-2012 | P143: 0 | R143: 0
A144: CLYNCKE Jean-Jacques | B144: BATTE Patrick | C144: G | D144: 2 | E144: 0 | F144: 120 | G144: 81 | H144: 2011-09-30 | I144: National T1 CESTAS | J144: Préqualifs | K144: 2011-2012 | P144: 0 | R144: 0
A145: CLYNCKE Jean-Jacques | B145: WALLART Jean-Charles | C145: P | D145: 0 | E145: 3 | F145: 105 | G145: 180 | H145: 2011-10-01 | I145: National T1 CESTAS | J145: Qualifs promotion | K145: 2011-2012 | P145: 0 | R145: 0
A146: CLYNCKE Jean-Jacques | B146: EVENOU Roger | C146: G | D146: 3 | E146: 0 | F146: 180 | G146: 132 | H146: 2011-10-01 | I146: National T1 CESTAS | J146: Qualifs promotion | K146: 2011-2012 | P146: =IF($K146=P$1,COUNTIF($C146,"G"),0) -> 0 | R146: =IF($K146=R$1,COUNTIF($C146,"G"),0) -> 0
A147: CLYNCKE Jean-Jacques | B147: MARCHISSEAU Stéphane | C147: P | D147: 0 | E147: 3 | F147: 97 | G147: 180 | H147: 2011-10-01 | I147: National T1 CESTAS | J147: Qualifs promotion | K147: 2011-2012 | P147: =IF($K147=P$1,COUNTIF($C147,"G"),0) -> 0 | R147: =IF($K147=R$1,COUNTIF($C147,"G"),0) -> 0
A148: CLYNCKE Jean-Jacques | B148: VEREECQUE Ludovic | C148: P | D148: 0 | E148: 1 | F148: 97 | G148: 100 | H148: 2011-11-19 | I148: N1 Ligue T2 DOUAI | J148: Poules Consolante | K148: 2011-2012 | P148: =IF($K148=P$1,COUNTIF($C148,"G"),0) -> 0 | R148: =IF($K148=R$1,COUNTIF($C148,"G"),0) -> 0
A149: CLYNCKE Jean-Jacques | B149: WALLART Jean-Charles | C149: G | D149: 1 | E149: 0 | F149: 100 | G149: 65 | H149: 2011-11-19 | I149: N1 Ligue T2 DOUAI | J149: Poules Consolante | K149: 2011-2012 | P149: 0 | R149: 0
A150: CLYNCKE Jean-Jacques | B150: KAYA Turgul | C150: P | D150: 0 | E150: 1 | F150: 98 | G150: 100 | H150: 2011-11-19 | I150: N1 Ligue T2 DOUAI | J150: 1/2 Finale Consolante | K150: 2011-2012 | P150: 0 | R150: 0
A151: CLYNCKE Jean-Jacques | B151: CARPENTIER Yohanne | C151: P | D151: 1 | E151: 2 | F151: 152 | G151: 169 | H151: 2011-11-19 | I151: N1 Ligue T2 DOUAI | J151: Poules | K151: 2011-2012 | P151: 0 | R151: 0
A152: CLYNCKE Jean-Jacques | B152: HERREBRECHT Thierry | C152: P | D152: 0 | E152: 2 | F152: 91 | G152: 120 | H152: 2011-11-19 | I152: N1 Ligue T2 DOUAI | J152: Poules | K152: 2011-2012 | P152: 0 | R152: 0
A153: CLYNCKE Jean-Jacques | B153: DELSOL Philippe | C153: P | D153: 0 | E153: 2 | F153: 79 | G153: 120 | H153: 2011-11-19 | I153: N1 Ligue T2 DOUAI | J153: 1/8 Finale | K153: 2011-2012 | P153: 0 | R153: 0
A154: CLYNCKE Jean-Jacques | B154: ROCHER Frédéric | C154: G | D154: 2 | E154: 0 | F154: 120 | G154: 61 | H154: 2011-11-04 | I154: National T2 SCHILTIGHEIM | J154: Préqualifs | K154: 2011-2012 | P154: 0 | R154: 0
A155: CLYNCKE Jean-Jacques | B155: JUBLOT Maxime | C155: P | D155: 0 | E155: 2 | F155: 53 | G155: 120 | H155: 2011-11-04 | I155: National T2 SCHILTIGHEIM | J155: Préqualifs | K155: 2011-2012 | P155: 0 | R155: 0
A156: CLYNCKE Jean-Jacques | B156: EVENOU Roger | C156: G | D156: 2 | E156: 0 | F156: 120 | G156: 83 | H156: 2011-11-04 | I156: National T2 SCHILTIGHEIM | J156: Préqualifs | K156: 2011-2012 | P156: 0 | R156: 0
A157: CLYNCKE Jean-Jacques | B157: MAILLE Bernard | C157: P | D157: 0 | E157: 3 | F157: 114 | G157: 180 | H157: 2011-11-05 | I157: National T2 SCHILTIGHEIM | J157: Qualifs promotion | K157: 2011-2012 | P157: 0 | R157: 0
A158: CLYNCKE Jean-Jacques | B158: GANGLOFF Jean-Luc | C158: G | D158: 3 | E158: 1 | F158: 220 | G158: 210 | H158: 2011-11-05 | I158: National T2 SCHILTIGHEIM | J158: Qualifs promotion | K158: 2011-2012 | P158: 0 | R158: 0
A159: CLYNCKE Jean-Jacques | B159: GUIBERT Philippe | C159: P | D159: 0 | E159: 3 | F159: 103 | G159: 180 | H159: 2011-11-05 | I159: National T2 SCHILTIGHEIM | J159: Qualifs promotion | K159: 2011-2012 | P159: 0 | R159: 0
A160: CLYNCKE Jean-Jacques | B160: SCHUB Philippe | C160: P | D160: 1 | E160: 2 | F160: 171 | G160: 151 | H160: 2011-12-02 | I160: National T3 ANNOEULLIN | J160: Préqualifs | K160: 2011-2012 | P160: 0 | R160: 0
A161: CLYNCKE Jean-Jacques | B161: MORALES Luis | C161: P | D161: 0 | E161: 2 | F161: 75 | G161: 120 | H161: 2011-12-02 | I161: National T3 ANNOEULLIN | J161: Préqualifs | K161: 2011-2012 | P161: 0 | R161: 0
A162: CLYNCKE Jean-Jacques | B162: BURY Alain | C162: G | D162: 2 | E162: 1 | F162: 171 | G162: 145 | H162: 2011-12-02 | I162: National T3 ANNOEULLIN | J162: Préqualifs | K162: 2011-2012 | P162: 0 | R162: 0
A163: CLYNCKE Jean-Jacques | B163: DELATTRE Hervé | C163: G | D163: 3 | E163: 0 | F163: 180 | G163: 148 | H163: 2011-12-03 | I163: National T3 ANNOEULLIN | J163: Qualifs promotion | K163: 2011-2012 | P163: 0 | R163: 0
A164: CLYNCKE Jean-Jacques | B164: GUIBERT Philippe | C164: P | D164: 0 | E164: 3 | F164: 134 | G164: 180 | H164: 2011-12-03 | I164: National T3 ANNOEULLIN | J164: Qualifs promotion | K164: 2011-2012 | P164: 0 | R164: 0
A165: CLYNCKE Jean-Jacques | B165: GANGLOFF Jean-Luc | C165: P | D165: 1 | E165: 3 | F165: 184 | G165: 233 | H165: 2011-12-03 | I165: National T3 ANNOEULLIN | J165: Qualifs promotion | K165: 2011-2012 | P165: 0 | R165: 0
A166: CLYNCKE Jean-Jacques | B166: LORTHIOIR Jean-Luc | C166: P | D166: 1 | E166: 2 | F166: 107 | G166: 177 | H166: 2012-01-07 | I166: N1 Ligue T3 FACHES THUMESNIL | J166: Poules | K166: 2011-2012 | P166: 0 | R166: 0
A167: CLYNCKE Jean-Jacques | B167: LHERMITTE Cédric | C167: G | D167: 2 | E167: 1 | F167: 169 | G167: 140 | H167: 2012-01-07 | I167: N1 Ligue T3 FACHES THUMESNIL | J167: Poules | K167: 2011-2012 | P167: 0 | R167: 0
A168: CLYNCKE Jean-Jacques | B168: HERREBRECHT Thierry | C168: P | D168: 0 | E168: 2 | F168: 24 | G168: 120 | H168: 2012-01-07 | I168: N1 Ligue T3 FACHES THUMESNIL | J168: 1/8 Finale | K168: 2011-2012 | P168: 0 | R168: 0
A169: CLYNCKE Jean-Jacques | B169: MANTEN Paul | C169: P | D169: 0 | E169: 1 | F169: 54 | G169: 100 | H169: 2012-01-07 | I169: N1 Ligue T3 FACHES THUMESNIL | J169: Poules Consolante | K169: 2011-2012 | P169: 0 | R169: 0
A170: CLYNCKE Jean-Jacques | B170: LORTHIOIR Jean-Luc | C170: G | D170: 1 | E170: 0 | F170: 100 | G170: 45 | H170: 2012-01-07 | I170: N1 Ligue T3 FACHES THUMESNIL | J170: Poules Consolante | K170: 2011-2012 | P170: 0 | R170: 0
A171: CLYNCKE Jean-Jacques | B171: POULEYN André | C171: P | D171: 1 | E171: 2 | F171: 118 | G171: 173 | H171: 2012-02-17 | I171: National T4 ORLEANS | J171: Préqualifs | K171: 2011-2012 | P171: 0 | R171: 0
A172: CLYNCKE Jean-Jacques | B172: GUILLEMANT David | C172: P | D172: 0 | E172: 2 | F172: 76 | G172: 120 | H172: 2012-02-17 | I172: National T4 ORLEANS | J172: Préqualifs | K172: 2011-2012 | P172: 0 | R172: 0
A173: CLYNCKE Jean-Jacques | B173: MILON Guillaume | C173: G | D173: 2 | E173: 0 | F173: 120 | G173: 107 | H173: 2012-02-17 | I173: National T4 ORLEANS | J173: Préqualifs | K173: 2011-2012 | P173: 0 | R173: 0
A174: CLYNCKE Jean-Jacques | B174: GUIBERT Philippe | C174: P | D174: 0 | E174: 3 | F174: 74 | G174: 180 | H174: 2012-02-18 | I174: National T4 ORLEANS | J174: Qualifs promotion | K174: 2011-2012 | P174: 0 | R174: 0
A175: CLYNCKE Jean-Jacques | B175: LHEUREUX François | C175: P | D175: 2 | E175: 3 | F175: 243 | G175: 281 | H175: 2012-02-18 | I175: National T4 ORLEANS | J175: Qualifs promotion | K175: 2011-2012 | P175: 0 | R175: 0
A176: CLYNCKE Jean-Jacques | B176: POULEYN André | C176: G | D176: 2 | E176: 1 | F176: 152 | G176: 164 | H176: 2012-03-16 | I176: National T5 L HAY LES ROSES | J176: Préqualifs | K176: 2011-2012 | P176: 0 | R176: 0
A177: CLYNCKE Jean-Jacques | B177: GUILLEMANT David | C177: P | D177: 0 | E177: 2 | F177: 64 | G177: 120 | H177: 2012-03-16 | I177: National T5 L HAY LES ROSES | J177: Préqualifs | K177: 2011-2012 | P177: 0 | R177: 0
A178: CLYNCKE Jean-Jacques | B178: RENARD Jean-Pierre | C178: G | D178: 2 | E178: 0 | F178: 120 | G178: 78 | H178: 2012-03-16 | I178: National T5 L HAY LES ROSES | J178: Préqualifs | K178: 2011-2012 | P178: 0 | R178: 0
A179: CLYNCKE Jean-Jacques | B179: DELATTRE Hervé | C179: P | D179: 0 | E179: 3 | F179: 133 | G179: 180 | H179: 2012-03-17 | I179: National T5 L HAY LES ROSES | J179: Qualifs promotion | K179: 2011-2012 | P179: 0 | R179: 0
A180: CLYNCKE Jean-Jacques | B180: ROUBY Guillaume | C180: P | D180: 1 | E180: 3 | F180: 196 | G180: 207 | H180: 2012-03-17 | I180: National T5 L HAY LES ROSES | J180: Qualifs promotion | K180: 2011-2012 | P180: 0 | R180: 0
A181: CLYNCKE Jean-Jacques | B181: HORNAIN Denis | C181: G | D181: 2 | E181: 0 | F181: 120 | G181: 61 | H181: 2012-10-13 | I181: N1 Ligue T1 ANNOEULLIN | J181: Poules | K181: 2012-2013 | P181: 0 | R181: 0
A182: CLYNCKE Jean-Jacques | B182: DELSOL Philippe | C182: P | D182: 0 | E182: 2 | F182: 67 | G182: 120 | H182: 2012-10-13 | I182: N1 Ligue T1 ANNOEULLIN | J182: Poules | K182: 2012-2013 | P182: 0 | R182: 0
A183: CLYNCKE Jean-Jacques | B183: SAINT-GEORGES Claude | C183: P | D183: 1 | E183: 2 | F183: 126 | G183: 179 | H183: 2012-10-13 | I183: N1 Ligue T1 ANNOEULLIN | J183: 1/8 Finale | K183: 2012-2013 | P183: 0 | R183: 0
A184: CLYNCKE Jean-Jacques | B184: DEVOS Jackie | C184: G | D184: 2 | E184: 1 | F184: 172 | G184: 122 | H184: 2012-11-24 | I184: N1 Ligue T3 CALAIS | J184: Poules | K184: 2012-2013 | P184: 0 | R184: 0
A185: CLYNCKE Jean-Jacques | B185: TURPIN Laurent | C185: P | D185: 0 | E185: 2 | F185: 81 | G185: 120 | H185: 2012-11-24 | I185: N1 Ligue T3 CALAIS | J185: Poules | K185: 2012-2013 | P185: 0 | R185: 0
A186: CLYNCKE Jean-Jacques | B186: MANTEN Paul | C186: G | D186: 1 | E186: 0 | F186: 100 | G186: 52 | H186: 2012-11-24 | I186: N1 Ligue T3 CALAIS | J186: Poules Consolante | K186: 2012-2013 | P186: 0 | R186: 0
A187: CLYNCKE Jean-Jacques | B187: MANTEN Paul | C187: G | D187: 1 | E187: 0 | F187: 100 | G187: 80 | H187: 2012-11-24 | I187: N1 Ligue T3 CALAIS | J187: Poules Consolante | K187: 2012-2013 | P187: 0 | R187: 0
A188: CLYNCKE Jean-Jacques | B188: ZEUDE Alain | C188: P | D188: 0 | E188: 1 | F188: 91 | G188: 100 | H188: 2012-11-24 | I188: N1 Ligue T3 CALAIS | J188: 1/2 finale Consolante | K188: 2012-2013 | P188: 0 | R188: 0
A189: CLYNCKE Jean-Jacques | B189: BILLIARD Alain | C189: G | D189: 3 | E189: 1 | F189: 187 | G189: 138 | H189: 2012-10-06 | I189: National T1 BLOIS | J189: Qualifs promotion | K189: 2012-2013 | P189: 0 | R189: 0
A190: CLYNCKE Jean-Jacques | B190: CHESNEAU Christophe | C190: G | D190: 3 | E190: 0 | F190: 150 | G190: 87 | H190: 2012-10-06 | I190: National T1 BLOIS | J190: Qualifs promotion | K190: 2012-2013 | P190: 0 | R190: 0
A191: CLYNCKE Jean-Jacques | B191: DAVID Nicolas | C191: P | D191: 1 | E191: 2 | F191: 119 | G191: 145 | H191: 2012-10-05 | I191: National T1 BLOIS | J191: Préqualifs | K191: 2012-2013 | P191: 0 | R191: 0
A192: CLYNCKE Jean-Jacques | B192: Joueur BLANC | C192: G | D192: 2 | E192: 0 | F192: 100 | G192: 90 | H192: 2012-10-05 | I192: National T1 BLOIS | J192: Préqualifs | K192: 2012-2013 | P192: 0 | R192: 0
A193: CLYNCKE Jean-Jacques | B193: LANUSSE Christophe | C193: P | D193: 2 | E193: 3 | F193: 195 | G193: 207 | H193: 2012-10-06 | I193: National T1 BLOIS | J193: Qualifs promotion | K193: 2012-2013 | P193: 0 | R193: 0
A194: CLYNCKE Jean-Jacques | B194: PALOMBA Sergio | C194: P | D194: 1 | E194: 2 | F194: 104 | G194: 136 | H194: 2012-10-05 | I194: National T1 BLOIS | J194: Préqualifs | K194: 2012-2013 | P194: 0 | R194: 0
A195: CLYNCKE Jean-Jacques | B195: SORTAIS Claude | C195: P | D195: 1 | E195: 3 | F195: 134 | G195: 190 | H195: 2012-10-07 | I195: National T1 BLOIS | J195: 1/8 finale promotion | K195: 2012-2013 | P195: 0 | R195: 0
A196: CLYNCKE Jean-Jacques | B196: FRAUDEAU Michel | C196: P | D196: 2 | E196: 3 | F196: 190 | G196: 224 | H196: 2012-11-03 | I196: National T2 NANTES | J196: Qualifs promotion | K196: 2012-2013 | P196: 0 | R196: 0
A197: CLYNCKE Jean-Jacques | B197: GANGLOFF Jean-Luc | C197: P | D197: 1 | E197: 3 | F197: 144 | G197: 194 | H197: 2012-11-03 | I197: National T2 NANTES | J197: Qualifs promotion | K197: 2012-2013 | P197: 0 | R197: 0
A198: CLYNCKE Jean-Jacques | B198: KERCRET Geneviève | C198: G | D198: 2 | E198: 0 | F198: 100 | G198: 91 | H198: 2012-11-02 | I198: National T2 NANTES | J198: Préqualifs | K198: 2012-2013 | P198: 0 | R198: 0
A199: CLYNCKE Jean-Jacques | B199: NAHIRNYJ Nicolas | C199: G | D199: 2 | E199: 0 | F199: 100 | G199: 34 | H199: 2012-11-02 | I199: National T2 NANTES | J199: Préqualifs | K199: 2012-2013 | P199: 0 | R199: 0
A200: CLYNCKE Jean-Jacques | B200: SORTAIS Claude | C200: P | D200: 0 | E200: 2 | F200: 58 | G200: 100 | H200: 2012-11-02 | I200: National T2 NANTES | J200: Préqualifs | K200: 2012-2013 | P200: 0 | R200: 0
A201: CLYNCKE Jean-Jacques | B201: DI PALMA Angelo | C201: G | D201: 2 | E201: 0 | F201: 100 | G201: 81 | H201: 2013-02-01 | I201: National T4 ROUEN | J201: Préqualifs | K201: 2012-2013 | P201: 0 | R201: 0
A202: CLYNCKE Jean-Jacques | B202: FAQUET Vincent | C202: P | D202: 1 | E202: 2 | F202: 127 | G202: 135 | H202: 2013-02-01 | I202: National T4 ROUEN | J202: Préqualifs | K202: 2012-2013 | P202: 0 | R202: 0
A203: CLYNCKE Jean-Jacques | B203: GANGLOFF Jean-Luc | C203: P | D203: 0 | E203: 2 | F203: 47 | G203: 100 | H203: 2013-02-01 | I203: National T4 ROUEN | J203: Préqualifs | K203: 2012-2013 | P203: 0 | R203: 0
A204: CLYNCKE Jean-Jacques | B204: GUILLEMANT Jean-Marc | C204: P | D204: 2 | E204: 3 | F204: 163 | G204: 201 | H204: 2013-02-02 | I204: National T4 ROUEN | J204: Qualifs promotion | K204: 2012-2013 | P204: 0 | R204: 0
A205: CLYNCKE Jean-Jacques | B205: TALBOT Michel | C205: P | D205: 1 | E205: 3 | F205: 143 | G205: 195 | H205: 2013-02-02 | I205: National T4 ROUEN | J205: Qualifs promotion | K205: 2012-2013 | P205: 0 | R205: 0
A206: CLYNCKE Jean-Jacques | B206: ACUNZO Raffaele | C206: G | D206: 2 | E206: 1 | F206: 135 | G206: 118 | H206: 2013-03-08 | I206: National T5 LAXOU | J206: Préqualifs | K206: 2012-2013 | P206: 0 | R206: 0
... 89 more rows

Sheet DECONINCK Franky
A1: DECONINCK Franky | P1: =Récapitulatif!$B$2 -> 2014-2015 | R1: =Récapitulatif!$B$3 -> 2015-2016 | T1: Toutes saisons
P2: Nombre | Q2: %age | R2: Nombre | S2: %age | T2: Nombre | U2: %age
N3: Matchs | O3: Gagnés | P3: =SUM(P$15:P$45) -> 11 | Q3: =IF(P$3+P$4>0,P3/(P$3+P$4),"") -> 0.6875 | R3: =SUM(R$15:R$45) -> 0 | S3: =IF(R$3+R$4>0,R3/(R$3+R$4),"") ->  | T3: =COUNTIF($C$15:$C$45,"G") -> 17 | U3: =IF(T$3+T$4>0,T3/(T$3+T$4),"") -> 0.5862068966
O4: Perdus | P4: =COUNTIF($K$15:$K$45,Récapitulatif!$B$2)-P3 -> 5 | Q4: =IF(P$3+P$4>0,P4/(P$3+P$4),"") -> 0.3125 | R4: =COUNTIF($K$15:$K$45,Récapitulatif!$B$3)-R3 -> 0 | S4: =IF(R$3+R$4>0,R4/(R$3+R$4),"") ->  | T4: =COUNTIF($C$15:$C$45,"P") -> 12 | U4: =IF(T$3+T$4>0,T4/(T$3+T$4),"") -> 0.4137931034
O5: Total / Moy. | P5: =SUM(P3:P4) -> 16 | Q5: =IF(SUMIF($K$15:$K$45,Récapitulatif!$B$2,$G$15:$G$45)>0,SUMIF($K$15:$K$45,Récapitulatif!$B$2,$F$15:$F$45)/SUMIF($K$15:$K$45,Récapitulatif!$B$2,$G$15:$G$45),"") -> 1.199117214 | R5: =SUM(R3:R4) -> 0 | S5: =IF(SUMIF($K$15:$K$45,Récapitulatif!$B$3,$G$15:$G$45)>0,SUMIF($K$15:$K$45,Récapitulatif!$B$3,$F$15:$F$45)/SUMIF($K$15:$K$45,Récapitulatif!$B$3,$G$15:$G$45),"") ->  | T5: =SUM(T3:T4) -> 29 | U5: =IF(SUM($G$15:$G$45)>0,SUM($F$15:$F$45)/SUM($G$15:$G$45),"") -> 1.094270991 | V5: =IF(SUMIF($K$15:$K$45,Récapitulatif!$B$2,$G$15:$G$45)+SUMIF($K$15:$K$45,Récapitulatif!$B$3,$G$15:$G$45)>0,(SUMIF($K$15:$K$45,Récapitulatif!$B$2,$F$15:$F$45)+SUMIF($K$15:$K$45,Récapitulatif!$B$3,$F$15:$F$45))/(SUMIF($K$15:$K$45,Récapitulatif!$B$2,$G$15:$G$45)+SUMIF($K$15:$K$45,Récapitulatif!$B$3,$G$15:$G$45)),"") -> 1.199117214
N6: Sets | O6: Gagnés | P6: =SUMIF($K$15:$K$45,Récapitulatif!$B$2,$D$15:$D$45) -> 30 | Q6: =IF(P$6+P$7>0,P6/(P$6+P$7),"") -> 0.6666666667 | R6: =SUMIF($K$15:$K$45,Récapitulatif!$B$3,$D$15:$D$45) -> 0 | S6: =IF(R$6+R$7>0,R6/(R$6+R$7),"") ->  | T6: =SUM($D$15:$D$45) -> 37 | U6: =IF(T$6+T$7>0,T6/(T$6+T$7),"") -> 0.5873015873
O7: Perdus | P7: =SUMIF($K$15:$K$45,Récapitulatif!$B$2,$E$15:$E$45) -> 15 | Q7: =IF(P$6+P$7>0,P7/(P$6+P$7),"") -> 0.3333333333 | R7: =SUMIF($K$15:$K$45,Récapitulatif!$B$3,$E$15:$E$45) -> 0 | S7: =IF(R$6+R$7>0,R7/(R$6+R$7),"") ->  | T7: =SUM($E$15:$E$45) -> 26 | U7: =IF(T$6+T$7>0,T7/(T$6+T$7),"") -> 0.4126984127
A8: Récapitulatif joueurs | O8: Total | P8: =SUM(P6:P7) -> 45 | R8: =SUM(R6:R7) -> 0 | T8: =SUM(T6:T7) -> 63
A15: Joueur | B15: Adversaire | C15: G/P | D15: Sets gagnés | E15: Sets perdus | F15: pts marqués | G15: pts subis | H15: Date | I15: Compétition | J15: Phase | K15: Saison
A16: DECONINCK Franky | B16: WALLART Jean-Charles | C16: P | D16: 0 | E16: 2 | F16: 67 | G16: 120 | H16: 2012-01-07 | I16: N1 Ligue T3 FACHES THUMESNIL | J16: Poules | K16: =IF(H16<>"",IF(MONTH(H16)>MoisRef,YEAR(H16)&"-"&YEAR(H16)+1,YEAR(H16)-1&"-"&YEAR(H16)),"") -> 2011-2012 | P16: =IF($K16=P$1,COUNTIF($C16,"G"),0) -> 0 | R16: =IF($K16=R$1,COUNTIF($C16,"G"),0) -> 0
A17: DECONINCK Franky | B17: RACARY Thibault | C17: P | D17: 0 | E17: 2 | F17: 70 | G17: 120 | H17: 2012-01-07 | I17: N1 Ligue T3 FACHES THUMESNIL | J17: Poules | K17: 2011-2012 | P17: 0 | R17: 0
A18: DECONINCK Franky | B18: GHEVART Jean | C18: G | D18: 1 | E18: 0 | F18: 100 | G18: 70 | H18: 2012-01-07 | I18: N1 Ligue T3 FACHES THUMESNIL | J18: Poules Consolante | K18: 2011-2012 | P18: 0 | R18: 0
A19: DECONINCK Franky | B19: POULEYN André | C19: G | D19: 1 | E19: 0 | F19: 100 | G19: 91 | H19: 2012-01-07 | I19: N1 Ligue T3 FACHES THUMESNIL | J19: Poules Consolante | K19: 2011-2012 | P19: 0 | R19: 0
A20: DECONINCK Franky | B20: GEETS Patrice | C20: G | D20: 1 | E20: 0 | F20: 100 | G20: 79 | H20: 2012-01-07 | I20: N1 Ligue T3 FACHES THUMESNIL | J20: Finale Consolante | K20: 2011-2012 | P20: 0 | R20: 0
A21: DECONINCK Franky | B21: MANTEN Paul | C21: G | D21: 1 | E21: 0 | F21: 100 | G21: 66 | H21: 2012-01-07 | I21: N1 Ligue T3 FACHES THUMESNIL | J21: Finale Consolante | K21: 2011-2012 | P21: 0 | R21: 0
A22: DECONINCK Franky | B22: LHERMITTE Cédric | C22: P | D22: 0 | E22: 2 | F22: 74 | G22: 120 | H22: 2012-10-27 | I22: N1 Ligue T2 BRUAY sur ESCAUT | J22: Poules | K22: 2012-2013 | P22: 0 | R22: 0
A23: DECONINCK Franky | B23: GEETS Patrice | C23: P | D23: 1 | E23: 2 | F23: 140 | G23: 158 | H23: 2012-10-27 | I23: N1 Ligue T2 BRUAY sur ESCAUT | J23: Poules | K23: 2012-2013 | P23: 0 | R23: 0
A24: DECONINCK Franky | B24: WALLART Jean-Charles | C24: P | D24: 0 | E24: 1 | F24: 96 | G24: 100 | H24: 2012-10-27 | I24: N1 Ligue T2 BRUAY / ESCAUT | J24: Poules Consolante | K24: 2012-2013 | P24: 0 | R24: 0
A25: DECONINCK Franky | B25: WALLART Jean-Charles | C25: P | D25: 0 | E25: 1 | F25: 68 | G25: 100 | H25: 2012-10-27 | I25: N1 Ligue T2 BRUAY / ESCAUT | J25: Poules Consolante | K25: 2012-2013 | P25: 0 | R25: 0
A26: DECONINCK Franky | B26: CAUX Frédéric | C26: G | D26: 1 | E26: 0 | F26: 100 | G26: 57 | H26: 2012-10-13 | I26: N1 Ligue T1 ANNOEULLIN | J26: Poules Consolante | K26: 2012-2013 | P26: 0 | R26: 0
A27: DECONINCK Franky | B27: LORTHIOIR Jean-Luc | C27: G | D27: 1 | E27: 0 | F27: 100 | G27: 79 | H27: 2012-10-13 | I27: N1 Ligue T1 ANNOEULLIN | J27: Poules Consolante | K27: 2012-2013 | P27: 0 | R27: 0
A28: DECONINCK Franky | B28: MAILLE Bernard | C28: P | D28: 0 | E28: 1 | F28: 50 | G28: 100 | H28: 2012-10-14 | I28: N1 Ligue T1 ANNOEULLIN | J28: Finale Consolante | K28: 2012-2013 | P28: 0 | R28: 0
A29: DECONINCK Franky | B29: POULEYN André | C29: G | D29: 2 | E29: 0 | F29: 120 | G29: 71 | H29: 2015-01-17 | I29: N1 Ligue T1 DUNKERQUE | J29: Poules | K29: 2014-2015 | P29: 1 | R29: 0
A30: DECONINCK Franky | B30: WALLART Jean-charles | C30: P | D30: 1 | E30: 2 | F30: 169 | G30: 171 | H30: 2015-01-17 | I30: N1 Ligue T1 DUNKERQUE | J30: Poules | K30: 2014-2015 | P30: 0 | R30: 0
A31: DECONINCK Franky | B31: SEINGIER Jean-Claude | C31: G | D31: 2 | E31: 0 | F31: 120 | G31: 50 | H31: 2015-01-17 | I31: N1 Ligue T1 DUNKERQUE | J31: 1/8 Finale | K31: 2014-2015 | P31: 1 | R31: 0
A32: DECONINCK Franky | B32: DEROLEZ Jean-pierre | C32: G | D32: 2 | E32: 0 | F32: 120 | G32: 63 | H32: 2015-01-17 | I32: N1 Ligue T1 DUNKERQUE | J32: 1/4 Finale | K32: 2014-2015 | P32: 1 | R32: 0
A33: DECONINCK Franky | B33: DEVOS Jackie | C33: G | D33: 2 | E33: 0 | F33: 120 | G33: 99 | H33: 2015-01-17 | I33: N1 Ligue T1 DUNKERQUE | J33: 1/2 Finale | K33: 2014-2015 | P33: 1 | R33: 0
A34: DECONINCK Franky | B34: GEETS Patrice | C34: G | D34: 2 | E34: 0 | F34: 120 | G34: 96 | H34: 2015-01-17 | I34: N1 Ligue T1 DUNKERQUE | J34: Finale | K34: 2014-2015 | P34: 1 | R34: 0
A35: DECONINCK Franky | B35: CAUX Frédéric | C35: G | D35: 2 | E35: 0 | F35: 120 | G35: 89 | H35: 2015-02-07 | I35: N1 Ligue T2 CALAIS | J35: Poules | K35: 2014-2015 | P35: 1 | R35: 0
A36: DECONINCK Franky | B36: TRIPLET Gilbert | C36: G | D36: 2 | E36: 1 | F36: 176 | G36: 147 | H36: 2015-02-07 | I36: N1 Ligue T2 CALAIS | J36: Poules | K36: 2014-2015 | P36: 1 | R36: 0
A37: DECONINCK Franky | B37: DEPLECHIN Robert | C37: P | D37: 1 | E37: 2 | F37: 146 | G37: 151 | H37: 2015-02-07 | I37: N1 Ligue T2 CALAIS | J37: 1/8 Finale | K37: 2014-2015 | P37: 0 | R37: 0
A38: DECONINCK Franky | B38: WALLART Jean-Charles | C38: P | D38: 1 | E38: 2 | F38: 143 | G38: 147 | H38: 2015-03-14 | I38: N1 Ligue T3 ANNOEULLIN | J38: Poules | K38: 2014-2015 | P38: 0 | R38: 0
A39: DECONINCK Franky | B39: LUBREZ Pierre | C39: G | D39: 2 | E39: 0 | F39: 120 | G39: 94 | H39: 2015-03-14 | I39: N1 Ligue T3 ANNOEULLIN | J39: Poules | K39: 2014-2015 | P39: 1 | R39: 0
A40: DECONINCK Franky | B40: LEMÂTRE Jérémy | C40: P | D40: 1 | E40: 2 | F40: 133 | G40: 168 | H40: 2015-03-14 | I40: N1 Ligue T3 ANNOEULLIN | J40: 1/4 Finale | K40: 2014-2015 | P40: 0 | R40: 0
A41: DECONINCK Franky | B41: DEPLECHIN Robert | C41: G | D41: 3 | E41: 0 | F41: 180 | G41: 62 | H41: 2015-04-19 | I41: FINALE LIGUE N1 GRAVELINES | J41: Poules | K41: 2014-2015 | P41: 1 | R41: 0
A42: DECONINCK Franky | B42: LEMÂTRE Alexis | C42: G | D42: 3 | E42: 2 | F42: 253 | G42: 232 | H42: 2015-04-19 | I42: FINALE LIGUE N1 GRAVELINES | J42: Poules | K42: 2014-2015 | P42: 1 | R42: 0
A43: DECONINCK Franky | B43: POULEYN André | C43: G | D43: 3 | E43: 1 | F43: 234 | G43: 180 | H43: 2015-04-19 | I43: FINALE LIGUE N1 GRAVELINES | J43: 1/2 Finale | K43: 2014-2015 | P43: 1 | R43: 0
A44: DECONINCK Franky | B44: LEMÂTRE Jérémy | C44: P | D44: 1 | E44: 3 | F44: 171 | G44: 219 | H44: 2015-04-19 | I44: FINALE LIGUE N1 GRAVELINES | J44: Finale | K44: 2014-2015 | P44: 0 | R44: 0
A45: Fin des données | P45: =IF($K45=P$1,COUNTIF($C45,"G"),0) -> 0 | R45: =IF($K45=R$1,COUNTIF($C45,"G"),0) -> 0

Sheet DELEPIERRE Patrick
A1: DELEPIERRE Patrick | P1: =Récapitulatif!$B$2 -> 2014-2015 | R1: =Récapitulatif!$B$3 -> 2015-2016 | T1: Toutes saisons
A2: FACHES-THUMESNIL | P2: Nombre | Q2: %age | R2: Nombre | S2: %age | T2: Nombre | U2: %age
A3: 109142-U | N3: Matchs | O3: Gagnés | P3: =SUM(P$15:P$65) -> 0 | Q3: =IF(P$3+P$4>0,P3/(P$3+P$4),"") ->  | R3: =SUM(R$15:R$65) -> 0 | S3: =IF(R$3+R$4>0,R3/(R$3+R$4),"") ->  | T3: =COUNTIF($C$15:$C$65,"G") -> 14 | U3: =IF(T$3+T$4>0,T3/(T$3+T$4),"") -> 0.2857142857
O4: Perdus | P4: =COUNTIF($K$15:$K$65,Récapitulatif!$B$2)-P3 -> 0 | Q4: =IF(P$3+P$4>0,P4/(P$3+P$4),"") ->  | R4: =COUNTIF($K$15:$K$65,Récapitulatif!$B$3)-R3 -> 0 | S4: =IF(R$3+R$4>0,R4/(R$3+R$4),"") ->  | T4: =COUNTIF($C$15:$C$65,"P") -> 35 | U4: =IF(T$3+T$4>0,T4/(T$3+T$4),"") -> 0.7142857143
O5: Total / Moy. | P5: =SUM(P3:P4) -> 0 | Q5: =IF(SUMIF($K$15:$K$65,Récapitulatif!$B$2,$G$15:$G$65)>0,SUMIF($K$15:$K$65,Récapitulatif!$B$2,$F$15:$F$65)/SUMIF($K$15:$K$65,Récapitulatif!$B$2,$G$15:$G$65),"") ->  | R5: =SUM(R3:R4) -> 0 | S5: =IF(SUMIF($K$15:$K$65,Récapitulatif!$B$3,$G$15:$G$65)>0,SUMIF($K$15:$K$65,Récapitulatif!$B$3,$F$15:$F$65)/SUMIF($K$15:$K$65,Récapitulatif!$B$3,$G$15:$G$65),"") ->  | T5: =SUM(T3:T4) -> 49 | U5: =IF(SUM($G$15:$G$65)>0,SUM($F$15:$F$65)/SUM($G$15:$G$65),"") -> 0.7784963622 | V5: =IF(SUMIF($K$15:$K$65,Récapitulatif!$B$2,$G$15:$G$65)+SUMIF($K$15:$K$65,Récapitulatif!$B$3,$G$15:$G$65)>0,(SUMIF($K$15:$K$65,Récapitulatif!$B$2,$F$15:$F$65)+SUMIF($K$15:$K$65,Récapitulatif!$B$3,$F$15:$F$65))/(SUMIF($K$15:$K$65,Récapitulatif!$B$2,$G$15:$G$65)+SUMIF($K$15:$K$65,Récapitulatif!$B$3,$G$15:$G$65)),"") -> 
N6: Sets | O6: Gagnés | P6: =SUMIF($K$15:$K$65,Récapitulatif!$B$2,$D$15:$D$65) -> 0 | Q6: =IF(P$6+P$7>0,P6/(P$6+P$7),"") ->  | R6: =SUMIF($K$15:$K$65,Récapitulatif!$B$3,$D$15:$D$65) -> 0 | S6: =IF(R$6+R$7>0,R6/(R$6+R$7),"") ->  | T6: =SUM($D$15:$D$65) -> 43 | U6: =IF(T$6+T$7>0,T6/(T$6+T$7),"") -> 0.3161764706
O7: Perdus | P7: =SUMIF($K$15:$K$65,Récapitulatif!$B$2,$E$15:$E$65) -> 0 | Q7: =IF(P$6+P$7>0,P7/(P$6+P$7),"") ->  | R7: =SUMIF($K$15:$K$65,Récapitulatif!$B$3,$E$15:$E$65) -> 0 | S7: =IF(R$6+R$7>0,R7/(R$6+R$7),"") ->  | T7: =SUM($E$15:$E$65) -> 93 | U7: =IF(T$6+T$7>0,T7/(T$6+T$7),"") -> 0.6838235294
A8: Récapitulatif joueurs | O8: Total | P8: =SUM(P6:P7) -> 0 | R8: =SUM(R6:R7) -> 0 | T8: =SUM(T6:T7) -> 136
A15: Joueur | B15: Adversaire | C15: G/P | D15: Sets gagnés | E15: Sets perdus | F15: pts marqués | G15: pts subis | H15: Date | I15: Compétition | J15: Phase | K15: Saison
A16: DELEPIERRE Patrick | B16: GONTHIER Arnaud | C16: P | D16: 0 | E16: 2 | F16: 87 | G16: 120 | H16: 2008-10-10 | I16: National T1 MAISONS ALFORT | J16: Préqualifs | K16: =IF(H16<>"",IF(MONTH(H16)>MoisRef,YEAR(H16)&"-"&YEAR(H16)+1,YEAR(H16)-1&"-"&YEAR(H16)),"") -> 2008-2009 | P16: =IF($K16=P$1,COUNTIF($C16,"G"),0) -> 0 | R16: =IF($K16=R$1,COUNTIF($C16,"G"),0) -> 0
A17: DELEPIERRE Patrick | B17: MICHEL Louis | C17: P | D17: 1 | E17: 2 | F17: 134 | G17: 149 | H17: 2008-10-10 | I17: National T1 MAISONS ALFORT | J17: Préqualifs | K17: 2008-2009 | P17: 0 | R17: 0
A18: DELEPIERRE Patrick | B18: SAINT-GEORGES Claude | C18: P | D18: 0 | E18: 2 | F18: 43 | G18: 120 | H18: 2008-10-10 | I18: National T1 MAISONS ALFORT | J18: Préqualifs | K18: 2008-2009 | P18: 0 | R18: 0
A19: DELEPIERRE Patrick | B19: DAVOINE Bruno | C19: P | D19: 0 | E19: 2 | F19: 87 | G19: 120 | H19: 2008-11-14 | I19: National T2 SCHILTIGHEIM | J19: Préqualifs | K19: 2008-2009 | P19: 0 | R19: 0
A20: DELEPIERRE Patrick | B20: SCHUB Philippe | C20: P | D20: 0 | E20: 2 | F20: 84 | G20: 120 | H20: 2008-11-14 | I20: National T2 SCHILTIGHEIM | J20: Préqualifs | K20: 2008-2009 | P20: 0 | R20: 0
A21: DELEPIERRE Patrick | B21: BOUVIER Philippe | C21: P | D21: 1 | E21: 2 | F21: 124 | G21: 170 | H21: 2008-11-14 | I21: National T2 SCHILTIGHEIM | J21: Préqualifs | K21: 2008-2009 | P21: 0 | R21: 0
A22: DELEPIERRE Patrick | B22: LORTHIOIR Jean-Luc | C22: G | D22: 2 | E22: 1 | F22: 151 | G22: 150 | H22: 2008-12-12 | I22: National T3 ANNOEULLIN | J22: Préqualifs | K22: 2008-2009 | P22: 0 | R22: 0
A23: DELEPIERRE Patrick | B23: GUILLEMANT Jean-Marc | C23: P | D23: 0 | E23: 2 | F23: 71 | G23: 120 | H23: 2008-12-12 | I23: National T3 ANNOEULLIN | J23: Préqualifs | K23: 2008-2009 | P23: 0 | R23: 0
A24: DELEPIERRE Patrick | B24: TIRALONGO Sébastien | C24: P | D24: 0 | E24: 2 | F24: 86 | G24: 120 | H24: 2008-12-12 | I24: National T3 ANNOEULLIN | J24: Préqualifs | K24: 2008-2009 | P24: 0 | R24: 0
A25: DELEPIERRE Patrick | B25: DAVOINE Bruno | C25: P | D25: 0 | E25: 2 | F25: 68 | G25: 120 | H25: 2009-02-06 | I25: National T4 LAXOU | J25: Préqualifs | K25: 2008-2009 | P25: 0 | R25: 0
A26: DELEPIERRE Patrick | B26: EVENOU Roger | C26: P | D26: 0 | E26: 2 | F26: 77 | G26: 120 | H26: 2009-02-06 | I26: National T4 LAXOU | J26: Préqualifs | K26: 2008-2009 | P26: 0 | R26: 0
A27: DELEPIERRE Patrick | B27: PAU Mariano | C27: P | D27: 1 | E27: 2 | F27: 91 | G27: 173 | H27: 2009-02-06 | I27: National T4 LAXOU | J27: Préqualifs | K27: 2008-2009 | P27: 0 | R27: 0
A28: DELEPIERRE Patrick | B28: ZACCAGNINI Antoine | C28: P | D28: 0 | E28: 3 | F28: 152 | G28: 180 | H28: 2009-02-07 | I28: National T4 LAXOU | J28: Qualifs promotion | K28: 2008-2009 | P28: 0 | R28: 0
A29: DELEPIERRE Patrick | B29: EVENOU Roger | C29: G | D29: 3 | E29: 0 | F29: 180 | G29: 127 | H29: 2009-02-07 | I29: National T4 LAXOU | J29: Qualifs promotion | K29: 2008-2009 | P29: 0 | R29: 0
A30: DELEPIERRE Patrick | B30: ZACCAGNINI Antoine | C30: P | D30: 0 | E30: 3 | F30: 99 | G30: 180 | H30: 2009-02-07 | I30: National T4 LAXOU | J30: Qualifs promotion | K30: 2008-2009 | P30: 0 | R30: 0
A31: DELEPIERRE Patrick | B31: FOURRE Cédric | C31: P | D31: 0 | E31: 2 | F31: 84 | G31: 120 | H31: 2009-03-20 | I31: National T5 ANDERNOS | J31: Préqualifs | K31: 2008-2009 | P31: 0 | R31: 0
A32: DELEPIERRE Patrick | B32: EVENOU Marie-Antoinette | C32: G | D32: 2 | E32: 0 | F32: 120 | G32: 109 | H32: 2009-03-20 | I32: National T5 ANDERNOS | J32: Préqualifs | K32: 2008-2009 | P32: 0 | R32: 0
A33: DELEPIERRE Patrick | B33: DAVOINE Bruno | C33: P | D33: 0 | E33: 2 | F33: 49 | G33: 120 | H33: 2009-03-20 | I33: National T5 ANDERNOS | J33: Préqualifs | K33: 2008-2009 | P33: 0 | R33: 0
A34: DELEPIERRE Patrick | B34: FOURRE Cédric | C34: P | D34: 0 | E34: 3 | F34: 86 | G34: 180 | H34: 2009-03-21 | I34: National T5 ANDERNOS | J34: Qualifs promotion | K34: 2008-2009 | P34: 0 | R34: 0
A35: DELEPIERRE Patrick | B35: PALOMBA Sergio | C35: G | D35: 3 | E35: 2 | F35: 281 | G35: 234 | H35: 2009-03-21 | I35: National T5 ANDERNOS | J35: Qualifs promotion | K35: 2008-2009 | P35: 0 | R35: 0
A36: DELEPIERRE Patrick | B36: BAYON Pascal | C36: P | D36: 0 | E36: 3 | F36: 97 | G36: 180 | H36: 2009-03-21 | I36: National T5 ANDERNOS | J36: Qualifs promotion | K36: 2008-2009 | P36: 0 | R36: 0
A37: DELEPIERRE Patrick | B37: DEBRAY Alain | C37: P | D37: 0 | E37: 2 | F37: 77 | G37: 120 | H37: 2009-12-04 | I37: National T2 ANNOEULLIN | J37: Préqualifs | K37: 2009-2010 | P37: 0 | R37: 0
A38: DELEPIERRE Patrick | B38: ALEXANDRE Michel | C38: P | D38: 1 | E38: 2 | F38: 144 | G38: 169 | H38: 2009-12-04 | I38: National T2 ANNOEULLIN | J38: Préqualifs | K38: 2009-2010 | P38: 0 | R38: 0
A39: DELEPIERRE Patrick | B39: MAILLE Bernard | C39: P | D39: 0 | E39: 2 | F39: 48 | G39: 120 | H39: 2009-12-04 | I39: National T2 ANNOEULLIN | J39: Préqualifs | K39: 2009-2010 | P39: 0 | R39: 0
A40: DELEPIERRE Patrick | B40: DAVOINE Bruno | C40: P | D40: 0 | E40: 2 | F40: 60 | G40: 120 | H40: 2010-01-29 | I40: National T3 ORLEANS | J40: Préqualifs | K40: 2009-2010 | P40: 0 | R40: 0
A41: DELEPIERRE Patrick | B41: PAILLART Jean-Paul | C41: G | D41: 2 | E41: 0 | F41: 120 | G41: 71 | H41: 2010-01-29 | I41: National T3 ORLEANS | J41: Préqualifs | K41: 2009-2010 | P41: 0 | R41: 0
A42: DELEPIERRE Patrick | B42: ZILLIG Pierre | C42: P | D42: 1 | E42: 2 | F42: 98 | G42: 176 | H42: 2010-01-29 | I42: National T3 ORLEANS | J42: Préqualifs | K42: 2009-2010 | P42: 0 | R42: 0
A43: DELEPIERRE Patrick | B43: ROBIC Daniel | C43: G | D43: 3 | E43: 2 | F43: 250 | G43: 256 | H43: 2010-01-30 | I43: National T3 ORLEANS | J43: Qualifs promotion | K43: 2009-2010 | P43: 0 | R43: 0
A44: DELEPIERRE Patrick | B44: ZACCAGNINI Antoine | C44: P | D44: 0 | E44: 3 | F44: 117 | G44: 180 | H44: 2010-01-30 | I44: National T3 ORLEANS | J44: Qualifs promotion | K44: 2009-2010 | P44: 0 | R44: 0
A45: DELEPIERRE Patrick | B45: MAIZOUE Alain | C45: G | D45: 3 | E45: 2 | F45: 233 | G45: 236 | H45: 2010-01-30 | I45: National T3 ORLEANS | J45: Qualifs promotion | K45: 2009-2010 | P45: 0 | R45: 0
A46: DELEPIERRE Patrick | B46: ZACCAGNINI Antoine | C46: P | D46: 0 | E46: 3 | F46: 112 | G46: 180 | H46: 2010-01-31 | I46: National T3 ORLEANS | J46: 1/8 finale promotion | K46: 2009-2010 | P46: 0 | R46: 0
A47: DELEPIERRE Patrick | B47: DAVOINE Bruno | C47: P | D47: 0 | E47: 2 | F47: 60 | G47: 120 | H47: 2010-01-29 | I47: National T3 ORLEANS | J47: Préqualifs | K47: 2009-2010 | P47: 0 | R47: 0
A48: DELEPIERRE Patrick | B48: PAILLART Jean-Paul | C48: G | D48: 2 | E48: 0 | F48: 120 | G48: 71 | H48: 2010-01-29 | I48: National T3 ORLEANS | J48: Préqualifs | K48: 2009-2010 | P48: 0 | R48: 0
A49: DELEPIERRE Patrick | B49: ZILLIG Pierre | C49: P | D49: 1 | E49: 2 | F49: 98 | G49: 176 | H49: 2010-01-29 | I49: National T3 ORLEANS | J49: Préqualifs | K49: 2009-2010 | P49: 0 | R49: 0
A50: DELEPIERRE Patrick | B50: ROBIC Daniel | C50: G | D50: 3 | E50: 2 | F50: 250 | G50: 256 | H50: 2010-01-30 | I50: National T3 ORLEANS | J50: Qualifs promotion | K50: 2009-2010 | P50: 0 | R50: 0
A51: DELEPIERRE Patrick | B51: ZACCAGNINI Antoine | C51: P | D51: 0 | E51: 3 | F51: 117 | G51: 180 | H51: 2010-01-30 | I51: National T3 ORLEANS | J51: Qualifs promotion | K51: 2009-2010 | P51: 0 | R51: 0
A52: DELEPIERRE Patrick | B52: MAIZOUE Alain | C52: G | D52: 3 | E52: 2 | F52: 233 | G52: 236 | H52: 2010-01-30 | I52: National T3 ORLEANS | J52: Qualifs promotion | K52: 2009-2010 | P52: 0 | R52: 0
A53: DELEPIERRE Patrick | B53: ZACCAGNINI Antoine | C53: P | D53: 0 | E53: 3 | F53: 112 | G53: 180 | H53: 2010-01-31 | I53: National T3 ORLEANS | J53: 1/8 finale promotion | K53: 2009-2010 | P53: 0 | R53: 0
A54: DELEPIERRE Patrick | B54: GOUSSETIS Georges | C54: G | D54: 2 | E54: 0 | F54: 120 | G54: 80 | H54: 2010-02-26 | I54: National T4 ROUEN | J54: Préqualifs | K54: 2009-2010 | P54: 0 | R54: 0
A55: DELEPIERRE Patrick | B55: HORNECKER Benoît | C55: G | D55: 2 | E55: 0 | F55: 120 | G55: 65 | H55: 2010-02-26 | I55: National T4 ROUEN | J55: Préqualifs | K55: 2009-2010 | P55: 0 | R55: 0
A56: DELEPIERRE Patrick | B56: BAYON Pascal | C56: P | D56: 0 | E56: 2 | F56: 52 | G56: 120 | H56: 2010-02-26 | I56: National T4 ROUEN | J56: Préqualifs | K56: 2009-2010 | P56: 0 | R56: 0
A57: DELEPIERRE Patrick | B57: DEMILLY Jean-Sébastien | C57: P | D57: 0 | E57: 3 | F57: 104 | G57: 180 | H57: 2010-02-27 | I57: National T4 ROUEN | J57: Qualifs promotion | K57: 2009-2010 | P57: 0 | R57: 0
A58: DELEPIERRE Patrick | B58: SORTAIS Claude | C58: P | D58: 0 | E58: 3 | F58: 114 | G58: 180 | H58: 2010-02-27 | I58: National T4 ROUEN | J58: Qualifs promotion | K58: 2009-2010 | P58: 0 | R58: 0
A59: DELEPIERRE Patrick | B59: CAUX Frédéric | C59: P | D59: 1 | E59: 2 | F59: 155 | G59: 176 | H59: 2010-03-26 | I59: National T5 ST SEBASTIEN / LOIRE | J59: Préqualifs | K59: 2009-2010 | P59: 0 | R59: 0
A60: DELEPIERRE Patrick | B60: ZACCAGNINI Antoine | C60: P | D60: 0 | E60: 2 | F60: 44 | G60: 120 | H60: 2010-03-26 | I60: National T5 ST SEBASTIEN / LOIRE | J60: Préqualifs | K60: 2009-2010 | P60: 0 | R60: 0
A61: DELEPIERRE Patrick | B61: BLANC J. | C61: G | D61: 2 | E61: 0 | F61: 120 | G61: 116 | H61: 2010-03-26 | I61: National T5 ST SEBASTIEN / LOIRE | J61: Préqualifs | K61: 2009-2010 | P61: 0 | R61: 0
A62: DELEPIERRE Patrick | B62: JUBLOT Denis | C62: P | D62: 0 | E62: 3 | F62: 113 | G62: 180 | H62: 2010-03-27 | I62: National T5 ST SEBASTIEN / LOIRE | J62: Qualifs promotion | K62: 2009-2010 | P62: 0 | R62: 0
A63: DELEPIERRE Patrick | B63: FRAUDEAU Michel | C63: G | D63: 3 | E63: 0 | F63: 180 | G63: 110 | H63: 2010-03-27 | I63: National T5 ST SEBASTIEN / LOIRE | J63: Qualifs promotion | K63: 2009-2010 | P63: 0 | R63: 0
A64: DELEPIERRE Patrick | B64: JUBLOT Denis | C64: P | D64: 1 | E64: 3 | F64: 156 | G64: 216 | H64: 2010-03-27 | I64: National T5 ST SEBASTIEN / LOIRE | J64: Qualifs promotion | K64: 2009-2010 | P64: 0 | R64: 0
A65: Fin des données | P65: =IF($K65=P$1,COUNTIF($C65,"G"),0) -> 0 | R65: =IF($K65=R$1,COUNTIF($C65,"G"),0) -> 0

Sheet DELFORGE Benjamin
A1: DELFORGE Benjamin | P1: =Récapitulatif!$B$2 -> 2014-2015 | R1: =Récapitulatif!$B$3 -> 2015-2016 | T1: Toutes saisons
A2: <Club> | P2: Nombre | Q2: %age | R2: Nombre | S2: %age | T2: Nombre | U2: %age
A3: <Licence> | N3: Matchs | O3: Gagnés | P3: =SUM(P$15:P$20) -> 0 | Q3: =IF(P$3+P$4>0,P3/(P$3+P$4),"") ->  | R3: =SUM(R$15:R$20) -> 0 | S3: =IF(R$3+R$4>0,R3/(R$3+R$4),"") ->  | T3: =COUNTIF($C$15:$C$20,"G") -> 0 | U3: =IF(T$3+T$4>0,T3/(T$3+T$4),"") -> 0
A4: <Tel> | O4: Perdus | P4: =COUNTIF($K$15:$K$20,Récapitulatif!$B$2)-P3 -> 0 | Q4: =IF(P$3+P$4>0,P4/(P$3+P$4),"") ->  | R4: =COUNTIF($K$15:$K$20,Récapitulatif!$B$3)-R3 -> 0 | S4: =IF(R$3+R$4>0,R4/(R$3+R$4),"") ->  | T4: =COUNTIF($C$15:$C$20,"P") -> 4 | U4: =IF(T$3+T$4>0,T4/(T$3+T$4),"") -> 1
A5: <email> | O5: Total / Moy. | P5: =SUM(P3:P4) -> 0 | Q5: =IF(SUMIF($K$15:$K$20,Récapitulatif!$B$2,$G$15:$G$20)>0,SUMIF($K$15:$K$20,Récapitulatif!$B$2,$F$15:$F$20)/SUMIF($K$15:$K$20,Récapitulatif!$B$2,$G$15:$G$20),"") ->  | R5: =SUM(R3:R4) -> 0 | S5: =IF(SUMIF($K$15:$K$20,Récapitulatif!$B$3,$G$15:$G$20)>0,SUMIF($K$15:$K$20,Récapitulatif!$B$3,$F$15:$F$20)/SUMIF($K$15:$K$20,Récapitulatif!$B$3,$G$15:$G$20),"") ->  | T5: =SUM(T3:T4) -> 4 | U5: =IF(SUM($G$15:$G$20)>0,SUM($F$15:$F$20)/SUM($G$15:$G$20),"") -> 0.425 | V5: =IF(SUMIF($K$15:$K$20,Récapitulatif!$B$2,$G$15:$G$20)+SUMIF($K$15:$K$20,Récapitulatif!$B$3,$G$15:$G$20)>0,(SUMIF($K$15:$K$20,Récapitulatif!$B$2,$F$15:$F$20)+SUMIF($K$15:$K$20,Récapitulatif!$B$3,$F$15:$F$20))/(SUMIF($K$15:$K$20,Récapitulatif!$B$2,$G$15:$G$20)+SUMIF($K$15:$K$20,Récapitulatif!$B$3,$G$15:$G$20)),"") -> 
N6: Sets | O6: Gagnés | P6: =SUMIF($K$15:$K$20,Récapitulatif!$B$2,$D$15:$D$20) -> 0 | Q6: =IF(P$6+P$7>0,P6/(P$6+P$7),"") ->  | R6: =SUMIF($K$15:$K$20,Récapitulatif!$B$3,$D$15:$D$20) -> 0 | S6: =IF(R$6+R$7>0,R6/(R$6+R$7),"") ->  | T6: =SUM($D$15:$D$20) -> 0 | U6: =IF(T$6+T$7>0,T6/(T$6+T$7),"") -> 0
O7: Perdus | P7: =SUMIF($K$15:$K$20,Récapitulatif!$B$2,$E$15:$E$20) -> 0 | Q7: =IF(P$6+P$7>0,P7/(P$6+P$7),"") ->  | R7: =SUMIF($K$15:$K$20,Récapitulatif!$B$3,$E$15:$E$20) -> 0 | S7: =IF(R$6+R$7>0,R7/(R$6+R$7),"") ->  | T7: =SUM($E$15:$E$20) -> 6 | U7: =IF(T$6+T$7>0,T7/(T$6+T$7),"") -> 1
A8: Récapitulatif joueurs | O8: Total | P8: =SUM(P6:P7) -> 0 | R8: =SUM(R6:R7) -> 0 | T8: =SUM(T6:T7) -> 6
A15: Joueur | B15: Adversaire | C15: G/P | D15: Sets gagnés | E15: Sets perdus | F15: pts marqués | G15: pts subis | H15: Date | I15: Compétition | J15: Phase | K15: Saison
A16: DELFORGE Benjamin | B16: CLYNCKE Jean-Jacques | C16: P | D16: 0 | E16: 2 | F16: 49 | G16: 120 | H16: 2014-01-04 | I16: N1 Ligue T1 ANNOEULLIN | J16: Poules | K16: =IF(H16<>"",IF(MONTH(H16)>MoisRef,YEAR(H16)&"-"&YEAR(H16)+1,YEAR(H16)-1&"-"&YEAR(H16)),"") -> 2013-2014 | P16: =IF($K16=P$1,COUNTIF($C16,"G"),0) -> 0 | R16: =IF($K16=R$1,COUNTIF($C16,"G"),0) -> 0
A17: DELFORGE Benjamin | B17: SAINT-GEORGES Claude | C17: P | D17: 0 | E17: 2 | F17: 17 | G17: 120 | H17: 2014-01-04 | I17: N1 Ligue T1 ANNOEULLIN | J17: Poules | K17: =IF(H17<>"",IF(MONTH(H17)>MoisRef,YEAR(H17)&"-"&YEAR(H17)+1,YEAR(H17)-1&"-"&YEAR(H17)),"") -> 2013-2014 | P17: =IF($K17=P$1,COUNTIF($C17,"G"),0) -> 0 | R17: =IF($K17=R$1,COUNTIF($C17,"G"),0) -> 0
A18: DELFORGE Benjamin | B18: HERREBRECHT Emerick | C18: P | D18: 0 | E18: 1 | F18: 93 | G18: 100 | H18: 2014-01-04 | I18: N1 Ligue T1 ANNOEULLIN | J18: Poules Consolante | K18: =IF(H18<>"",IF(MONTH(H18)>MoisRef,YEAR(H18)&"-"&YEAR(H18)+1,YEAR(H18)-1&"-"&YEAR(H18)),"") -> 2013-2014 | P18: =IF($K18=P$1,COUNTIF($C18,"G"),0) -> 0 | R18: =IF($K18=R$1,COUNTIF($C18,"G"),0) -> 0
A19: DELFORGE Benjamin | B19: LORTHIOIR Jean-Luc | C19: P | D19: 0 | E19: 1 | F19: 28 | G19: 100 | H19: 2014-01-04 | I19: N1 Ligue T1 ANNOEULLIN | J19: Poules Consolante | K19: =IF(H19<>"",IF(MONTH(H19)>MoisRef,YEAR(H19)&"-"&YEAR(H19)+1,YEAR(H19)-1&"-"&YEAR(H19)),"") -> 2013-2014 | P19: =IF($K19=P$1,COUNTIF($C19,"G"),0) -> 0 | R19: =IF($K19=R$1,COUNTIF($C19,"G"),0) -> 0
A20: Fin des données | K20: =IF(H20<>"",IF(MONTH(H20)>MoisRef,YEAR(H20)&"-"&YEAR(H20)+1,YEAR(H20)-1&"-"&YEAR(H20)),"") ->  | P20: =IF($K20=P$1,COUNTIF($C20,"G"),0) -> 0 | R20: =IF($K20=R$1,COUNTIF($C20,"G"),0) -> 0

Sheet DELRUE André
A1: DELRUE André | P1: =Récapitulatif!$B$2 -> 2014-2015 | R1: =Récapitulatif!$B$3 -> 2015-2016 | T1: Toutes saisons
A2: VILLENEUVE D'ASCQ | P2: Nombre | Q2: %age | R2: Nombre | S2: %age | T2: Nombre | U2: %age
A3: 105710-U | N3: Matchs | O3: Gagnés | P3: =SUM(P$15:P$22) -> 0 | Q3: =IF(P$3+P$4>0,P3/(P$3+P$4),"") ->  | R3: =SUM(R$15:R$22) -> 0 | S3: =IF(R$3+R$4>0,R3/(R$3+R$4),"") ->  | T3: =COUNTIF($C$15:$C$22,"G") -> 0 | U3: =IF(T$3+T$4>0,T3/(T$3+T$4),"") -> 0
O4: Perdus | P4: =COUNTIF($K$15:$K$22,Récapitulatif!$B$2)-P3 -> 0 | Q4: =IF(P$3+P$4>0,P4/(P$3+P$4),"") ->  | R4: =COUNTIF($K$15:$K$22,Récapitulatif!$B$3)-R3 -> 0 | S4: =IF(R$3+R$4>0,R4/(R$3+R$4),"") ->  | T4: =COUNTIF($C$15:$C$22,"P") -> 6 | U4: =IF(T$3+T$4>0,T4/(T$3+T$4),"") -> 1
O5: Total / Moy. | P5: =SUM(P3:P4) -> 0 | Q5: =IF(SUMIF($K$15:$K$22,Récapitulatif!$B$2,$G$15:$G$22)>0,SUMIF($K$15:$K$22,Récapitulatif!$B$2,$F$15:$F$22)/SUMIF($K$15:$K$22,Récapitulatif!$B$2,$G$15:$G$22),"") ->  | R5: =SUM(R3:R4) -> 0 | S5: =IF(SUMIF($K$15:$K$22,Récapitulatif!$B$3,$G$15:$G$22)>0,SUMIF($K$15:$K$22,Récapitulatif!$B$3,$F$15:$F$22)/SUMIF($K$15:$K$22,Récapitulatif!$B$3,$G$15:$G$22),"") ->  | T5: =SUM(T3:T4) -> 6 | U5: =IF(SUM($G$15:$G$22)>0,SUM($F$15:$F$22)/SUM($G$15:$G$22),"") -> 0.7257876313 | V5: =IF(SUMIF($K$15:$K$22,Récapitulatif!$B$2,$G$15:$G$22)+SUMIF($K$15:$K$22,Récapitulatif!$B$3,$G$15:$G$22)>0,(SUMIF($K$15:$K$22,Récapitulatif!$B$2,$F$15:$F$22)+SUMIF($K$15:$K$22,Récapitulatif!$B$3,$F$15:$F$22))/(SUMIF($K$15:$K$22,Récapitulatif!$B$2,$G$15:$G$22)+SUMIF($K$15:$K$22,Récapitulatif!$B$3,$G$15:$G$22)),"") -> 
N6: Sets | O6: Gagnés | P6: =SUMIF($K$15:$K$22,Récapitulatif!$B$2,$D$15:$D$22) -> 0 | Q6: =IF(P$6+P$7>0,P6/(P$6+P$7),"") ->  | R6: =SUMIF($K$15:$K$22,Récapitulatif!$B$3,$D$15:$D$22) -> 0 | S6: =IF(R$6+R$7>0,R6/(R$6+R$7),"") ->  | T6: =SUM($D$15:$D$22) -> 4 | U6: =IF(T$6+T$7>0,T6/(T$6+T$7),"") -> 0.25
O7: Perdus | P7: =SUMIF($K$15:$K$22,Récapitulatif!$B$2,$E$15:$E$22) -> 0 | Q7: =IF(P$6+P$7>0,P7/(P$6+P$7),"") ->  | R7: =SUMIF($K$15:$K$22,Récapitulatif!$B$3,$E$15:$E$22) -> 0 | S7: =IF(R$6+R$7>0,R7/(R$6+R$7),"") ->  | T7: =SUM($E$15:$E$22) -> 12 | U7: =IF(T$6+T$7>0,T7/(T$6+T$7),"") -> 0.75
A8: Récapitulatif joueurs | O8: Total | P8: =SUM(P6:P7) -> 0 | R8: =SUM(R6:R7) -> 0 | T8: =SUM(T6:T7) -> 16
A15: Joueur | B15: Adversaire | C15: G/P | D15: Sets gagnés | E15: Sets perdus | F15: pts marqués | G15: pts subis | H15: Date | I15: Compétition | J15: Phase | K15: Saison
A16: DELRUE André | B16: CARPENTIER Yohanne | C16: P | D16: 0 | E16: 2 | F16: 75 | G16: 120 | H16: 2010-11-13 | I16: N1 Ligue T2 FACHES THUMESNIL | J16: Poules | K16: =IF(H16<>"",IF(MONTH(H16)>MoisRef,YEAR(H16)&"-"&YEAR(H16)+1,YEAR(H16)-1&"-"&YEAR(H16)),"") -> 2010-2011 | P16: =IF($K16=P$1,COUNTIF($C16,"G"),0) -> 0 | R16: =IF($K16=R$1,COUNTIF($C16,"G"),0) -> 0
A17: DELRUE André | B17: SAINT-GEORGES Claude | C17: P | D17: 1 | E17: 2 | F17: 127 | G17: 138 | H17: 2010-11-13 | I17: N1 Ligue T2 FACHES THUMESNIL | J17: Poules | K17: 2010-2011 | P17: 0 | R17: 0
A18: DELRUE André | B18: FAUCOMPREZ Didier | C18: P | D18: 1 | E18: 2 | F18: 95 | G18: 154 | H18: 2010-11-13 | I18: N1 Ligue T2 FACHES THUMESNIL | J18: Poules Consolante | K18: 2010-2011 | P18: 0 | R18: 0
A19: DELRUE André | B19: BASTENIER Jean | C19: P | D19: 1 | E19: 2 | F19: 119 | G19: 152 | H19: 2010-11-13 | I19: N1 Ligue T2 FACHES THUMESNIL | J19: Poules Consolante | K19: 2010-2011 | P19: 0 | R19: 0
A20: DELRUE André | B20: LORTHIOIR Jean-Luc | C20: P | D20: 1 | E20: 2 | F20: 148 | G20: 173 | H20: 2010-12-11 | I20: N1 Ligue T3 GRAVELINES | J20: Poules | K20: 2010-2011 | P20: 0 | R20: 0
A21: DELRUE André | B21: SAINT-GEORGES Claude | C21: P | D21: 0 | E21: 2 | F21: 58 | G21: 120 | H21: 2010-12-11 | I21: N1 Ligue T3 GRAVELINES | J21: Poules | K21: 2010-2011 | P21: 0 | R21: 0
A22: Fin des données | P22: 0 | R22: 0

Sheet DELSOL Philippe
A1: DELSOL Philippe | P1: =Récapitulatif!$B$2 -> 2014-2015 | R1: =Récapitulatif!$B$3 -> 2015-2016 | T1: Toutes saisons
A2: ANNOEULLIN | P2: Nombre | Q2: %age | R2: Nombre | S2: %age | T2: Nombre | U2: %age
A3: 101151-L | N3: Matchs | O3: Gagnés | P3: =SUM(P$15:P$196) -> 10 | Q3: =IF(P$3+P$4>0,P3/(P$3+P$4),"") -> 0.5263157895 | R3: =SUM(R$15:R$196) -> 14 | S3: =IF(R$3+R$4>0,R3/(R$3+R$4),"") -> 0.9333333333 | T3: =COUNTIF($C$15:$C$196,"G") -> 144 | U3: =IF(T$3+T$4>0,T3/(T$3+T$4),"") -> 0.8
A4: 06 67 69 95 10 | O4: Perdus | P4: =COUNTIF($K$15:$K$196,Récapitulatif!$B$2)-P3 -> 9 | Q4: =IF(P$3+P$4>0,P4/(P$3+P$4),"") -> 0.4736842105 | R4: =COUNTIF($K$15:$K$196,Récapitulatif!$B$3)-R3 -> 1 | S4: =IF(R$3+R$4>0,R4/(R$3+R$4),"") -> 0.06666666667 | T4: =COUNTIF($C$15:$C$196,"P") -> 36 | U4: =IF(T$3+T$4>0,T4/(T$3+T$4),"") -> 0.2
O5: Total / Moy. | P5: =SUM(P3:P4) -> 19 | Q5: =IF(SUMIF($K$15:$K$196,Récapitulatif!$B$2,$G$15:$G$196)>0,SUMIF($K$15:$K$196,Récapitulatif!$B$2,$F$15:$F$196)/SUMIF($K$15:$K$196,Récapitulatif!$B$2,$G$15:$G$196),"") -> 0.9594300894 | R5: =SUM(R3:R4) -> 15 | S5: =IF(SUMIF($K$15:$K$196,Récapitulatif!$B$3,$G$15:$G$196)>0,SUMIF($K$15:$K$196,Récapitulatif!$B$3,$F$15:$F$196)/SUMIF($K$15:$K$196,Récapitulatif!$B$3,$G$15:$G$196),"") -> 1.455513784 | T5: =SUM(T3:T4) -> 180 | U5: =IF(SUM($G$15:$G$196)>0,SUM($F$15:$F$196)/SUM($G$15:$G$196),"") -> 1.27220579 | V5: =IF(SUMIF($K$15:$K$196,Récapitulatif!$B$2,$G$15:$G$196)+SUMIF($K$15:$K$196,Récapitulatif!$B$3,$G$15:$G$196)>0,(SUMIF($K$15:$K$196,Récapitulatif!$B$2,$F$15:$F$196)+SUMIF($K$15:$K$196,Récapitulatif!$B$3,$F$15:$F$196))/(SUMIF($K$15:$K$196,Récapitulatif!$B$2,$G$15:$G$196)+SUMIF($K$15:$K$196,Récapitulatif!$B$3,$G$15:$G$196)),"") -> 1.097437685
N6: Sets | O6: Gagnés | P6: =SUMIF($K$15:$K$196,Récapitulatif!$B$2,$D$15:$D$196) -> 38 | Q6: =IF(P$6+P$7>0,P6/(P$6+P$7),"") -> 0.4691358025 | R6: =SUMIF($K$15:$K$196,Récapitulatif!$B$3,$D$15:$D$196) -> 33 | S6: =IF(R$6+R$7>0,R6/(R$6+R$7),"") -> 0.7857142857 | T6: =SUM($D$15:$D$196) -> 368 | U6: =IF(T$6+T$7>0,T6/(T$6+T$7),"") -> 0.7022900763
O7: Perdus | P7: =SUMIF($K$15:$K$196,Récapitulatif!$B$2,$E$15:$E$196) -> 43 | Q7: =IF(P$6+P$7>0,P7/(P$6+P$7),"") -> 0.5308641975 | R7: =SUMIF($K$15:$K$196,Récapitulatif!$B$3,$E$15:$E$196) -> 9 | S7: =IF(R$6+R$7>0,R7/(R$6+R$7),"") -> 0.2142857143 | T7: =SUM($E$15:$E$196) -> 156 | U7: =IF(T$6+T$7>0,T7/(T$6+T$7),"") -> 0.2977099237
A8: Récapitulatif joueurs | O8: Total | P8: =SUM(P6:P7) -> 81 | R8: =SUM(R6:R7) -> 42 | T8: =SUM(T6:T7) -> 524
A15: Joueur | B15: Adversaire | C15: G/P | D15: Sets gagnés | E15: Sets perdus | F15: pts marqués | G15: pts subis | H15: Date | I15: Compétition | J15: Phase | K15: Saison
A16: DELSOL Philippe | B16: BAYON Pascal | C16: G | D16: 2 | E16: 1 | F16: 164 | G16: 142 | H16: 2008-12-12 | I16: National T3 ANNOEULLIN | J16: Préqualifs | K16: =IF(H16<>"",IF(MONTH(H16)>MoisRef,YEAR(H16)&"-"&YEAR(H16)+1,YEAR(H16)-1&"-"&YEAR(H16)),"") -> 2008-2009 | P16: =IF($K16=P$1,COUNTIF($C16,"G"),0) -> 0 | R16: =IF($K16=R$1,COUNTIF($C16,"G"),0) -> 0
A17: DELSOL Philippe | B17: JACQ Laurent | C17: G | D17: 2 | E17: 0 | F17: 120 | G17: 91 | H17: 2008-12-12 | I17: National T3 ANNOEULLIN | J17: Préqualifs | K17: 2008-2009 | P17: 0 | R17: 0
A18: DELSOL Philippe | B18: WALLART Jean-Charles | C18: G | D18: 2 | E18: 0 | F18: 120 | G18: 57 | H18: 2008-12-12 | I18: National T3 ANNOEULLIN | J18: Préqualifs | K18: 2008-2009 | P18: 0 | R18: 0
A19: DELSOL Philippe | B19: PAILLART Jean-Paul | C19: G | D19: 3 | E19: 1 | F19: 239 | G19: 170 | H19: 2008-12-13 | I19: National T3 ANNOEULLIN | J19: Qualifs promotion | K19: 2008-2009 | P19: 0 | R19: 0
A20: DELSOL Philippe | B20: SCHUB Philippe | C20: G | D20: 3 | E20: 0 | F20: 180 | G20: 138 | H20: 2008-12-13 | I20: National T3 ANNOEULLIN | J20: Qualifs promotion | K20: 2008-2009 | P20: 0 | R20: 0
A21: DELSOL Philippe | B21: DUROYON Didier | C21: G | D21: 3 | E21: 2 | F21: 265 | G21: 231 | H21: 2008-12-14 | I21: National T3 ANNOEULLIN | J21: 1/8 finale promotion | K21: 2008-2009 | P21: 0 | R21: 0
A22: DELSOL Philippe | B22: JUBLOT Denis | C22: G | D22: 3 | E22: 1 | F22: 209 | G22: 209 | H22: 2008-12-14 | I22: National T3 ANNOEULLIN | J22: 1/4 finale promotion | K22: 2008-2009 | P22: 0 | R22: 0
A23: DELSOL Philippe | B23: HERREBRECHT Thierry | C23: P | D23: 0 | E23: 3 | F23: 158 | G23: 180 | H23: 2008-12-14 | I23: National T3 ANNOEULLIN | J23: 1/2 finale promotion | K23: 2008-2009 | P23: 0 | R23: 0
A24: DELSOL Philippe | B24: LORTHIOIR Jean-Luc | C24: G | D24: 2 | E24: 1 | F24: 162 | G24: 135 | H24: 2009-02-14 | I24: N1 Ligue T1 ARRAS | J24: Poules | K24: 2008-2009 | P24: 0 | R24: 0
A25: DELSOL Philippe | B25: TURPIN Laurent | C25: G | D25: 2 | E25: 0 | F25: 120 | G25: 61 | H25: 2009-02-14 | I25: N1 Ligue T1 ARRAS | J25: Poules | K25: 2008-2009 | P25: 0 | R25: 0
A26: DELSOL Philippe | B26: CARPENTIER Yohanne | C26: G | D26: 2 | E26: 1 | F26: 177 | G26: 145 | H26: 2009-02-14 | I26: N1 Ligue T1 ARRAS | J26: 1/4 Finale | K26: 2008-2009 | P26: 0 | R26: 0
A27: DELSOL Philippe | B27: VANNUCCI Emilio | C27: G | D27: 2 | E27: 0 | F27: 120 | G27: 57 | H27: 2009-02-14 | I27: N1 Ligue T1 ARRAS | J27: 1/2 Finale | K27: 2008-2009 | P27: 0 | R27: 0
A28: DELSOL Philippe | B28: GREMAIN Gino | C28: G | D28: 2 | E28: 1 | F28: 172 | G28: 171 | H28: 2009-02-14 | I28: N1 Ligue T1 ARRAS | J28: Finale | K28: 2008-2009 | P28: 0 | R28: 0
A29: DELSOL Philippe | B29: MARTEL Jean-Pierre | C29: G | D29: 2 | E29: 1 | F29: 174 | G29: 127 | H29: 2009-03-07 | I29: N1 Ligue T2 ANNOEULLIN | J29: Poules | K29: 2008-2009 | P29: 0 | R29: 0
A30: DELSOL Philippe | B30: HULOT Sophie | C30: G | D30: 2 | E30: 0 | F30: 120 | G30: 70 | H30: 2009-03-07 | I30: N1 Ligue T2 ANNOEULLIN | J30: Poules | K30: 2008-2009 | P30: 0 | R30: 0
A31: DELSOL Philippe | B31: SAINT-GEORGES Claude | C31: G | D31: 2 | E31: 0 | F31: 120 | G31: 66 | H31: 2009-03-07 | I31: N1 Ligue T2 ANNOEULLIN | J31: 1/4 Finale | K31: 2008-2009 | P31: 0 | R31: 0
A32: DELSOL Philippe | B32: GREMAIN Gino | C32: G | D32: 2 | E32: 0 | F32: 120 | G32: 93 | H32: 2009-03-07 | I32: N1 Ligue T2 ANNOEULLIN | J32: 1/2 Finale | K32: 2008-2009 | P32: 0 | R32: 0
A33: DELSOL Philippe | B33: GUILLEMANT Jean-Marc | C33: P | D33: 0 | E33: 2 | F33: 97 | G33: 120 | H33: 2009-03-07 | I33: N1 Ligue T2 ANNOEULLIN | J33: Finale | K33: 2008-2009 | P33: 0 | R33: 0
A34: DELSOL Philippe | B34: MANTEN Paul | C34: G | D34: 2 | E34: 0 | F34: 120 | G34: 72 | H34: 2009-11-21 | I34: N1 Ligue T1 GRAVELINES | J34: Poules | K34: 2009-2010 | P34: 0 | R34: 0
A35: DELSOL Philippe | B35: MARTEL Jean-Pierre | C35: G | D35: 2 | E35: 0 | F35: 120 | G35: 73 | H35: 2009-11-21 | I35: N1 Ligue T1 GRAVELINES | J35: Poules | K35: 2009-2010 | P35: 0 | R35: 0
A36: DELSOL Philippe | B36: LAMBIASE Guiseppe | C36: P | D36: 0 | E36: 2 | F36: 101 | G36: 120 | H36: 2009-11-21 | I36: N1 Ligue T1 GRAVELINES | J36: 1/4 Finale | K36: 2009-2010 | P36: 0 | R36: 0
A37: DELSOL Philippe | B37: WESTEEL Bruno | C37: P | D37: 1 | E37: 2 | F37: 140 | G37: 176 | H37: 2009-12-04 | I37: National T2 ANNOEULLIN | J37: Préqualifs | K37: 2009-2010 | P37: 0 | R37: 0
A38: DELSOL Philippe | B38: COTTEN Jean-Pierre | C38: P | D38: 0 | E38: 2 | F38: 74 | G38: 120 | H38: 2009-12-04 | I38: National T2 ANNOEULLIN | J38: Préqualifs | K38: 2009-2010 | P38: 0 | R38: 0
A39: DELSOL Philippe | B39: DERIU Georges | C39: G | D39: 2 | E39: 1 | F39: 179 | G39: 102 | H39: 2009-12-04 | I39: National T2 ANNOEULLIN | J39: Préqualifs | K39: 2009-2010 | P39: 0 | R39: 0
A40: DELSOL Philippe | B40: HERREBRECHT Thierry | C40: P | D40: 1 | E40: 3 | F40: 132 | G40: 232 | H40: 2009-12-05 | I40: National T2 ANNOEULLIN | J40: Qualifs promotion | K40: 2009-2010 | P40: 0 | R40: 0
A41: DELSOL Philippe | B41: GEETS Patrice | C41: P | D41: 1 | E41: 3 | F41: 205 | G41: 212 | H41: 2009-12-05 | I41: National T2 ANNOEULLIN | J41: Qualifs promotion | K41: 2009-2010 | P41: 0 | R41: 0
A42: DELSOL Philippe | B42: LORTHIOIR Jean-Luc | C42: G | D42: 2 | E42: 0 | F42: 120 | G42: 39 | H42: 2009-12-19 | I42: N1 Ligue T2 ANNOEULLIN | J42: Poules | K42: 2009-2010 | P42: 0 | R42: 0
A43: DELSOL Philippe | B43: HORNAIN Denis | C43: G | D43: 2 | E43: 0 | F43: 120 | G43: 55 | H43: 2009-12-19 | I43: N1 Ligue T2 ANNOEULLIN | J43: Poules | K43: 2009-2010 | P43: 0 | R43: 0
A44: DELSOL Philippe | B44: WALLART Jean-Charles | C44: G | D44: 2 | E44: 0 | F44: 120 | G44: 59 | H44: 2009-12-19 | I44: N1 Ligue T2 ANNOEULLIN | J44: 1/4 Finale | K44: 2009-2010 | P44: 0 | R44: 0
A45: DELSOL Philippe | B45: GUILLEMANT David | C45: G | D45: 2 | E45: 1 | F45: 158 | G45: 152 | H45: 2009-12-19 | I45: N1 Ligue T2 ANNOEULLIN | J45: 1/2 Finale | K45: 2009-2010 | P45: 0 | R45: 0
A46: DELSOL Philippe | B46: LHERMITTE Cédric | C46: G | D46: 2 | E46: 0 | F46: 120 | G46: 50 | H46: 2009-12-19 | I46: N1 Ligue T2 ANNOEULLIN | J46: Finale | K46: 2009-2010 | P46: 0 | R46: 0
A47: DELSOL Philippe | B47: RACARY Thibault | C47: G | D47: 2 | E47: 1 | F47: 162 | G47: 137 | H47: 2010-01-16 | I47: N1 Ligue T3 ANNOEULLIN | J47: Poules | K47: 2009-2010 | P47: 0 | R47: 0
A48: DELSOL Philippe | B48: MARTEL Jean-Pierre | C48: G | D48: 2 | E48: 0 | F48: 120 | G48: 59 | H48: 2010-01-16 | I48: N1 Ligue T3 ANNOEULLIN | J48: Poules | K48: 2009-2010 | P48: 0 | R48: 0
A49: DELSOL Philippe | B49: GUILLEMANT David | C49: G | D49: 2 | E49: 1 | F49: 170 | G49: 173 | H49: 2010-01-16 | I49: N1 Ligue T3 ANNOEULLIN | J49: 1/4 Finale | K49: 2009-2010 | P49: 0 | R49: 0
A50: DELSOL Philippe | B50: GREMAIN Gino | C50: G | D50: 2 | E50: 0 | F50: 120 | G50: 89 | H50: 2010-01-16 | I50: N1 Ligue T3 ANNOEULLIN | J50: 1/2 Finale | K50: 2009-2010 | P50: 0 | R50: 0
A51: DELSOL Philippe | B51: LAMBIASE Guiseppe | C51: P | D51: 0 | E51: 2 | F51: 70 | G51: 120 | H51: 2010-01-16 | I51: N1 Ligue T3 ANNOEULLIN | J51: Finale | K51: 2009-2010 | P51: 0 | R51: 0
A52: DELSOL Philippe | B52: HERREBRECHT Thierry | C52: G | D52: 2 | E52: 0 | F52: 120 | G52: 106 | H52: 2009-05-09 | I52: Finale Ligue N1 ANNOEULLIN | J52: Poules | K52: 2008-2009 | P52: 0 | R52: 0
A53: DELSOL Philippe | B53: MAILLE Bernard | C53: G | D53: 2 | E53: 1 | F53: 153 | G53: 123 | H53: 2009-05-09 | I53: Finale Ligue N1 ANNOEULLIN | J53: Poules | K53: 2008-2009 | P53: 0 | R53: 0
A54: DELSOL Philippe | B54: SAINT-GEORGES Claude | C54: G | D54: 3 | E54: 0 | F54: 180 | G54: 110 | H54: 2009-05-09 | I54: Finale Ligue N1 ANNOEULLIN | J54: 1/2 finale | K54: 2008-2009 | P54: 0 | R54: 0
A55: DELSOL Philippe | B55: HERREBRECHT Thierry | C55: P | D55: 2 | E55: 3 | F55: 255 | G55: =180+16+41 -> 237 | H55: 2009-05-09 | I55: Finale Ligue N1 ANNOEULLIN | J55: Finale | K55: 2008-2009 | P55: 0 | R55: 0
A56: DELSOL Philippe | B56: WALLART Jean-Charles | C56: G | D56: 3 | E56: 2 | F56: 259 | G56: 226 | H56: 2010-04-18 | I56: Finale Ligue N1 ANNOEULLIN | J56: Poules | K56: 2009-2010 | P56: 0 | R56: 0
A57: DELSOL Philippe | B57: LHERMITTE Cédric | C57: G | D57: 3 | E57: 1 | F57: 223 | G57: 196 | H57: 2010-04-18 | I57: Finale Ligue N1 ANNOEULLIN | J57: Poules | K57: 2009-2010 | P57: 0 | R57: 0
A58: DELSOL Philippe | B58: LAMBIASE Guiseppe | C58: G | D58: 3 | E58: 1 | F58: 235 | G58: 177 | H58: 2010-04-21 | I58: Finale Ligue N1 ANNOEULLIN | J58: 1/2 finale | K58: 2009-2010 | P58: 0 | R58: 0
A59: DELSOL Philippe | B59: LHERMITTE Cédric | C59: G | D59: 3 | E59: 0 | F59: 180 | G59: 91 | H59: 2010-04-27 | I59: Finale Ligue N1 ANNOEULLIN | J59: Finale | K59: 2009-2010 | P59: 0 | R59: 0
A60: DELSOL Philippe | B60: MAILLE Bernard | C60: G | D60: 3 | E60: 0 | F60: 180 | G60: 79 | H60: 2010-05-15 | I60: National BLOIS | J60: Qualifications | K60: 2009-2010 | P60: 0 | R60: 0
A61: DELSOL Philippe | B61: GUILLEMANT David | C61: P | D61: 0 | E61: 3 | F61: 119 | G61: 180 | H61: 2010-05-15 | I61: National BLOIS | J61: Qualifications | K61: 2009-2010 | P61: 0 | R61: 0
A62: DELSOL Philippe | B62: MICHELOTTI Francesco | C62: P | D62: 1 | E62: 3 | F62: 183 | G62: 220 | H62: 2010-05-15 | I62: National BLOIS | J62: Qualifications | K62: 2009-2010 | P62: 0 | R62: 0
A63: DELSOL Philippe | B63: CAQUELOT Maurice | C63: G | D63: 2 | E63: 0 | F63: 120 | G63: 52 | H63: 2010-10-16 | I63: N1 Ligue T1 DOUAI | J63: Poules | K63: 2010-2011 | P63: 0 | R63: 0
A64: DELSOL Philippe | B64: LECROART Serge | C64: G | D64: 2 | E64: 0 | F64: 120 | G64: 67 | H64: 2010-10-16 | I64: N1 Ligue T1 DOUAI | J64: Poules | K64: 2010-2011 | P64: 0 | R64: 0
A65: DELSOL Philippe | B65: CAUX Frédéric | C65: G | D65: 2 | E65: 0 | F65: 120 | G65: 38 | H65: 2010-10-16 | I65: N1 Ligue T1 DOUAI | J65: 1/8 Finale | K65: 2010-2011 | P65: 0 | R65: 0
A66: DELSOL Philippe | B66: RACARY Thibault | C66: G | D66: 2 | E66: 0 | F66: 120 | G66: 96 | H66: 2010-10-16 | I66: N1 Ligue T1 DOUAI | J66: 1/4 Finale | K66: 2010-2011 | P66: 0 | R66: 0
A67: DELSOL Philippe | B67: WESTEEL Bruno | C67: P | D67: 1 | E67: 2 | F67: 164 | G67: 140 | H67: 2010-10-16 | I67: N1 Ligue T1 DOUAI | J67: 1/2 Finale | K67: 2010-2011 | P67: 0 | R67: 0
A68: DELSOL Philippe | B68: LORTHIOIR Jean-Luc | C68: G | D68: 2 | E68: 0 | F68: 120 | G68: 17 | H68: 2010-11-13 | I68: N1 Ligue T2 FACHES THUMESNIL | J68: Poules | K68: 2010-2011 | P68: 0 | R68: 0
A69: DELSOL Philippe | B69: SKORDILIS Christo | C69: G | D69: 2 | E69: 0 | F69: 120 | G69: 77 | H69: 2010-11-13 | I69: N1 Ligue T2 FACHES THUMESNIL | J69: Poules | K69: 2010-2011 | P69: 0 | R69: 0
A70: DELSOL Philippe | B70: POULEYN André | C70: G | D70: 2 | E70: 0 | F70: 120 | G70: 35 | H70: 2010-11-13 | I70: N1 Ligue T2 FACHES THUMESNIL | J70: 1/4 Finale | K70: 2010-2011 | P70: 0 | R70: 0
A71: DELSOL Philippe | B71: GEETS Patrice | C71: G | D71: 2 | E71: 1 | F71: 169 | G71: 115 | H71: 2010-11-13 | I71: N1 Ligue T2 FACHES THUMESNIL | J71: 1/2 Finale | K71: 2010-2011 | P71: 0 | R71: 0
A72: DELSOL Philippe | B72: SAINT-GEORGES Claude | C72: G | D72: 2 | E72: 0 | F72: 120 | G72: 40 | H72: 2010-11-13 | I72: N1 Ligue T2 FACHES THUMESNIL | J72: Finale | K72: 2010-2011 | P72: 0 | R72: 0
A73: DELSOL Philippe | B73: LEMÂTRE Jérémy | C73: G | D73: 2 | E73: 0 | F73: 120 | G73: 44 | H73: 2010-12-11 | I73: N1 Ligue T3 GRAVELINES | J73: Poules | K73: 2010-2011 | P73: 0 | R73: 0
A74: DELSOL Philippe | B74: FAUCOMPREZ Didier | C74: G | D74: 2 | E74: 0 | F74: 120 | G74: 82 | H74: 2010-12-11 | I74: N1 Ligue T3 GRAVELINES | J74: Poules | K74: 2010-2011 | P74: 0 | R74: 0
A75: DELSOL Philippe | B75: RACARY Thibault | C75: P | D75: 1 | E75: 2 | F75: 161 | G75: 157 | H75: 2010-12-11 | I75: N1 Ligue T3 GRAVELINES | J75: 1/4 Finale | K75: 2010-2011 | P75: 0 | R75: 0
A76: DELSOL Philippe | B76: WALLART Jean-Charles | C76: G | D76: 2 | E76: 0 | F76: 120 | G76: 63 | H76: 2010-12-03 | I76: National T3 FACHES THUMESNIL - RONCHIN | J76: Préqualifs | K76: 2010-2011 | P76: 0 | R76: 0
A77: DELSOL Philippe | B77: KERCRET Geneviève | C77: G | D77: 2 | E77: 0 | F77: 120 | G77: 58 | H77: 2010-12-03 | I77: National T3 FACHES THUMESNIL - RONCHIN | J77: Préqualifs | K77: 2010-2011 | P77: 0 | R77: 0
A78: DELSOL Philippe | B78: SCHUB Philippe | C78: G | D78: 2 | E78: 0 | F78: 120 | G78: 43 | H78: 2010-12-03 | I78: National T3 FACHES THUMESNIL - RONCHIN | J78: Préqualifs | K78: 2010-2011 | P78: 0 | R78: 0
A79: DELSOL Philippe | B79: HERREBRECHT Thierry | C79: G | D79: 3 | E79: 1 | F79: 198 | G79: 165 | H79: 2010-12-04 | I79: National T3 FACHES THUMESNIL - RONCHIN | J79: Qualifs Masters | K79: 2010-2011 | P79: 0 | R79: 0
A80: DELSOL Philippe | B80: HINGANT Matthieu | C80: P | D80: 2 | E80: 3 | F80: 232 | G80: 232 | H80: 2010-12-04 | I80: National T3 FACHES THUMESNIL - RONCHIN | J80: Qualifs Masters | K80: 2010-2011 | P80: =IF($K80=P$1,COUNTIF($C80,"G"),0) -> 0 | R80: =IF($K80=R$1,COUNTIF($C80,"G"),0) -> 0
A81: DELSOL Philippe | B81: PICOT Sylvain | C81: P | D81: 1 | E81: 3 | F81: 166 | G81: 231 | H81: 2010-12-04 | I81: National T3 FACHES THUMESNIL - RONCHIN | J81: Qualifs Masters | K81: 2010-2011 | P81: 0 | R81: 0
A82: DELSOL Philippe | B82: GEETS Patrice | C82: G | D82: 3 | E82: 0 | F82: 180 | G82: 104 | H82: 2011-03-19 | I82: Finale Ligue N1 | J82: Poules | K82: 2010-2011 | P82: 0 | R82: 0
A83: DELSOL Philippe | B83: WALLART Jean-Charles | C83: G | D83: 3 | E83: 0 | F83: 180 | G83: 116 | H83: 2011-03-19 | I83: Finale Ligue N1 | J83: Poules | K83: 2010-2011 | P83: 0 | R83: 0
A84: DELSOL Philippe | B84: SAINT-GEORGES Claude | C84: G | D84: 3 | E84: 0 | F84: 180 | G84: 91 | H84: 2011-03-19 | I84: Finale Ligue N1 | J84: 1/2 finale | K84: 2010-2011 | P84: 0 | R84: 0
A85: DELSOL Philippe | B85: RACARY Thibault | C85: P | D85: 0 | E85: 3 | F85: 139 | G85: 180 | H85: 2011-03-19 | I85: Finale Ligue N1 | J85: Finale | K85: 2010-2011 | P85: 0 | R85: 0
A86: DELSOL Philippe | B86: ZILLIG Pierre | C86: G | D86: 3 | E86: 0 | F86: 180 | G86: 128 | H86: 2011-05-14 | I86: National SCHILTIGHEIM | J86: Qualifs | K86: 2010-2011 | P86: 0 | R86: 0
A87: DELSOL Philippe | B87: DELATTRE Hervé | C87: G | D87: 3 | E87: 0 | F87: 180 | G87: 88 | H87: 2011-05-14 | I87: National SCHILTIGHEIM | J87: Qualifs | K87: 2010-2011 | P87: 0 | R87: 0
A88: DELSOL Philippe | B88: SORTAIS Claude | C88: G | D88: 3 | E88: 0 | F88: 180 | G88: 106 | H88: 2011-05-14 | I88: National SCHILTIGHEIM | J88: Qualifs | K88: 2010-2011 | P88: 0 | R88: 0
A89: DELSOL Philippe | B89: WALLART Jean-Charles | C89: G | D89: 3 | E89: 0 | F89: 180 | G89: 104 | H89: 2011-05-15 | I89: National SCHILTIGHEIM | J89: 1/8 finale | K89: 2010-2011 | P89: 0 | R89: 0
A90: DELSOL Philippe | B90: FAUCOMPREZ Didier | C90: G | D90: 3 | E90: 0 | F90: 180 | G90: 79 | H90: 2011-05-15 | I90: National SCHILTIGHEIM | J90: 1/4 finale | K90: 2010-2011 | P90: 0 | R90: 0
A91: DELSOL Philippe | B91: RACARY Thibault | C91: P | D91: 1 | E91: 3 | F91: 201 | G91: 216 | H91: 2011-05-15 | I91: National SCHILTIGHEIM | J91: 1/2 finale | K91: 2010-2011 | P91: 0 | R91: 0
A92: DELSOL Philippe | B92: SORTAIS Claude | C92: G | D92: 3 | E92: 2 | F92: 264 | G92: 197 | H92: 2011-05-15 | I92: National SCHILTIGHEIM | J92: 3ème - 4ème place | K92: 2010-2011 | P92: 0 | R92: 0
A93: DELSOL Philippe | B93: DEVOS Jackie | C93: G | D93: 2 | E93: 0 | F93: 120 | G93: 45 | H93: 2011-10-15 | I93: N1 Ligue T1 DIVION | J93: Poules | K93: 2011-2012 | P93: 0 | R93: 0
A94: DELSOL Philippe | B94: CAUX Frédéric | C94: G | D94: 2 | E94: 0 | F94: 120 | G94: 47 | H94: 2011-10-15 | I94: N1 Ligue T1 DIVION | J94: Poules | K94: 2011-2012 | P94: 0 | R94: 0
A95: DELSOL Philippe | B95: LEMÂTRE Jérémy | C95: G | D95: 2 | E95: 1 | F95: 166 | G95: 95 | H95: 2011-10-15 | I95: N1 Ligue T1 DIVION | J95: 1/4 Finale | K95: 2011-2012 | P95: 0 | R95: 0
A96: DELSOL Philippe | B96: GEETS Patrice | C96: G | D96: 2 | E96: 0 | F96: 120 | G96: 78 | H96: 2011-10-15 | I96: N1 Ligue T1 DIVION | J96: 1/2 Finale | K96: 2011-2012 | P96: 0 | R96: 0
A97: DELSOL Philippe | B97: LHERMITTE Cédric | C97: G | D97: 2 | E97: 0 | F97: 120 | G97: 45 | H97: 2011-10-15 | I97: N1 Ligue T1 DIVION | J97: Finale | K97: 2011-2012 | P97: 0 | R97: 0
A98: DELSOL Philippe | B98: LORTHIOIR Jean-Luc | C98: G | D98: 2 | E98: 0 | F98: 120 | G98: 65 | H98: 2011-11-19 | I98: N1 Ligue T2 DOUAI | J98: Poules | K98: 2011-2012 | P98: 0 | R98: 0
A99: DELSOL Philippe | B99: VEREECQUE Ludovic | C99: G | D99: 2 | E99: 0 | F99: 120 | G99: 101 | H99: 2011-11-19 | I99: N1 Ligue T2 DOUAI | J99: Poules | K99: 2011-2012 | P99: 0 | R99: 0
A100: DELSOL Philippe | B100: CLYNCKE Jean-Jacques | C100: G | D100: 2 | E100: 0 | F100: 120 | G100: 79 | H100: 2011-11-19 | I100: N1 Ligue T2 DOUAI | J100: 1/8 Finale | K100: 2011-2012 | P100: 0 | R100: 0
A101: DELSOL Philippe | B101: CAUX Frédéric | C101: G | D101: 2 | E101: 0 | F101: 120 | G101: 92 | H101: 2011-11-19 | I101: N1 Ligue T2 DOUAI | J101: 1/4 Finale | K101: 2011-2012 | P101: 0 | R101: 0
A102: DELSOL Philippe | B102: LHERMITTE Cédric | C102: G | D102: 2 | E102: 0 | F102: 120 | G102: 87 | H102: 2011-11-19 | I102: N1 Ligue T2 DOUAI | J102: 1/2 Finale | K102: 2011-2012 | P102: 0 | R102: 0
A103: DELSOL Philippe | B103: HERREBRECHT Thierry | C103: G | D103: 2 | E103: 0 | F103: 120 | G103: 83 | H103: 2011-11-19 | I103: N1 Ligue T2 DOUAI | J103: Finale | K103: 2011-2012 | P103: 0 | R103: 0
A104: DELSOL Philippe | B104: ESTERMANS Bernard | C104: G | D104: 2 | E104: 1 | F104: 176 | G104: 123 | H104: 2012-01-07 | I104: N1 Ligue T3 FACHES THUMESNIL | J104: Poules | K104: 2011-2012 | P104: 0 | R104: 0
A105: DELSOL Philippe | B105: POULEYN André | C105: G | D105: 2 | E105: 0 | F105: 120 | G105: 36 | H105: 2012-01-07 | I105: N1 Ligue T3 FACHES THUMESNIL | J105: Poules | K105: 2011-2012 | P105: 0 | R105: 0
A106: DELSOL Philippe | B106: POULEYN André | C106: G | D106: 2 | E106: 0 | F106: 120 | G106: 78 | H106: 2012-01-07 | I106: N1 Ligue T3 FACHES THUMESNIL | J106: 1/8 Finale | K106: 2011-2012 | P106: 0 | R106: 0
A107: DELSOL Philippe | B107: RACARY Thibault | C107: P | D107: 0 | E107: 2 | F107: 61 | G107: 120 | H107: 2012-01-07 | I107: N1 Ligue T3 FACHES THUMESNIL | J107: 1/4 Finale | K107: 2011-2012 | P107: 0 | R107: 0
A108: DELSOL Philippe | B108: LEMÂTRE Jérémy | C108: G | D108: 3 | E108: 1 | F108: 214 | G108: 166 | H108: 2012-02-12 | I108: Finale Ligue N1 | J108: Poules | K108: 2011-2012 | P108: 0 | R108: 0
A109: DELSOL Philippe | B109: GEETS Patrice | C109: G | D109: 3 | E109: 0 | F109: 180 | G109: 100 | H109: 2012-02-12 | I109: Finale Ligue N1 | J109: Poules | K109: 2011-2012 | P109: 0 | R109: 0
A110: DELSOL Philippe | B110: LHERMITTE Cédric | C110: G | D110: 3 | E110: 2 | F110: 272 | G110: 224 | H110: 2012-02-12 | I110: Finale Ligue N1 | J110: 1/2 finale | K110: 2011-2012 | P110: 0 | R110: 0
A111: DELSOL Philippe | B111: HERREBRECHT Thierry | C111: G | D111: 3 | E111: 1 | F111: 226 | G111: 182 | H111: 2012-02-12 | I111: Finale Ligue N1 | J111: Finale | K111: 2011-2012 | P111: 0 | R111: 0
A112: DELSOL Philippe | B112: DERIU Georges | C112: G | D112: 3 | E112: 2 | F112: 253 | G112: 225 | H112: 2012-04-21 | I112: National ROUEN | J112: Qualifs | K112: 2011-2012 | P112: 0 | R112: 0
A113: DELSOL Philippe | B113: CHEVRIER Patrick | C113: G | D113: 3 | E113: 1 | F113: 231 | G113: 160 | H113: 2012-04-21 | I113: National ROUEN | J113: Qualifs | K113: 2011-2012 | P113: 0 | R113: 0
A114: DELSOL Philippe | B114: SORTAIS Claude | C114: G | D114: 3 | E114: 2 | F114: 259 | G114: 234 | H114: 2012-04-21 | I114: National ROUEN | J114: Qualifs | K114: 2011-2012 | P114: 0 | R114: 0
A115: DELSOL Philippe | B115: GEETS Patrice | C115: P | D115: 2 | E115: 3 | F115: 253 | G115: 264 | H115: 2012-04-22 | I115: National ROUEN | J115: 1/8 finale | K115: 2011-2012 | P115: 0 | R115: 0
A116: DELSOL Philippe | B116: HORNAIN Denis | C116: G | D116: 2 | E116: 0 | F116: 120 | G116: 63 | H116: 2012-10-13 | I116: N1 Ligue T1 ANNOEULLIN | J116: Poules | K116: 2012-2013 | P116: 0 | R116: 0
A117: DELSOL Philippe | B117: CLYNCKE Jean-Jacques | C117: G | D117: 2 | E117: 0 | F117: 120 | G117: 67 | H117: 2012-10-13 | I117: N1 Ligue T1 ANNOEULLIN | J117: Poules | K117: 2012-2013 | P117: 0 | R117: 0
A118: DELSOL Philippe | B118: GAUQUIE Serge | C118: G | D118: 2 | E118: 0 | F118: 120 | G118: 73 | H118: 2012-10-13 | I118: N1 Ligue T1 ANNOEULLIN | J118: 1/8 Finale | K118: 2012-2013 | P118: 0 | R118: 0
A119: DELSOL Philippe | B119: VEREECQUE Ludovic | C119: G | D119: 2 | E119: 0 | F119: 120 | G119: 85 | H119: 2012-10-13 | I119: N1 Ligue T1 ANNOEULLIN | J119: 1/4 Finale | K119: 2012-2013 | P119: 0 | R119: 0
A120: DELSOL Philippe | B120: WALLART Jean-Charles | C120: G | D120: 2 | E120: 1 | F120: 143 | G120: 148 | H120: 2012-10-13 | I120: N1 Ligue T1 ANNOEULLIN | J120: 1/2 Finale | K120: 2012-2013 | P120: 0 | R120: 0
A121: DELSOL Philippe | B121: TURPIN Laurent | C121: G | D121: 2 | E121: 0 | F121: 120 | G121: 97 | H121: 2012-10-13 | I121: N1 Ligue T1 ANNOEULLIN | J121: Finale | K121: 2012-2013 | P121: 0 | R121: 0
A122: DELSOL Philippe | B122: CAUX Frédéric | C122: G | D122: 2 | E122: 0 | F122: 120 | G122: 58 | H122: 2012-10-27 | I122: N1 Ligue T2 BRUAY sur ESCAUT | J122: Poules | K122: 2012-2013 | P122: 0 | R122: 0
A123: DELSOL Philippe | B123: LORTHIOIR Jean-Luc | C123: G | D123: 2 | E123: 0 | F123: 120 | G123: 94 | H123: 2012-10-27 | I123: N1 Ligue T2 BRUAY sur ESCAUT | J123: Poules | K123: 2012-2013 | P123: 0 | R123: 0
A124: DELSOL Philippe | B124: HORNAIN Denis | C124: G | D124: 2 | E124: 0 | F124: 120 | G124: 79 | H124: 2012-10-27 | I124: N1 Ligue T2 BRUAY sur ESCAUT | J124: 1/4 Finale | K124: 2012-2013 | P124: 0 | R124: 0
A125: DELSOL Philippe | B125: GEETS Patrice | C125: G | D125: 2 | E125: 0 | F125: 120 | G125: 48 | H125: 2012-10-27 | I125: N1 Ligue T2 BRUAY sur ESCAUT | J125: 1/2 Finale | K125: 2012-2013 | P125: 0 | R125: 0
A126: DELSOL Philippe | B126: LHERMITTE Cédric | C126: G | D126: 2 | E126: 1 | F126: 175 | G126: 169 | H126: 2012-10-27 | I126: N1 Ligue T2 BRUAY sur ESCAUT | J126: Finale | K126: 2012-2013 | P126: 0 | R126: 0
A127: DELSOL Philippe | B127: ZEUDE Alain | C127: G | D127: 2 | E127: 0 | F127: 120 | G127: 79 | H127: 2012-11-24 | I127: N1 Ligue T3 CALAIS | J127: Poules | K127: 2012-2013 | P127: 0 | R127: 0
A128: DELSOL Philippe | B128: GAUQUIE Serge | C128: G | D128: 2 | E128: 0 | F128: 120 | G128: 67 | H128: 2012-11-24 | I128: N1 Ligue T3 CALAIS | J128: Poules | K128: 2012-2013 | P128: 0 | R128: 0
A129: DELSOL Philippe | B129: GAUQUIE Serge | C129: G | D129: 2 | E129: 0 | F129: 120 | G129: 104 | H129: 2012-11-24 | I129: N1 Ligue T3 CALAIS | J129: 1/8 Finale | K129: 2012-2013 | P129: 0 | R129: 0
A130: DELSOL Philippe | B130: WALLART Jean-Charles | C130: G | D130: 2 | E130: 0 | F130: 120 | G130: 52 | H130: 2012-11-24 | I130: N1 Ligue T3 CALAIS | J130: 1/4 Finale | K130: 2012-2013 | P130: 0 | R130: 0
A131: DELSOL Philippe | B131: RACARY Thibault | C131: P | D131: 1 | E131: 2 | F131: 149 | G131: 165 | H131: 2012-11-24 | I131: N1 Ligue T3 CALAIS | J131: 1/2 Finale | K131: 2012-2013 | P131: 0 | R131: 0
A132: DELSOL Philippe | B132: CAUX Frédéric | C132: G | D132: 2 | E132: 0 | F132: 120 | G132: 69 | H132: 2012-12-15 | I132: N1 Ligue T4 VILLENEUVE D'ASCQ | J132: Poules | K132: 2012-2013 | P132: 0 | R132: 0
A133: DELSOL Philippe | B133: POULEYN André | C133: G | D133: 2 | E133: 0 | F133: 120 | G133: 67 | H133: 2012-12-15 | I133: N1 Ligue T4 VILLENEUVE D'ASCQ | J133: Poules | K133: 2012-2013 | P133: 0 | R133: 0
A134: DELSOL Philippe | B134: VEREECQUE Ludovic | C134: G | D134: 2 | E134: 0 | F134: 120 | G134: 44 | H134: 2012-12-15 | I134: N1 Ligue T4 VILLENEUVE D'ASCQ | J134: 1/4 Finale | K134: 2012-2013 | P134: 0 | R134: 0
A135: DELSOL Philippe | B135: GEETS Patrice | C135: G | D135: 2 | E135: 1 | F135: 126 | G135: 138 | H135: 2012-12-15 | I135: N1 Ligue T4 VILLENEUVE D'ASCQ | J135: 1/2 Finale | K135: 2012-2013 | P135: 0 | R135: 0
A136: DELSOL Philippe | B136: LEMÂTRE Jérémy | C136: P | D136: 0 | E136: 2 | F136: 89 | G136: 120 | H136: 2012-12-15 | I136: N1 Ligue T4 VILLENEUVE D'ASCQ | J136: Finale | K136: 2012-2013 | P136: 0 | R136: 0
A137: DELSOL Philippe | B137: SAINT-GEORGES Claude | C137: G | D137: 3 | E137: 0 | F137: 180 | G137: 124 | H137: 2013-04-14 | I137: FINALE LIGUE N1 FACHES THUMESNIL | J137: Poules | K137: 2012-2013 | P137: 0 | R137: 0
A138: DELSOL Philippe | B138: TURPIN Laurent | C138: G | D138: 3 | E138: 0 | F138: 180 | G138: 100 | H138: 2013-04-14 | I138: FINALE LIGUE N1 FACHES THUMESNIL | J138: Poules | K138: 2012-2013 | P138: 0 | R138: 0
A139: DELSOL Philippe | B139: WALLARTJean-Charles | C139: G | D139: 3 | E139: 0 | F139: 180 | G139: 111 | H139: 2013-04-14 | I139: FINALE LIGUE N1 FACHES THUMESNIL | J139: 1/2 Finale | K139: 2012-2013 | P139: 0 | R139: 0
A140: DELSOL Philippe | B140: SAINT-GEORGES Claude | C140: G | D140: 3 | E140: 0 | F140: 180 | G140: 93 | H140: 2013-04-14 | I140: FINALE LIGUE N1 FACHES THUMESNIL | J140: Finale | K140: 2012-2013 | P140: 0 | R140: 0
A141: DELSOL Philippe | B141: BILLIARD Alain | C141: G | D141: 3 | E141: 0 | F141: 150 | G141: 69 | H141: 2013-06-15 | I141: CHAMPIONNAT DE FRANCE N1 CHAMPAGNE SUR SEINE | J141: Qualifs | K141: 2012-2013 | P141: 0 | R141: 0
A142: DELSOL Philippe | B142: COSTE Philippe | C142: G | D142: 3 | E142: 0 | F142: 150 | G142: 103 | H142: 2013-06-16 | I142: CHAMPIONNAT DE FRANCE N1 CHAMPAGNE SUR SEINE | J142: 1/8 finale | K142: 2012-2013 | P142: 0 | R142: 0
A143: DELSOL Philippe | B143: LANUSSE Christophe | C143: G | D143: 3 | E143: 1 | F143: 198 | G143: 162 | H143: 2013-06-15 | I143: CHAMPIONNAT DE FRANCE N1 CHAMPAGNE SUR SEINE | J143: Qualifs | K143: 2012-2013 | P143: 0 | R143: 0
A144: DELSOL Philippe | B144: MICHELOTTI Francesco | C144: G | D144: 3 | E144: 0 | F144: 150 | G144: 73 | H144: 2013-06-15 | I144: CHAMPIONNAT DE FRANCE N1 CHAMPAGNE SUR SEINE | J144: Qualifs | K144: 2012-2013 | P144: 0 | R144: 0
A145: DELSOL Philippe | B145: ZILLIG Pierre | C145: P | D145: 2 | E145: 3 | F145: 226 | G145: 180 | H145: 2013-06-16 | I145: CHAMPIONNAT DE FRANCE N1 CHAMPAGNE SUR SEINE | J145: 1/4 finale | K145: 2012-2013 | P145: 0 | R145: 0
A146: DELSOL Philippe | B146: DEPLECHIN Robert | C146: G | D146: 2 | E146: 0 | F146: 120 | G146: 84 | H146: 2014-01-04 | I146: N1 Ligue T1 ANNOEULLIN | J146: Poules | K146: 2013-2014 | P146: 0 | R146: 0
A147: DELSOL Philippe | B147: LUBREZ Pierre | C147: G | D147: 2 | E147: 0 | F147: 120 | G147: 68 | H147: 2014-01-04 | I147: N1 Ligue T1 ANNOEULLIN | J147: Poules | K147: 2013-2014 | P147: 0 | R147: 0
A148: DELSOL Philippe | B148: CAUX Grégory | C148: P | D148: 0 | E148: 2 | F148: 63 | G148: 120 | H148: 2014-01-04 | I148: N1 Ligue T1 ANNOEULLIN | J148: 1/8 Finale | K148: 2013-2014 | P148: 0 | R148: 0
A149: DELSOL Philippe | B149: LOTHE Jean-Luc | C149: G | D149: 2 | E149: 0 | F149: 120 | G149: 78 | H149: 2014-03-15 | I149: N1 Ligue T2 FACHES THUMESNIL | J149: Poules | K149: 2013-2014 | P149: 0 | R149: 0
A150: DELSOL Philippe | B150: WALLART Jean-Charles | C150: P | D150: 1 | E150: 2 | F150: 145 | G150: 159 | H150: 2014-03-15 | I150: N1 Ligue T2 FACHES THUMESNIL | J150: Poules | K150: 2013-2014 | P150: 0 | R150: 0
A151: DELSOL Philippe | B151: VERHAGHE Dominique | C151: G | D151: 2 | E151: 0 | F151: 120 | G151: 68 | H151: 2014-03-15 | I151: N1 Ligue T2 FACHES THUMESNIL | J151: 1/4 Finale | K151: 2013-2014 | P151: 0 | R151: 0
A152: DELSOL Philippe | B152: DEROLEZ Jean-Pierre | C152: G | D152: 2 | E152: 0 | F152: 120 | G152: 81 | H152: 2014-03-15 | I152: N1 Ligue T2 FACHES THUMESNIL | J152: 1/2 Finale | K152: 2013-2014 | P152: 0 | R152: 0
A153: DELSOL Philippe | B153: WALLART Jean-Charles | C153: G | D153: 2 | E153: 0 | F153: 120 | G153: 83 | H153: 2014-03-15 | I153: N1 Ligue T2 FACHES THUMESNIL | J153: Finale | K153: 2013-2014 | P153: 0 | R153: 0
A154: DELSOL Philippe | B154: VEREECQUE Bernard | C154: G | D154: 2 | E154: 0 | F154: 120 | G154: 54 | H154: 2014-04-05 | I154: N1 Ligue T3 GRAVELINES | J154: Poules | K154: 2013-2014 | P154: 0 | R154: 0
A155: DELSOL Philippe | B155: ESTERMANS Bernard | C155: G | D155: 2 | E155: 0 | F155: 120 | G155: 67 | H155: 2014-04-05 | I155: N1 Ligue T3 GRAVELINES | J155: Poules | K155: 2013-2014 | P155: 0 | R155: 0
A156: DELSOL Philippe | B156: VEREECQUE Bernard | C156: G | D156: 2 | E156: 0 | F156: 120 | G156: 70 | H156: 2014-04-05 | I156: N1 Ligue T3 GRAVELINES | J156: 1/8 Finale | K156: 2013-2014 | P156: 0 | R156: 0
A157: DELSOL Philippe | B157: LHERMITTE Cédric | C157: P | D157: 0 | E157: 2 | F157: 109 | G157: 120 | H157: 2014-04-05 | I157: N1 Ligue T3 GRAVELINES | J157: 1/4 Finale | K157: 2013-2014 | P157: 0 | R157: 0
A158: DELSOL Philippe | B158: WALLART Jean-Charles | C158: G | D158: 3 | E158: 0 | F158: 180 | G158: 107 | H158: 2014-05-18 | I158: Finale Ligue N1 CALAIS | J158: Poules | K158: 2013-2014 | P158: 0 | R158: 0
A159: DELSOL Philippe | B159: CAUX Grégory | C159: G | D159: 3 | E159: 0 | F159: 180 | G159: 117 | H159: 2014-05-18 | I159: Finale Ligue N1 CALAIS | J159: Poules | K159: 2013-2014 | P159: 0 | R159: 0
A160: DELSOL Philippe | B160: SAINT-GEORGES Claude | C160: G | D160: 3 | E160: 2 | F160: 270 | G160: 225 | H160: 2014-05-18 | I160: Finale Ligue N1 CALAIS | J160: 1/2 Finale | K160: 2013-2014 | P160: 0 | R160: 0
A161: DELSOL Philippe | B161: LHERMITTE Cédric | C161: P | D161: 1 | E161: 3 | F161: 169 | G161: 237 | H161: 2014-05-18 | I161: Finale Ligue N1 CALAIS | J161: Finale | K161: 2013-2014 | P161: 0 | R161: 0
A162: DELSOL PHILIPPE | B162: MANZOLI ANGELO | C162: G | D162: 3 | E162: 2 | F162: 275 | G162: 270 | H162: 2014-10-18 | I162: National T1 GRAVELINES | J162: Qualifs Masters | K162: 2014-2015 | P162: 1 | R162: 0
A163: DELSOL PHILIPPE | B163: DUVERNOY CHRISTOPHE | C163: P | D163: 1 | E163: 3 | F163: 189 | G163: 228 | H163: 2014-10-18 | I163: National T1 GRAVELINES | J163: Qualifs Masters | K163: 2014-2015 | P163: 0 | R163: 0
A164: DELSOL PHILIPPE | B164: DAVID NICOLAS | C164: G | D164: 3 | E164: 2 | F164: 269 | G164: 206 | H164: 2014-10-18 | I164: National T1 GRAVELINES | J164: Qualifs Masters | K164: 2014-2015 | P164: 1 | R164: 0
A165: DELSOL PHILIPPE | B165: RACARY THIBAULT | C165: G | D165: 3 | E165: 1 | F165: 225 | G165: 170 | H165: 2014-10-19 | I165: National T1 GRAVELINES | J165: 1/4 finale Masters | K165: 2014-2015 | P165: 1 | R165: 0
A166: DELSOL PHILIPPE | B166: HINGANT MATTHIEU | C166: P | D166: 1 | E166: 3 | F166: 167 | G166: 210 | H166: 2014-10-19 | I166: National T1 GRAVELINES | J166: 1/2 finale Masters | K166: 2014-2015 | P166: 0 | R166: 0
A167: DELSOL Philippe | B167: BOUVIER Philippe | C167: G | D167: 3 | E167: 2 | F167: 274 | G167: 260 | H167: 2014-11-29 | I167: National T2 FACHES THUMESNIL - RONCHIN | J167: Qualifs Masters | K167: 2014-2015 | P167: 1 | R167: 0
A168: DELSOL Philippe | B168: PICOT Sylvain | C168: P | D168: 1 | E168: 3 | F168: 223 | G168: 222 | H168: 2014-11-29 | I168: National T2 FACHES THUMESNIL - RONCHIN | J168: Qualifs Masters | K168: 2014-2015 | P168: 0 | R168: 0
A169: DELSOL Philippe | B169: DAVOINE Bruno | C169: P | D169: 2 | E169: 3 | F169: 237 | G169: 274 | H169: 2014-11-29 | I169: National T2 FACHES THUMESNIL - RONCHIN | J169: Qualifs Masters | K169: 2014-2015 | P169: 0 | R169: 0
A170: DELSOL Philippe | B170: GUILLEMANT David | C170: G | D170: 3 | E170: 0 | F170: 180 | G170: 71 | H170: 2014-12-13 | I170: National T3 DOUARNENEZ | J170: Qualifs Masters | K170: 2014-2015 | P170: 1 | R170: 0
A171: DELSOL Philippe | B171: RACARY Thibault | C171: P | D171: 1 | E171: 3 | F171: 126 | G171: 239 | H171: 2014-12-13 | I171: National T3 DOUARNENEZ | J171: Qualifs Masters | K171: 2014-2015 | P171: 0 | R171: 0
A172: DELSOL Philippe | B172: DAVOINE Bruno | C172: G | D172: 3 | E172: 2 | F172: 264 | G172: 225 | H172: 2014-12-13 | I172: National T3 DOUARNENEZ | J172: Qualifs Masters | K172: 2014-2015 | P172: 1 | R172: 0
A173: DELSOL Philippe | B173: CARREAU Mickaël | C173: P | D173: 0 | E173: 3 | F173: 105 | G173: 180 | H173: 2014-12-14 | I173: National T3 DOUARNENEZ | J173: 1/4 finale Masters | K173: 2014-2015 | P173: 0 | R173: 0
A174: DELSOL Philippe | B174: GUILLEMANT David | C174: G | D174: 3 | E174: 2 | F174: 253 | G174: 274 | H174: 2015-01-24 | I174: National T4 LAXOU | J174: Qualifs Masters | K174: 2014-2015 | P174: 1 | R174: 0
A175: DELSOL Philippe | B175: MANZOLI Angelo | C175: G | D175: 3 | E175: 2 | F175: 242 | G175: 269 | H175: 2015-01-24 | I175: National T4 LAXOU | J175: Qualifs Masters | K175: 2014-2015 | P175: 1 | R175: 0
A176: DELSOL Philippe | B176: MANZOLI Angelo | C176: P | D176: 0 | E176: 3 | F176: 116 | G176: 180 | H176: 2015-01-25 | I176: National T4 LAXOU | J176: 1/4 finale Masters | K176: 2014-2015 | P176: 0 | R176: 0
A177: DELSOL Philippe | B177: BOUVIER Philippe | C177: P | D177: 1 | E177: 3 | F177: 174 | G177: 228 | H177: 2015-03-21 | I177: National T5 SAINT QUENTIN | J177: Qualifs Masters | K177: 2014-2015 | P177: 0 | R177: 0
A178: DELSOL Philippe | B178: MICHELOTTI Francesco | C178: G | D178: 3 | E178: 1 | F178: 237 | G178: 149 | H178: 2015-03-21 | I178: National T5 SAINT QUENTIN | J178: Qualifs Masters | K178: 2014-2015 | P178: 1 | R178: 0
A179: DELSOL Philippe | B179: MANZOLI Angelo | C179: G | D179: 3 | E179: 2 | F179: 227 | G179: 253 | H179: 2015-03-21 | I179: National T5 SAINT QUENTIN | J179: Qualifs Masters | K179: 2014-2015 | P179: 1 | R179: 0
A180: DELSOL Philippe | B180: RACARY Thibault | C180: P | D180: 1 | E180: 3 | F180: 190 | G180: 233 | H180: 2015-03-22 | I180: National T5 SAINT QUENTIN | J180: 1/4 finale Masters | K180: 2014-2015 | P180: 0 | R180: 0
A181: DELSOL Philippe | B181: MANTEN Paul | C181: G | D181: 2 | E181: 0 | F181: 120 | G181: 85 | H181: 2015-12-04 | I181: T1 LIGUE 5 QUILLES N1 - FACHES-THUMESNIL | J181: Poules | K181: 2015-2016 | P181: 0 | R181: 1
A182: DELSOL Philippe | B182: CLYNCKE Jean-Jacques | C182: G | D182: 2 | E182: 0 | F182: 120 | G182: 43 | H182: 2015-12-04 | I182: T1 LIGUE 5 QUILLES N1 - FACHES-THUMESNIL | J182: Poules | K182: 2015-2016 | P182: 0 | R182: 1
A183: DELSOL Philippe | B183: VEREECQUE Ludovic | C183: G | D183: 2 | E183: 0 | F183: 120 | G183: 45 | H183: 2015-12-04 | I183: T1 LIGUE 5 QUILLES N1 - FACHES-THUMESNIL | J183: 1/4 Finale | K183: 2015-2016 | P183: 0 | R183: 1
A184: DELSOL Philippe | B184: LEMÂTRE Alexis | C184: G | D184: 2 | E184: 1 | F184: 158 | G184: 136 | H184: 2015-12-04 | I184: T1 LIGUE 5 QUILLES N1 - FACHES-THUMESNIL | J184: 1/2 Finale | K184: 2015-2016 | P184: 0 | R184: 1
A185: DELSOL Philippe | B185: MAILLE Bernard | C185: G | D185: 2 | E185: 1 | F185: 179 | G185: 108 | H185: 2015-12-04 | I185: T1 LIGUE 5 QUILLES N1 - FACHES-THUMESNIL | J185: Finale | K185: 2015-2016 | P185: 0 | R185: 1
A186: DELSOL Philippe | B186: LECROART Serge | C186: G | D186: 2 | E186: 0 | F186: 120 | G186: 77 | H186: 2016-01-09 | I186: T2 LIGUE 5 QUILLES N1 - GRAVELINES | J186: Qualifications | K186: 2015-2016 | P186: 0 | R186: 1
A187: DELSOL Philippe | B187: CAUX Frédéric | C187: P | D187: 1 | E187: 2 | F187: 148 | G187: 169 | H187: 2016-01-09 | I187: T2 LIGUE 5 QUILLES N1 - GRAVELINES | J187: Qualifications | K187: 2015-2016 | P187: 0 | R187: 0
A188: DELSOL Philippe | B188: WALLART Jean-Charles | C188: G | D188: 2 | E188: 1 | F188: 134 | G188: 137 | H188: 2016-01-09 | I188: T2 LIGUE 5 QUILLES N1 - GRAVELINES | J188: 1/8 Finale | K188: 2015-2016 | P188: 0 | R188: 1
A189: DELSOL Philippe | B189: GEETS Patrice | C189: G | D189: 2 | E189: 1 | F189: 157 | G189: 91 | H189: 2016-01-09 | I189: T2 LIGUE 5 QUILLES N1 - GRAVELINES | J189: 1/4 Finale | K189: 2015-2016 | P189: 0 | R189: 1
A190: DELSOL Philippe | B190: CLYNCKE Jean-Jacques | C190: G | D190: 2 | E190: 1 | F190: 159 | G190: 106 | H190: 2016-01-09 | I190: T2 LIGUE 5 QUILLES N1 - GRAVELINES | J190: 1/2 Finale | K190: 2015-2016 | P190: 0 | R190: 1
A191: DELSOL Philippe | B191: LEMÂTRE Jérémy | C191: G | D191: 2 | E191: 0 | F191: 120 | G191: 82 | H191: 2016-01-09 | I191: T2 LIGUE 5 QUILLES N1 - GRAVELINES | J191: Finale | K191: 2015-2016 | P191: 0 | R191: 1
A192: DELSOL Philippe | B192: GEETS Patrice | C192: G | D192: 3 | E192: 1 | F192: 204 | G192: 205 | H192: 2016-04-24 | I192: Finale Ligue 5 Quilles N1 - ANNOEULLIN | J192: Finale | K192: 2015-2016 | P192: 0 | R192: 1
A193: DELSOL Philippe | B193: LEMÂTRE Alexis | C193: G | D193: 3 | E193: 1 | F193: 224 | G193: 176 | H193: 2016-04-24 | I193: Finale Ligue 5 Quilles N1 - ANNOEULLIN | J193: Qualifications | K193: 2015-2016 | P193: 0 | R193: 1
A194: DELSOL Philippe | B194: LEMÂTRE Jérémy | C194: G | D194: 3 | E194: 0 | F194: 180 | G194: 85 | H194: 2016-04-24 | I194: Finale Ligue 5 Quilles N1 - ANNOEULLIN | J194: Qualifications | K194: 2015-2016 | P194: 0 | R194: 1
A195: DELSOL Philippe | B195: MAILLE Bernard | C195: G | D195: 3 | E195: 0 | F195: 180 | G195: 51 | H195: 2016-04-24 | I195: Finale Ligue 5 Quilles N1 - ANNOEULLIN | J195: 1/2 Finale | K195: 2015-2016 | P195: 0 | R195: 1
A196: Fin des données | P196: 0 | R196: 0

Sheet DEMILLY Dominique
A1: DEMILLY Dominique | P1: =Récapitulatif!$B$2 -> 2014-2015 | R1: =Récapitulatif!$B$3 -> 2015-2016 | T1: Toutes saisons
A2: FACHES-THUMESNIL | P2: Nombre | Q2: %age | R2: Nombre | S2: %age | T2: Nombre | U2: %age
A3: 017062-G | N3: Matchs | O3: Gagnés | P3: =SUM(P$15:P$19) -> 0 | Q3: =IF(P$3+P$4>0,P3/(P$3+P$4),"") ->  | R3: =SUM(R$15:R$19) -> 0 | S3: =IF(R$3+R$4>0,R3/(R$3+R$4),"") ->  | T3: =COUNTIF($C$15:$C$19,"G") -> 0 | U3: =IF(T$3+T$4>0,T3/(T$3+T$4),"") -> 0
O4: Perdus | P4: =COUNTIF($K$15:$K$19,Récapitulatif!$B$2)-P3 -> 0 | Q4: =IF(P$3+P$4>0,P4/(P$3+P$4),"") ->  | R4: =COUNTIF($K$15:$K$19,Récapitulatif!$B$3)-R3 -> 0 | S4: =IF(R$3+R$4>0,R4/(R$3+R$4),"") ->  | T4: =COUNTIF($C$15:$C$19,"P") -> 3 | U4: =IF(T$3+T$4>0,T4/(T$3+T$4),"") -> 1
O5: Total / Moy. | P5: =SUM(P3:P4) -> 0 | Q5: =IF(SUMIF($K$15:$K$19,Récapitulatif!$B$2,$G$15:$G$19)>0,SUMIF($K$15:$K$19,Récapitulatif!$B$2,$F$15:$F$19)/SUMIF($K$15:$K$19,Récapitulatif!$B$2,$G$15:$G$19),"") ->  | R5: =SUM(R3:R4) -> 0 | S5: =IF(SUMIF($K$15:$K$19,Récapitulatif!$B$3,$G$15:$G$19)>0,SUMIF($K$15:$K$19,Récapitulatif!$B$3,$F$15:$F$19)/SUMIF($K$15:$K$19,Récapitulatif!$B$3,$G$15:$G$19),"") ->  | T5: =SUM(T3:T4) -> 3 | U5: =IF(SUM($G$15:$G$19)>0,SUM($F$15:$F$19)/SUM($G$15:$G$19),"") -> 0.4555555556 | V5: =IF(SUMIF($K$15:$K$19,Récapitulatif!$B$2,$G$15:$G$19)+SUMIF($K$15:$K$19,Récapitulatif!$B$3,$G$15:$G$19)>0,(SUMIF($K$15:$K$19,Récapitulatif!$B$2,$F$15:$F$19)+SUMIF($K$15:$K$19,Récapitulatif!$B$3,$F$15:$F$19))/(SUMIF($K$15:$K$19,Récapitulatif!$B$2,$G$15:$G$19)+SUMIF($K$15:$K$19,Récapitulatif!$B$3,$G$15:$G$19)),"") -> 
N6: Sets | O6: Gagnés | P6: =SUMIF($K$15:$K$19,Récapitulatif!$B$2,$D$15:$D$19) -> 0 | Q6: =IF(P$6+P$7>0,P6/(P$6+P$7),"") ->  | R6: =SUMIF($K$15:$K$19,Récapitulatif!$B$3,$D$15:$D$19) -> 0 | S6: =IF(R$6+R$7>0,R6/(R$6+R$7),"") ->  | T6: =SUM($D$15:$D$19) -> 0 | U6: =IF(T$6+T$7>0,T6/(T$6+T$7),"") -> 0
O7: Perdus | P7: =SUMIF($K$15:$K$19,Récapitulatif!$B$2,$E$15:$E$19) -> 0 | Q7: =IF(P$6+P$7>0,P7/(P$6+P$7),"") ->  | R7: =SUMIF($K$15:$K$19,Récapitulatif!$B$3,$E$15:$E$19) -> 0 | S7: =IF(R$6+R$7>0,R7/(R$6+R$7),"") ->  | T7: =SUM($E$15:$E$19) -> 6 | U7: =IF(T$6+T$7>0,T7/(T$6+T$7),"") -> 1
A8: Récapitulatif joueurs | O8: Total | P8: =SUM(P6:P7) -> 0 | R8: =SUM(R6:R7) -> 0 | T8: =SUM(T6:T7) -> 6
A15: Joueur | B15: Adversaire | C15: G/P | D15: Sets gagnés | E15: Sets perdus | F15: pts marqués | G15: pts subis | H15: Date | I15: Compétition | J15: Phase | K15: Saison
A16: DEMILLY Dominique | B16: HERREBRECHT Thierry | C16: P | D16: 0 | E16: 2 | F16: 61 | G16: 120 | H16: 2009-12-04 | I16: National T2 ANNOEULLIN | J16: Préqualifs | K16: =IF(H16<>"",IF(MONTH(H16)>MoisRef,YEAR(H16)&"-"&YEAR(H16)+1,YEAR(H16)-1&"-"&YEAR(H16)),"") -> 2009-2010 | P16: =IF($K16=P$1,COUNTIF($C16,"G"),0) -> 0 | R16: =IF($K16=R$1,COUNTIF($C16,"G"),0) -> 0
A17: DEMILLY Dominique | B17: PONCHANT Grégory | C17: P | D17: 0 | E17: 2 | F17: 31 | G17: 120 | H17: 2009-12-04 | I17: National T2 ANNOEULLIN | J17: Préqualifs | K17: =IF(H17<>"",IF(MONTH(H17)>MoisRef,YEAR(H17)&"-"&YEAR(H17)+1,YEAR(H17)-1&"-"&YEAR(H17)),"") -> 2009-2010 | P17: =IF($K17=P$1,COUNTIF($C17,"G"),0) -> 0 | R17: =IF($K17=R$1,COUNTIF($C17,"G"),0) -> 0
A18: DEMILLY Dominique | B18: SAINT-GEORGES Claude | C18: P | D18: 0 | E18: 2 | F18: 72 | G18: 120 | H18: 2009-12-04 | I18: National T2 ANNOEULLIN | J18: Préqualifs | K18: =IF(H18<>"",IF(MONTH(H18)>MoisRef,YEAR(H18)&"-"&YEAR(H18)+1,YEAR(H18)-1&"-"&YEAR(H18)),"") -> 2009-2010 | P18: =IF($K18=P$1,COUNTIF($C18,"G"),0) -> 0 | R18: =IF($K18=R$1,COUNTIF($C18,"G"),0) -> 0
A19: Fin des données | K19: =IF(H19<>"",IF(MONTH(H19)>MoisRef,YEAR(H19)&"-"&YEAR(H19)+1,YEAR(H19)-1&"-"&YEAR(H19)),"") ->  | P19: =IF($K19=P$1,COUNTIF($C19,"G"),0) -> 0 | R19: =IF($K19=R$1,COUNTIF($C19,"G"),0) -> 0

Sheet DEPLECHIN Robert
A1: DEPLECHIN Robert | P1: =Récapitulatif!$B$2 -> 2014-2015 | R1: =Récapitulatif!$B$3 -> 2015-2016 | T1: Toutes saisons
A2: <Club> | P2: Nombre | Q2: %age | R2: Nombre | S2: %age | T2: Nombre | U2: %age
A3: <Licence> | N3: Matchs | O3: Gagnés | P3: =SUM(P$15:P$49) -> 9 | Q3: =IF(P$3+P$4>0,P3/(P$3+P$4),"") -> 0.5625 | R3: =SUM(R$15:R$49) -> 0 | S3: =IF(R$3+R$4>0,R3/(R$3+R$4),"") -> 0 | T3: =COUNTIF($C$15:$C$49,"G") -> 17 | U3: =IF(T$3+T$4>0,T3/(T$3+T$4),"") -> 0.5151515152
A4: <Tel> | O4: Perdus | P4: =COUNTIF($K$15:$K$49,Récapitulatif!$B$2)-P3 -> 7 | Q4: =IF(P$3+P$4>0,P4/(P$3+P$4),"") -> 0.4375 | R4: =COUNTIF($K$15:$K$49,Récapitulatif!$B$3)-R3 -> 2 | S4: =IF(R$3+R$4>0,R4/(R$3+R$4),"") -> 1 | T4: =COUNTIF($C$15:$C$49,"P") -> 16 | U4: =IF(T$3+T$4>0,T4/(T$3+T$4),"") -> 0.4848484848
A5: <email> | O5: Total / Moy. | P5: =SUM(P3:P4) -> 16 | Q5: =IF(SUMIF($K$15:$K$49,Récapitulatif!$B$2,$G$15:$G$49)>0,SUMIF($K$15:$K$49,Récapitulatif!$B$2,$F$15:$F$49)/SUMIF($K$15:$K$49,Récapitulatif!$B$2,$G$15:$G$49),"") -> 0.9468186135 | R5: =SUM(R3:R4) -> 2 | S5: =IF(SUMIF($K$15:$K$49,Récapitulatif!$B$3,$G$15:$G$49)>0,SUMIF($K$15:$K$49,Récapitulatif!$B$3,$F$15:$F$49)/SUMIF($K$15:$K$49,Récapitulatif!$B$3,$G$15:$G$49),"") -> 0.6690140845 | T5: =SUM(T3:T4) -> 33 | U5: =IF(SUM($G$15:$G$49)>0,SUM($F$15:$F$49)/SUM($G$15:$G$49),"") -> 0.9920837589 | V5: =IF(SUMIF($K$15:$K$49,Récapitulatif!$B$2,$G$15:$G$49)+SUMIF($K$15:$K$49,Récapitulatif!$B$3,$G$15:$G$49)>0,(SUMIF($K$15:$K$49,Récapitulatif!$B$2,$F$15:$F$49)+SUMIF($K$15:$K$49,Récapitulatif!$B$3,$F$15:$F$49))/(SUMIF($K$15:$K$49,Récapitulatif!$B$2,$G$15:$G$49)+SUMIF($K$15:$K$49,Récapitulatif!$B$3,$G$15:$G$49)),"") -> 0.9138075314
N6: Sets | O6: Gagnés | P6: =SUMIF($K$15:$K$49,Récapitulatif!$B$2,$D$15:$D$49) -> 18 | Q6: =IF(P$6+P$7>0,P6/(P$6+P$7),"") -> 0.4615384615 | R6: =SUMIF($K$15:$K$49,Récapitulatif!$B$3,$D$15:$D$49) -> 1 | S6: =IF(R$6+R$7>0,R6/(R$6+R$7),"") -> 0.2 | T6: =SUM($D$15:$D$49) -> 33 | U6: =IF(T$6+T$7>0,T6/(T$6+T$7),"") -> 0.4647887324
O7: Perdus | P7: =SUMIF($K$15:$K$49,Récapitulatif!$B$2,$E$15:$E$49) -> 21 | Q7: =IF(P$6+P$7>0,P7/(P$6+P$7),"") -> 0.5384615385 | R7: =SUMIF($K$15:$K$49,Récapitulatif!$B$3,$E$15:$E$49) -> 4 | S7: =IF(R$6+R$7>0,R7/(R$6+R$7),"") -> 0.8 | T7: =SUM($E$15:$E$49) -> 38 | U7: =IF(T$6+T$7>0,T7/(T$6+T$7),"") -> 0.5352112676
A8: Récapitulatif joueurs | O8: Total | P8: =SUM(P6:P7) -> 39 | R8: =SUM(R6:R7) -> 5 | T8: =SUM(T6:T7) -> 71
A15: Joueur | B15: Adversaire | C15: G/P | D15: Sets gagnés | E15: Sets perdus | F15: pts marqués | G15: pts subis | H15: Date | I15: Compétition | J15: Phase | K15: Saison
A16: DEPLECHIN Robert | B16: LUBREZ Pierre | C16: G | D16: 2 | E16: 1 | F16: 174 | G16: 136 | H16: 2014-01-04 | I16: N1 Ligue T1 ANNOEULLIN | J16: Poules | K16: =IF(H16<>"",IF(MONTH(H16)>MoisRef,YEAR(H16)&"-"&YEAR(H16)+1,YEAR(H16)-1&"-"&YEAR(H16)),"") -> 2013-2014 | P16: =IF($K16=P$1,COUNTIF($C16,"G"),0) -> 0 | R16: =IF($K16=R$1,COUNTIF($C16,"G"),0) -> 0
A17: DEPLECHIN Robert | B17: DELSOL Philippe | C17: P | D17: 0 | E17: 2 | F17: 84 | G17: 120 | H17: 2014-01-04 | I17: N1 Ligue T1 ANNOEULLIN | J17: Poules | K17: 2013-2014 | P17: 0 | R17: 0
A18: DEPLECHIN Robert | B18: CLYNCKE Jean-Jacques | C18: P | D18: 1 | E18: 2 | F18: 140 | G18: 155 | H18: 2014-01-04 | I18: N1 Ligue T1 ANNOEULLIN | J18: 1/8 Finale | K18: 2013-2014 | P18: 0 | R18: 0
A19: DEPLECHIN Robert | B19: HERREBRECHT Erian | C19: G | D19: 1 | E19: 0 | F19: 100 | G19: 50 | H19: 2014-01-04 | I19: N1 Ligue T1 ANNOEULLIN | J19: Poules Consolante | K19: 2013-2014 | P19: 0 | R19: 0
A20: DEPLECHIN Robert | B20: HOCHARD James | C20: G | D20: 1 | E20: 0 | F20: 100 | G20: 64 | H20: 2014-01-04 | I20: N1 Ligue T1 ANNOEULLIN | J20: Poules Consolante | K20: 2013-2014 | P20: 0 | R20: 0
A21: DEPLECHIN Robert | B21: LORTHIOIR Jean-Luc | C21: G | D21: 1 | E21: 0 | F21: 100 | G21: 81 | H21: 2014-01-04 | I21: N1 Ligue T1 ANNOEULLIN | J21: Finale Consolante | K21: 2013-2014 | P21: 0 | R21: 0
A22: DEPLECHIN Robert | B22: VEREECQUE Ludovic | C22: P | D22: 0 | E22: 2 | F22: 93 | G22: 120 | H22: 2014-03-15 | I22: N1 Ligue T2 FACHES THUMESNIL | J22: Poules | K22: 2013-2014 | P22: 0 | R22: 0
A23: DEPLECHIN Robert | B23: CLYNCKE Jean-Jacques | C23: G | D23: 2 | E23: 1 | F23: 162 | G23: 115 | H23: 2014-03-15 | I23: N1 Ligue T2 FACHES THUMESNIL | J23: Poules | K23: 2013-2014 | P23: 0 | R23: 0
A24: DEPLECHIN ROBERT | B24: SAINT-GEORGES Claude | C24: P | D24: 0 | E24: 1 | F24: 59 | G24: 100 | H24: 2014-03-15 | I24: N1 Ligue T2 FACHES THUMESNIL | J24: Poules Consolante | K24: 2013-2014 | P24: 0 | R24: 0
A25: DEPLECHIN ROBERT | B25: CLYNCKE Jean-Jacques | C25: P | D25: 0 | E25: 1 | F25: 88 | G25: 100 | H25: 2014-03-15 | I25: N1 Ligue T2 FACHES THUMESNIL | J25: Poules Consolante | K25: 2013-2014 | P25: 0 | R25: 0
A26: DEPLECHIN Robert | B26: HERREBRECHT Thierry | C26: G | D26: 2 | E26: 0 | F26: 120 | G26: 97 | H26: 2014-04-05 | I26: N1 Ligue T3 GRAVELINES | J26: Poules | K26: 2013-2014 | P26: 0 | R26: 0
A27: DEPLECHIN Robert | B27: HERREBRECHT Thierry | C27: G | D27: 2 | E27: 0 | F27: 120 | G27: 74 | H27: 2014-04-05 | I27: N1 Ligue T3 GRAVELINES | J27: Poules | K27: 2013-2014 | P27: 0 | R27: 0
A28: DEPLECHIN Robert | B28: SAINT-GEORGES Claude | C28: P | D28: 1 | E28: 2 | F28: 166 | G28: 168 | H28: 2014-04-05 | I28: N1 Ligue T3 GRAVELINES | J28: 1/8 Finale | K28: 2013-2014 | P28: 0 | R28: 0
A29: DEPLECHIN Robert | B29: HERREBRECHT Erian | C29: P | D29: 0 | E29: 1 | F29: 95 | G29: 100 | H29: 2014-04-05 | I29: N1 Ligue T3 GRAVELINES | J29: Poules Consolante | K29: 2013-2014 | P29: 0 | R29: 0
A30: DEPLECHIN Robert | B30: ESTERMANS Bernard | C30: G | D30: 1 | E30: 0 | F30: 100 | G30: 46 | H30: 2014-04-05 | I30: N1 Ligue T3 GRAVELINES | J30: Poules Consolante | K30: 2013-2014 | P30: 0 | R30: 0
A31: DEPLECHIN Robert | B31: LEMÂTRE Alexis | C31: G | D31: 2 | E31: 1 | F31: 165 | G31: 144 | H31: 2015-01-17 | I31: N1 Ligue T1 DUNKERQUE | J31: Poules | K31: 2014-2015 | P31: 1 | R31: 0
A32: DEPLECHIN Robert | B32: DEROLEZ Jean-pierre | C32: G | D32: 2 | E32: 0 | F32: 120 | G32: 104 | H32: 2015-01-17 | I32: N1 Ligue T1 DUNKERQUE | J32: Poules | K32: 2014-2015 | P32: 1 | R32: 0
A33: DEPLECHIN Robert | B33: TRIPLET Gilbert | C33: G | D33: 2 | E33: 0 | F33: 120 | G33: 79 | H33: 2015-01-17 | I33: N1 Ligue T1 DUNKERQUE | J33: 1/8 Finale | K33: 2014-2015 | P33: 1 | R33: 0
A34: DEPLECHIN Robert | B34: DEVOS Jackie | C34: P | D34: 0 | E34: 2 | F34: 78 | G34: 120 | H34: 2015-01-17 | I34: N1 Ligue T1 DUNKERQUE | J34: 1/4 Finale | K34: 2014-2015 | P34: 0 | R34: 0
A35: DEPLECHIN Robert | B35: VERHAGHE Dominique | C35: P | D35: 0 | E35: 2 | F35: 89 | G35: 120 | H35: 2015-02-07 | I35: N1 Ligue T2 CALAIS | J35: Poules | K35: 2014-2015 | P35: 0 | R35: 0
A36: DEPLECHIN Robert | B36: SAINT-GEORGES Claude | C36: G | D36: 2 | E36: 1 | F36: 172 | G36: 163 | H36: 2015-02-07 | I36: N1 Ligue T2 CALAIS | J36: Poules | K36: 2014-2015 | P36: 1 | R36: 0
A37: DEPLECHIN Robert | B37: DECONINCK Franky | C37: G | D37: 2 | E37: 1 | F37: 151 | G37: 146 | H37: 2015-02-07 | I37: N1 Ligue T2 CALAIS | J37: 1/8 Finale | K37: 2014-2015 | P37: 1 | R37: 0
A38: DEPLECHIN Robert | B38: GEETS Patrice | C38: P | D38: 1 | E38: 2 | F38: 102 | G38: 156 | H38: 2015-02-07 | I38: N1 Ligue T2 CALAIS | J38: 1/4 Finale | K38: 2014-2015 | P38: 0 | R38: 0
A39: DEPLECHIN Robert | B39: LUBREZ Pierre | C39: G | D39: 1 | E39: 0 | F39: 100 | G39: 71 | H39: 2015-03-14 | I39: N1 Ligue T3 ANNOEULLIN | J39: Poules Consolante | K39: 2014-2015 | P39: 1 | R39: 0
A40: DEPLECHIN Robert | B40: GHEVART Jean | C40: G | D40: 1 | E40: 0 | F40: 100 | G40: 59 | H40: 2015-03-14 | I40: N1 Ligue T3 ANNOEULLIN | J40: Poules Consolante | K40: 2014-2015 | P40: 1 | R40: 0
A41: DEPLECHIN Robert | B41: LORTHIOIR Jean-Luc | C41: G | D41: 1 | E41: 0 | F41: 100 | G41: 72 | H41: 2015-03-14 | I41: N1 Ligue T3 ANNOEULLIN | J41: Finale Consolante | K41: 2014-2015 | P41: 1 | R41: 0
A42: DEPLECHIN Robert | B42: GHEVART Jean | C42: G | D42: 2 | E42: 1 | F42: 156 | G42: 118 | H42: 2015-03-14 | I42: N1 Ligue T3 ANNOEULLIN | J42: Poules | K42: 2014-2015 | P42: 1 | R42: 0
A43: DEPLECHIN Robert | B43: LEMÂTRE Alexis | C43: P | D43: 0 | E43: 2 | F43: 83 | G43: 120 | H43: 2015-03-14 | I43: N1 Ligue T3 ANNOEULLIN | J43: Poules | K43: 2014-2015 | P43: 0 | R43: 0
A44: DEPLECHIN Robert | B44: LEMÂTRE Alexis | C44: P | D44: 0 | E44: 3 | F44: 117 | G44: 180 | H44: 2015-04-19 | I44: FINALE LIGUE N1 GRAVELINES | J44: Poules | K44: 2014-2015 | P44: 0 | R44: 0
A45: DEPLECHIN Robert | B45: DECONINCK Franky | C45: P | D45: 0 | E45: 3 | F45: 62 | G45: 180 | H45: 2015-04-19 | I45: FINALE LIGUE N1 GRAVELINES | J45: Poules | K45: 2014-2015 | P45: 0 | R45: 0
A46: DEPLECHIN Robert | B46: DEROLEZ Jean-pierre | C46: P | D46: 2 | E46: 3 | F46: 279 | G46: 274 | H46: 2015-04-19 | I46: FINALE LIGUE N1 GRAVELINES | J46: 5ème 6ème | K46: 2014-2015 | P46: 0 | R46: 0
A47: DEPLECHIN Robert | B47: LEBLANC Jean-Noël | C47: P | D47: 1 | E47: 2 | F47: 137 | G47: 164 | H47: 2016-01-09 | I47: T2 LIGUE 5 QUILLES N1 - GRAVELINES | J47: Qualifications | K47: 2015-2016 | P47: 0 | R47: 0
A48: DEPLECHIN Robert | B48: GEETS Patrice | C48: P | D48: 0 | E48: 2 | F48: 53 | G48: 120 | H48: 2016-01-09 | I48: T2 LIGUE 5 QUILLES N1 - GRAVELINES | J48: Qualifications | K48: 2015-2016 | P48: 0 | R48: 0
A49: Fin des données | P49: =IF($K49=P$1,COUNTIF($C49,"G"),0) -> 0 | R49: =IF($K49=R$1,COUNTIF($C49,"G"),0) -> 0

Sheet DEROLEZ Jean-Pierre
A1: DEROLEZ Jean-Pierre | P1: =Récapitulatif!$B$2 -> 2014-2015 | R1: =Récapitulatif!$B$3 -> 2015-2016 | T1: Toutes saisons
A2: ANNOEULLIN | P2: Nombre | Q2: %age | R2: Nombre | S2: %age | T2: Nombre | U2: %age
A3: 101152-M | N3: Matchs | O3: Gagnés | P3: =SUM(P$15:P$168) -> 9 | Q3: =IF(P$3+P$4>0,P3/(P$3+P$4),"") -> 0.36 | R3: =SUM(R$15:R$168) -> 18 | S3: =IF(R$3+R$4>0,R3/(R$3+R$4),"") -> 0.6428571429 | T3: =COUNTIF($C$15:$C$168,"G") -> 60 | U3: =IF(T$3+T$4>0,T3/(T$3+T$4),"") -> 0.3947368421
O4: Perdus | P4: =COUNTIF($K$15:$K$168,Récapitulatif!$B$2)-P3 -> 16 | Q4: =IF(P$3+P$4>0,P4/(P$3+P$4),"") -> 0.64 | R4: =COUNTIF($K$15:$K$168,Récapitulatif!$B$3)-R3 -> 10 | S4: =IF(R$3+R$4>0,R4/(R$3+R$4),"") -> 0.3571428571 | T4: =COUNTIF($C$15:$C$168,"P") -> 92 | U4: =IF(T$3+T$4>0,T4/(T$3+T$4),"") -> 0.6052631579
O5: Total / Moy. | P5: =SUM(P3:P4) -> 25 | Q5: =IF(SUMIF($K$15:$K$168,Récapitulatif!$B$2,$G$15:$G$168)>0,SUMIF($K$15:$K$168,Récapitulatif!$B$2,$F$15:$F$168)/SUMIF($K$15:$K$168,Récapitulatif!$B$2,$G$15:$G$168),"") -> 0.8929546696 | R5: =SUM(R3:R4) -> 28 | S5: =IF(SUMIF($K$15:$K$168,Récapitulatif!$B$3,$G$15:$G$168)>0,SUMIF($K$15:$K$168,Récapitulatif!$B$3,$F$15:$F$168)/SUMIF($K$15:$K$168,Récapitulatif!$B$3,$G$15:$G$168),"") -> 1.042612064 | T5: =SUM(T3:T4) -> 152 | U5: =IF(SUM($G$15:$G$168)>0,SUM($F$15:$F$168)/SUM($G$15:$G$168),"") -> 0.9297915608 | V5: =IF(SUMIF($K$15:$K$168,Récapitulatif!$B$2,$G$15:$G$168)+SUMIF($K$15:$K$168,Récapitulatif!$B$3,$G$15:$G$168)>0,(SUMIF($K$15:$K$168,Récapitulatif!$B$2,$F$15:$F$168)+SUMIF($K$15:$K$168,Récapitulatif!$B$3,$F$15:$F$168))/(SUMIF($K$15:$K$168,Récapitulatif!$B$2,$G$15:$G$168)+SUMIF($K$15:$K$168,Récapitulatif!$B$3,$G$15:$G$168)),"") -> 0.9672897196
N6: Sets | O6: Gagnés | P6: =SUMIF($K$15:$K$168,Récapitulatif!$B$2,$D$15:$D$168) -> 28 | Q6: =IF(P$6+P$7>0,P6/(P$6+P$7),"") -> 0.4179104478 | R6: =SUMIF($K$15:$K$168,Récapitulatif!$B$3,$D$15:$D$168) -> 38 | S6: =IF(R$6+R$7>0,R6/(R$6+R$7),"") -> 0.5507246377 | T6: =SUM($D$15:$D$168) -> 152 | U6: =IF(T$6+T$7>0,T6/(T$6+T$7),"") -> 0.4187327824
O7: Perdus | P7: =SUMIF($K$15:$K$168,Récapitulatif!$B$2,$E$15:$E$168) -> 39 | Q7: =IF(P$6+P$7>0,P7/(P$6+P$7),"") -> 0.5820895522 | R7: =SUMIF($K$15:$K$168,Récapitulatif!$B$3,$E$15:$E$168) -> 31 | S7: =IF(R$6+R$7>0,R7/(R$6+R$7),"") -> 0.4492753623 | T7: =SUM($E$15:$E$168) -> 211 | U7: =IF(T$6+T$7>0,T7/(T$6+T$7),"") -> 0.5812672176
A8: Récapitulatif joueurs | O8: Total | P8: =SUM(P6:P7) -> 67 | R8: =SUM(R6:R7) -> 69 | T8: =SUM(T6:T7) -> 363
A15: Joueur | B15: Adversaire | C15: G/P | D15: Sets gagnés | E15: Sets perdus | F15: pts marqués | G15: pts subis | H15: Date | I15: Compétition | J15: Phase | K15: Saison
A16: DEROLEZ Jean-Pierre | B16: JUBLOT Denis | C16: P | D16: 0 | E16: 2 | F16: 92 | G16: 120 | H16: 2008-12-12 | I16: National T3 ANNOEULLIN | J16: Préqualifs | K16: =IF(H16<>"",IF(MONTH(H16)>MoisRef,YEAR(H16)&"-"&YEAR(H16)+1,YEAR(H16)-1&"-"&YEAR(H16)),"") -> 2008-2009 | P16: =IF($K16=P$1,COUNTIF($C16,"G"),0) -> 0 | R16: =IF($K16=R$1,COUNTIF($C16,"G"),0) -> 0
A17: DEROLEZ Jean-Pierre | B17: DENIS Jean | C17: P | D17: 0 | E17: 2 | F17: 82 | G17: 120 | H17: 2008-12-12 | I17: National T3 ANNOEULLIN | J17: Préqualifs | K17: 2008-2009 | P17: 0 | R17: 0
A18: DEROLEZ Jean-Pierre | B18: PAU Mariano | C18: P | D18: 0 | E18: 2 | F18: 57 | G18: 120 | H18: 2008-12-12 | I18: National T3 ANNOEULLIN | J18: Préqualifs | K18: 2008-2009 | P18: 0 | R18: 0
A19: DEROLEZ Jean-Pierre | B19: DEVOS Jackie | C19: P | D19: 1 | E19: 2 | F19: 175 | G19: 173 | H19: 2009-11-21 | I19: N1 Ligue T1 GRAVELINES | J19: Poules | K19: 2009-2010 | P19: 0 | R19: 0
A20: DEROLEZ Jean-Pierre | B20: HERREBRECHT Thierry | C20: P | D20: 0 | E20: 2 | F20: 65 | G20: 120 | H20: 2009-11-21 | I20: N1 Ligue T1 GRAVELINES | J20: Poules | K20: 2009-2010 | P20: 0 | R20: 0
A21: DEROLEZ Jean-Pierre | B21: TURPIN Laurent | C21: P | D21: 1 | E21: 2 | F21: 152 | G21: 144 | H21: 2009-11-21 | I21: N1 Ligue T1 GRAVELINES | J21: Poules Consolante | K21: 2009-2010 | P21: 0 | R21: 0
A22: DEROLEZ Jean-Pierre | B22: MARTEL Jean-Pierre | C22: P | D22: 0 | E22: 2 | F22: 68 | G22: 120 | H22: 2009-11-21 | I22: N1 Ligue T1 GRAVELINES | J22: Poules Consolante | K22: 2009-2010 | P22: 0 | R22: 0
A23: DEROLEZ Jean-Pierre | B23: ZILLIG Pierre | C23: P | D23: 0 | E23: 2 | F23: 84 | G23: 120 | H23: 2009-12-04 | I23: National T2 ANNOEULLIN | J23: Préqualifs | K23: 2009-2010 | P23: 0 | R23: 0
A24: DEROLEZ Jean-Pierre | B24: PERRIN Thierry | C24: G | D24: 2 | E24: 1 | F24: 172 | G24: 137 | H24: 2009-12-04 | I24: National T2 ANNOEULLIN | J24: Préqualifs | K24: 2009-2010 | P24: 0 | R24: 0
A25: DEROLEZ Jean-Pierre | B25: DAVOINE Bruno | C25: P | D25: 0 | E25: 2 | F25: 53 | G25: 120 | H25: 2009-12-04 | I25: National T2 ANNOEULLIN | J25: Préqualifs | K25: 2009-2010 | P25: 0 | R25: 0
A26: DEROLEZ Jean-Pierre | B26: GUILLEMANT Jean-Marc | C26: P | D26: 1 | E26: 3 | F26: 221 | G26: 202 | H26: 2009-12-05 | I26: National T2 ANNOEULLIN | J26: Qualifs promotion | K26: 2009-2010 | P26: 0 | R26: 0
A27: DEROLEZ Jean-Pierre | B27: MORALES Luis | C27: P | D27: 0 | E27: 3 | F27: 74 | G27: 180 | H27: 2009-12-05 | I27: National T2 ANNOEULLIN | J27: Qualifs promotion | K27: 2009-2010 | P27: 0 | R27: 0
A28: DEROLEZ Jean-Pierre | B28: BASTENIER Jean | C28: P | D28: 1 | E28: 2 | F28: 130 | G28: 179 | H28: 2009-12-19 | I28: N1 Ligue T2 ANNOEULLIN | J28: Poules | K28: 2009-2010 | P28: 0 | R28: 0
A29: DEROLEZ Jean-Pierre | B29: GREMAIN Gino | C29: P | D29: 0 | E29: 2 | F29: 57 | G29: 120 | H29: 2009-12-19 | I29: N1 Ligue T2 ANNOEULLIN | J29: Poules | K29: 2009-2010 | P29: 0 | R29: 0
A30: DEROLEZ Jean-Pierre | B30: MARTEL Jean-Pierre | C30: P | D30: 1 | E30: 2 | F30: 163 | G30: 175 | H30: 2009-12-19 | I30: N1 Ligue T2 ANNOEULLIN | J30: Poules Consolante | K30: 2009-2010 | P30: 0 | R30: 0
A31: DEROLEZ Jean-Pierre | B31: MAILLE Bernard | C31: P | D31: 0 | E31: 2 | F31: 97 | G31: 120 | H31: 2009-12-19 | I31: N1 Ligue T2 ANNOEULLIN | J31: Poules Consolante | K31: 2009-2010 | P31: 0 | R31: 0
A32: DEROLEZ Jean-Pierre | B32: HORNAIN Denis | C32: P | D32: 0 | E32: 2 | F32: 69 | G32: 120 | H32: 2010-01-16 | I32: N1 Ligue T3 ANNOEULLIN | J32: Poules Consolante | K32: 2009-2010 | P32: 0 | R32: 0
A33: DEROLEZ Jean-Pierre | B33: SAINT-GEORGES Claude | C33: P | D33: 0 | E33: 2 | F33: 102 | G33: 120 | H33: 2010-01-16 | I33: N1 Ligue T3 ANNOEULLIN | J33: Poules Consolante | K33: 2009-2010 | P33: 0 | R33: 0
A34: DEROLEZ Jean-Pierre | B34: CARPENTIER Yohanne | C34: G | D34: 2 | E34: 1 | F34: 150 | G34: 134 | H34: 2010-01-16 | I34: N1 Ligue T3 ANNOEULLIN | J34: Poules | K34: 2009-2010 | P34: 0 | R34: 0
A35: DEROLEZ Jean-Pierre | B35: GREMAIN Gino | C35: P | D35: 0 | E35: 2 | F35: 18 | G35: 120 | H35: 2010-01-16 | I35: N1 Ligue T3 ANNOEULLIN | J35: Poules | K35: 2009-2010 | P35: 0 | R35: 0
A36: DEROLEZ Jean-Pierre | B36: POULEYN André | C36: P | D36: 1 | E36: 2 | F36: 154 | G36: 157 | H36: 2010-02-20 | I36: N1 Ligue T4 DOUAI | J36: Poules | K36: 2009-2010 | P36: 0 | R36: 0
A37: DEROLEZ Jean-Pierre | B37: TURPIN Laurent | C37: P | D37: 1 | E37: 2 | F37: 128 | G37: 174 | H37: 2010-02-20 | I37: N1 Ligue T4 DOUAI | J37: Poules | K37: 2009-2010 | P37: 0 | R37: 0
A38: DEROLEZ Jean-Pierre | B38: MARTEL Bruno | C38: G | D38: 2 | E38: 0 | F38: 120 | G38: 74 | H38: 2010-02-20 | I38: N1 Ligue T4 DOUAI | J38: Poules Consolante | K38: 2009-2010 | P38: 0 | R38: 0
A39: DEROLEZ Jean-Pierre | B39: TURPIN Laurent | C39: P | D39: 1 | E39: 2 | F39: 162 | G39: 141 | H39: 2010-02-20 | I39: N1 Ligue T4 DOUAI | J39: Poules Consolante | K39: 2009-2010 | P39: 0 | R39: 0
A40: DEROLEZ Jean-Pierre | B40: SKORDILIS Christo | C40: P | D40: 1 | E40: 2 | F40: 176 | G40: 160 | H40: 2010-10-16 | I40: N1 Ligue T1 DOUAI | J40: Poules | K40: 2010-2011 | P40: 0 | R40: 0
A41: DEROLEZ Jean-Pierre | B41: WALLART Jean-Charles | C41: P | D41: 0 | E41: 2 | F41: 71 | G41: 120 | H41: 2010-10-16 | I41: N1 Ligue T1 DOUAI | J41: Poules | K41: 2010-2011 | P41: 0 | R41: 0
A42: DEROLEZ Jean-Pierre | B42: ZEUDE Alain | C42: G | D42: 2 | E42: 0 | F42: 120 | G42: 47 | H42: 2010-10-16 | I42: N1 Ligue T1 DOUAI | J42: Poules Consolante | K42: 2010-2011 | P42: 0 | R42: 0
A43: DEROLEZ Jean-Pierre | B43: FAUCOMPREZ Didier | C43: P | D43: 0 | E43: 2 | F43: 63 | G43: 120 | H43: 2010-10-16 | I43: N1 Ligue T1 DOUAI | J43: Poules Consolante | K43: 2010-2011 | P43: 0 | R43: 0
A44: DEROLEZ Jean-Pierre | B44: MAILLE Bernard | C44: P | D44: 0 | E44: 2 | F44: 48 | G44: 120 | H44: 2010-11-13 | I44: N1 Ligue T2 FACHES THUMESNIL | J44: Poules | K44: 2010-2011 | P44: 0 | R44: 0
A45: DEROLEZ Jean-Pierre | B45: VANNUCCI Emilio | C45: P | D45: 0 | E45: 2 | F45: 100 | G45: 120 | H45: 2010-11-13 | I45: N1 Ligue T2 FACHES THUMESNIL | J45: Poules | K45: 2010-2011 | P45: 0 | R45: 0
A46: DEROLEZ Jean-Pierre | B46: WALLART Jean-Charles | C46: G | D46: 2 | E46: 0 | F46: 120 | G46: 55 | H46: 2010-11-13 | I46: N1 Ligue T2 FACHES THUMESNIL | J46: Poules Consolante | K46: 2010-2011 | P46: 0 | R46: 0
A47: DEROLEZ Jean-Pierre | B47: LEMÂTRE Jérémy | C47: P | D47: 1 | E47: 2 | F47: 142 | G47: 154 | H47: 2010-11-13 | I47: N1 Ligue T2 FACHES THUMESNIL | J47: Poules Consolante | K47: 2010-2011 | P47: 0 | R47: 0
A48: DEROLEZ Jean-Pierre | B48: SKORDILIS Christo | C48: P | D48: 0 | E48: 2 | F48: 108 | G48: 120 | H48: 2010-12-11 | I48: N1 Ligue T3 GRAVELINES | J48: Poules | K48: =IF(H48<>"",IF(MONTH(H48)>MoisRef,YEAR(H48)&"-"&YEAR(H48)+1,YEAR(H48)-1&"-"&YEAR(H48)),"") -> 2010-2011 | P48: =IF($K48=P$1,COUNTIF($C48,"G"),0) -> 0 | R48: =IF($K48=R$1,COUNTIF($C48,"G"),0) -> 0
A49: DEROLEZ Jean-Pierre | B49: GEETS Patrice | C49: P | D49: 0 | E49: 2 | F49: 80 | G49: 120 | H49: 2010-12-11 | I49: N1 Ligue T3 GRAVELINES | J49: Poules | K49: 2010-2011 | P49: 0 | R49: 0
A50: DEROLEZ Jean-Pierre | B50: VEREECQUE Ludovic | C50: P | D50: 1 | E50: 2 | F50: 133 | G50: 124 | H50: 2010-12-11 | I50: N1 Ligue T3 GRAVELINES | J50: Poules Consolante | K50: 2010-2011 | P50: 0 | R50: 0
A51: DEROLEZ Jean-Pierre | B51: LECROART Serge | C51: P | D51: 1 | E51: 2 | F51: 112 | G51: 166 | H51: 2010-12-11 | I51: N1 Ligue T3 GRAVELINES | J51: Poules Consolante | K51: 2010-2011 | P51: 0 | R51: 0
A52: DEROLEZ Jean-Pierre | B52: SORTAIS Claude | C52: P | D52: 1 | E52: 2 | F52: 169 | G52: 164 | H52: 2010-12-03 | I52: National T3 FACHES THUMESNIL - RONCHIN | J52: Préqualifs | K52: 2010-2011 | P52: 0 | R52: 0
A53: DEROLEZ Jean-Pierre | B53: EVENOU Marie-Antoinette | C53: G | D53: 2 | E53: 1 | F53: 174 | G53: 116 | H53: 2010-12-03 | I53: National T3 FACHES THUMESNIL - RONCHIN | J53: Préqualifs | K53: 2010-2011 | P53: 0 | R53: 0
A54: DEROLEZ Jean-Pierre | B54: BASTENIER Jean | C54: P | D54: 0 | E54: 2 | F54: 72 | G54: 120 | H54: 2010-12-03 | I54: National T3 FACHES THUMESNIL - RONCHIN | J54: Préqualifs | K54: 2010-2011 | P54: 0 | R54: 0
A55: DEROLEZ Jean-Pierre | B55: PONCHANT Grégory | C55: P | D55: 0 | E55: 3 | F55: 118 | G55: 180 | H55: 2010-12-04 | I55: National T3 FACHES THUMESNIL - RONCHIN | J55: Qualifs promotion | K55: 2010-2011 | P55: 0 | R55: 0
A56: DEROLEZ Jean-Pierre | B56: POULEYN André | C56: G | D56: 3 | E56: 1 | F56: 208 | G56: 206 | H56: 2010-12-04 | I56: National T3 FACHES THUMESNIL - RONCHIN | J56: Qualifs promotion | K56: 2010-2011 | P56: 0 | R56: 0
A57: DEROLEZ Jean-Pierre | B57: SORTAIS Claude | C57: P | D57: 1 | E57: 3 | F57: 153 | G57: 206 | H57: 2010-12-04 | I57: National T3 FACHES THUMESNIL - RONCHIN | J57: Qualifs promotion | K57: 2010-2011 | P57: 0 | R57: 0
A58: DEROLEZ Jean-Pierre | B58: MARTEL Bruno | C58: P | D58: 1 | E58: 2 | F58: 117 | G58: 177 | H58: 2011-01-15 | I58: N1 Ligue T4 DIVION | J58: Poules | K58: 2010-2011 | P58: 0 | R58: 0
A59: DEROLEZ Jean-Pierre | B59: GEETS Patrice | C59: P | D59: 0 | E59: 2 | F59: 93 | G59: 120 | H59: 2011-01-15 | I59: N1 Ligue T4 DIVION | J59: Poules | K59: 2010-2011 | P59: 0 | R59: 0
A60: DEROLEZ Jean-Pierre | B60: LERICQUE Pierre | C60: P | D60: 1 | E60: 2 | F60: 171 | G60: 154 | H60: 2011-01-15 | I60: N1 Ligue T4 DIVION | J60: Poules Consolante | K60: 2010-2011 | P60: 0 | R60: 0
A61: DEROLEZ Jean-Pierre | B61: CARPENTIER Yohanne | C61: G | D61: 2 | E61: 0 | F61: 120 | G61: 88 | H61: 2011-01-15 | I61: N1 Ligue T4 DIVION | J61: Poules Consolante | K61: 2010-2011 | P61: 0 | R61: 0
A62: DEROLEZ Jean-Pierre | B62: VEREECQUE Ludovic | C62: G | D62: 2 | E62: 1 | F62: 166 | G62: 159 | H62: 2011-10-15 | I62: N1 Ligue T1 DIVION | J62: Poules | K62: 2011-2012 | P62: 0 | R62: 0
A63: DEROLEZ Jean-Pierre | B63: HERREBRECHT Thierry | C63: P | D63: 0 | E63: 2 | F63: 71 | G63: 120 | H63: 2011-10-15 | I63: N1 Ligue T1 DIVION | J63: Poules | K63: 2011-2012 | P63: 0 | R63: 0
A64: DEROLEZ Jean-Pierre | B64: MANTEN Paul | C64: P | D64: 0 | E64: 1 | F64: 87 | G64: 100 | H64: 2011-10-15 | I64: N1 Ligue T1 DIVION | J64: Poules Consolante | K64: 2011-2012 | P64: 0 | R64: 0
A65: DEROLEZ Jean-Pierre | B65: ESTERMANS Bernard | C65: G | D65: 1 | E65: 0 | F65: 100 | G65: 85 | H65: 2011-10-15 | I65: N1 Ligue T1 DIVION | J65: Poules Consolante | K65: 2011-2012 | P65: 0 | R65: 0
A66: DEROLEZ Jean-Pierre | B66: LUBREZ Pierre | C66: P | D66: 0 | E66: 1 | F66: 88 | G66: 100 | H66: 2011-10-15 | I66: N1 Ligue T1 DIVION | J66: 1/4 Finale Consolante | K66: 2011-2012 | P66: 0 | R66: 0
A67: DEROLEZ Jean-Pierre | B67: LORTHIOIR Jean-Luc | C67: P | D67: 0 | E67: 1 | F67: 75 | G67: 100 | H67: 2011-11-19 | I67: N1 Ligue T2 DOUAI | J67: Poules Consolante | K67: 2011-2012 | P67: 0 | R67: 0
A68: DEROLEZ Jean-Pierre | B68: KAYA Turgul | C68: P | D68: 0 | E68: 1 | F68: 64 | G68: 100 | H68: 2011-11-19 | I68: N1 Ligue T2 DOUAI | J68: Poules Consolante | K68: 2011-2012 | P68: 0 | R68: 0
A69: DEROLEZ Jean-Pierre | B69: CAUX Frédéric | C69: P | D69: 0 | E69: 2 | F69: 79 | G69: 120 | H69: 2011-11-19 | I69: N1 Ligue T2 DOUAI | J69: Poules | K69: 2011-2012 | P69: 0 | R69: 0
A70: DEROLEZ Jean-Pierre | B70: LHERMITTE Cédric | C70: P | D70: 1 | E70: 2 | F70: 135 | G70: 164 | H70: 2011-11-19 | I70: N1 Ligue T2 DOUAI | J70: Poules | K70: 2011-2012 | P70: 0 | R70: 0
A71: DEROLEZ Jean-Pierre | B71: HERREBRECHT Thierry | C71: P | D71: 1 | E71: 2 | F71: 112 | G71: 174 | H71: 2011-11-19 | I71: N1 Ligue T2 DOUAI | J71: 1/8 Finale | K71: 2011-2012 | P71: 0 | R71: 0
A72: DEROLEZ Jean-Pierre | B72: SORTAIS Claude | C72: P | D72: 0 | E72: 2 | F72: 66 | G72: 120 | H72: 2011-12-02 | I72: National T3 ANNOEULLIN | J72: Préqualifs | K72: 2011-2012 | P72: 0 | R72: 0
A73: DEROLEZ Jean-Pierre | B73: SACRE Jean-Yves | C73: G | D73: 2 | E73: 0 | F73: 120 | G73: 95 | H73: 2011-12-02 | I73: National T3 ANNOEULLIN | J73: Préqualifs | K73: 2011-2012 | P73: 0 | R73: 0
A74: DEROLEZ Jean-Pierre | B74: WEBER Thierry | C74: G | D74: 2 | E74: 0 | F74: 120 | G74: 61 | H74: 2011-12-02 | I74: National T3 ANNOEULLIN | J74: Préqualifs | K74: 2011-2012 | P74: 0 | R74: 0
A75: DEROLEZ Jean-Pierre | B75: LORTHIOIR Jean-Luc | C75: G | D75: 3 | E75: 1 | F75: 217 | G75: 214 | H75: 2011-12-03 | I75: National T3 ANNOEULLIN | J75: Qualifs promotion | K75: 2011-2012 | P75: 0 | R75: 0
A76: DEROLEZ Jean-Pierre | B76: SACRE Jean-Yves | C76: P | D76: 2 | E76: 3 | F76: 236 | G76: 272 | H76: 2011-12-03 | I76: National T3 ANNOEULLIN | J76: Qualifs promotion | K76: 2011-2012 | P76: 0 | R76: 0
A77: DEROLEZ Jean-Pierre | B77: WALLART Jean-Charles | C77: P | D77: 1 | E77: 3 | F77: 202 | G77: 234 | H77: 2011-12-03 | I77: National T3 ANNOEULLIN | J77: Qualifs promotion | K77: 2011-2012 | P77: 0 | R77: 0
A78: DEROLEZ Jean-Pierre | B78: LUBREZ Pierre | C78: G | D78: 2 | E78: 0 | F78: 120 | G78: 91 | H78: 2012-01-07 | I78: N1 Ligue T3 FACHES THUMESNIL | J78: Poules | K78: 2011-2012 | P78: 0 | R78: 0
A79: DEROLEZ Jean-Pierre | B79: GEETS Patrice | C79: P | D79: 1 | E79: 2 | F79: 125 | G79: 169 | H79: 2012-01-07 | I79: N1 Ligue T3 FACHES THUMESNIL | J79: Poules | K79: 2011-2012 | P79: 0 | R79: 0
A80: DEROLEZ Jean-Pierre | B80: LEMÂTRE Jérémy | C80: P | D80: 0 | E80: 2 | F80: 70 | G80: 120 | H80: 2012-01-07 | I80: N1 Ligue T3 FACHES THUMESNIL | J80: 1/8 Finale | K80: 2011-2012 | P80: 0 | R80: 0
A81: DEROLEZ Jean-Pierre | B81: MONFLIER Francis | C81: G | D81: 1 | E81: 0 | F81: 100 | G81: 83 | H81: 2012-01-28 | I81: N1 Ligue T4 GRAVELINES | J81: Poules Consolante | K81: 2011-2012 | P81: 0 | R81: 0
A82: DEROLEZ Jean-Pierre | B82: KAYA Turgul | C82: G | D82: 1 | E82: 0 | F82: 100 | G82: 63 | H82: 2012-01-28 | I82: N1 Ligue T4 GRAVELINES | J82: Poules Consolante | K82: 2011-2012 | P82: 0 | R82: 0
A83: DEROLEZ Jean-Pierre | B83: CAUX Frédéric | C83: P | D83: 0 | E83: 1 | F83: 91 | G83: 100 | H83: 2012-01-28 | I83: N1 Ligue T4 GRAVELINES | J83: Finale Consolante | K83: 2011-2012 | P83: 0 | R83: 0
A84: DEROLEZ Jean-Pierre | B84: LECROART Serge | C84: G | D84: 2 | E84: 0 | F84: 120 | G84: 92 | H84: 2012-01-28 | I84: N1 Ligue T4 GRAVELINES | J84: Poules | K84: 2011-2012 | P84: 0 | R84: 0
A85: DEROLEZ Jean-Pierre | B85: GEETS Patrice | C85: P | D85: 0 | E85: 2 | F85: 104 | G85: 120 | H85: 2012-01-28 | I85: N1 Ligue T4 GRAVELINES | J85: Poules | K85: 2011-2012 | P85: 0 | R85: 0
A86: DEROLEZ Jean-Pierre | B86: WALLART Jean-Charles | C86: P | D86: 0 | E86: 2 | F86: 62 | G86: 120 | H86: 2012-01-28 | I86: N1 Ligue T4 GRAVELINES | J86: 1/8 Finale | K86: 2011-2012 | P86: 0 | R86: 0
A87: DEROLEZ Jean-Pierre | B87: GROLLET Fabien | C87: G | D87: 2 | E87: 0 | F87: 120 | G87: 58 | H87: 2012-10-13 | I87: N1 Ligue T1 ANNOEULLIN | J87: Poules | K87: 2012-2013 | P87: 0 | R87: 0
A88: DEROLEZ Jean-Pierre | B88: MAILLE Bernard | C88: G | D88: 2 | E88: 0 | F88: 120 | G88: 65 | H88: 2012-10-13 | I88: N1 Ligue T1 ANNOEULLIN | J88: Poules | K88: 2012-2013 | P88: 0 | R88: 0
A89: DEROLEZ Jean-Pierre | B89: POULEYN André | C89: P | D89: 1 | E89: 2 | F89: 139 | G89: 162 | H89: 2012-10-13 | I89: N1 Ligue T1 ANNOEULLIN | J89: 1/8 Finale | K89: 2012-2013 | P89: 0 | R89: 0
A90: DEROLEZ Jean-Pierre | B90: LEMÂTRE Jérémy | C90: G | D90: 2 | E90: 0 | F90: 120 | G90: 80 | H90: 2012-10-27 | I90: N1 Ligue T2 BRUAY sur ESCAUT | J90: Poules | K90: 2012-2013 | P90: 0 | R90: 0
A91: DEROLEZ Jean-Pierre | B91: WALLART Jean-Charles | C91: G | D91: 2 | E91: 0 | F91: 120 | G91: 116 | H91: 2012-10-27 | I91: N1 Ligue T2 BRUAY sur ESCAUT | J91: Poules | K91: 2012-2013 | P91: 0 | R91: 0
A92: DEROLEZ Jean-Pierre | B92: LHERMITTE Cédric | C92: P | D92: 1 | E92: 2 | F92: 116 | G92: 154 | H92: 2012-10-27 | I92: N1 Ligue T2 BRUAY sur ESCAUT | J92: 1/4 Finale | K92: 2012-2013 | P92: 0 | R92: 0
A93: DEROLEZ Jean-Pierre | B93: PARISIS Francis | C93: G | D93: 2 | E93: 0 | F93: 120 | G93: 44 | H93: 2012-11-24 | I93: N1 Ligue T3 CALAIS | J93: Poules | K93: 2012-2013 | P93: 0 | R93: 0
A94: DEROLEZ Jean-Pierre | B94: VEREECQUE Ludovic | C94: P | D94: 0 | E94: 2 | F94: 86 | G94: 120 | H94: 2012-11-24 | I94: N1 Ligue T3 CALAIS | J94: Poules | K94: 2012-2013 | P94: 0 | R94: 0
A95: DEROLEZ Jean-Pierre | B95: WALLART Jean-Charles | C95: P | D95: 0 | E95: 2 | F95: 69 | G95: 120 | H95: 2012-11-24 | I95: N1 Ligue T3 CALAIS | J95: 1/8 Finale | K95: 2012-2013 | P95: 0 | R95: 0
A96: DEROLEZ Jean-Pierre | B96: MAILLE Bernard | C96: P | D96: 0 | E96: 2 | F96: 74 | G96: 120 | H96: 2012-12-15 | I96: N1 Ligue T4 VILLENEUVE D'ASCQ | J96: Poules | K96: 2012-2013 | P96: 0 | R96: 0
A97: DEROLEZ Jean-Pierre | B97: LHERMITTE Cédric | C97: P | D97: 1 | E97: 2 | F97: 121 | G97: 173 | H97: 2012-12-15 | I97: N1 Ligue T4 VILLENEUVE D'ASCQ | J97: Poules | K97: 2012-2013 | P97: 0 | R97: 0
A98: DEROLEZ Jean-Pierre | B98: POULEYN André | C98: G | D98: 1 | E98: 0 | F98: 100 | G98: 59 | H98: 2012-12-15 | I98: N1 Ligue T4 VILLENEUVE D'ASCQ | J98: Poules Consolante | K98: 2012-2013 | P98: 0 | R98: 0
A99: DEROLEZ Jean-Pierre | B99: LHERMITTE Cédric | C99: P | D99: 0 | E99: 1 | F99: 59 | G99: 100 | H99: 2012-12-15 | I99: N1 Ligue T4 VILLENEUVE D'ASCQ | J99: Poules Consolante | K99: 2012-2013 | P99: 0 | R99: 0
A100: DEROLEZ Jean-Pierre | B100: LECROART Serge | C100: G | D100: 1 | E100: 0 | F100: 100 | G100: 86 | H100: 2012-12-15 | I100: N1 Ligue T4 VILLENEUVE D'ASCQ | J100: 1/2 finale Consolante | K100: 2012-2013 | P100: 0 | R100: 0
A101: DEROLEZ Jean-Pierre | B101: LHERMITTE Cédric | C101: G | D101: 1 | E101: 0 | F101: 100 | G101: 86 | H101: 2012-12-15 | I101: N1 Ligue T4 VILLENEUVE D'ASCQ | J101: Finale Consolante | K101: 2012-2013 | P101: 0 | R101: 0
A102: DEROLEZ Jean-Pierre | B102: CAUX Grégory | C102: G | D102: 2 | E102: 0 | F102: 120 | G102: 74 | H102: 2014-01-04 | I102: N1 Ligue T1 ANNOEULLIN | J102: Poules | K102: 2013-2014 | P102: 0 | R102: 0
A103: DEROLEZ Jean-Pierre | B103: CAUX Grégory | C103: P | D103: 1 | E103: 2 | F103: 161 | G103: 175 | H103: 2014-01-04 | I103: N1 Ligue T1 ANNOEULLIN | J103: Poules | K103: 2013-2014 | P103: 0 | R103: 0
A104: DEROLEZ Jean-Pierre | B104: SAINT-GEORGES Claude | C104: P | D104: 0 | E104: 2 | F104: 53 | G104: 120 | H104: 2014-01-04 | I104: N1 Ligue T1 ANNOEULLIN | J104: 1/8 Finale | K104: 2013-2014 | P104: 0 | R104: 0
A105: DEROLEZ Jean-Pierre | B105: VERHAGHE Dominique | C105: P | D105: 0 | E105: 2 | F105: 86 | G105: 120 | H105: 2014-03-15 | I105: N1 Ligue T2 FACHES THUMESNIL | J105: Poules | K105: 2013-2014 | P105: 0 | R105: 0
A106: DEROLEZ Jean-Pierre | B106: SAINT-GEORGES Claude | C106: G | D106: 2 | E106: 0 | F106: 120 | G106: 48 | H106: 2014-03-15 | I106: N1 Ligue T2 FACHES THUMESNIL | J106: Poules | K106: 2013-2014 | P106: 0 | R106: 0
A107: DEROLEZ Jean-Pierre | B107: VEREECQUE Ludovic | C107: G | D107: 2 | E107: 1 | F107: 134 | G107: 126 | H107: 2014-03-15 | I107: N1 Ligue T2 FACHES THUMESNIL | J107: 1/4 Finale | K107: 2013-2014 | P107: 0 | R107: 0
A108: DEROLEZ Jean-Pierre | B108: DELSOL Philippe | C108: P | D108: 0 | E108: 2 | F108: 81 | G108: 120 | H108: 2014-03-15 | I108: N1 Ligue T2 FACHES THUMESNIL | J108: 1/2 Finale | K108: 2013-2014 | P108: 0 | R108: 0
A109: DEROLEZ Jean-Pierre | B109: PAILLARD Bertrand | C109: G | D109: 2 | E109: 1 | F109: 171 | G109: 142 | H109: 2014-04-05 | I109: N1 Ligue T3 GRAVELINES | J109: Poules | K109: 2013-2014 | P109: 0 | R109: 0
A110: DEROLEZ Jean-Pierre | B110: LUBREZ Pierre | C110: G | D110: 2 | E110: 1 | F110: 179 | G110: 151 | H110: 2014-04-05 | I110: N1 Ligue T3 GRAVELINES | J110: Poules | K110: 2013-2014 | P110: 0 | R110: 0
A111: DEROLEZ Jean-Pierre | B111: CLYNCKE Jean-Jacques | C111: P | D111: 1 | E111: 2 | F111: 139 | G111: 149 | H111: 2014-04-05 | I111: N1 Ligue T3 GRAVELINES | J111: 1/8 Finale | K111: 2013-2014 | P111: 0 | R111: 0
A112: DEROLEZ Jean-Pierre | B112: VERPOORT José | C112: G | D112: 1 | E112: 0 | F112: 100 | G112: 79 | H112: 2014-04-05 | I112: N1 Ligue T3 GRAVELINES | J112: Poules Consolante | K112: 2013-2014 | P112: 0 | R112: 0
A113: DEROLEZ Jean-Pierre | B113: PAILLARD Bertrand | C113: G | D113: 1 | E113: 0 | F113: 100 | G113: 55 | H113: 2014-04-05 | I113: N1 Ligue T3 GRAVELINES | J113: Poules Consolante | K113: 2013-2014 | P113: 0 | R113: 0
A114: DEROLEZ Jean-Pierre | B114: ALDEGUER Lionel | C114: G | D114: 1 | E114: 0 | F114: 100 | G114: 49 | H114: 2014-04-05 | I114: N1 Ligue T3 GRAVELINES | J114: 1/2 Finale Consolante | K114: 2013-2014 | P114: 0 | R114: 0
A115: DEROLEZ Jean-Pierre | B115: MAILLE Bernard | C115: P | D115: 0 | E115: 2 | F115: 59 | G115: 120 | H115: 2014-11-28 | I115: National T2 FACHES THUMESNIL - RONCHIN | J115: Préqualifs | K115: 2014-2015 | P115: 0 | R115: 0
A116: DEROLEZ Jean-Pierre | B116: LEBOEUF Sylvain | C116: P | D116: 1 | E116: 2 | F116: 123 | G116: 156 | H116: 2014-11-28 | I116: National T2 FACHES THUMESNIL - RONCHIN | J116: Préqualifs | K116: 2014-2015 | P116: 0 | R116: 0
A117: DEROLEZ Jean-Pierre | B117: SAINT-GEORGES Claude | C117: P | D117: 0 | E117: 2 | F117: 82 | G117: 120 | H117: 2014-11-28 | I117: National T2 FACHES THUMESNIL - RONCHIN | J117: Préqualifs | K117: 2014-2015 | P117: 0 | R117: 0
A118: DEROLEZ Jean-Pierre | B118: AIRAULT Jean-Michel | C118: P | D118: 1 | E118: 3 | F118: 219 | G118: 233 | H118: 2014-11-29 | I118: National T2 FACHES THUMESNIL - RONCHIN | J118: Qualifs promotion | K118: 2014-2015 | P118: 0 | R118: 0
A119: DEROLEZ Jean-Pierre | B119: MICHELOTTI Francesco | C119: P | D119: 2 | E119: 3 | F119: 244 | G119: 279 | H119: 2014-11-29 | I119: National T2 FACHES THUMESNIL - RONCHIN | J119: Qualifs promotion | K119: 2014-2015 | P119: 0 | R119: 0
A120: DEROLEZ Jean-Pierre | B120: MAILLE Bernard | C120: P | D120: 0 | E120: 2 | F120: 78 | G120: 120 | H120: 2015-03-20 | I120: National T5 SAINT QUENTIN | J120: Préqualifs | K120: 2014-2015 | P120: 0 | R120: 0
A121: DEROLEZ Jean-Pierre | B121: GHEVART Jean | C121: P | D121: 0 | E121: 2 | F121: 105 | G121: 120 | H121: 2015-03-20 | I121: National T5 SAINT QUENTIN | J121: Préqualifs | K121: 2014-2015 | P121: 0 | R121: 0
A122: DEROLEZ Jean-Pierre | B122: MICHELOTTI Francesco | C122: P | D122: 1 | E122: 2 | F122: 105 | G122: 162 | H122: 2015-03-20 | I122: National T5 SAINT QUENTIN | J122: Préqualifs | K122: 2014-2015 | P122: 0 | R122: 0
A123: DEROLEZ Jean-pierre | B123: LEMÂTRE Alexis | C123: G | D123: 2 | E123: 0 | F123: 120 | G123: 101 | H123: 2015-01-17 | I123: N1 Ligue T1 DUNKERQUE | J123: Poules | K123: 2014-2015 | P123: 1 | R123: 0
A124: DEROLEZ Jean-pierre | B124: DEPLECHIN Robert | C124: P | D124: 0 | E124: 2 | F124: 104 | G124: 120 | H124: 2015-01-17 | I124: N1 Ligue T1 DUNKERQUE | J124: Poules | K124: 2014-2015 | P124: 0 | R124: 0
A125: DEROLEZ Jean-pierre | B125: WALLART Jean-charles | C125: G | D125: 2 | E125: 1 | F125: 166 | G125: 161 | H125: 2015-01-17 | I125: N1 Ligue T1 DUNKERQUE | J125: 1/8 Finale | K125: 2014-2015 | P125: 1 | R125: 0
A126: DEROLEZ Jean-pierre | B126: DECONINCK Franky | C126: P | D126: 0 | E126: 2 | F126: 63 | G126: 120 | H126: 2015-01-17 | I126: N1 Ligue T1 DUNKERQUE | J126: 1/4 Finale | K126: 2014-2015 | P126: 0 | R126: 0
A127: DEROLEZ Jean-pierre | B127: ALDEGUER Lionel | C127: G | D127: 2 | E127: 0 | F127: 120 | G127: 80 | H127: 2015-02-07 | I127: N1 Ligue T2 CALAIS | J127: Poules | K127: 2014-2015 | P127: 1 | R127: 0
A128: DEROLEZ Jean-pierre | B128: CLYNCKE Jean-Jacques | C128: G | D128: 2 | E128: 0 | F128: 120 | G128: 84 | H128: 2015-02-07 | I128: N1 Ligue T2 CALAIS | J128: Poules | K128: 2014-2015 | P128: 1 | R128: 0
A129: DEROLEZ Jean-pierre | B129: LORTHIOIR Jean-Luc | C129: G | D129: 2 | E129: 0 | F129: 120 | G129: 65 | H129: 2015-02-07 | I129: N1 Ligue T2 CALAIS | J129: 1/8 Finale | K129: 2014-2015 | P129: 1 | R129: 0
A130: DEROLEZ Jean-pierre | B130: CLYNCKE Jean-Jacques | C130: G | D130: 2 | E130: 0 | F130: 120 | G130: 89 | H130: 2015-02-07 | I130: N1 Ligue T2 CALAIS | J130: 1/4 Finale | K130: 2014-2015 | P130: 1 | R130: 0
A131: DEROLEZ Jean-pierre | B131: LEMÂTRE Alexis | C131: G | D131: 2 | E131: 1 | F131: 133 | G131: 157 | H131: 2015-02-07 | I131: N1 Ligue T2 CALAIS | J131: 1/2 Finale | K131: 2014-2015 | P131: 1 | R131: 0
A132: DEROLEZ Jean-pierre | B132: LEMÂTRE Jérémy | C132: P | D132: 1 | E132: 2 | F132: 105 | G132: 165 | H132: 2015-02-07 | I132: N1 Ligue T2 CALAIS | J132: Finale | K132: 2014-2015 | P132: 0 | R132: 0
A133: DEROLEZ Jean-pierre | B133: TRIPLET Gilbert | C133: G | D133: 1 | E133: 0 | F133: 100 | G133: 71 | H133: 2015-03-14 | I133: N1 Ligue T3 ANNOEULLIN | J133: Poules Consolante | K133: 2014-2015 | P133: 1 | R133: 0
A134: DEROLEZ Jean-pierre | B134: LORTHIOIR Jean-Luc | C134: P | D134: 0 | E134: 1 | F134: 78 | G134: 100 | H134: 2015-03-14 | I134: N1 Ligue T3 ANNOEULLIN | J134: Poules Consolante | K134: 2014-2015 | P134: 0 | R134: 0
A135: DEROLEZ Jean-pierre | B135: LORTHIOIR Jean-Luc | C135: P | D135: 1 | E135: 2 | F135: 151 | G135: 156 | H135: 2015-03-14 | I135: N1 Ligue T3 ANNOEULLIN | J135: Poules | K135: 2014-2015 | P135: 0 | R135: 0
A136: DEROLEZ Jean-pierre | B136: CAUX Frédéric | C136: P | D136: 0 | E136: 2 | F136: 93 | G136: 120 | H136: 2015-03-14 | I136: N1 Ligue T3 ANNOEULLIN | J136: Poules | K136: 2014-2015 | P136: 0 | R136: 0
A137: DEROLEZ Jean-pierre | B137: POULEYN André | C137: P | D137: 1 | E137: 3 | F137: 143 | G137: 223 | H137: 2015-04-19 | I137: FINALE LIGUE N1 GRAVELINES | J137: Poules | K137: 2014-2015 | P137: 0 | R137: 0
A138: DEROLEZ Jean-pierre | B138: LEMÂTRE Jérémy | C138: P | D138: 2 | E138: 3 | F138: 245 | G138: 261 | H138: 2015-04-19 | I138: FINALE LIGUE N1 GRAVELINES | J138: Poules | K138: 2014-2015 | P138: 0 | R138: 0
A139: DEROLEZ Jean-pierre | B139: DEPLECHIN Robert | C139: G | D139: 3 | E139: 2 | F139: 274 | G139: 279 | H139: 2015-04-19 | I139: FINALE LIGUE N1 GRAVELINES | J139: 5ème 6ème | K139: 2014-2015 | P139: 1 | R139: 0
A140: DEROLEZ Jean-Pierre | B140: GANGLOFF Jean-Luc | C140: P | D140: 0 | E140: 2 | F140: 50 | G140: 120 | H140: 2015-12-11 | I140: National T3 FACHES THUMESNIL - RONCHIN | J140: Préqualifs | K140: 2015-2016 | P140: 0 | R140: 0
A141: DEROLEZ Jean-Pierre | B141: GHEVART Jean | C141: G | D141: 2 | E141: 0 | F141: 120 | G141: 83 | H141: 2015-12-11 | I141: National T3 FACHES THUMESNIL - RONCHIN | J141: Préqualifs | K141: 2015-2016 | P141: 0 | R141: 1
A142: DEROLEZ Jean-Pierre | B142: JACQ Laurent | C142: G | D142: 2 | E142: 1 | F142: 170 | G142: 146 | H142: 2015-12-11 | I142: National T3 FACHES THUMESNIL - RONCHIN | J142: Préqualifs | K142: 2015-2016 | P142: 0 | R142: 1
A143: DEROLEZ Jean-Pierre | B143: BILLIARD Alain | C143: P | D143: 2 | E143: 3 | F143: 223 | G143: 283 | H143: 2015-12-12 | I143: National T3 FACHES THUMESNIL - RONCHIN | J143: Qualifs promotion | K143: 2015-2016 | P143: 0 | R143: 0
A144: DEROLEZ Jean-Pierre | B144: CHARLES Dominique | C144: G | D144: 3 | E144: 2 | F144: 251 | G144: 226 | H144: 2015-12-12 | I144: National T3 FACHES THUMESNIL - RONCHIN | J144: Qualifs promotion | K144: 2015-2016 | P144: 0 | R144: 1
A145: DEROLEZ Jean-Pierre | B145: CLYNCKE Jean-Jacques | C145: P | D145: 1 | E145: 3 | F145: 153 | G145: 212 | H145: 2015-12-12 | I145: National T3 FACHES THUMESNIL - RONCHIN | J145: Qualifs promotion | K145: 2015-2016 | P145: 0 | R145: 0
A146: DEROLEZ Jean-Pierre | B146: SORTAIS Claude | C146: P | D146: 1 | E146: 2 | F146: 138 | G146: 162 | H146: 2016-03-04 | I146: National T5 GRAVELINES | J146: Préqualifs | K146: 2015-2016 | P146: 0 | R146: 0
